Workbook

Sheet Contents
A1: 80 | M1: ESC USE ONLY
D2: ESSENTIAL SERVICES COMMISSION
D3: Water Price Review
D4: Financial Model Template
B7: Table of Contents | F7: Water Business: | H7: =+N24 -> East Gippsland Water | I7: =+O24 -> EGW
B8: Section & Sheet Titles | F8: Regulatory Period: | H8: 2018-19 to 2022-23 (Fourth) | N8: [Decision] | O8: [Month] | P8: [Year] | Q8: [Version]
F9: Model Name: | H9: =I7&"_2018 Price Review Model_"&O9&P9&Q9 -> EGW_2018 Price Review Model_Nov2017 - v1 | N9: Draft | O9: Nov | P9: 2017 | Q9: - v1 | R9: << Select
B10: a. | C10: =+KeyAssumptionsPriceControl_FO!B1 -> Key Assumptions Price Control | F10: Decision type: | H10: =+N9&" Decision" -> Draft Decision | N10: Draft | O10: Jan | P10: 2016 | Q10: - v1
B11: b. | C11: =+Expenditure_Detail!B1 -> Expenditure - Detail | N11: Final | O11: Feb | P11: 2017 | Q11: - v1.2
B12: c. | C12: =Opex_FO!B1 -> Operating Expenditure - Forecast | F12: Model Key: | O12: Mar | P12: 2018 | Q12: - v3
B13: d. | C13: =Opex_Breakdown!B1 -> Operating Expenditure - Breakdown | O13: Apr | P13: 2019 | Q13: - v3.1
B14: e. | C14: =+'Capex_FO input'!B1 -> Capital Expenditure - Forecast Input | G14: BLUE | H14: =+I7&" - DATA INPUT CELL" -> EGW - DATA INPUT CELL | O14: May | P14: 2020 | Q14: - v4
B15: f. | C15: =Capex_FO_AC!B1 -> Capital Expenditure - Asset Category Breakdown | O15: Jun | P15: 2021 | Q15: - v4.1
B16: g. | C16: =ExpSummary_FO!B1 -> Expenditure Summary | G16: YELLOW | H16: NOTES / INSTRUCTIONS | O16: Jul | Q16: - v5
B17: h. | C17: =RollForward_FO!B1 -> Rolled forward regulatory asset base (RAB) | O17: Aug | Q17: - v5.1
B18: i. | C18: =PrevPerAdj_FO!B1 -> Previous period adjustments | G18: GREY | H18: MODEL PARAMETERS / ASSUMPTIONS | O18: Sep | Q18: - v6
B19: j. | C19: =RevenuePriceCap_FO!C1 -> Revenue forecast (price caps) | O19: Oct | Q19: - v6.1
B20: k. | C20: Revenue forecast (tariff basket) | G20: WHITE | H20: FORMULA / HARDCODED VALUES | O20: Nov | Q20: - v7
B21: l. | C21: =NotPres_FO!B1 -> Non Prescribed Services | O21: Dec | Q21: - v7.1
B22: m. | C22: ='Finance&Tax_FO'!B1 -> Cash, debt and tax assumptions | G22: ORANGE | H22: FORMULA DIFFERENT TO ADJACENT CELL
B23: n. | C23: ='Rev&RAV_FO'!B1 -> Revenue requirement detail | N23: [Business]
B24: o. | C24: =Indicators_FO!B1 -> Financial indicators | G24: GREEN | H24: DATA FROM 2013 DECISION OR PERFORMANCE REPORT | N24: East Gippsland Water | O24: =+VLOOKUP(N24,N25:O42,2,FALSE) -> EGW
B25: p. | C25: =Outcomes!B1 -> Outcomes | N25: Barwon Water | O25: BW
B26: q. | C26: =GSL!B1 -> Guaranteed Service Levels (GSL) | G26: RED | H26: ERROR CHECK | N26: Central Highlands Water | O26: CHW
N27: City West Water | O27: CWW
N28: Coliban Water | O28: CW
N29: East Gippsland Water | O29: EGW
N30: Gippsland Water | O30: CGW
N31: Goulburn Valley Water | O31: GVW
N32: GWM Water | O32: GWMW | P32: diff model
N33: Lower Murray Water - Urban | O33: LMW-U | P33: diff model
N34: Lower Murray Water - Rural | O34: LMW-R
N35: North East Water | O35: NEW
N36: South East Water | O36: SEW
N37: South Gippsland Water | O37: SGW
N38: Southern Rural Water | O38: SRW | P38: diff model
N39: Wannon Water | O39: WNW
N40: Western Water | O40: WW
N41: Westernport Water | O41: WPW
N42: Yarra Valley Water | O42: YVW

Sheet KeyAssumptionsPriceControl_FO
A1: 80 | B1: Key Assumptions Price Control
B2: =+Contents!H7 -> East Gippsland Water
B3: Go to Table of Contents
L4: FIRST REG PERIOD | P4: SECOND REG PERIOD | U4: THIRD REG PERIOD | Z4: FOURTH REG PERIOD | AC4: FIFTH REG PERIOD
F6: Straight Line | K6: 2006 | L6: 2007 | M6: 2008 | N6: 2009 | O6: 2010 | P6: 2011 | Q6: 2012 | R6: 2013 | S6: 2014 | T6: 2015 | U6: 2016 | V6: 2017 | W6: 2018 | X6: 2019 | Y6: 2020 | Z6: 2021 | AA6: 2022 | AB6: 2023 | AC6: 2024 | AD6: 2025 | AE6: 2026 | AF6: 2027 | AG6: 2028
F7: Declining Balance | I7: 2003-04 | J7: 2004-05 | K7: =+CONCATENATE(K6-1,"-",RIGHT(K6,2)) -> 2005-06 | L7: =+CONCATENATE(L6-1,"-",RIGHT(L6,2)) -> 2006-07 | M7: 2007-08 | N7: 2008-09 | O7: 2009-10 | P7: 2010-11 | Q7: 2011-12 | R7: 2012-13 | S7: 2013-14 | T7: 2014-15 | U7: 2015-16 | V7: 2016-17 | W7: 2017-18 | X7: 2018-19 | Y7: 2019-20 | Z7: 2020-21 | AA7: 2021-22 | AB7: 2022-23 | AC7: 2023-24 | AD7: 2024-25 | AE7: 2025-26 | AF7: 2026-27 | AG7: 2027-28
E11: Inflation assumptions
F13: March quarter annual CPI | I13: 141.3 | J13: 144.1 | K13: 147.5 | L13: 151.9 | M13: 155.6 | N13: 162.2 | O13: 166.2 | P13: 171 | Q13: 176.7 | R13: 99.9 | S13: 102.4 | T13: 105.4 | U13: 106.8 | V13: 108.2 | W13: 110.5
F14: Inflation | J14: =+J13/I13-1 -> 0.01981599434 | K14: 0.02359472588 | L14: 0.02983050847 | M14: 0.02435813035 | N14: 0.04241645244 | O14: 0.02466091245 | P14: 0.02888086643 | Q14: 0.03333333333 | R14: 0.01584606678 | S14: =+IF(S13=0,$X$44,S13/R13-1) -> 0.02502502503 | T14: 0.029296875 | U14: 0.01328273245 | V14: 0.01310861423 | W14: 0.02125693161 | X14: 0.023 | Y14: 0.023 | Z14: 0.023 | AA14: 0.023 | AB14: 0.023 | AC14: 0.023 | AD14: 0.023 | AE14: 0.023 | AF14: 0.023 | AG14: 0.023
F15: Inflation factor | I15: 0.7871866295 | J15: 0.8027855153 | K15: 0.8217270195 | L15: 0.8462395543 | M15: 0.8668523677 | N15: 0.9036211699 | O15: 0.9259052925 | P15: 0.9526462396 | Q15: 0.9844011142 | R15: =+R13/$W$13 -> 0.9040723982 | S15: 0.9266968326 | T15: 0.9538461538 | U15: 0.9665158371 | V15: =+V13/$W$13 -> 0.9791855204 | W15: =+W13/$W$13 -> 1 | X15: =+W15*(1+X14) -> 1.023 | Y15: =+X15*(1+Y14) -> 1.046529 | Z15: 1.070599167 | AA15: 1.095222948 | AB15: 1.120413076 | AC15: 1.146182576 | AD15: 1.172544776 | AE15: 1.199513305 | AF15: 1.227102112 | AG15: 1.25532546
I16: CPI index re-referenced in 2012-13, shaded values have been hardcoded to lock in RAB value.
E21: Cost of debt - 10 year trailing average (Nominal)
W22: Estimate
E23: Cost of debt | L23: 0.06981666667 | M23: 0.07414 | N23: 0.0691525788 | O23: 0.07361870984 | P23: 0.07046784142 | Q23: 0.06308887941 | R23: 0.0526945046 | S23: 0.070525 | T23: 0.05360833333 | U23: 0.05270138413 | V23: 0.0491 | W23: 0.0491
E24: Re-financing weightings - average 10 yrs | L24: =1/10 -> 0.1 | M24: =1/10 -> 0.1 | N24: =1/10 -> 0.1 | O24: =1/10 -> 0.1 | P24: =1/10 -> 0.1 | Q24: 0.1 | R24: 0.1 | S24: 0.1 | T24: 0.1 | U24: 0.1 | V24: 0.1 | W24: 0.1 | X24: 0.1 | Y24: 0.1 | Z24: 0.1 | AA24: 0.1 | AB24: 0.1 | AC24: 0.1 | AD24: 0.1 | AE24: 0.1 | AF24: 0.1 | AG24: 0.1
E26: Cost of debt - 10 year trailing average | V26: =IF(U23<>"",SUMPRODUCT(L23:U23,L24:U24),"") -> 0.06498138982 | W26: =IF(V23<>"",SUMPRODUCT(M23:V23,M24:V24),"") -> 0.06290972315 | X26: =IF(W23<>"",SUMPRODUCT(N23:W23,N24:W24),"") -> 0.06040572315 | Y26: =IF(X23<>"",SUMPRODUCT(O23:X23,O24:X24),"") ->  | Z26: =IF(Y23<>"",SUMPRODUCT(P23:Y23,P24:Y24),"") -> 
E30: WACC assumptions (retained for historical purposes only) | U30: Regulatory Rate of Return (RRR) - Nominal
K32: 1st period | M32: 2nd period | O32: 3rd period | U32: Cost of Debt | X32: =+X26 -> 0.06040572315 | Y32: =+$X$32 -> 0.06040572315 | Z32: 0.06040572315 | AA32: 0.06040572315 | AB32: 0.06040572315 | AC32: 0.06040572315 | AD32: 0.06040572315 | AE32: 0.06040572315 | AF32: 0.06040572315 | AG32: 0.06040572315 | AI32: << Linked to Benchmark tax liability calculation (Rev&RAV_FO)
E33: Parameters
F34: Risk Free Rate (Real) | K34: =+HLOOKUP(Contents!$I$7&1,Determination_Lookup!$C$54:$BD$61,2,FALSE) -> 0.0267 | M34: =+HLOOKUP(Contents!$I$7&2,Determination_Lookup!$C$54:$BD$61,2,FALSE) -> 0.0323 | O34: =+HLOOKUP(Contents!$I$7&3,Determination_Lookup!$C$54:$BD$61,2,FALSE) -> 0.005959
F35: Debt Premium | K35: =+HLOOKUP(Contents!$I$7&1,Determination_Lookup!$C$54:$BD$61,3,FALSE) -> 0.0116 | M35: =+HLOOKUP(Contents!$I$7&2,Determination_Lookup!$C$54:$BD$61,3,FALSE) -> 0.0175 | O35: =+HLOOKUP(Contents!$I$7&3,Determination_Lookup!$C$54:$BD$61,3,FALSE) -> 0.0399
F36: Equity Premium | K36: =+HLOOKUP(Contents!$I$7&1,Determination_Lookup!$C$54:$BD$61,4,FALSE) -> 0.06 | M36: =+HLOOKUP(Contents!$I$7&2,Determination_Lookup!$C$54:$BD$61,4,FALSE) -> 0.06 | O36: =+HLOOKUP(Contents!$I$7&3,Determination_Lookup!$C$54:$BD$61,4,FALSE) -> 0.06 | U36: Regulatory Rate of Return (RRR) - Real
F37: Equity Beta | K37: =+HLOOKUP(Contents!$I$7&1,Determination_Lookup!$C$54:$BD$61,5,FALSE) -> 0.75 | M37: =+HLOOKUP(Contents!$I$7&2,Determination_Lookup!$C$54:$BD$61,5,FALSE) -> 0.65 | O37: =+HLOOKUP(Contents!$I$7&3,Determination_Lookup!$C$54:$BD$61,5,FALSE) -> 0.65
F38: Gearing (Debt/Assets) | K38: =+HLOOKUP(Contents!$I$7&1,Determination_Lookup!$C$54:$BD$61,6,FALSE) -> 0.6 | M38: =+HLOOKUP(Contents!$I$7&2,Determination_Lookup!$C$54:$BD$61,6,FALSE) -> 0.6 | O38: =+HLOOKUP(Contents!$I$7&3,Determination_Lookup!$C$54:$BD$61,6,FALSE) -> 0.6 | U38: Cost of Debt | X38: =(1+X32)/(1+X44)-1 -> 0.03656473426 | Y38: =+$X$38 -> 0.03656473426 | Z38: =+$X$38 -> 0.03656473426 | AA38: 0.03656473426 | AB38: 0.03656473426 | AC38: 0.03656473426 | AD38: 0.03656473426 | AE38: 0.03656473426 | AF38: 0.03656473426 | AG38: 0.03656473426
F39: Forecast Inflation | K39: =+HLOOKUP(Contents!$I$7&1,Determination_Lookup!$C$54:$BD$61,7,FALSE) -> 0.0255 | M39: =+HLOOKUP(Contents!$I$7&2,Determination_Lookup!$C$54:$BD$61,7,FALSE) -> 0.025 | O39: =+HLOOKUP(Contents!$I$7&3,Determination_Lookup!$C$54:$BD$61,7,FALSE) -> 0.0275
F40: Franking credit value | K40: =+HLOOKUP(Contents!$I$7&1,Determination_Lookup!$C$54:$BD$61,8,FALSE) -> 0.5 | M40: =+HLOOKUP(Contents!$I$7&2,Determination_Lookup!$C$54:$BD$61,8,FALSE) -> 0.5 | O40: =+HLOOKUP(Contents!$I$7&3,Determination_Lookup!$C$54:$BD$61,8,FALSE) -> 0.5 | U40: Return on Equity | X40: =IF(AG65<>0,(AG65/100),IF(AG63<>0,(AG63/100),(AG61/100))) -> 0.045 | Y40: =+$X$40 -> 0.045 | Z40: 0.045 | AA40: 0.045 | AB40: 0.045 | AC40: 0.045 | AD40: 0.045 | AE40: 0.045 | AF40: 0.045 | AG40: 0.045 | AI40: << Source: PREMO Assessment Matrix
E42: 'Vanilla' After Tax WACC (Real) | K42: =ROUND(((K34+K36*K37)*(1-K38))+((K34+K35)*K38),3) -> 0.052 | M42: =ROUND(((M34+M36*M37)*(1-M38))+((M34+M35)*M38),3) -> 0.058 | O42: =ROUND(((O34+O36*O37)*(1-O38))+((O34+O35)*O38),3) -> 0.045 | U42: RRR (real) | X42: =ROUND((X40*(1-X43)+X38*X43),3) -> 0.04 | Y42: 0.04 | Z42: 0.04 | AA42: 0.04 | AB42: 0.04 | AC42: 0.04 | AD42: 0.04 | AE42: 0.04 | AF42: 0.04 | AG42: 0.04
U43: Gearing | X43: 0.6 | Y43: =+X43 -> 0.6 | Z43: =+Y43 -> 0.6 | AA43: 0.6 | AB43: 0.6 | AC43: 0.6 | AD43: 0.6 | AE43: 0.6 | AF43: 0.6 | AG43: 0.6
U44: Forecast Inflation | X44: 0.023 | Y44: =+X44 -> 0.023 | Z44: 0.023 | AA44: 0.023 | AB44: 0.023 | AC44: 0.023 | AD44: 0.023 | AE44: 0.023 | AF44: 0.023 | AG44: 0.023
E46: Form of price control selected
E48: Price caps | I48: 1
U49: PREMO Graded Scoring System (for reference only) | AB49: PREMO Assessment Matrix (linked to Regulatory Rate of Return calculation above)
E50: Revenue cap / Hybrid Tariff Basket
V52: Water business | X52: ESC assessment | Z52: Difference | AD52: Water business self-assessment
V53: self-assessment | X53: of submission
AD54: Leading | AE54: Advanced | AF54: Standard | AG54: Basic
U55: Risk | V55: 2.75 | Z55: =IFERROR(IF(X55=0,"",X55-V55),"") ->  | AB55: ESC assessment of submission | AC55: Leading | AD55: 5.3
U56: Engagement | V56: 2.75 | Z56: =IFERROR(IF(X56=0,"",X56-V56),"") ->  | AC56: Advanced | AD56: 4.7 | AE56: 4.9
U57: Management | V57: 3 | Z57: =IFERROR(IF(X57=0,"",X57-V57),"") ->  | AC57: Standard | AD57: 4.1 | AE57: 4.3 | AF57: 4.5
U58: Outcomes | V58: 2.5 | Z58: =IFERROR(IF(X58=0,"",X58-V58),"") ->  | AC58: Basic | AF58: 3.9 | AG58: 4.1
U60: Total Score | V60: =SUM(V55:V58) -> 11 | X60: =SUM(X55:X58) -> 0 | Z60: =IFERROR(IF(X60=0,"",X60-V60),"") -> 
AB61: Water business self-assessment (Maximum allowable ROE) | AF61: Standard | AG61: =+VLOOKUP(AF61,$AF$72:$AG$76,2,FALSE) -> 4.5
AB63: ROE Override (Must be less than Maximum allowable ROE) | AG63: =+IF(AF63<=AG61,AF63,"CHECK") -> 0
U64: Rating | V64: =IF(V60<4,"",IF(AND(V60>=4,V60<=7.25),"Basic",IF(AND(V60>=7.5,V60<=11.25),"Standard",IF(AND(V60>=11.5,V60<=15.25),"Advanced",IF(AND(V60>=15.5,V60<=16),"Leading"))))) -> Standard | X64: =IF(X60<4,"",IF(AND(X60>=4,X60<=7.25),"Basic",IF(AND(X60>=7.5,X60<=11.25),"Standard",IF(AND(X60>=11.5,X60<=15.25),"Advanced",IF(AND(X60>=15.5,X60<=16),"Leading"))))) -> 
AB65: ESC assessment of submission | AF65: Standard | AG65: =IFERROR(IF(AF65=AF61,AG61,VLOOKUP(AF61&AF65,AF79:AG83,2,FALSE)),0) -> 4.5
AF67: Difference | AG67: =IFERROR(IF(AG65=0,"",AG65-AG61),"") -> 0
U70: ESC USE ONLY
W71: [Select] | Y71: Rating | Z71: Aggregate score for overall PREMO rating | AF71: Business self assessment
W72: 1 | Y72: Leading | Z72: 15.5 to 16.0 | AF72: [Select]
W73: 1.25 | Y73: Advanced | Z73: 11.5 to 15.25 | AF73: Leading | AG73: =+AD55 -> 5.3
W74: 1.5 | Y74: Standard | Z74: 7.5 to 11.25 | AF74: Advanced | AG74: =+AE56 -> 4.9
W75: 1.75 | Y75: Basic | Z75: 4.0 to 7.25 | AF75: Standard | AG75: =+AF57 -> 4.5
W76: 2 | AF76: Basic | AG76: =+AG58 -> 4.1
W77: 2.25
W78: 2.5 | AF78: downgrading
W79: 2.75 | AF79: =AF54&AC58 -> StandardBasic | AG79: =+AF58 -> 3.9
W80: 3 | AF80: =+AE54&AC57 -> AdvancedStandard | AG80: =+AE57 -> 4.3
W81: 3.25 | AF81: =+AD54&AC56 -> LeadingAdvanced | AG81: =+AD56 -> 4.7
W82: 3.5 | AF82: =+AD54&AC57 -> LeadingStandard | AG82: =+AD57 -> 4.1
W83: 3.75 | AF83: =+AF61&"Basic" -> StandardBasic | AG83: CHECK
W84: 4

Sheet Expenditure_Detail
B1: Expenditure - Detail
B2: =+Model_Name -> East Gippsland Water
B3: Go to Table of Contents
L4: FIRST REG PERIOD | P4: SECOND REG PERIOD | S4: THIRD REG PERIOD | X4: FOURTH REG PERIOD | AC4: FIFTH REG PERIOD
K5: 2006 | L5: 2007 | M5: 2008 | N5: 2009 | O5: 2010 | P5: 2011 | Q5: 2012 | R5: 2013 | S5: 2014 | T5: 2015 | U5: 2016 | V5: 2017 | W5: 2018 | X5: 2019 | Y5: 2020 | Z5: 2021 | AA5: 2022 | AB5: 2023 | AC5: 2024 | AD5: 2025 | AE5: 2026 | AF5: 2027 | AG5: 2028
B6: $m, 01/01/18 | K6: =+CONCATENATE(K5-1,"-",RIGHT(K5,2)) -> 2005-06 | L6: =+CONCATENATE(L5-1,"-",RIGHT(L5,2)) -> 2006-07 | M6: 2007-08 | N6: 2008-09 | O6: 2009-10 | P6: 2010-11 | Q6: 2011-12 | R6: 2012-13 | S6: 2013-14 | T6: 2014-15 | U6: 2015-16 | V6: 2016-17 | W6: 2017-18 | X6: 2018-19 | Y6: 2019-20 | Z6: 2020-21 | AA6: 2021-22 | AB6: 2022-23 | AC6: 2023-24 | AD6: 2024-25 | AE6: 2025-26 | AF6: 2026-27 | AG6: 2027-28
C10: Labour assumptions
D12: Current FTEs (at 30 June) | R12: 86 | S12: 90.8 | T12: 91.6 | U12: 94.11 | V12: 95.9
D13: Actual and forecast labour costs for current FTEs ($m) | R13: 7.956 | S13: 8.47 | T13: 9.024 | U13: 9.493 | V13: 9.833 | W13: 10.084 | X13: 9.941 | Y13: 10.02 | Z13: 10.113 | AA13: 10.232 | AB13: 10.347 | AC13: =+AB13*1.012 -> 10.471164 | AD13: =+AC13*1.012 -> 10.59681797 | AE13: =+AD13*1.012 -> 10.72397978 | AF13: =+AE13*1.007 -> 10.79904764 | AG13: =+AF13*1.007 -> 10.87464098
D14: Cost per FTE ($000) | R14: =+R13/R12*10^3 -> 92.51162791 | S14: 93.28193833 | T14: 98.51528384 | U14: 100.8713208 | V14: =+V13/V12*10^3 -> 102.5338895 | W14: =+W13/$V$12*10^3 -> 105.1511992 | X14: 103.6600626 | Y14: 104.4838373 | Z14: 105.4535975 | AA14: 106.6944734 | AB14: 107.8936392 | AC14: 109.1883629 | AD14: 110.4986232 | AE14: 111.8246067 | AF14: 112.607379 | AG14: =+AG13/$V$12*10^3 -> 113.3956306
D15: Annual growth in labour costs for current FTEs | S15: =+S14/R14-1 -> 0.008326633489 | T15: 0.05610245253 | U15: 0.02391544601 | V15: 0.01648207499 | W15: 0.02552628903 | X15: -0.0141808806 | Y15: 0.007946886631 | Z15: 0.009281437126 | AA15: 0.01176703253 | AB15: 0.01123924941 | AC15: =+AC14/AB14-1 -> 0.012 | AD15: =+AD14/AC14-1 -> 0.012 | AE15: =+AE14/AD14-1 -> 0.012 | AF15: =+AF14/AE14-1 -> 0.007 | AG15: =+AG14/AF14-1 -> 0.007
D17: Change in FTEs in future periods (net no. annual change) | W17: 0 | X17: -1 | Y17: 0 | Z17: 0 | AA17: 0 | AB17: 0 | AC17: 0 | AD17: 0 | AE17: 0 | AF17: 0 | AG17: 0
D18: Increase or decrease in labour costs ($m) | X18: -0.11
D22: Total FTEs | R22: =+R12 -> 86 | S22: 90.8 | T22: 91.6 | U22: 94.11 | V22: 95.9 | W22: =+$V$12+SUM($W17:W17) -> 95.9 | X22: =+$V$12+SUM($W17:X17) -> 94.9 | Y22: =+$V$12+SUM($W17:Y17) -> 94.9 | Z22: =+$V$12+SUM($W17:Z17) -> 94.9 | AA22: =+$V$12+SUM($W17:AA17) -> 94.9 | AB22: =+$V$12+SUM($W17:AB17) -> 94.9 | AC22: =+$V$12+SUM($W17:AC17) -> 94.9 | AD22: =+$V$12+SUM($W17:AD17) -> 94.9 | AE22: =+$V$12+SUM($W17:AE17) -> 94.9 | AF22: =+$V$12+SUM($W17:AF17) -> 94.9 | AG22: =+$V$12+SUM($W17:AG17) -> 94.9
D23: Total labour costs ($m) | R23: 7.956 | S23: 8.47 | T23: 9.024 | U23: 9.493 | V23: =+V13 -> 9.833 | W23: =+W18+W13 -> 10.084 | X23: =+X18+X13 -> 9.831 | Y23: 10.02 | Z23: 10.113 | AA23: 10.232 | AB23: 10.347 | AC23: 10.471164 | AD23: 10.59681797 | AE23: 10.72397978 | AF23: 10.79904764 | AG23: 10.87464098
D24: Cost per FTE | R24: =+R23/R22 -> 0.09251162791 | S24: 0.09328193833 | T24: 0.09851528384 | U24: 0.1008713208 | V24: 0.1025338895 | W24: 0.1051511992 | X24: 0.1035932561 | Y24: 0.1055848261 | Z24: 0.1065648051 | AA24: 0.1078187566 | AB24: 0.1090305585 | AC24: 0.1103389252 | AD24: 0.1116629923 | AE24: 0.1130029482 | AF24: 0.1137939688 | AG24: 0.1145905266
D25: Annual growth in total labour costs | S25: =+S23/R23-1 -> 0.06460532931 | T25: 0.06540731995 | U25: 0.05197251773 | V25: 0.03581586432 | W25: =+W23/V23-1 -> 0.02552628903 | X25: =+X23/W23-1 -> -0.0250892503 | Y25: =+Y23/X23-1 -> 0.01922490082 | Z25: =+Z23/Y23-1 -> 0.009281437126 | AA25: =+AA23/Z23-1 -> 0.01176703253 | AB25: =+AB23/AA23-1 -> 0.01123924941 | AC25: =+AC23/AB23-1 -> 0.012 | AD25: =+AD23/AC23-1 -> 0.012 | AE25: =+AE23/AD23-1 -> 0.012 | AF25: =+AF23/AE23-1 -> 0.007 | AG25: =+AG23/AF23-1 -> 0.007
D26: Annual growth in total labour costs per FTE | S26: 0.008326633489 | T26: 0.05610245253 | U26: 0.02391544601 | V26: 0.01648207499 | W26: 0.02552628903 | X26: -0.01481621816 | Y26: 0.01922490082 | Z26: 0.009281437126 | AA26: 0.01176703253 | AB26: 0.01123924941 | AC26: =+AC24/AB24-1 -> 0.012 | AD26: 0.012 | AE26: 0.012 | AF26: 0.007 | AG26: 0.007
C32: Energy assumptions
D34: Electricity - traditional sources
D36: BASE LOAD
D38: Large sites
D39: Total kWh | V39: 3235105.11 | W39: 3214868 | X39: 3259876.152 | Y39: 3305514.418 | Z39: 3351791.62 | AA39: 3398716.703 | AB39: 3446298.736 | AC39: =+AB39*(Opex_FO!AC13+1) -> 3487309.691 | AD39: =+AC39*(Opex_FO!AD13+1) -> 3528808.677 | AE39: =+AD39*(Opex_FO!AE13+1) -> 3570801.5 | AF39: =+AE39*(Opex_FO!AF13+1) -> 3613294.038 | AG39: =+AF39*(Opex_FO!AG13+1) -> 3656292.237
D40: Total electricity costs ($m) | V40: 0.421 | W40: 0.433 | X40: 0.638 | Y40: 0.637 | Z40: 0.656 | AA40: 0.68 | AB40: 0.705 | AC40: =+AB40*1.0133 -> 0.7143765 | AD40: =+AC40*1.0133 -> 0.7238777075 | AE40: 0.733505281 | AF40: 0.7432609012 | AG40: 0.7531462712
D41: Average c/kWh | R41: =+R40/R39*100*10^6 ->  | V41: 13.01348753 | W41: 13.46867119 | X41: 19.57129566 | Y41: 19.27082806 | Z41: 19.57162241 | AA41: 20.00755166 | AB41: 20.4567292 | AC41: =+AC40/AC39*100*10^6 -> 20.48503182 | AD41: 20.5133736 | AE41: 20.54175459 | AF41: 20.57017484 | AG41: 20.59863442
D42: % increase p.a. | S42: =+S41/R41-1 ->  | W42: 0.03497783801 | X42: 0.4530977402 | Y42: -0.01535246363 | Z42: 0.01560879245 | AA42: 0.02227353634 | AB42: 0.02245040028 | AC42: =+AC41/AB41-1 -> 0.001383535923 | AD42: =+AD41/AC41-1 -> 0.001383535923 | AE42: =+AE41/AD41-1 -> 0.001383535923 | AF42: =+AF41/AE41-1 -> 0.001383535923 | AG42: =+AG41/AF41-1 -> 0.001383535923
D44: Medium sites
D45: Total kWh | R45: 1e-07 | S45: 1e-07 | T45: 1e-07 | U45: 1e-07 | V45: 1e-07 | W45: 1e-07 | X45: 1e-07 | Y45: 1e-07 | Z45: 1e-07 | AA45: 1e-07 | AB45: 1e-07 | AC45: 1e-07 | AD45: 1e-07 | AE45: 1e-07 | AF45: 1e-07 | AG45: 1e-07
D46: Total electricity costs ($m) | R46: 1e-18 | S46: 1e-18 | T46: 1e-18 | U46: 1e-18 | V46: 1e-18 | W46: 1e-18 | X46: 1e-18 | Y46: 1e-18 | Z46: 1e-18 | AA46: 1e-18 | AB46: 1e-18 | AC46: 1e-18 | AD46: 1e-18 | AE46: 1e-18 | AF46: 1e-18 | AG46: 1e-18
D47: Average c/kWh | R47: =+R46/R45*100*10^6 -> 0.001 | S47: 0.001 | T47: 0.001 | U47: 0.001 | V47: 0.001 | W47: 0.001 | X47: 0.001 | Y47: 0.001 | Z47: 0.001 | AA47: 0.001 | AB47: 0.001 | AC47: =+AC46/AC45*100*10^6 -> 0.001 | AD47: 0.001 | AE47: 0.001 | AF47: 0.001 | AG47: 0.001
D48: % increase p.a. | S48: =+S47/R47-1 -> 0 | T48: 0 | U48: 0 | V48: 0 | W48: 0 | X48: 0 | Y48: 0 | Z48: 0 | AA48: 0 | AB48: 0 | AC48: =+AC47/AB47-1 -> 0 | AD48: =+AD47/AC47-1 -> 0 | AE48: =+AE47/AD47-1 -> 0 | AF48: =+AF47/AE47-1 -> 0 | AG48: =+AG47/AF47-1 -> 0
D50: Small sites
D51: Total kWh | V51: 2138031.31 | W51: 2036049 | X51: 2064553.686 | Y51: 2093457.438 | Z51: 2122765.842 | AA51: 2152484.564 | AB51: 2182619.347 | AC51: =+AB51*(1+Opex_FO!AC13) -> 2208592.518 | AD51: =+AC51*(1+Opex_FO!AD13) -> 2234874.769 | AE51: =+AD51*(1+Opex_FO!AE13) -> 2261469.778 | AF51: =+AE51*(1+Opex_FO!AF13) -> 2288381.269 | AG51: =+AF51*(1+Opex_FO!AG13) -> 2315613.006
D52: Total electricity costs ($m) | V52: 0.473 | W52: 0.529 | X52: 0.549 | Y52: 0.557 | Z52: 0.579 | AA52: 0.611 | AB52: 0.634 | AC52: =+AB52*1.0133 -> 0.6424322 | AD52: =+AC52*1.0133 -> 0.6509765483 | AE52: 0.6596345364 | AF52: 0.6684076757 | AG52: 0.6772974978
D53: Average c/kWh | R53: =+R52/R51*100*10^6 ->  | V53: 22.1231559 | W53: 25.98169297 | X53: 26.59170375 | Y53: 26.60670286 | Z53: 27.27573568 | AA53: 28.38580171 | AB53: 29.047667 | AC53: =+AC52/AC51*100*10^6 -> 29.08785549 | AD53: 29.12809959 | AE53: 29.16839936 | AF53: 29.20875489 | AG53: 29.24916625
D54: % increase p.a. | S54: =+S53/R53-1 ->  | W54: 0.1744116928 | X54: 0.02347848458 | Y54: 0.0005640522664 | Z54: 0.02514527318 | AA54: 0.04069793189 | AB54: 0.02331677303 | AC54: =+AC53/AB53-1 -> 0.001383535923 | AD54: =+AD53/AC53-1 -> 0.001383535923 | AE54: =+AE53/AD53-1 -> 0.001383535923 | AF54: =+AF53/AE53-1 -> 0.001383535923 | AG54: =+AG53/AF53-1 -> 0.001383535923
D57: NEW PROJECTS
D59: Large sites
D60: Total kWh | R60: 1e-07 | S60: 1e-07 | T60: 1e-07 | U60: 1e-07 | V60: 1e-07 | W60: 1e-07 | X60: 1e-07 | Y60: 1e-07 | Z60: 1e-07 | AA60: 1e-07 | AB60: 1e-07 | AC60: 1e-07 | AD60: 1e-07 | AE60: 1e-07 | AF60: 1e-07 | AG60: 1e-07
D61: Total electricity costs ($m) | R61: 1e-18 | S61: 1e-18 | T61: 1e-18 | U61: 1e-18 | V61: 1e-18 | W61: 1e-18 | X61: 1e-18 | Y61: 1e-18 | Z61: 1e-18 | AA61: 1e-18 | AB61: 1e-18 | AC61: 1e-18 | AD61: 1e-18 | AE61: 1e-18 | AF61: 1e-18 | AG61: 1e-18
D62: Average c/kWh | R62: =+R61/R60*100*10^6 -> 0.001 | S62: 0.001 | T62: 0.001 | U62: 0.001 | V62: 0.001 | W62: 0.001 | X62: 0.001 | Y62: 0.001 | Z62: 0.001 | AA62: 0.001 | AB62: 0.001 | AC62: =+AC61/AC60*100*10^6 -> 0.001 | AD62: 0.001 | AE62: 0.001 | AF62: 0.001 | AG62: 0.001
D63: % increase p.a. | S63: =+S62/R62-1 -> 0 | T63: 0 | U63: 0 | V63: 0 | W63: 0 | X63: 0 | Y63: 0 | Z63: 0 | AA63: 0 | AB63: 0 | AC63: =+AC62/AB62-1 -> 0 | AD63: =+AD62/AC62-1 -> 0 | AE63: =+AE62/AD62-1 -> 0 | AF63: =+AF62/AE62-1 -> 0 | AG63: =+AG62/AF62-1 -> 0
D65: Medium sites
D66: Total kWh | R66: 1e-07 | S66: 1e-07 | T66: 1e-07 | U66: 1e-07 | V66: 1e-07 | W66: 1e-07 | X66: 1e-07 | Y66: 1e-07 | Z66: 1e-07 | AA66: 1e-07 | AB66: 1e-07 | AC66: 1e-07 | AD66: 1e-07 | AE66: 1e-07 | AF66: 1e-07 | AG66: 1e-07
D67: Total electricity costs ($m) | R67: 1e-18 | S67: 1e-18 | T67: 1e-18 | U67: 1e-18 | V67: 1e-18 | W67: 1e-18 | X67: 1e-18 | Y67: 1e-18 | Z67: 1e-18 | AA67: 1e-18 | AB67: 1e-18 | AC67: 1e-18 | AD67: 1e-18 | AE67: 1e-18 | AF67: 1e-18 | AG67: 1e-18
D68: Average c/kWh | R68: =+R67/R66*100*10^6 -> 0.001 | S68: 0.001 | T68: 0.001 | U68: 0.001 | V68: 0.001 | W68: 0.001 | X68: 0.001 | Y68: 0.001 | Z68: 0.001 | AA68: 0.001 | AB68: 0.001 | AC68: =+AC67/AC66*100*10^6 -> 0.001 | AD68: 0.001 | AE68: 0.001 | AF68: 0.001 | AG68: 0.001
D69: % increase p.a. | S69: =+S68/R68-1 -> 0 | T69: 0 | U69: 0 | V69: 0 | W69: 0 | X69: 0 | Y69: 0 | Z69: 0 | AA69: 0 | AB69: 0 | AC69: =+AC68/AB68-1 -> 0 | AD69: =+AD68/AC68-1 -> 0 | AE69: =+AE68/AD68-1 -> 0 | AF69: =+AF68/AE68-1 -> 0 | AG69: =+AG68/AF68-1 -> 0
D71: Small sites
D72: Total kWh | R72: 1e-07 | S72: 1e-07 | T72: 1e-07 | U72: 1e-07 | V72: 1e-07 | W72: 1e-07 | X72: 1e-07 | Y72: 1e-07 | Z72: 1e-07 | AA72: 1e-07 | AB72: 1e-07 | AC72: 1e-07 | AD72: 1e-07 | AE72: 1e-07 | AF72: 1e-07 | AG72: 1e-07
D73: Total electricity costs ($m) | R73: 1e-18 | S73: 1e-18 | T73: 1e-18 | U73: 1e-18 | V73: 1e-18 | W73: 1e-18 | X73: 1e-18 | Y73: 1e-18 | Z73: 1e-18 | AA73: 1e-18 | AB73: 1e-18 | AC73: 1e-18 | AD73: 1e-18 | AE73: 1e-18 | AF73: 1e-18 | AG73: 1e-18
D74: Average c/kWh | R74: =+R73/R72*100*10^6 -> 0.001 | S74: 0.001 | T74: 0.001 | U74: 0.001 | V74: 0.001 | W74: 0.001 | X74: 0.001 | Y74: 0.001 | Z74: 0.001 | AA74: 0.001 | AB74: 0.001 | AC74: 0.001 | AD74: 0.001 | AE74: 0.001 | AF74: 0.001 | AG74: 0.001
D75: % increase p.a. | S75: =+S74/R74-1 -> 0 | T75: 0 | U75: 0 | V75: 0 | W75: 0 | X75: 0 | Y75: 0 | Z75: 0 | AA75: 0 | AB75: 0 | AC75: =+AC74/AB74-1 -> 0 | AD75: =+AD74/AC74-1 -> 0 | AE75: =+AE74/AD74-1 -> 0 | AF75: =+AF74/AE74-1 -> 0 | AG75: =+AG74/AF74-1 -> 0
D78: Greenhouse Gas Offsets | R78: 1e-21 | S78: 1e-21 | T78: 1e-21 | U78: 1e-21 | V78: 1e-21 | W78: 1e-21 | X78: 1e-21 | Y78: 1e-21 | Z78: 1e-21 | AA78: 1e-21 | AB78: 1e-21 | AC78: 1e-21 | AD78: 1e-21 | AE78: 1e-21 | AF78: 1e-21 | AG78: 1e-21
D79: % increase p.a. | S79: =S78/R78-1 -> 0 | T79: =T78/S78-1 -> 0 | U79: 0 | V79: 0 | W79: 0 | X79: 0 | Y79: 0 | Z79: 0 | AA79: 0 | AB79: 0 | AC79: 0 | AD79: 0 | AE79: 0 | AF79: 0 | AG79: 0
D82: TOTAL ENERGY COSTS | N82: =+SUM(N40,N46,N52,N61,N67,N73,N78) -> 0 | O82: =+SUM(O40,O46,O52,O61,O67,O73,O78) -> 0 | P82: 0 | Q82: 0 | R82: 4.001e-18 | S82: 4.001e-18 | T82: 4.001e-18 | U82: 4.001e-18 | V82: 0.894 | W82: 0.962 | X82: 1.187 | Y82: 1.194 | Z82: 1.235 | AA82: 1.291 | AB82: 1.339 | AC82: 1.3568087 | AD82: 1.374854256 | AE82: 1.393139817 | AF82: 1.411668577 | AG82: 1.430443769
D83: % increase p.a. | S83: =S82/R82-1 -> 0 | T83: =T82/S82-1 -> 0 | U83: 0 | V83: 2.23444139e+17 | W83: 0.07606263982 | X83: 0.2338877339 | Y83: 0.005897219882 | Z83: 0.03433835846 | AA83: 0.04534412955 | AB83: 0.03718048025 | AC83: 0.0133 | AD83: 0.0133 | AE83: 0.0133 | AF83: 0.0133 | AG83: 0.0133
C88: IT cost assumptions
D90: Water related IT costs | R90: 0.001106106106 | S90: 0.002395605469 | T90: 0.00184516129 | U90: 0.003724719101 | V90: 0.005463724584 | W90: 0.0042 | X90: 0.042 | Y90: 0.042 | Z90: 0.042 | AA90: 0.042 | AB90: 0.042 | AC90: =+AB90*1.023 -> 0.042966 | AD90: =+AC90*1.023 -> 0.043954218 | AE90: 0.04496516501 | AF90: 0.04599936381 | AG90: 0.04705734918
D91: Sewerage and trade waste related IT costs | R91: 0.001106106106 | S91: 0 | T91: 0.001048387097 | U91: 0.003724719101 | V91: 0.01251039741 | W91: 0.0014 | X91: 0.014 | Y91: 0.014 | Z91: 0.014 | AA91: 0.014 | AB91: 0.014 | AC91: =+AB91*1.023 -> 0.014322 | AD91: 0.014651406 | AE91: 0.01498838834 | AF91: 0.01533312127 | AG91: 0.01568578306
D92: Other IT costs | R92: 0.4546096096 | S92: 0.4699746289 | T92: 0.6087302419 | U92: 0.7412128933 | V92: 0.798616793 | W92: 0.6878 | X92: 0.697 | Y92: 0.707 | Z92: 0.716 | AA92: 0.727 | AB92: 0.737 | AC92: =+AB92*1.023 -> 0.753951 | AD92: 0.771291873 | AE92: 0.7890315861 | AF92: 0.8071793126 | AG92: 0.8257444367
D93: Total IT costs | R93: =SUM(R90:R92) -> 0.4568218218 | S93: 0.4723702344 | T93: 0.6116237903 | U93: 0.7486623315 | V93: 0.816590915 | W93: 0.6934 | X93: 0.753 | Y93: 0.763 | Z93: 0.772 | AA93: 0.783 | AB93: 0.793 | AC93: =SUM(AC90:AC92) -> 0.811239 | AD93: 0.829897497 | AE93: 0.8489851394 | AF93: 0.8685117976 | AG93: 0.888487569
D94: % increase p.a. | S94: =S93/R93-1 -> 0.03403605478 | T94: =T93/S93-1 -> 0.2947974826 | U94: 0.2240569175 | V94: 0.09073327274 | W94: -0.1508600117 | X94: 0.08595327372 | Y94: 0.01328021248 | Z94: 0.01179554391 | AA94: 0.01424870466 | AB94: 0.01277139208 | AC94: 0.023 | AD94: 0.023 | AE94: 0.023 | AF94: 0.023 | AG94: 0.023
C99: Chemical cost assumptions
D101: Water related chemical costs | R101: 0.1935685686 | S101: 0.1856054687 | T101: 0.1866129032 | U101: 0.1945131086 | V101: 0.17974122 | W101: 0.19875 | X101: 0.203296 | Y101: 0.207897 | Z101: 0.212553 | AA101: 0.217265 | AB101: 0.222033 | AC101: =+AB101*1.0133 -> 0.2249860389 | AD101: =+AC101*1.0133 -> 0.2279783532 | AE101: 0.2310104653 | AF101: 0.2340829045 | AG101: 0.2371962071
D102: Sewerage and trade waste related chemical costs | R102: 0.261041041 | S102: 0.2147412109 | T102: 0.217016129 | U102: 0.1996863296 | V102: 0.194038817 | W102: 0.1801 | X102: 0.18 | Y102: 0.18 | Z102: 0.18 | AA102: 0.18 | AB102: 0.18 | AC102: =+AB102*1.0133 -> 0.182394 | AD102: 0.1848198402 | AE102: 0.1872779441 | AF102: 0.1897687407 | AG102: 0.192292665
D103: Other chemical costs
D104: Total chemical costs | R104: =SUM(R101:R103) -> 0.4546096096 | S104: 0.4003466797 | T104: 0.4036290323 | U104: 0.3941994382 | V104: 0.373780037 | W104: 0.37885 | X104: 0.383296 | Y104: 0.387897 | Z104: 0.392553 | AA104: 0.397265 | AB104: 0.402033 | AC104: =SUM(AC101:AC103) -> 0.4073800389 | AD104: 0.4127981934 | AE104: 0.4182884094 | AF104: 0.4238516452 | AG104: 0.4294888721
D105: % increase p.a. | S105: =S104/R104-1 -> -0.119361599 | T105: =T104/S104-1 -> 0.008198775554 | U105: -0.02336203123 | V105: -0.05179967107 | W105: 0.01356402839 | X105: 0.01173551538 | Y105: 0.01200377776 | Z105: 0.01200318641 | AA105: 0.01200347469 | AB105: 0.01200206411 | AC105: 0.0133 | AD105: 0.0133 | AE105: 0.0133 | AF105: 0.0133 | AG105: 0.0133

Sheet Opex_FO
B1: Operating Expenditure - Forecast
B2: =+Model_Name -> East Gippsland Water
B3: Go to Table of Contents
L4: FIRST REG PERIOD | P4: SECOND REG PERIOD | S4: THIRD REG PERIOD | X4: FOURTH REG PERIOD | AC4: FIFTH REG PERIOD
K5: 2006 | L5: 2007 | M5: 2008 | N5: 2009 | O5: 2010 | P5: 2011 | Q5: 2012 | R5: 2013 | S5: 2014 | T5: 2015 | U5: 2016 | V5: 2017 | W5: 2018 | X5: 2019 | Y5: 2020 | Z5: 2021 | AA5: 2022 | AB5: 2023 | AC5: 2024 | AD5: 2025 | AE5: 2026 | AF5: 2027 | AG5: 2028
B6: $m, 01/01/18 | K6: =+CONCATENATE(K5-1,"-",RIGHT(K5,2)) -> 2005-06 | L6: =+CONCATENATE(L5-1,"-",RIGHT(L5,2)) -> 2006-07 | M6: 2007-08 | N6: 2008-09 | O6: 2009-10 | P6: 2010-11 | Q6: 2011-12 | R6: 2012-13 | S6: 2013-14 | T6: 2014-15 | U6: 2015-16 | V6: 2016-17 | W6: 2017-18 | X6: 2018-19 | Y6: 2019-20 | Z6: 2020-21 | AA6: 2021-22 | AB6: 2022-23 | AC6: 2023-24 | AD6: 2024-25 | AE6: 2025-26 | AF6: 2026-27 | AG6: 2027-28
C9: Parameters | F9: 3rd period | H9: 4th period
D11: Cost efficiency improvement rate (% per annum) | F11: 0.01 | H11: =+SUM(X11:AB11)/5 -> 0.0115 | X11: 0.015 | Y11: 0.0125 | Z11: 0.01 | AA11: 0.01 | AB11: 0.01 | AC11: 0.01 | AD11: 0.01 | AE11: 0.01 | AF11: 0.01 | AG11: 0.01
D13: Customer growth forecast (% per annum) | F13: =AVERAGE(T13:W13) -> 0.01311253308 | H13: =+SUM(X13:AB13)/5 -> 0.0128 | T13: =IF(T15="","",T15/S15-1) -> 0.01329492577 | U13: =IF(U15="","",U15/T15-1) -> 0.0127706101 | V13: 0.01308459645 | W13: 0.0133 | X13: 0.0134 | Y13: 0.0134 | Z13: 0.0134 | AA13: 0.0119 | AB13: 0.0119 | AC13: =+AB13 -> 0.0119 | AD13: =+AC13 -> 0.0119 | AE13: =+AD13 -> 0.0119 | AF13: =+AE13 -> 0.0119 | AG13: =+AF13 -> 0.0119
D15: Water customers (No.) - Residential & Non-Residential - [BED 1] | S15: =+Determination_Lookup!BF3 -> 22565 | T15: =+Determination_Lookup!BG3 -> 22865 | U15: =+Determination_Lookup!BH3 -> 23157 | V15: 23460 | W15: =+V$15*(1+W$13) -> 23772.018 | X15: =+W$15*(1+X$13) -> 24090.56304 | Y15: =+X$15*(1+Y$13) -> 24413.37659 | Z15: 24740.51583 | AA15: 25034.92797 | AB15: 25332.84361 | AC15: 25634.30445 | AD15: 25939.35268 | AE15: 26248.03097 | AF15: 26560.38254 | AG15: 26876.45109 | AI15: << Used as normalising metric for dashboard graphs
D17: Sewer customers (No.) - Residential & Non-Residential - [BED 2] | S17: =+Determination_Lookup!BJ3 -> 18853 | T17: =+Determination_Lookup!BK3 -> 19095 | U17: =+Determination_Lookup!BL3 -> 19356 | V17: 19599 | W17: =+V$17*(1+W$13) -> 19859.6667 | X17: =+W$17*(1+X$13) -> 20125.78623 | Y17: =+X$17*(1+Y$13) -> 20395.47177 | Z17: 20668.77109 | AA17: 20914.72947 | AB17: 21163.61475 | AC17: 21415.46176 | AD17: 21670.30576 | AE17: 21928.1824 | AF17: 22189.12777 | AG17: 22453.17839 | AI17: << Used as normalising metric for dashboard graphs
D19: Total metered volume of water delivered to customers (ML) - [BED 10] | S19: =+Determination_Lookup!BB3 -> 4650.55838 | T19: =+Determination_Lookup!BC3 -> 4470.17 | U19: =+Determination_Lookup!BD3 -> 4663 | V19: 4671 | W19: 4746 | X19: 4799 | Y19: 4853 | Z19: 4908 | AA19: 4958 | AB19: 5008 | AC19: 5050 | AD19: 5100 | AE19: 5150 | AF19: 5200 | AG19: 5250 | AI19: << Used as normalising metric for dashboard graphs
D20: Residential, Non-Residential & Recycled (Residential & Non-Residential)
C24: Baseline Forecast
D26: Baseline year - total prescribed operating expenditure in 2016-17: | V26: =+Opex_Breakdown!V37 -> 20.04686
D28: Less non-controllable expenditure items incurred in 2016-17:
E29: External bulk water charges (excl. temporary purchases) | V29: =+Opex_Breakdown!V29 -> 0
E30: External temporary water purchases | V30: =+Opex_Breakdown!V30 -> 0 | X30: Comparison with approved 2016-17 total controllable opex
E31: Licence fees | V31: =+Opex_Breakdown!V31 -> 0.05514 | X31: per 2013 determination model
E32: Environment Contribution | V32: =+Opex_Breakdown!V32 -> 1.22
E33: Other non-controllable | V33: =+Opex_Breakdown!V33 -> 0
V34: =SUM(V29:V33) -> 1.27514 | Y34: 2016-17 | Z34: Difference | AA34: %
D36: Baseline year - total controllable operating expenditure in 2016-17: | V36: =+V26-V34 -> 18.77172 | Y36: =+Determination_Lookup!AX3 -> 18.05815927 | Z36: =+V52-Y36 -> -0.4504392747 | AA36: =+Z36/Y36 -> -0.02494380894
D38: Adjustments for non-recurring expenditure items incurred in 2016-17 and any efficiency savings to be realised from 2016-17: | X38: ($, 2017-18)
D40: 1 | E40: Desludging increase in allowance ($885000 - $195000 which is BAU included in WP3) | V40: =0.885-0.195 -> 0.69
D41: 2 | E41: Abolition of Government Water Rebate | V41: 0.554
D42: 3 | E42: 7 months of EBA increase not incurred | V42: -0.12
D43: 4 | E43: Pricing Submission costs | V43: 0.04
D44: 5
D45: 6
D46: 7
D47: 8
D48: 9
D49: 10
V50: =SUM(V40:V49) -> 1.164
D52: Baseline controllable operating expenditure (2016-17) | V52: =+V36-V50 -> 17.60772
D54: Adjusted Baseline controllable operating expenditure (Forecast) | W54: =+V52*(1+$W$13-$F$11) -> 17.66582548 | X54: =+$W$54*(1+X$13-X$11) -> 17.63756016 | Y54: =+X$54*(1+Y$13-Y$11) -> 17.65343396 | Z54: 17.71345563 | AA54: 17.7471112 | AB54: 17.78083071 | AC54: 17.81461429 | AD54: 17.84846206 | AE54: 17.88237414 | AF54: 17.91635065 | AG54: 17.95039171
C58: Operating expenditure - reconciliation
D61: Adjusted Baseline controllable operating expenditure (Forecast) | X61: =+X54 -> 17.63756016 | Y61: 17.65343396 | Z61: 17.71345563 | AA61: 17.7471112 | AB61: 17.78083071 | AC61: 17.81461429 | AD61: 17.84846206 | AE61: 17.88237414 | AF61: 17.91635065 | AG61: 17.95039171
H62: Controllable
D63: Forecast variations to baseline operating expenditure (above or below baseline) | H63: only
D65: 1 | E65: Planning & Investigation Projects - DOC/15/35139[v3] | H65: Water | X65: =0.118-0.095 -> 0.023 | Y65: =0.134-0.121 -> 0.013 | Z65: =0.117-0.096 -> 0.021 | AA65: =0.26-0.238 -> 0.022 | AB65: =0.031-0.018 -> 0.013 | AC65: 0.06 | AD65: 0.1 | AE65: 0.15 | AF65: 0.15 | AG65: 0.15
D66: 2 | E66: Desludging - DOC/16/55514 | H66: Sewerage | X66: 0.484 | Y66: 0.434 | Z66: -0.195 | AA66: -0.195 | AB66: -0.027 | AC66: 0 | AD66: 0.13 | AE66: 0.25 | AF66: 0.42 | AG66: 0.6
D67: 3 | E67: Tree Planting - DOC/17/8941 | H67: Sewerage | X67: 0.09 | Y67: 0.09 | Z67: 0.09 | AA67: 0.09 | AB67: 0.09 | AC67: 0.09 | AD67: 0.09 | AE67: 0.09 | AF67: 0.09 | AG67: 0.09
D68: 4 | E68: Hardship - DOC/17/24873 | H68: Water | X68: 0.02 | Y68: 0.02 | Z68: 0.02 | AA68: 0.02 | AB68: 0.02 | AC68: 0.02 | AD68: 0.02 | AE68: 0.02 | AF68: 0.02 | AG68: 0.02
D69: 5
D70: 6 | E70: Opex from New Capex - Employee - DOC/17/33134 | H70: Water | X70: 0.0055 | Y70: 0.0139 | Z70: 0.0376 | AA70: 0.043 | AB70: 0.043 | AC70: 0.04 | AD70: 0.04 | AE70: 0.04 | AF70: 0.04 | AG70: 0.04
D71: 7 | E71: Opex from New Capex - Contractor/Maintenance - DOC/17/33134 | H71: Water | X71: 0.0154 | Y71: 0.0239 | Z71: 0.0886 | AA71: 0.0986 | AB71: 0.0986 | AC71: 0.1 | AD71: 0.1 | AE71: 0.1 | AF71: 0.1 | AG71: 0.1
D72: 8 | E72: Electricity - Energy Efficiency Upgrades - DOC/16/37365 | H72: Water | X72: -0.076 | Y72: -0.122 | Z72: -0.161 | AA72: -0.244 | AB72: -0.3
D73: 9 | E73: Electricity - Increase in costs expected | H73: Water | X73: 0.13 | Y73: 0.19 | Z73: 0.21 | AA73: 0.24 | AB73: 0.2436541705 | AC73: 0.03 | AD73: 0.04 | AE73: 0.05 | AF73: 0.06 | AG73: 0.07
D74: 10 | AB74: =0.07-0.07 -> 0
D75: 11 | E75: Above CPI increase in staff costs | H75: Water | X75: 0.02 | Y75: 0.02 | Z75: 0.02 | AA75: 0.025 | AB75: 0.03 | AC75: 0.05 | AD75: 0.05 | AE75: 0.05 | AF75: 0.05 | AG75: 0.05
D76: 12 | E76: Above CPI increase in staff costs | H76: Sewerage | X76: 0.02 | Y76: 0.02 | Z76: 0.02 | AA76: 0.025 | AB76: 0.03
D77: 13 | E77: Make model balance | X77: -0.004460155238 | Y77: -0.01023395938 | Z77: -0.00365563484 | AA77: -0.01371120055 | AB77: -0.006084882331 | AC77: -0.00440629018 | AD77: -0.01165135333 | AE77: -0.006274892088 | AF77: -0.008112112784 | AG77: -0.007256078078
D78: 14
D79: 15
D81: Total changes required to baseline operating expenditure | X81: =SUM(X65:X80) -> 0.7274398448 | Y81: 0.6925660406 | Z81: 0.1475443652 | AA81: 0.1108887995 | AB81: 0.2351692882 | AC81: 0.3855937098 | AD81: 0.5583486467 | AE81: 0.7437251079 | AF81: 0.9218878872 | AG81: 1.112743922
D84: Total controllable operating expenditure | X84: =+X81+X61 -> 18.365 | Y84: 18.346 | Z84: 17.861 | AA84: 17.858 | AB84: 18.016 | AC84: 18.200208 | AD84: 18.4068107 | AE84: 18.62609924 | AF84: 18.83823853 | AG84: 19.06313563
D86: Non-controllable operating expenditure
D87: External bulk water charges (excl. temporary purchases) | X87: =+Opex_Breakdown!X29 -> 0 | Y87: =+Opex_Breakdown!Y29 -> 0 | Z87: =+Opex_Breakdown!Z29 -> 0 | AA87: =+Opex_Breakdown!AA29 -> 0 | AB87: =+Opex_Breakdown!AB29 -> 0 | AC87: =+Opex_Breakdown!AC29 -> 0 | AD87: =+Opex_Breakdown!AD29 -> 0 | AE87: =+Opex_Breakdown!AE29 -> 0 | AF87: =+Opex_Breakdown!AF29 -> 0 | AG87: =+Opex_Breakdown!AG29 -> 0
D88: External temporary water purchases | X88: =+Opex_Breakdown!X30 -> 0 | Y88: =+Opex_Breakdown!Y30 -> 0 | Z88: =+Opex_Breakdown!Z30 -> 0 | AA88: =+Opex_Breakdown!AA30 -> 0 | AB88: =+Opex_Breakdown!AB30 -> 0 | AC88: =+Opex_Breakdown!AC30 -> 0 | AD88: =+Opex_Breakdown!AD30 -> 0 | AE88: =+Opex_Breakdown!AE30 -> 0 | AF88: =+Opex_Breakdown!AF30 -> 0 | AG88: =+Opex_Breakdown!AG30 -> 0
D89: Licence fees | X89: =+Opex_Breakdown!X31 -> 0.072 | Y89: =+Opex_Breakdown!Y31 -> 0.052 | Z89: =+Opex_Breakdown!Z31 -> 0.052 | AA89: =+Opex_Breakdown!AA31 -> 0.052 | AB89: =+Opex_Breakdown!AB31 -> 0.052 | AC89: =+Opex_Breakdown!AC31 -> 0.07 | AD89: =+Opex_Breakdown!AD31 -> 0.05 | AE89: =+Opex_Breakdown!AE31 -> 0.05 | AF89: =+Opex_Breakdown!AF31 -> 0.05 | AG89: =+Opex_Breakdown!AG31 -> 0.05
D90: Environment Contribution | X90: =+Opex_Breakdown!X32 -> 1.499 | Y90: =+Opex_Breakdown!Y32 -> 1.465 | Z90: =+Opex_Breakdown!Z32 -> 1.432 | AA90: =+Opex_Breakdown!AA32 -> 1.4 | AB90: =+Opex_Breakdown!AB32 -> 1.369 | AC90: =+Opex_Breakdown!AC32 -> 1.8 | AD90: =+Opex_Breakdown!AD32 -> 1.77 | AE90: =+Opex_Breakdown!AE32 -> 1.74 | AF90: =+Opex_Breakdown!AF32 -> 1.71 | AG90: =+Opex_Breakdown!AG32 -> 1.68
D91: Other non-controllable | X91: =+Opex_Breakdown!X33 -> 0 | Y91: =+Opex_Breakdown!Y33 -> 0 | Z91: =+Opex_Breakdown!Z33 -> 0 | AA91: =+Opex_Breakdown!AA33 -> 0 | AB91: =+Opex_Breakdown!AB33 -> 0 | AC91: =+Opex_Breakdown!AC33 -> 0 | AD91: =+Opex_Breakdown!AD33 -> 0 | AE91: =+Opex_Breakdown!AE33 -> 0 | AF91: =+Opex_Breakdown!AF33 -> 0 | AG91: =+Opex_Breakdown!AG33 -> 0
D92: Total non-controllable operating expenditure | X92: =SUM(X87:X91) -> 1.571 | Y92: 1.517 | Z92: 1.484 | AA92: 1.452 | AB92: 1.421 | AC92: 1.87 | AD92: 1.82 | AE92: 1.79 | AF92: 1.76 | AG92: 1.73
D95: Total prescribed operating expenditure | X95: =+X92+X84 -> 19.936 | Y95: 19.863 | Z95: 19.345 | AA95: 19.31 | AB95: 19.437 | AC95: 20.070208 | AD95: 20.2268107 | AE95: 20.41609924 | AF95: 20.59823853 | AG95: =+AG92+AG84 -> 20.79313563
W98: To reconcile to 'Opex_Breakdown' tab row 37 >> | X98: =+Opex_Breakdown!X37 -> 19.936 | Y98: =+Opex_Breakdown!Y37 -> 19.863 | Z98: =+Opex_Breakdown!Z37 -> 19.345 | AA98: =+Opex_Breakdown!AA37 -> 19.31 | AB98: =+Opex_Breakdown!AB37 -> 19.437 | AC98: =+Opex_Breakdown!AC37 -> 20.070208 | AD98: =+Opex_Breakdown!AD37 -> 20.2268107 | AE98: =+Opex_Breakdown!AE37 -> 20.41609924 | AF98: =+Opex_Breakdown!AF37 -> 20.59823853 | AG98: =+Opex_Breakdown!AG37 -> 20.79313563
W99: Difference | X99: =+X98-X95 -> 0 | Y99: 0 | Z99: 0 | AA99: 0 | AB99: 0 | AC99: 0 | AD99: 0 | AE99: 0 | AF99: 0 | AG99: 0
W100: Test | X100: =+X98=X95 -> TRUE | Y100: TRUE | Z100: TRUE | AA100: TRUE | AB100: TRUE | AC100: TRUE | AD100: TRUE | AE100: TRUE | AF100: TRUE | AG100: TRUE
X139: =+X$160 -> 2018-19 | Y139: 2019-20 | Z139: 2020-21 | AA139: 2021-22 | AB139: 2022-23 | AC139: 2023-24 | AD139: 2024-25 | AE139: 2025-26 | AF139: 2026-27 | AG139: 2027-28
W140: Total controllable opex | X140: =+X84 -> 18.365 | Y140: 18.346 | Z140: 17.861 | AA140: 17.858 | AB140: 18.016 | AC140: 18.200208 | AD140: 18.4068107 | AE140: 18.62609924 | AF140: 18.83823853 | AG140: 19.06313563
W141: Change - $ | Y141: =+Y140-X140 -> -0.019 | Z141: -0.485 | AA141: -0.003 | AB141: 0.158 | AC141: 0.184208 | AD141: 0.206602704 | AE141: 0.2192885392 | AF141: 0.2121392902 | AG141: 0.2248971009
W142: Change - % | Y142: =IFERROR(Y141/X140,"") -> -0.00103457664 | Z142: -0.02643628039 | AA142: -0.0001679637198 | AB142: 0.008847575316 | AC142: 0.01022468917 | AD142: 0.01135166719 | AE142: 0.01191344566 | AF142: 0.0113893568 | AG142: 0.01193832961
X144: =+X$160 -> 2018-19 | Y144: 2019-20 | Z144: 2020-21 | AA144: 2021-22 | AB144: 2022-23 | AC144: 2023-24 | AD144: 2024-25 | AE144: 2025-26 | AF144: 2026-27 | AG144: 2027-28
W145: Total non-controllable opex | X145: =+X92 -> 1.571 | Y145: 1.517 | Z145: 1.484 | AA145: 1.452 | AB145: 1.421 | AC145: 1.87 | AD145: 1.82 | AE145: 1.79 | AF145: 1.76 | AG145: 1.73
W146: Change - $ | Y146: =+Y145-X145 -> -0.054 | Z146: -0.033 | AA146: -0.032 | AB146: -0.031 | AC146: 0.449 | AD146: -0.05 | AE146: -0.03 | AF146: -0.03 | AG146: -0.03
W147: Change - % | Y147: =IFERROR(Y146/X145,"") -> -0.03437301082 | Z147: -0.02175346078 | AA147: -0.02156334232 | AB147: -0.02134986226 | AC147: 0.3159746657 | AD147: -0.02673796791 | AE147: -0.01648351648 | AF147: -0.01675977654 | AG147: -0.01704545455
X149: =+X$160 -> 2018-19 | Y149: 2019-20 | Z149: 2020-21 | AA149: 2021-22 | AB149: 2022-23 | AC149: 2023-24 | AD149: 2024-25 | AE149: 2025-26 | AF149: 2026-27 | AG149: 2027-28
W150: Total prescribed opex | X150: =+X140+X145 -> 19.936 | Y150: 19.863 | Z150: 19.345 | AA150: 19.31 | AB150: 19.437 | AC150: 20.070208 | AD150: 20.2268107 | AE150: 20.41609924 | AF150: 20.59823853 | AG150: 20.79313563
W151: Change - $ | Y151: =+Y150-X150 -> -0.073 | Z151: -0.518 | AA151: -0.035 | AB151: 0.127 | AC151: 0.633208 | AD151: 0.156602704 | AE151: 0.1892885392 | AF151: 0.1821392902 | AG151: 0.1948971009
W152: Change - % | Y152: =IFERROR(Y151/X150,"") -> -0.003661717496 | Z152: -0.02607863867 | AA152: -0.001809253037 | AB152: 0.006576903159 | AC152: 0.03257745537 | AD152: 0.007802744446 | AE152: 0.00935829884 | AF152: 0.008921356033 | AG152: 0.00946183338
W155: Controllable vs. Non-controllable opex - % | X155: =+X$160 -> 2018-19 | Y155: 2019-20 | Z155: 2020-21 | AA155: 2021-22 | AB155: 2022-23 | AC155: 2023-24 | AD155: 2024-25 | AE155: 2025-26 | AF155: 2026-27 | AG155: 2027-28
W156: Controllable opex - % | X156: =+X84/X95 -> 0.9211978331 | Y156: 0.9236268439 | Z156: 0.9232876712 | AA156: 0.9248058001 | AB156: 0.9268920101 | AC156: 0.9068270742 | AD156: 0.9100204166 | AE156: 0.9123240939 | AF156: 0.9145558006 | AG156: 0.9167994654
W157: Non-controllable opex - % | X157: =+X92/X95 -> 0.07880216693 | Y157: 0.07637315612 | Z157: 0.07671232877 | AA157: 0.0751941999 | AB157: 0.07310798992 | AC157: 0.09317292576 | AD157: 0.08997958337 | AE157: 0.08767590609 | AF157: 0.08544419937 | AG157: 0.08320053456
X158: =SUM(X156:X157) -> 1 | Y158: 1 | Z158: 1 | AA158: 1 | AB158: 1 | AC158: 1 | AD158: 1 | AE158: 1 | AF158: 1 | AG158: 1
V160: =+V6 -> 2016-17 | W160: 2017-18 | X160: 2018-19 | Y160: 2019-20 | Z160: 2020-21 | AA160: 2021-22 | AB160: 2022-23 | AC160: 2023-24 | AD160: 2024-25 | AE160: 2025-26 | AF160: 2026-27 | AG160: 2027-28
U161: Third Reg period Opex | V161: =+V169-SUM(V162:V168) -> 18.77172 | W161: =+W169-SUM(W162:W168) -> 19.38
U162: Adjusted baseline opex | X162: =+X61 -> 17.63756016 | Y162: 17.65343396 | Z162: 17.71345563 | AA162: 17.7471112 | AB162: 17.78083071 | AC162: 17.81461429 | AD162: 17.84846206 | AE162: 17.88237414 | AF162: 17.91635065 | AG162: 17.95039171
U163: Forecast variations to baseline operating expenditure | X163: =+X81 -> 0.7274398448 | Y163: 0.6925660406 | Z163: 0.1475443652 | AA163: 0.1108887995 | AB163: 0.2351692882 | AC163: 0.3855937098 | AD163: 0.5583486467 | AE163: 0.7437251079 | AF163: 0.9218878872 | AG163: 1.112743922
U164: Licence fees | V164: =+V193 -> 0.05514 | W164: =+W193 -> 0.06 | X164: =+X89 -> 0.072 | Y164: 0.052 | Z164: 0.052 | AA164: 0.052 | AB164: 0.052 | AC164: 0.07 | AD164: 0.05 | AE164: 0.05 | AF164: 0.05 | AG164: 0.05
U165: Environment Contribution | V165: =+V194 -> 1.22 | W165: =+W194 -> 1.198 | X165: =+X90 -> 1.499 | Y165: 1.465 | Z165: 1.432 | AA165: 1.4 | AB165: 1.369 | AC165: 1.8 | AD165: 1.77 | AE165: 1.74 | AF165: 1.71 | AG165: 1.68
U166: External bulk water charges | V166: =+V191 -> 0 | W166: =+W191 -> 0 | X166: =+X87 -> 0 | Y166: 0 | Z166: 0 | AA166: 0 | AB166: 0 | AC166: 0 | AD166: 0 | AE166: 0 | AF166: 0 | AG166: 0
U167: External temporary water purchases | V167: =+V192 -> 0 | W167: =+W192 -> 0 | X167: =+X88 -> 0 | Y167: 0 | Z167: 0 | AA167: 0 | AB167: 0 | AC167: 0 | AD167: 0 | AE167: 0 | AF167: 0 | AG167: 0
U168: Other non-controllable | V168: =+V195 -> 0 | W168: =+W195 -> 0 | X168: =+X91 -> 0 | Y168: 0 | Z168: 0 | AA168: 0 | AB168: 0 | AC168: 0 | AD168: 0 | AE168: 0 | AF168: 0 | AG168: 0
U169: Total prescribed opex | V169: =+Opex_Breakdown!V37 -> 20.04686 | W169: =+Opex_Breakdown!W37 -> 20.638 | X169: =SUM(X162:X168) -> 19.936 | Y169: 19.863 | Z169: 19.345 | AA169: 19.31 | AB169: 19.437 | AC169: 20.070208 | AD169: 20.2268107 | AE169: 20.41609924 | AF169: 20.59823853 | AG169: 20.79313563
X171: =+X$160 -> 2018-19 | Y171: 2019-20 | Z171: 2020-21 | AA171: 2021-22 | AB171: 2022-23 | AC171: 2023-24 | AD171: 2024-25 | AE171: 2025-26 | AF171: 2026-27 | AG171: 2027-28
W172: Adjusted baseline opex | X172: =+X162/X$169 -> 0.8847090768 | Y172: 0.8887597019 | Z172: 0.9156606686 | AA172: 0.9190632419 | AB172: 0.9147929573 | AC172: 0.8876148314 | AD172: 0.8824160328 | AE172: 0.8758957293 | AF172: 0.8698001345 | AG172: 0.8632845006
W173: Forecast variations to baseline operating expenditure | X173: =+X163/X$169 -> 0.03648875626 | Y173: 0.03486714195 | Z173: 0.007627002593 | AA173: 0.005742558232 | AB173: 0.01209905274 | AC173: 0.01921224283 | AD173: 0.02760438385 | AE173: 0.03642836465 | AF173: 0.04475566616 | AG173: 0.05351496482
W174: Licence fees | X174: =+X164/X$169 -> 0.003611556982 | Y174: 0.00261793284 | Z174: 0.002688033083 | AA174: 0.00269290523 | AB174: 0.002675309976 | AC174: 0.003487756579 | AD174: 0.002471966576 | AE174: 0.002449047656 | AF174: 0.002427392028 | AG174: 0.002404639727
W175: Environment Contribution | X175: =+X165/X$169 -> 0.07519060995 | Y175: 0.07375522328 | Z175: 0.07402429568 | AA175: 0.07250129467 | AB175: 0.07043267994 | AC175: 0.08968516918 | AD175: 0.08750761679 | AE175: 0.08522685844 | AF175: 0.08301680735 | AG175: 0.08079589484
W176: External bulk water charges (excl. temporary purchases) | X176: =+X166/X$169 -> 0 | Y176: 0 | Z176: 0 | AA176: 0 | AB176: 0 | AC176: 0 | AD176: 0 | AE176: 0 | AF176: 0 | AG176: 0
W177: External temporary water purchases | X177: =+X167/X$169 -> 0 | Y177: 0 | Z177: 0 | AA177: 0 | AB177: 0 | AC177: 0 | AD177: 0 | AE177: 0 | AF177: 0 | AG177: 0
W178: Other non-controllable | X178: =+X168/X$169 -> 0 | Y178: 0 | Z178: 0 | AA178: 0 | AB178: 0 | AC178: 0 | AD178: 0 | AE178: 0 | AF178: 0 | AG178: 0
W179: Total prescribed opex | X179: =+X169/X$169 -> 1 | Y179: 1 | Z179: 1 | AA179: 1 | AB179: 1 | AC179: 1 | AD179: 1 | AE179: 1 | AF179: 1 | AG179: 1
X181: =+X$160 -> 2018-19 | Y181: 2019-20 | Z181: 2020-21 | AA181: 2021-22 | AB181: 2022-23 | AC181: 2023-24 | AD181: 2024-25 | AE181: 2025-26 | AF181: 2026-27 | AG181: 2027-28
W182: Water | X182: =+SUMIF($H$65:$H$80,$W182,X$65:X$80) -> 0.1379 | Y182: 0.1588 | Z182: 0.2362 | AA182: 0.2046 | AB182: 0.1482541705 | AC182: 0.3 | AD182: 0.35 | AE182: 0.41 | AF182: 0.42 | AG182: 0.43
W183: Sewerage | X183: 0.594 | Y183: 0.544 | Z183: -0.085 | AA183: -0.08 | AB183: 0.093 | AC183: 0.09 | AD183: 0.22 | AE183: 0.34 | AF183: 0.51 | AG183: 0.69
W184: Recycled Water | X184: 0 | Y184: 0 | Z184: 0 | AA184: 0 | AB184: 0 | AC184: 0 | AD184: 0 | AE184: 0 | AF184: 0 | AG184: 0
W185: Rural water | X185: 0 | Y185: 0 | Z185: 0 | AA185: 0 | AB185: 0 | AC185: 0 | AD185: 0 | AE185: 0 | AF185: 0 | AG185: 0
W186: Bulk Water | X186: 0 | Y186: 0 | Z186: 0 | AA186: 0 | AB186: 0 | AC186: 0 | AD186: 0 | AE186: 0 | AF186: 0 | AG186: 0
W187: Forecast variations to baseline operating expenditure | X187: =SUM(X182:X186) -> 0.7319 | Y187: 0.7028 | Z187: 0.1512 | AA187: 0.1246 | AB187: 0.2412541705 | AC187: 0.39 | AD187: 0.57 | AE187: 0.75 | AF187: 0.93 | AG187: 1.12
V190: =+V6 -> 2016-17 | W190: 2017-18 | X190: 2018-19 | Y190: 2019-20 | Z190: 2020-21 | AA190: 2021-22 | AB190: 2022-23 | AC190: 2023-24 | AD190: 2024-25 | AE190: 2025-26 | AF190: 2026-27 | AG190: 2027-28
U191: External bulk water charges (excl. temporary purchases) | V191: =+Opex_Breakdown!V29 -> 0 | W191: =+Opex_Breakdown!W29 -> 0 | X191: =+X87 -> 0 | Y191: 0 | Z191: 0 | AA191: 0 | AB191: 0 | AC191: 0 | AD191: 0 | AE191: 0 | AF191: 0 | AG191: 0
U192: External temporary water purchases | V192: =+Opex_Breakdown!V30 -> 0 | W192: =+Opex_Breakdown!W30 -> 0 | X192: =+X88 -> 0 | Y192: 0 | Z192: 0 | AA192: 0 | AB192: 0 | AC192: 0 | AD192: 0 | AE192: 0 | AF192: 0 | AG192: 0
U193: Licence fees | V193: =+Opex_Breakdown!V31 -> 0.05514 | W193: =+Opex_Breakdown!W31 -> 0.06 | X193: =+X89 -> 0.072 | Y193: 0.052 | Z193: 0.052 | AA193: 0.052 | AB193: 0.052 | AC193: 0.07 | AD193: 0.05 | AE193: 0.05 | AF193: 0.05 | AG193: 0.05
U194: Environment Contribution | V194: =+Opex_Breakdown!V32 -> 1.22 | W194: =+Opex_Breakdown!W32 -> 1.198 | X194: =+X90 -> 1.499 | Y194: 1.465 | Z194: 1.432 | AA194: 1.4 | AB194: 1.369 | AC194: 1.8 | AD194: 1.77 | AE194: 1.74 | AF194: 1.71 | AG194: 1.68
U195: Other non-controllable | V195: =+Opex_Breakdown!V33 -> 0 | W195: =+Opex_Breakdown!W33 -> 0 | X195: =+X91 -> 0 | Y195: 0 | Z195: 0 | AA195: 0 | AB195: 0 | AC195: 0 | AD195: 0 | AE195: 0 | AF195: 0 | AG195: 0
U196: Total Non-controllable operating expenditure | V196: =+Opex_Breakdown!V34 -> 1.27514 | W196: =+Opex_Breakdown!W34 -> 1.258 | X196: =SUM(X191:X195) -> 1.571 | Y196: 1.517 | Z196: 1.484 | AA196: 1.452 | AB196: 1.421 | AC196: 1.87 | AD196: 1.82 | AE196: 1.79 | AF196: 1.76 | AG196: 1.73
V198: ERROR CHECK | X198: =+X169=X95 -> TRUE | Y198: TRUE | Z198: TRUE | AA198: TRUE | AB198: TRUE | AC198: TRUE | AD198: TRUE | AE198: TRUE | AF198: TRUE | AG198: TRUE
X199: =+X187=X163 -> FALSE | Y199: FALSE | Z199: FALSE | AA199: FALSE | AB199: FALSE | AC199: FALSE | AD199: FALSE | AE199: FALSE | AF199: FALSE | AG199: FALSE
X200: =+X150=X169 -> TRUE | Y200: TRUE | Z200: TRUE | AA200: TRUE | AB200: TRUE | AC200: TRUE | AD200: TRUE | AE200: TRUE | AF200: TRUE | AG200: TRUE
X201: =+X196=X145 -> TRUE | Y201: TRUE | Z201: TRUE | AA201: TRUE | AB201: TRUE | AC201: TRUE | AD201: TRUE | AE201: TRUE | AF201: TRUE | AG201: TRUE

Sheet Opex_Breakdown
A1: 80 | B1: Operating Expenditure - Breakdown
B2: =+Contents!H7 -> East Gippsland Water
B3: Go to Table of Contents
L4: FIRST REG PERIOD | P4: SECOND REG PERIOD | U4: THIRD REG PERIOD | Z4: FOURTH REG PERIOD | AC4: FIFTH REG PERIOD
K6: 2006 | L6: 2007 | M6: 2008 | N6: 2009 | O6: 2010 | P6: 2011 | Q6: 2012 | R6: 2013 | S6: 2014 | T6: 2015 | U6: 2016 | V6: 2017 | W6: 2018 | X6: 2019 | Y6: 2020 | Z6: 2021 | AA6: 2022 | AB6: 2023 | AC6: 2024 | AD6: 2025 | AE6: 2026 | AF6: 2027 | AG6: 2028
B7: $m, 01/01/18 | K7: =+CONCATENATE(K6-1,"-",RIGHT(K6,2)) -> 2005-06 | L7: =+CONCATENATE(L6-1,"-",RIGHT(L6,2)) -> 2006-07 | M7: 2007-08 | N7: 2008-09 | O7: 2009-10 | P7: 2010-11 | Q7: 2011-12 | R7: 2012-13 | S7: 2013-14 | T7: 2014-15 | U7: 2015-16 | V7: 2016-17 | W7: 2017-18 | X7: =+CONCATENATE(X6-1,"-",RIGHT(X6,2)) -> 2018-19 | Y7: =+CONCATENATE(Y6-1,"-",RIGHT(Y6,2)) -> 2019-20 | Z7: =+CONCATENATE(Z6-1,"-",RIGHT(Z6,2)) -> 2020-21 | AA7: =+CONCATENATE(AA6-1,"-",RIGHT(AA6,2)) -> 2021-22 | AB7: =+CONCATENATE(AB6-1,"-",RIGHT(AB6,2)) -> 2022-23 | AC7: =+CONCATENATE(AC6-1,"-",RIGHT(AC6,2)) -> 2023-24 | AD7: 2024-25 | AE7: 2025-26 | AF7: 2026-27 | AG7: 2027-28
D10: Operating Expenditure Summary
E12: =C48 -> Water | K12: =+K57-K50-K54 -> 0 | L12: =+L57-L50-L54 -> 0 | M12: 0 | N12: 0 | O12: 0 | P12: 0 | Q12: =+Q57-Q50-Q54 -> 0 | R12: 9.597 | S12: 9.807 | T12: 9.658 | U12: 9.886 | V12: 9.84287 | W12: 10.49 | X12: 9.5 | Y12: 9.519 | Z12: 9.593 | AA12: 9.596 | AB12: 9.594 | AC12: =+AC57-AC50-AC54 -> 9.668722 | AD12: 9.764415386 | AE12: 9.871352786 | AF12: 9.969680372 | AG12: 10.07928622
E13: =C59 -> Sewerage | K13: =K68-K61-K65 -> 0 | L13: =L68-L61-L65 -> 0 | M13: 0 | N13: 0 | O13: 0 | P13: 0 | Q13: 0 | R13: 7.866 | S13: 7.766 | T13: 7.51 | U13: 8.0293 | V13: 8.92885 | W13: 8.89 | X13: 8.865 | Y13: 8.827 | Z13: 8.268 | AA13: 8.262 | AB13: 8.422 | AC13: =AC68-AC61-AC65 -> 8.531486 | AD13: 8.642395318 | AE13: 8.754746457 | AF13: 8.868558161 | AG13: 8.983849417
E14: =C70 -> Recycled Water | K14: =K79-K72-K76 -> 0 | L14: =L79-L72-L76 -> 0 | M14: 0 | N14: 0 | O14: 0 | P14: 0 | Q14: 0 | R14: 0 | S14: 0 | T14: 0 | U14: 0 | V14: 0 | W14: 0 | X14: 0 | Y14: 0 | Z14: 0 | AA14: 0 | AB14: 0 | AC14: =AC79-AC72-AC76 -> 0 | AD14: 0 | AE14: 0 | AF14: 0 | AG14: 0
E15: =C81 -> Rural Water | K15: =K90-K83-K87 -> 0 | L15: =L90-L83-L87 -> 0 | M15: 0 | N15: 0 | O15: 0 | P15: 0 | Q15: 0 | R15: 0 | S15: 0 | T15: 0 | U15: 0 | V15: 0 | W15: 0 | X15: 0 | Y15: 0 | Z15: 0 | AA15: 0 | AB15: 0 | AC15: =AC90-AC83-AC87 -> 0 | AD15: 0 | AE15: 0 | AF15: 0 | AG15: 0
E16: Bulk Water | K16: =K100-K97 -> 0 | L16: =L100-L97 -> 0 | M16: 0 | N16: 0 | O16: 0 | P16: 0 | Q16: 0 | R16: 0 | S16: 0 | T16: 0 | U16: 0 | V16: 0 | W16: 0 | X16: 0 | Y16: 0 | Z16: 0 | AA16: 0 | AB16: 0 | AC16: =AC100-AC97 -> 0 | AD16: 0 | AE16: 0 | AF16: 0 | AG16: 0
E17: Total controllable operating expenditure | K17: =SUM(K12:K16) -> 0 | L17: 0 | M17: 0 | N17: 0 | O17: 0 | P17: 0 | Q17: 0 | R17: 17.463 | S17: 17.573 | T17: 17.168 | U17: 17.9153 | V17: 18.77172 | W17: 19.38 | X17: 18.365 | Y17: 18.346 | Z17: 17.861 | AA17: 17.858 | AB17: 18.016 | AC17: 18.200208 | AD17: 18.4068107 | AE17: 18.62609924 | AF17: 18.83823853 | AG17: 19.06313563
E20: Operations & Maintenance | K20: =K49+K60+K71+K82+K93 -> 0 | L20: 0 | M20: 0 | N20: 0 | O20: 0 | P20: 0 | Q20: 0 | R20: 6.626 | S20: 6.073 | T20: 5.638 | U20: 5.813 | V20: 5.37794 | W20: 6.08 | X20: 6.466 | Y20: 6.443 | Z20: 5.818 | AA20: 5.872 | AB20: 6.052 | AC20: 6.080676 | AD20: 6.129724788 | AE20: 6.18941121 | AF20: 6.239873556 | AG20: 6.300991912
E21: Treatment | K21: =K51+K62+K73+K84+K94 -> 0 | L21: 0 | M21: 0 | N21: 0 | O21: 0 | P21: 0 | Q21: 0 | R21: 2.583 | S21: 2.537 | T21: 2.306 | U21: 2.4633 | V21: 3.219 | W21: 2.18 | X21: 2.551 | Y21: 2.535 | Z21: 2.516 | AA21: 2.533 | AB21: 2.509 | AC21: 2.541617 | AD21: 2.574658021 | AE21: 2.608128575 | AF21: 2.642034247 | AG21: 2.676380692
E22: Customer Service and billing | K22: =K52+K63+K74+K85+K95 -> 0 | L22: 0 | M22: 0 | N22: 0 | O22: 0 | P22: 0 | Q22: 0 | R22: 0.836 | S22: 0.826 | T22: 1.263 | U22: 1.325 | V22: 1.31844 | W22: 1.46 | X22: 0.844 | Y22: 0.848 | Z22: 0.851 | AA22: 0.855 | AB22: 0.859 | AC22: 0.870167 | AD22: 0.881479171 | AE22: 0.8929384002 | AF22: 0.9045465994 | AG22: 0.9163057052
E23: GSL Payments | K23: =K53+K64+K75+K86+K96 -> 0 | L23: 0 | M23: 0 | N23: 0 | O23: 0 | P23: 0 | Q23: 0 | R23: 0 | S23: 0 | T23: 0 | U23: 0 | V23: 0 | W23: 0 | X23: 0 | Y23: 0 | Z23: 0 | AA23: 0 | AB23: 0 | AC23: 0 | AD23: 0 | AE23: 0 | AF23: 0 | AG23: 0
E24: Corporate | K24: =K55+K66+K77+K88+K98 -> 0 | L24: 0 | M24: 0 | N24: 0 | O24: 0 | P24: 0 | Q24: 0 | R24: 7.418 | S24: 8.137 | T24: 7.961 | U24: 8.314 | V24: 8.85634 | W24: 9.66 | X24: 8.504 | Y24: 8.52 | Z24: 8.676 | AA24: 8.598 | AB24: 8.596 | AC24: 8.707748 | AD24: 8.820948724 | AE24: 8.935621057 | AF24: 9.051784131 | AG24: 9.169457325
E25: Other operating expenditure | K25: =K56+K67+K78+K89+K99 -> 0 | L25: 0 | M25: 0 | N25: 0 | O25: 0 | P25: 0 | Q25: 0 | R25: 0 | S25: 0 | T25: 0 | U25: 0 | V25: 0 | W25: 0 | X25: 0 | Y25: 0 | Z25: 0 | AA25: 0 | AB25: 0 | AC25: 0 | AD25: 0 | AE25: 0 | AF25: 0 | AG25: 0
E26: Total controllable operating expenditure | K26: =SUM(K20:K25) -> 0 | L26: =SUM(L20:L25) -> 0 | M26: 0 | N26: 0 | O26: 0 | P26: 0 | Q26: 0 | R26: 17.463 | S26: 17.573 | T26: 17.168 | U26: 17.9153 | V26: 18.77172 | W26: 19.38 | X26: 18.365 | Y26: 18.346 | Z26: 17.861 | AA26: 17.858 | AB26: 18.016 | AC26: 18.200208 | AD26: 18.4068107 | AE26: 18.62609924 | AF26: 18.83823853 | AG26: 19.06313563
E29: External bulk water charges (excl. temporary purchases) | K29: =K50+K61+K72+K83 -> 0 | L29: 0 | M29: 0 | N29: 0 | O29: 0 | P29: 0 | Q29: 0 | R29: 0 | S29: 0 | T29: 0 | U29: 0 | V29: 0 | W29: 0 | X29: =X50+X61+X72+X83 -> 0 | Y29: =Y50+Y61+Y72+Y83 -> 0 | Z29: 0 | AA29: 0 | AB29: 0 | AC29: 0 | AD29: 0 | AE29: 0 | AF29: 0 | AG29: 0
E30: External temporary water purchases | K30: =+K102 -> 0 | L30: 0 | M30: 0 | N30: 0 | O30: 0 | P30: 0 | Q30: 0 | R30: 0 | S30: 0 | T30: 0 | U30: 0 | V30: 0 | W30: 0 | X30: 0 | Y30: 0 | Z30: 0 | AA30: 0 | AB30: 0 | AC30: 0 | AD30: 0 | AE30: 0 | AF30: 0 | AG30: 0
E31: Licence fees | K31: =+K109 -> 0 | L31: 0 | M31: 0 | N31: 0 | O31: 0 | P31: 0 | Q31: 0 | R31: 0.07847 | S31: 0.07293 | T31: 0.05484 | U31: 0.0507 | V31: 0.05514 | W31: 0.06 | X31: 0.072 | Y31: 0.052 | Z31: 0.052 | AA31: 0.052 | AB31: 0.052 | AC31: 0.07 | AD31: 0.05 | AE31: 0.05 | AF31: 0.05 | AG31: 0.05
E32: Environment Contribution | K32: =K111 -> 0 | L32: 0 | M32: 0 | N32: 0 | O32: 0 | P32: 0 | Q32: 0 | R32: 0.91 | S32: 1.293 | T32: 1.255 | U32: 1.239 | V32: 1.22 | W32: 1.198 | X32: 1.499 | Y32: 1.465 | Z32: 1.432 | AA32: 1.4 | AB32: 1.369 | AC32: 1.8 | AD32: 1.77 | AE32: 1.74 | AF32: 1.71 | AG32: 1.68
E33: Other non-controllable | K33: =+K124 -> 0 | L33: 0 | M33: 0 | N33: 0 | O33: 0 | P33: 0 | Q33: 0 | R33: 0 | S33: 0 | T33: 0 | U33: 0 | V33: 0 | W33: 0 | X33: 0 | Y33: 0 | Z33: 0 | AA33: 0 | AB33: 0 | AC33: 0 | AD33: 0 | AE33: 0 | AF33: 0 | AG33: =+AG124 -> 0
E34: Total non-controllable operating expenditure | K34: =SUM(K29:K33) -> 0 | L34: =SUM(L29:L33) -> 0 | M34: 0 | N34: 0 | O34: 0 | P34: 0 | Q34: 0 | R34: 0.98847 | S34: 1.36593 | T34: 1.30984 | U34: 1.2897 | V34: 1.27514 | W34: 1.258 | X34: 1.571 | Y34: 1.517 | Z34: 1.484 | AA34: 1.452 | AB34: 1.421 | AC34: 1.87 | AD34: 1.82 | AE34: 1.79 | AF34: 1.76 | AG34: 1.73
E37: Total prescribed operating expenditure | K37: =+K34+K17 -> 0 | L37: 0 | M37: 0 | N37: 0 | O37: 0 | P37: 0 | Q37: 0 | R37: 18.45147 | S37: 18.93893 | T37: 18.47784 | U37: 19.205 | V37: 20.04686 | W37: 20.638 | X37: 19.936 | Y37: 19.863 | Z37: 19.345 | AA37: 19.31 | AB37: 19.437 | AC37: 20.070208 | AD37: 20.2268107 | AE37: 20.41609924 | AF37: 20.59823853 | AG37: 20.79313563
W40: To reconcile to 'Opex_FO' tab row 123>> | X40: =+Opex_FO!X95 -> 19.936 | Y40: =+Opex_FO!Y95 -> 19.863 | Z40: =+Opex_FO!Z95 -> 19.345 | AA40: =+Opex_FO!AA95 -> 19.31 | AB40: =+Opex_FO!AB95 -> 19.437 | AC40: =+Opex_FO!AC95 -> 20.070208 | AD40: =+Opex_FO!AD95 -> 20.2268107 | AE40: =+Opex_FO!AE95 -> 20.41609924 | AF40: =+Opex_FO!AF95 -> 20.59823853 | AG40: =+Opex_FO!AG95 -> 20.79313563
W41: Difference | X41: =+X40-X37 -> 0 | Y41: 0 | Z41: 0 | AA41: 0 | AB41: 0 | AC41: 0 | AD41: 0 | AE41: 0 | AF41: 0 | AG41: 0
W42: Test | X42: =+X40=X37 -> TRUE | Y42: TRUE | Z42: TRUE | AA42: TRUE | AB42: TRUE | AC42: TRUE | AD42: TRUE | AE42: TRUE | AF42: TRUE | AG42: TRUE
B46: Total operating expenditure
C48: Water
D49: Operations & Maintenance | R49: 3.746 | S49: 3.658 | T49: 3.588 | U49: 3.52 | V49: 3.28334 | W49: 3.51 | X49: 3.365 | Y49: 3.377 | Z49: 3.379 | AA49: 3.41 | AB49: 3.419 | AC49: =+AB49*1.013-0.05 -> 3.413447 | AD49: =+AC49*1.013-0.03 -> 3.427821811 | AE49: =+AD49*1.013-0.02 -> 3.452383495 | AF49: =+AE49*1.013-0.03 -> 3.46726448 | AG49: =+AF49*1.013-0.02 -> 3.492338918
D50: External bulk charges (excl. temporary purchases) | R50: =+R131 -> 0 | S50: =+S131 -> 0 | T50: =+T131 -> 0 | U50: 0 | V50: 0 | W50: 0 | X50: 0 | Y50: 0 | Z50: 0 | AA50: 0 | AB50: 0 | AC50: 0 | AD50: 0 | AE50: 0 | AF50: 0 | AG50: 0 | AH50: see reconciliation below
D51: Treatment | R51: 1.724 | S51: 1.667 | T51: 1.457 | U51: 1.546 | V51: 1.47265 | W51: 1.42 | X51: 1.461 | Y51: 1.458 | Z51: 1.45 | AA51: 1.459 | AB51: 1.448 | AC51: =+AB51*1.013 -> 1.466824 | AD51: 1.485892712 | AE51: 1.505209317 | AF51: 1.524777038 | AG51: 1.54459914
D52: Customer Service and billing | R52: 0.418 | S52: 0.413 | T52: 0.632 | U52: 0.663 | V52: 0.65871 | W52: 0.73 | X52: 0.422 | Y52: 0.424 | Z52: 0.426 | AA52: 0.428 | AB52: 0.429 | AC52: 0.434577 | AD52: 0.440226501 | AE52: 0.4459494455 | AF52: 0.4517467883 | AG52: 0.4576194966
D53: GSL Payments
D54: Licence Fees
D55: Corporate | R55: 3.709 | S55: 4.069 | T55: 3.981 | U55: 4.157 | V55: 4.42817 | W55: 4.83 | X55: 4.252 | Y55: 4.26 | Z55: 4.338 | AA55: 4.299 | AB55: 4.298 | AC55: =+AB55*1.013 -> 4.353874 | AD55: =+AC55*1.013 -> 4.410474362 | AE55: =+AD55*1.013 -> 4.467810529 | AF55: =+AE55*1.013 -> 4.525892066 | AG55: =+AF55*1.013 -> 4.584728662
D56: Other operating expenditure
C57: =+CONCATENATE("Total ",C48) -> Total Water | K57: =+SUM(K49:K56) -> 0 | L57: =+SUM(L49:L56) -> 0 | M57: 0 | N57: 0 | O57: 0 | P57: 0 | Q57: 0 | R57: 9.597 | S57: 9.807 | T57: 9.658 | U57: 9.886 | V57: 9.84287 | W57: 10.49 | X57: 9.5 | Y57: 9.519 | Z57: 9.593 | AA57: 9.596 | AB57: 9.594 | AC57: =+SUM(AC49:AC56) -> 9.668722 | AD57: 9.764415386 | AE57: 9.871352786 | AF57: 9.969680372 | AG57: 10.07928622
C59: Sewerage
D60: =+D49 -> Operations & Maintenance | R60: 2.88 | S60: 2.415 | T60: 2.05 | U60: 2.293 | V60: 2.0946 | W60: 2.57 | X60: 3.101 | Y60: 3.066 | Z60: 2.439 | AA60: 2.462 | AB60: 2.633 | AC60: =+AB60*1.013 -> 2.667229 | AD60: =+AC60*1.013 -> 2.701902977 | AE60: =+AD60*1.013 -> 2.737027716 | AF60: =+AE60*1.013 -> 2.772609076 | AG60: =+AF60*1.013 -> 2.808652994
D61: =+D50 -> External bulk charges (excl. temporary purchases) | R61: =+R132 -> 0 | S61: =+S132 -> 0 | T61: =+T132 -> 0 | U61: 0 | V61: 0 | W61: 0 | X61: 0 | Y61: 0 | Z61: 0 | AA61: 0 | AB61: 0 | AC61: 0 | AD61: 0 | AE61: 0 | AF61: 0 | AG61: 0 | AH61: see reconciliation below
D62: Treatment | R62: 0.859 | S62: 0.87 | T62: 0.849 | U62: 0.9173 | V62: 1.74635 | W62: 0.76 | X62: 1.09 | Y62: 1.077 | Z62: 1.066 | AA62: 1.074 | AB62: 1.061 | AC62: =+AB62*1.013 -> 1.074793 | AD62: 1.088765309 | AE62: 1.102919258 | AF62: 1.117257208 | AG62: 1.131781552
D63: Customer Service and billing | R63: 0.418 | S63: 0.413 | T63: 0.631 | U63: 0.662 | V63: 0.65973 | W63: 0.73 | X63: 0.422 | Y63: 0.424 | Z63: 0.425 | AA63: 0.427 | AB63: 0.43 | AC63: 0.43559 | AD63: 0.44125267 | AE63: 0.4469889547 | AF63: 0.4527998111 | AG63: 0.4586862087
D64: GSL Payments
D65: Licence Fees
D66: Corporate | R66: 3.709 | S66: 4.068 | T66: 3.98 | U66: 4.157 | V66: 4.42817 | W66: 4.83 | X66: 4.252 | Y66: 4.26 | Z66: 4.338 | AA66: 4.299 | AB66: 4.298 | AC66: =+AB66*1.013 -> 4.353874 | AD66: =+AC66*1.013 -> 4.410474362 | AE66: =+AD66*1.013 -> 4.467810529 | AF66: =+AE66*1.013 -> 4.525892066 | AG66: =+AF66*1.013 -> 4.584728662
D67: Other operating expenditure
C68: =+CONCATENATE("Total ",C59) -> Total Sewerage | K68: =+SUM(K60:K67) -> 0 | L68: 0 | M68: 0 | N68: 0 | O68: 0 | P68: 0 | Q68: 0 | R68: 7.866 | S68: 7.766 | T68: 7.51 | U68: 8.0293 | V68: 8.92885 | W68: 8.89 | X68: 8.865 | Y68: 8.827 | Z68: 8.268 | AA68: 8.262 | AB68: 8.422 | AC68: =+SUM(AC60:AC67) -> 8.531486 | AD68: 8.642395318 | AE68: 8.754746457 | AF68: 8.868558161 | AG68: 8.983849417
C70: Recycled Water
D71: =+D60 -> Operations & Maintenance
D72: =+D61 -> External bulk charges (excl. temporary purchases) | R72: =+R133 -> 0 | S72: =+S133 -> 0 | T72: =+T133 -> 0 | U72: 0 | V72: 0 | W72: 0 | X72: 0 | Y72: 0 | Z72: 0 | AA72: 0 | AB72: 0 | AC72: 0 | AD72: 0 | AE72: 0 | AF72: 0 | AG72: 0 | AH72: see reconciliation below
D73: Treatment
D74: Customer Service and billing
D75: GSL Payments
D76: Licence Fees
D77: Corporate
D78: Other operating expenditure
C79: =+CONCATENATE("Total ",C70) -> Total Recycled Water | K79: =+SUM(K71:K78) -> 0 | L79: =+SUM(L71:L78) -> 0 | M79: =+SUM(M71:M78) -> 0 | N79: =+SUM(N71:N78) -> 0 | O79: 0 | P79: 0 | Q79: 0 | R79: 0 | S79: 0 | T79: 0 | U79: 0 | V79: 0 | W79: 0 | X79: =+SUM(X71:X78) -> 0 | Y79: =+SUM(Y71:Y78) -> 0 | Z79: =+SUM(Z71:Z78) -> 0 | AA79: =+SUM(AA71:AA78) -> 0 | AB79: =+SUM(AB71:AB78) -> 0 | AC79: =+SUM(AC71:AC78) -> 0 | AD79: 0 | AE79: 0 | AF79: 0 | AG79: 0
C81: Rural Water
D82: =+D60 -> Operations & Maintenance
D83: =+D61 -> External bulk charges (excl. temporary purchases) | R83: =+R134 -> 0 | S83: =+S134 -> 0 | T83: =+T134 -> 0 | U83: 0 | V83: 0 | W83: 0 | X83: 0 | Y83: 0 | Z83: 0 | AA83: 0 | AB83: 0 | AC83: 0 | AD83: 0 | AE83: 0 | AF83: 0 | AG83: 0 | AH83: see reconciliation below
D84: Treatment
D85: Customer Service and billing
D86: GSL Payments
D87: Licence Fees
D88: Corporate
D89: Other operating expenditure
C90: =+CONCATENATE("Total ",C81) -> Total Rural Water | K90: =+SUM(K82:K89) -> 0 | L90: 0 | M90: 0 | N90: 0 | O90: 0 | P90: 0 | Q90: 0 | R90: 0 | S90: 0 | T90: 0 | U90: 0 | V90: 0 | W90: 0 | X90: =+SUM(X82:X89) -> 0 | Y90: =+SUM(Y82:Y89) -> 0 | Z90: =+SUM(Z82:Z89) -> 0 | AA90: =+SUM(AA82:AA89) -> 0 | AB90: =+SUM(AB82:AB89) -> 0 | AC90: =+SUM(AC82:AC89) -> 0 | AD90: 0 | AE90: 0 | AF90: 0 | AG90: 0
C92: Bulk Water
D93: Operations & Maintenance
D94: Treatment
D95: Customer Service and billing
D96: GSL Payments
D97: Licence Fees
D98: Corporate
D99: Other operating expenditure
C100: Total Bulk water | K100: =+SUM(K93:K99) -> 0 | L100: 0 | M100: 0 | N100: 0 | O100: 0 | P100: 0 | Q100: 0 | R100: 0 | S100: 0 | T100: 0 | U100: 0 | V100: 0 | W100: 0 | X100: 0 | Y100: 0 | Z100: 0 | AA100: 0 | AB100: 0 | AC100: =+SUM(AC93:AC99) -> 0 | AD100: 0 | AE100: 0 | AF100: 0 | AG100: 0
C102: External temporary water purchases
C105: Licence fees
D106: Essential Services Commission | R106: 0.02765 | S106: 0.03129 | T106: 0.0192 | U106: 0.01552 | V106: 0.0194 | W106: 0.03 | X106: 0.04 | Y106: 0.02 | Z106: 0.02 | AA106: 0.02 | AB106: 0.02 | AC106: 0.04 | AD106: 0.02 | AE106: 0.02 | AF106: 0.02 | AG106: 0.02
D107: Department of Human Services | R107: 0.011 | S107: 0.0179 | T107: 0.01153 | U107: 0.01138 | V107: 0.01123 | W107: 0.01 | X107: 0.01 | Y107: 0.01 | Z107: 0.01 | AA107: 0.01 | AB107: 0.01 | AC107: 0.01 | AD107: 0.01 | AE107: 0.01 | AF107: 0.01 | AG107: 0.01
D108: Environment Protection Authority | R108: 0.03982 | S108: 0.02374 | T108: 0.02411 | U108: 0.0238 | V108: 0.02451 | W108: 0.02 | X108: 0.022 | Y108: 0.022 | Z108: 0.022 | AA108: 0.022 | AB108: 0.022 | AC108: 0.02 | AD108: 0.02 | AE108: 0.02 | AF108: 0.02 | AG108: 0.02
C109: =+CONCATENATE("Total ",C105) -> Total Licence fees | K109: =+SUM(K106:K108) -> 0 | L109: =+SUM(L106:L108) -> 0 | M109: 0 | N109: 0 | O109: 0 | P109: 0 | Q109: 0 | R109: 0.07847 | S109: 0.07293 | T109: 0.05484 | U109: 0.0507 | V109: 0.05514 | W109: 0.06 | X109: =+SUM(X106:X108) -> 0.072 | Y109: =+SUM(Y106:Y108) -> 0.052 | Z109: =+SUM(Z106:Z108) -> 0.052 | AA109: =+SUM(AA106:AA108) -> 0.052 | AB109: =+SUM(AB106:AB108) -> 0.052 | AC109: =+SUM(AC106:AC108) -> 0.07 | AD109: 0.05 | AE109: 0.05 | AF109: 0.05 | AG109: 0.05
C111: Environment Contribution | R111: 0.91 | S111: 1.293 | T111: 1.255 | U111: 1.239 | V111: 1.22 | W111: 1.198 | X111: 1.499 | Y111: 1.465 | Z111: 1.432 | AA111: 1.4 | AB111: 1.369 | AC111: 1.8 | AD111: 1.77 | AE111: 1.74 | AF111: 1.71 | AG111: 1.68
C113: Other non-controllable
D114: [Non-controllable 1]
D115: [Non-controllable 2]
D116: [Non-controllable 3]
D117: [Non-controllable 4]
D118: [Non-controllable 5]
D119: [Non-controllable 6]
D120: [Non-controllable 7]
D121: [Non-controllable 8]
D122: [Non-controllable 9]
D123: [Non-controllable 10]
K124: =SUM(K114:K123) -> 0 | L124: 0 | M124: 0 | N124: 0 | O124: 0 | P124: 0 | Q124: 0 | R124: 0 | S124: 0 | T124: 0 | U124: 0 | V124: 0 | W124: 0 | X124: 0 | Y124: 0 | Z124: 0 | AA124: 0 | AB124: 0 | AC124: 0 | AD124: 0 | AE124: 0 | AF124: 0 | AG124: 0
C127: External bulk charges (excl. temporary purchases)
C128: Reconciliation
C130: Service | R130: =+R7 -> 2012-13 | S130: 2013-14 | T130: 2014-15 | U130: 2015-16 | V130: 2016-17 | W130: 2017-18 | X130: 2018-19 | Y130: 2019-20 | Z130: 2020-21 | AA130: 2021-22 | AB130: 2022-23 | AC130: 2023-24 | AD130: 2024-25 | AE130: 2025-26 | AF130: 2026-27 | AG130: 2027-28
D131: Water | R131: =+SUMIF($I$138:$I$179,$D$131,R$138:R$179) -> 0 | S131: 0 | T131: 0 | U131: 0 | V131: 0 | W131: 0 | X131: 0 | Y131: 0 | Z131: 0 | AA131: 0 | AB131: 0 | AC131: 0 | AD131: 0 | AE131: 0 | AF131: 0 | AG131: 0
D132: Sewerage | R132: =+SUMIF($I$138:$I$179,$D$132,R$138:R$179) -> 0 | S132: 0 | T132: 0 | U132: 0 | V132: 0 | W132: 0 | X132: 0 | Y132: 0 | Z132: 0 | AA132: 0 | AB132: 0 | AC132: 0 | AD132: 0 | AE132: 0 | AF132: 0 | AG132: 0
D133: Recycled Water | R133: =+SUMIF($I$138:$I$179,$D$133,R$138:R$179) -> 0 | S133: 0 | T133: 0 | U133: 0 | V133: 0 | W133: 0 | X133: 0 | Y133: 0 | Z133: 0 | AA133: 0 | AB133: 0 | AC133: 0 | AD133: 0 | AE133: 0 | AF133: 0 | AG133: 0
D134: Rural Water | R134: =+SUMIF($I$138:$I$179,$D$134,R$138:R$179) -> 0 | S134: 0 | T134: 0 | U134: 0 | V134: 0 | W134: 0 | X134: 0 | Y134: 0 | Z134: 0 | AA134: 0 | AB134: 0 | AC134: 0 | AD134: 0 | AE134: 0 | AF134: 0 | AG134: 0
C135: Total External Bulk Charges | R135: =SUM(R131:R134) -> 0 | S135: =SUM(S131:S134) -> 0 | T135: =SUM(T131:T134) -> 0 | U135: 0 | V135: 0 | W135: 0 | X135: 0 | Y135: 0 | Z135: 0 | AA135: 0 | AB135: 0 | AC135: 0 | AD135: 0 | AE135: 0 | AF135: 0 | AG135: 0
C137: Description | H137: Source | I137: Service | J137: Price
B138: 1 | H138: [Source] | I138: [Service] | J138: [Price] | AJ138: ESC USE ONLY
B139: 2 | H139: [Source] | I139: [Service] | J139: [Price]
B140: 3 | H140: [Source] | I140: [Service] | J140: [Price] | AJ140: [Service]
B141: 4 | H141: [Source] | I141: [Service] | J141: [Price] | AJ141: Water
B142: 5 | H142: [Source] | I142: [Service] | J142: [Price] | AJ142: Sewerage
B143: 6 | H143: [Source] | I143: [Service] | J143: [Price] | AJ143: Recycled Water
B144: 7 | H144: [Source] | I144: [Service] | J144: [Price] | AJ144: Rural Water
B145: 8 | H145: [Source] | I145: [Service] | J145: [Price]
B146: 9 | H146: [Source] | I146: [Service] | J146: [Price] | AJ146: [Source]
B147: 10 | H147: [Source] | I147: [Service] | J147: [Price] | AJ147: Melbourne Water
B148: 11 | H148: [Source] | I148: [Service] | J148: [Price] | AJ148: Goulburn-Murray Water
B149: 12 | H149: [Source] | I149: [Service] | J149: [Price] | AJ149: Other Sources
B150: 13 | H150: [Source] | I150: [Service] | J150: [Price]
B151: 14 | H151: [Source] | I151: [Service] | J151: [Price]
B152: 15 | H152: [Source] | I152: [Service] | J152: [Price]
B153: 16 | H153: [Source] | I153: [Service] | J153: [Price]
B154: 17 | H154: [Source] | I154: [Service] | J154: [Price]
B155: 18 | H155: [Source] | I155: [Service] | J155: [Price]
B156: 19 | H156: [Source] | I156: [Service] | J156: [Price]
B157: 20 | H157: [Source] | I157: [Service] | J157: [Price]
B158: 21 | H158: [Source] | I158: [Service] | J158: [Price]
B159: 22 | H159: [Source] | I159: [Service] | J159: [Price]
B160: 23 | H160: [Source] | I160: [Service] | J160: [Price]
B161: 24 | H161: [Source] | I161: [Service] | J161: [Price]
B162: 25 | H162: [Source] | I162: [Service] | J162: [Price]
B163: 26 | H163: [Source] | I163: [Service] | J163: [Price]
B164: 27 | H164: [Source] | I164: [Service] | J164: [Price]
B165: 28 | H165: [Source] | I165: [Service] | J165: [Price]
B166: 29 | H166: [Source] | I166: [Service] | J166: [Price]
B167: 30 | H167: [Source] | I167: [Service] | J167: [Price]
B168: 31 | H168: [Source] | I168: [Service] | J168: [Price]
B169: 32 | H169: [Source] | I169: [Service] | J169: [Price]
B170: 33 | H170: [Source] | I170: [Service] | J170: [Price]
B171: 34 | H171: [Source] | I171: [Service] | J171: [Price]
B172: 35 | H172: [Source] | I172: [Service] | J172: [Price]
B173: 36 | H173: [Source] | I173: [Service] | J173: [Price]
B174: 37 | H174: [Source] | I174: [Service] | J174: [Price]
B175: 38 | H175: [Source] | I175: [Service] | J175: [Price]
B176: 39 | H176: [Source] | I176: [Service] | J176: [Price]
B177: 40 | H177: [Source] | I177: [Service] | J177: [Price]

Sheet Capex_FO input
B1: Capital Expenditure - Forecast Input
B2: =+Contents!H7 -> East Gippsland Water
B3: Go to Table of Contents
C7: Input Summary | F7: FOURTH REG PERIOD | K7: FIFTH REG PERIOD
D9: =+O39 -> 2018-19 | E9: 2019-20 | F9: 2020-21 | G9: 2021-22 | H9: 2022-23 | I9: 2023-24 | J9: 2024-25 | K9: 2025-26 | L9: 2026-27 | M9: 2027-28
C10: By Cost Driver
C11: Net capital expenditure - Renewals | D11: =+SUMIF($F$42:$F$1019,"Renewals",AV$42:AV$1019) -> 5.914 | E11: 10.844 | F11: 7.704 | G11: 6.353 | H11: 7.476 | I11: 17.419 | J11: 6.456 | K11: 5.492 | L11: 7.394 | M11: 13.361
C12: Net capital expenditure - Growth | D12: =+SUMIF($F$42:$F$1019,"Growth",AV$42:AV$1019) -> 2.578 | E12: 3.069 | F12: 1.285 | G12: 1.342 | H12: 2.661 | I12: 5.736 | J12: 2.546 | K12: 1.247 | L12: 0.205 | M12: 1.808
C13: Net capital expenditure - Improvements / Compliance | D13: =+SUMIF($F$42:$F$1019,"Improvements / Compliance",AV$42:AV$1019) -> 0.901 | E13: 1.63 | F13: 2.507 | G13: 3.639 | H13: 3.927 | I13: 4.781 | J13: 1.979 | K13: 0.545 | L13: 0.549 | M13: 1.027
C14: Government Contributions | D14: =+Z41 -> 0 | E14: =+AA41 -> 0 | F14: 0 | G14: 0 | H14: 0 | I14: 0 | J14: 0 | K14: 0 | L14: 0 | M14: 0
C15: Customer Contributions | D15: =+AK41 -> 0 | E15: =+AL41 -> 0 | F15: 0 | G15: 0 | H15: 0 | I15: 0 | J15: 0 | K15: 0 | L15: 0 | M15: 0
C16: Total prescribed capex | D16: =SUM(D11:D15) -> 9.393 | E16: 15.543 | F16: 11.496 | G16: 11.334 | H16: 14.064 | I16: 27.936 | J16: 10.981 | K16: 7.284 | L16: 8.148 | M16: 16.196
C18: By Capital Type
C19: Top 10 Major Projects | D19: =+SUMIF($H$42:$H$1019,$C$19,O$42:O$1019) -> 4.223 | E19: 9.402 | F19: 5.69 | G19: 3.718 | H19: 5.2 | I19: 2.052 | J19: 0 | K19: 0 | L19: 0 | M19: 0
C20: Significant projects | D20: =+SUMIF($H$42:$H$1019,$C$20,O$42:O$1019) -> 0 | E20: 0 | F20: 0 | G20: 0 | H20: 0 | I20: 0 | J20: 0 | K20: 0 | L20: 0 | M20: 0
C21: Capital Programs / Allocation | D21: =+SUMIF($H$42:$H$1019,$C$21,O$42:O$1019) -> 4.395 | E21: 5.294 | F21: 5.449 | G21: 6.391 | H21: 8.099 | I21: 24.328 | J21: 9.281 | K21: 6.334 | L21: 7.148 | M21: 14.917
C22: Other Capital expenditure | D22: =+SUMIF($H$42:$H$1019,$C$22,O$42:O$1019) -> 0.775 | E22: 0.847 | F22: 0.357 | G22: 1.225 | H22: 0.765 | I22: 1.556 | J22: 1.7 | K22: 0.95 | L22: 1 | M22: 1.279
C23: Total prescribed capex | D23: =SUM(D19:D22) -> 9.393 | E23: =SUM(E19:E22) -> 15.543 | F23: 11.496 | G23: 11.334 | H23: 14.064 | I23: 27.936 | J23: 10.981 | K23: 7.284 | L23: 8.148 | M23: 16.196
C25: Difference | D25: =+D23-D16 -> 0 | E25: =+E23-E16 -> 0 | F25: 0 | G25: 0 | H25: 0 | I25: 0 | J25: 0 | K25: 0 | L25: 0 | M25: 0
C26: Test | D26: =+D23=D16 -> TRUE | E26: TRUE | F26: TRUE | G26: TRUE | H26: TRUE | I26: TRUE | J26: TRUE | K26: TRUE | L26: TRUE | M26: TRUE
C29: Total prescribed capex | D29: =+D23 -> 9.393 | E29: =+E23 -> 15.543 | F29: 11.496 | G29: 11.334 | H29: 14.064 | I29: 27.936 | J29: 10.981 | K29: 7.284 | L29: 8.148 | M29: 16.196
C32: Regulatory Depreciation | D32: =+BG41 -> 0.2631979167 | E32: =+BH41 -> 0.82524 | F32: 1.513365417 | G32: 2.139702917 | H32: 2.621013333 | I32: 3.10844375 | J32: 3.838954583 | K32: 4.485824583 | L32: 4.81530375 | M32: 5.212950417
B35: $m, 01/01/18
O36: Gross capital expenditure | Z36: Government contributions | AK36: Customer contributions | AV36: Net capital expenditure | BG36: Regulatory Depreciation | BR36: Accumulated capex | CC36: Gross capital expenditure | CN36: Tax Depreciation
O37: $m, 01/01/18 | Z37: $m, 01/01/18 | AK37: $m, 01/01/18 | AV37: $m, 01/01/18 | BG37: $m, 01/01/18 | BR37: $m, 01/01/18 | CC37: Nominal,$ | CN37: Nominal,$
O39: 2018-19 | P39: 2019-20 | Q39: 2020-21 | R39: 2021-22 | S39: 2022-23 | T39: 2023-24 | U39: 2024-25 | V39: 2025-26 | W39: 2026-27 | X39: 2027-28 | Z39: 2018-19 | AA39: 2019-20 | AB39: 2020-21 | AC39: 2021-22 | AD39: 2022-23 | AE39: 2023-24 | AF39: 2024-25 | AG39: 2025-26 | AH39: 2026-27 | AI39: 2027-28 | AK39: 2018-19 | AL39: 2019-20 | AM39: 2020-21 | AN39: 2021-22 | AO39: 2022-23 | AP39: 2023-24 | AQ39: 2024-25 | AR39: 2025-26 | AS39: 2026-27 | AT39: 2027-28 | AV39: 2018-19 | AW39: 2019-20 | AX39: 2020-21 | AY39: 2021-22 | AZ39: 2022-23 | BA39: 2023-24 | BB39: 2024-25 | BC39: 2025-26 | BD39: 2026-27 | BE39: 2027-28 | BG39: 2018-19 | BH39: 2019-20 | BI39: 2020-21 | BJ39: 2021-22 | BK39: 2022-23 | BL39: 2023-24 | BM39: 2024-25 | BN39: 2025-26 | BO39: 2026-27 | BP39: 2027-28 | BR39: 2018-19 | BS39: 2019-20 | BT39: 2020-21 | BU39: 2021-22 | BV39: 2022-23 | BW39: 2023-24 | BX39: 2024-25 | BY39: 2025-26 | BZ39: 2026-27 | CA39: 2027-28 | CC39: 2018-19 | CD39: 2019-20 | CE39: 2020-21 | CF39: 2021-22 | CG39: 2022-23 | CH39: 2023-24 | CI39: 2024-25 | CJ39: 2025-26 | CK39: 2026-27 | CL39: 2027-28 | CN39: 2018-19 | CO39: 2019-20 | CP39: 2020-21 | CQ39: 2021-22 | CR39: 2022-23 | CS39: 2023-24 | CT39: 2024-25 | CU39: 2025-26 | CV39: 2026-27 | CW39: 2027-28
BG40: 1 | BH40: 2 | BI40: 3 | BJ40: 4 | BK40: 5 | BL40: 6 | BM40: 7 | BN40: 8 | BO40: 9 | BP40: 10 | CN40: 1 | CO40: 2 | CP40: 3 | CQ40: 4 | CR40: 5 | CS40: 6 | CT40: 7 | CU40: 8 | CV40: 9 | CW40: 10
C41: Project/program Name | E41: Service | F41: Major cost driver | G41: Asset category | H41: Capital type | J41: Depreciation Method | K41: Year asset operational | L41: Asset life (Regulatory) | M41: Asset life (Tax) | O41: =SUM(O42:O1019) -> 9.393 | P41: 15.543 | Q41: 11.496 | R41: 11.334 | S41: 14.064 | T41: 27.936 | U41: 10.981 | V41: 7.284 | W41: 8.148 | X41: 16.196 | Z41: =SUM(Z42:Z1019) -> 0 | AA41: 0 | AB41: 0 | AC41: 0 | AD41: 0 | AE41: 0 | AF41: 0 | AG41: 0 | AH41: 0 | AI41: 0 | AK41: =SUM(AK42:AK1019) -> 0 | AL41: 0 | AM41: 0 | AN41: 0 | AO41: 0 | AP41: 0 | AQ41: 0 | AR41: 0 | AS41: 0 | AT41: 0 | AV41: =SUM(AV42:AV1019) -> 9.393 | AW41: 15.543 | AX41: 11.496 | AY41: 11.334 | AZ41: 14.064 | BA41: 27.936 | BB41: 10.981 | BC41: 7.284 | BD41: 8.148 | BE41: 16.196 | BG41: =SUM(BG42:BG1019) -> 0.2631979167 | BH41: 0.82524 | BI41: 1.513365417 | BJ41: 2.139702917 | BK41: 2.621013333 | BL41: 3.10844375 | BM41: 3.838954583 | BN41: 4.485824583 | BO41: 4.81530375 | BP41: 5.212950417 | BR41: =SUM(BR42:BR1019) -> 4.761 | BS41: 9.312 | BT41: 20.358 | BU41: 9.337 | BV41: 13.844 | BW41: 10.96 | BX41: 31.475 | BY41: 7.284 | BZ41: 7.097 | CA41: 17.947 | CC41: =SUM(CC42:CC1019) -> 9.609039 | CD41: 16.26620025 | CE41: 12.30760802 | CF41: 12.41325689 | CG41: 15.7574895 | CH41: 32.01975645 | CI41: 12.87571418 | CJ41: 8.737254917 | CK41: 9.998428005 | CL41: 20.33125115 | CN41: =SUM(CN42:CN1019) -> 0.2926462 | CO41: 0.9030386629 | CP41: 1.502245447 | CQ41: 2.019208495 | CR41: 2.519492571 | CS41: 3.37187693 | CT41: 4.132111562 | CU41: 4.470414968 | CV41: 4.816641834 | CW41: 5.238904007
C42: Lindenow Storage Water Quality Issues (1ML tank) | E42: Water | F42: Improvements / Compliance | G42: Pipelines/network | H42: Top 10 Major Projects | J42: Straight line | K42: 2022-23 | L42: 50 | M42: 50 | O42: 0 | P42: 0 | Q42: 0.2 | R42: 0.6 | S42: 0.2 | T42: 0 | U42: 0 | V42: 0 | W42: 0 | X42: 0 | AV42: =+O42-Z42-AK42 -> 0 | AW42: =+P42-AA42-AL42 -> 0 | AX42: 0.2 | AY42: 0.6 | AZ42: 0.2 | BA42: 0 | BB42: 0 | BC42: 0 | BD42: 0 | BE42: 0 | BG42: =IF($L42=0,0, IF($L42<=0.5,BR42, IF($J42="straight line", IF((LEFT(BG$39,4)*1)-INT($L42)<LEFT($BG$39,4)*1,0,((OFFSET(BR42,0,-INT($L42+0.5),1,1))/$L42)*(IF($L42-INT($L42)>0.5,$L42-0.5-INT($L42),IF($L42-INT($L42)<=0.5,$L42-0.5-INT($L42)+1,0)))) +BR42/$L42*0.5, IF($J42="Declining Balance",-$BG$38,0)))) -> 0 | BH42: =IF($L42=0,0, IF($L42<=0.5,BS42, IF(AND($J42="straight line",$L42<1.51),(BR42-((BR42/$L42)*0.5))+BS42/$L42*0.5, IF($J42="straight line", IF((LEFT(BH$39,4)*1)-INT($L42)<LEFT($BG$39,4)*1,0,((OFFSET(BS42,0,-INT($L42+0.5),1,1))/$L42)*(IF($L42-INT($L42)>0.5,$L42-0.5-INT($L42),IF($L42-INT($L42)<=0.5,$L42-0.5-INT($L42)+1,0)))) +BS42/$L42*0.5 +SUM(OFFSET(BS42,0,MAX(-INT($L42+(0.5-(10^-12))),-BH$40)+1,1,MIN(INT($L42+(0.5-(10^-12))),BH$40)-1))*1/$L42, IF($J42="Declining Balance",-$BG$38,0))))) -> 0 | BI42: =IF($L42=0,0, IF($L42<=0.5,BT42, IF(AND($J42="straight line",$L42<1.51),(BS42-((BS42/$L42)*0.5))+BT42/$L42*0.5, IF($J42="straight line", IF((LEFT(BI$39,4)*1)-INT($L42)<LEFT($BG$39,4)*1,0,((OFFSET(BT42,0,-INT($L42+0.5),1,1))/$L42)*(IF($L42-INT($L42)>0.5,$L42-0.5-INT($L42),IF($L42-INT($L42)<=0.5,$L42-0.5-INT($L42)+1,0)))) +BT42/$L42*0.5 +SUM(OFFSET(BT42,0,MAX(-INT($L42+(0.5-(10^-12))),-BI$40)+1,1,MIN(INT($L42+(0.5-(10^-12))),BI$40)-1))*1/$L42, IF($J42="Declining Balance",-$BG$38,0))))) -> 0 | BJ42: 0 | BK42: 0.01 | BL42: 0.02 | BM42: 0.02 | BN42: 0.02 | BO42: 0.02 | BP42: 0.02 | BR42: =+IF($K42="Ongoing",AV42,IF(RIGHT($K42,2)=RIGHT(BR$39,2),SUM($AV42:AV42),0)+IF(RIGHT(BR$39,2)>RIGHT($K42,2),AV42,0)) -> 0 | BS42: =+IF($K42="Ongoing",AW42,IF(RIGHT($K42,2)=RIGHT(BS$39,2),SUM($AV42:AW42),0)+IF(RIGHT(BS$39,2)>RIGHT($K42,2),AW42,0)) -> 0 | BT42: =+IF($K42="Ongoing",AX42,IF(RIGHT($K42,2)=RIGHT(BT$39,2),SUM($AV42:AX42),0)+IF(RIGHT(BT$39,2)>RIGHT($K42,2),AX42,0)) -> 0 | BU42: =+IF($K42="Ongoing",AY42,IF(RIGHT($K42,2)=RIGHT(BU$39,2),SUM($AV42:AY42),0)+IF(RIGHT(BU$39,2)>RIGHT($K42,2),AY42,0)) -> 0 | BV42: =+IF($K42="Ongoing",AZ42,IF(RIGHT($K42,2)=RIGHT(BV$39,2),SUM($AV42:AZ42),0)+IF(RIGHT(BV$39,2)>RIGHT($K42,2),AZ42,0)) -> 1 | BW42: =+IF($K42="Ongoing",BA42,IF(RIGHT($K42,2)=RIGHT(BW$39,2),SUM($AV42:BA42),0)+IF(RIGHT(BW$39,2)>RIGHT($K42,2),BA42,0)) -> 0 | BX42: =+IF($K42="Ongoing",BB42,IF(RIGHT($K42,2)=RIGHT(BX$39,2),SUM($AV42:BB42),0)+IF(RIGHT(BX$39,2)>RIGHT($K42,2),BB42,0)) -> 0 | BY42: =+IF($K42="Ongoing",BC42,IF(RIGHT($K42,2)=RIGHT(BY$39,2),SUM($AV42:BC42),0)+IF(RIGHT(BY$39,2)>RIGHT($K42,2),BC42,0)) -> 0 | BZ42: =+IF($K42="Ongoing",BD42,IF(RIGHT($K42,2)=RIGHT(BZ$39,2),SUM($AV42:BD42),0)+IF(RIGHT(BZ$39,2)>RIGHT($K42,2),BD42,0)) -> 0 | CA42: =+IF($K42="Ongoing",BE42,IF(RIGHT($K42,2)=RIGHT(CA$39,2),SUM($AV42:BE42),0)+IF(RIGHT(CA$39,2)>RIGHT($K42,2),BE42,0)) -> 0 | CC42: =+O42*KeyAssumptionsPriceControl_FO!X$15 -> 0 | CD42: =+P42*KeyAssumptionsPriceControl_FO!Y$15 -> 0 | CE42: =+Q42*KeyAssumptionsPriceControl_FO!Z$15 -> 0.2141198334 | CF42: =+R42*KeyAssumptionsPriceControl_FO!AA$15 -> 0.6571337687 | CG42: =+S42*KeyAssumptionsPriceControl_FO!AB$15 -> 0.2240826151 | CH42: =+T42*KeyAssumptionsPriceControl_FO!AC$15 -> 0 | CI42: =+U42*KeyAssumptionsPriceControl_FO!AD$15 -> 0 | CJ42: =+V42*KeyAssumptionsPriceControl_FO!AE$15 -> 0 | CK42: =+W42*KeyAssumptionsPriceControl_FO!AF$15 -> 0 | CL42: =+X42*KeyAssumptionsPriceControl_FO!AG$15 -> 0 | CN42: =IF($M42=0,0, IF($M42<=0.5,CC42, IF($J42="straight line", IF((LEFT(CN$39,4)*1)-INT($M42)<LEFT($CN$39,4)*1,0,((OFFSET(CC42,0,-INT($M42+0.5),1,1))/$M42)*(IF($M42-INT($M42)>0.5,$M42-0.5-INT($M42),IF($M42-INT($M42)<=0.5,$M42-0.5-INT($M42)+1,0)))) +CC42/$M42*0.5, IF($J42="Declining Balance",-$CN$38,0)))) -> 0 | CO42: =IF($M42=0,0, IF($M42<=0.5,CD42, IF(AND($J42="straight line",$M42<1.51),(CC42-((CC42/$M42)*0.5))+CD42/$M42*0.5, IF($J42="straight line", IF((LEFT(CO$39,4)*1)-INT($M42)<LEFT($CN$39,4)*1,0,((OFFSET(CD42,0,-INT($M42+0.5),1,1))/$M42)*(IF($M42-INT($M42)>0.5,$M42-0.5-INT($M42),IF($M42-INT($M42)<=0.5,$M42-0.5-INT($M42)+1,0)))) +CD42/$M42*0.5 +SUM(OFFSET(CD42,0,MAX(-INT($M42+(0.5-(10^-12))),-CO$40)+1,1,MIN(INT($M42+(0.5-(10^-12))),CO$40)-1))*1/$M42, IF($J42="Declining Balance",-$CN$38,0))))) -> 0 | CP42: =IF($M42=0,0, IF($M42<=0.5,CE42, IF(AND($J42="straight line",$M42<1.51),(CD42-((CD42/$M42)*0.5))+CE42/$M42*0.5, IF($J42="straight line", IF((LEFT(CP$39,4)*1)-INT($M42)<LEFT($CN$39,4)*1,0,((OFFSET(CE42,0,-INT($M42+0.5),1,1))/$M42)*(IF($M42-INT($M42)>0.5,$M42-0.5-INT($M42),IF($M42-INT($M42)<=0.5,$M42-0.5-INT($M42)+1,0)))) +CE42/$M42*0.5 +SUM(OFFSET(CE42,0,MAX(-INT($M42+(0.5-(10^-12))),-CP$40)+1,1,MIN(INT($M42+(0.5-(10^-12))),CP$40)-1))*1/$M42, IF($J42="Declining Balance",-$CN$38,0))))) -> 0.002141198334 | CQ42: 0.01085373436 | CR42: 0.01966589819 | CS42: 0.02190672434 | CT42: 0.02190672434 | CU42: 0.02190672434 | CV42: 0.02190672434 | CW42: 0.02190672434
C43: Bairnsdale to Eagle Point main supply pipeline renewal - Stage 3 | E43: Water | F43: Renewals | G43: Pipelines/network | H43: Top 10 Major Projects | J43: Straight line | K43: 2022-23 | L43: 80 | M43: 80 | O43: 0 | P43: 0 | Q43: 0.534 | R43: 1 | S43: 0.5 | T43: 0 | U43: 0 | V43: 0 | W43: 0 | X43: 0 | AV43: =+O43-Z43-AK43 -> 0 | AW43: 0 | AX43: 0.534 | AY43: 1 | AZ43: 0.5 | BA43: 0 | BB43: 0 | BC43: 0 | BD43: 0 | BE43: 0 | BG43: =IF($L43=0,0, IF($L43<=0.5,BR43, IF($J43="straight line", IF((LEFT(BG$39,4)*1)-INT($L43)<LEFT($BG$39,4)*1,0,((OFFSET(BR43,0,-INT($L43+0.5),1,1))/$L43)*(IF($L43-INT($L43)>0.5,$L43-0.5-INT($L43),IF($L43-INT($L43)<=0.5,$L43-0.5-INT($L43)+1,0)))) +BR43/$L43*0.5, IF($J43="Declining Balance",-$BG$38,0)))) -> 0 | BH43: =IF($L43=0,0, IF($L43<=0.5,BS43, IF(AND($J43="straight line",$L43<1.51),(BR43-((BR43/$L43)*0.5))+BS43/$L43*0.5, IF($J43="straight line", IF((LEFT(BH$39,4)*1)-INT($L43)<LEFT($BG$39,4)*1,0,((OFFSET(BS43,0,-INT($L43+0.5),1,1))/$L43)*(IF($L43-INT($L43)>0.5,$L43-0.5-INT($L43),IF($L43-INT($L43)<=0.5,$L43-0.5-INT($L43)+1,0)))) +BS43/$L43*0.5 +SUM(OFFSET(BS43,0,MAX(-INT($L43+(0.5-(10^-12))),-BH$40)+1,1,MIN(INT($L43+(0.5-(10^-12))),BH$40)-1))*1/$L43, IF($J43="Declining Balance",-$BG$38,0))))) -> 0 | BI43: 0 | BJ43: 0 | BK43: 0.0127125 | BL43: 0.025425 | BM43: 0.025425 | BN43: 0.025425 | BO43: 0.025425 | BP43: 0.025425 | BR43: =+IF($K43="Ongoing",AV43,IF(RIGHT($K43,2)=RIGHT(BR$39,2),SUM($AV43:AV43),0)+IF(RIGHT(BR$39,2)>RIGHT($K43,2),AV43,0)) -> 0 | BS43: =+IF($K43="Ongoing",AW43,IF(RIGHT($K43,2)=RIGHT(BS$39,2),SUM($AV43:AW43),0)+IF(RIGHT(BS$39,2)>RIGHT($K43,2),AW43,0)) -> 0 | BT43: =+IF($K43="Ongoing",AX43,IF(RIGHT($K43,2)=RIGHT(BT$39,2),SUM($AV43:AX43),0)+IF(RIGHT(BT$39,2)>RIGHT($K43,2),AX43,0)) -> 0 | BU43: =+IF($K43="Ongoing",AY43,IF(RIGHT($K43,2)=RIGHT(BU$39,2),SUM($AV43:AY43),0)+IF(RIGHT(BU$39,2)>RIGHT($K43,2),AY43,0)) -> 0 | BV43: =+IF($K43="Ongoing",AZ43,IF(RIGHT($K43,2)=RIGHT(BV$39,2),SUM($AV43:AZ43),0)+IF(RIGHT(BV$39,2)>RIGHT($K43,2),AZ43,0)) -> 2.034 | BW43: =+IF($K43="Ongoing",BA43,IF(RIGHT($K43,2)=RIGHT(BW$39,2),SUM($AV43:BA43),0)+IF(RIGHT(BW$39,2)>RIGHT($K43,2),BA43,0)) -> 0 | BX43: =+IF($K43="Ongoing",BB43,IF(RIGHT($K43,2)=RIGHT(BX$39,2),SUM($AV43:BB43),0)+IF(RIGHT(BX$39,2)>RIGHT($K43,2),BB43,0)) -> 0 | BY43: =+IF($K43="Ongoing",BC43,IF(RIGHT($K43,2)=RIGHT(BY$39,2),SUM($AV43:BC43),0)+IF(RIGHT(BY$39,2)>RIGHT($K43,2),BC43,0)) -> 0 | BZ43: =+IF($K43="Ongoing",BD43,IF(RIGHT($K43,2)=RIGHT(BZ$39,2),SUM($AV43:BD43),0)+IF(RIGHT(BZ$39,2)>RIGHT($K43,2),BD43,0)) -> 0 | CA43: =+IF($K43="Ongoing",BE43,IF(RIGHT($K43,2)=RIGHT(CA$39,2),SUM($AV43:BE43),0)+IF(RIGHT(CA$39,2)>RIGHT($K43,2),BE43,0)) -> 0 | CC43: =+O43*KeyAssumptionsPriceControl_FO!X$15 -> 0 | CD43: =+P43*KeyAssumptionsPriceControl_FO!Y$15 -> 0 | CE43: =+Q43*KeyAssumptionsPriceControl_FO!Z$15 -> 0.5716999552 | CF43: =+R43*KeyAssumptionsPriceControl_FO!AA$15 -> 1.095222948 | CG43: =+S43*KeyAssumptionsPriceControl_FO!AB$15 -> 0.5602065378 | CH43: =+T43*KeyAssumptionsPriceControl_FO!AC$15 -> 0 | CI43: =+U43*KeyAssumptionsPriceControl_FO!AD$15 -> 0 | CJ43: =+V43*KeyAssumptionsPriceControl_FO!AE$15 -> 0 | CK43: =+W43*KeyAssumptionsPriceControl_FO!AF$15 -> 0 | CL43: =+X43*KeyAssumptionsPriceControl_FO!AG$15 -> 0 | CN43: =IF($M43=0,0, IF($M43<=0.5,CC43, IF($J43="straight line", IF((LEFT(CN$39,4)*1)-INT($M43)<LEFT($CN$39,4)*1,0,((OFFSET(CC43,0,-INT($M43+0.5),1,1))/$M43)*(IF($M43-INT($M43)>0.5,$M43-0.5-INT($M43),IF($M43-INT($M43)<=0.5,$M43-0.5-INT($M43)+1,0)))) +CC43/$M43*0.5, IF($J43="Declining Balance",-$CN$38,0)))) -> 0 | CO43: =IF($M43=0,0, IF($M43<=0.5,CD43, IF(AND($J43="straight line",$M43<1.51),(CC43-((CC43/$M43)*0.5))+CD43/$M43*0.5, IF($J43="straight line", IF((LEFT(CO$39,4)*1)-INT($M43)<LEFT($CN$39,4)*1,0,((OFFSET(CD43,0,-INT($M43+0.5),1,1))/$M43)*(IF($M43-INT($M43)>0.5,$M43-0.5-INT($M43),IF($M43-INT($M43)<=0.5,$M43-0.5-INT($M43)+1,0)))) +CD43/$M43*0.5 +SUM(OFFSET(CD43,0,MAX(-INT($M43+(0.5-(10^-12))),-CO$40)+1,1,MIN(INT($M43+(0.5-(10^-12))),CO$40)-1))*1/$M43, IF($J43="Declining Balance",-$CN$38,0))))) -> 0 | CP43: 0.00357312472 | CQ43: 0.01399139286 | CR43: 0.02433782715 | CS43: 0.02783911801 | CT43: 0.02783911801 | CU43: 0.02783911801 | CV43: 0.02783911801 | CW43: 0.02783911801
C44: 2nd Sarsfield Tank (6ML) | E44: Water | F44: Growth | G44: Pipelines/network | H44: Top 10 Major Projects | J44: Straight line | K44: 2019-20 | L44: 50 | M44: 50 | O44: 2 | P44: 0.309 | Q44: 0 | R44: 0 | S44: 0 | T44: 0 | U44: 0 | V44: 0 | W44: 0 | X44: 0 | AV44: 2 | AW44: 0.309 | AX44: 0 | AY44: 0 | AZ44: 0 | BA44: 0 | BB44: 0 | BC44: 0 | BD44: 0 | BE44: 0 | BG44: 0 | BH44: 0.02309 | BI44: 0.04618 | BJ44: 0.04618 | BK44: 0.04618 | BL44: 0.04618 | BM44: 0.04618 | BN44: 0.04618 | BO44: 0.04618 | BP44: 0.04618 | BR44: =+IF($K44="Ongoing",AV44,IF(RIGHT($K44,2)=RIGHT(BR$39,2),SUM($AV44:AV44),0)+IF(RIGHT(BR$39,2)>RIGHT($K44,2),AV44,0)) -> 0 | BS44: =+IF($K44="Ongoing",AW44,IF(RIGHT($K44,2)=RIGHT(BS$39,2),SUM($AV44:AW44),0)+IF(RIGHT(BS$39,2)>RIGHT($K44,2),AW44,0)) -> 2.309 | BT44: =+IF($K44="Ongoing",AX44,IF(RIGHT($K44,2)=RIGHT(BT$39,2),SUM($AV44:AX44),0)+IF(RIGHT(BT$39,2)>RIGHT($K44,2),AX44,0)) -> 0 | BU44: =+IF($K44="Ongoing",AY44,IF(RIGHT($K44,2)=RIGHT(BU$39,2),SUM($AV44:AY44),0)+IF(RIGHT(BU$39,2)>RIGHT($K44,2),AY44,0)) -> 0 | BV44: =+IF($K44="Ongoing",AZ44,IF(RIGHT($K44,2)=RIGHT(BV$39,2),SUM($AV44:AZ44),0)+IF(RIGHT(BV$39,2)>RIGHT($K44,2),AZ44,0)) -> 0 | BW44: =+IF($K44="Ongoing",BA44,IF(RIGHT($K44,2)=RIGHT(BW$39,2),SUM($AV44:BA44),0)+IF(RIGHT(BW$39,2)>RIGHT($K44,2),BA44,0)) -> 0 | BX44: =+IF($K44="Ongoing",BB44,IF(RIGHT($K44,2)=RIGHT(BX$39,2),SUM($AV44:BB44),0)+IF(RIGHT(BX$39,2)>RIGHT($K44,2),BB44,0)) -> 0 | BY44: =+IF($K44="Ongoing",BC44,IF(RIGHT($K44,2)=RIGHT(BY$39,2),SUM($AV44:BC44),0)+IF(RIGHT(BY$39,2)>RIGHT($K44,2),BC44,0)) -> 0 | BZ44: =+IF($K44="Ongoing",BD44,IF(RIGHT($K44,2)=RIGHT(BZ$39,2),SUM($AV44:BD44),0)+IF(RIGHT(BZ$39,2)>RIGHT($K44,2),BD44,0)) -> 0 | CA44: =+IF($K44="Ongoing",BE44,IF(RIGHT($K44,2)=RIGHT(CA$39,2),SUM($AV44:BE44),0)+IF(RIGHT(CA$39,2)>RIGHT($K44,2),BE44,0)) -> 0 | CC44: =+O44*KeyAssumptionsPriceControl_FO!X$15 -> 2.046 | CD44: =+P44*KeyAssumptionsPriceControl_FO!Y$15 -> 0.323377461 | CE44: =+Q44*KeyAssumptionsPriceControl_FO!Z$15 -> 0 | CF44: =+R44*KeyAssumptionsPriceControl_FO!AA$15 -> 0 | CG44: =+S44*KeyAssumptionsPriceControl_FO!AB$15 -> 0 | CH44: =+T44*KeyAssumptionsPriceControl_FO!AC$15 -> 0 | CI44: =+U44*KeyAssumptionsPriceControl_FO!AD$15 -> 0 | CJ44: =+V44*KeyAssumptionsPriceControl_FO!AE$15 -> 0 | CK44: =+W44*KeyAssumptionsPriceControl_FO!AF$15 -> 0 | CL44: =+X44*KeyAssumptionsPriceControl_FO!AG$15 -> 0 | CN44: 0.02046 | CO44: 0.04415377461 | CP44: 0.04738754922 | CQ44: 0.04738754922 | CR44: 0.04738754922 | CS44: 0.04738754922 | CT44: 0.04738754922 | CU44: 0.04738754922 | CV44: 0.04738754922 | CW44: 0.04738754922
C45: Sarsfield Tanks to Johnsonville MSPL - Upgrade 3.1km to DN450 | E45: Water | F45: Growth | G45: Pipelines/network | H45: Top 10 Major Projects | J45: Straight line | K45: 2020-21 | L45: 80 | M45: 80 | O45: 0.314 | P45: 2 | Q45: 0.5 | R45: 0 | S45: 0 | T45: 0 | U45: 0 | V45: 0 | W45: 0 | X45: 0 | AV45: 0.314 | AW45: 2 | AX45: 0.5 | AY45: 0 | AZ45: 0 | BA45: 0 | BB45: 0 | BC45: 0 | BD45: 0 | BE45: 0 | BG45: 0 | BH45: 0 | BI45: 0.0175875 | BJ45: 0.035175 | BK45: 0.035175 | BL45: 0.035175 | BM45: 0.035175 | BN45: 0.035175 | BO45: 0.035175 | BP45: 0.035175 | BR45: =+IF($K45="Ongoing",AV45,IF(RIGHT($K45,2)=RIGHT(BR$39,2),SUM($AV45:AV45),0)+IF(RIGHT(BR$39,2)>RIGHT($K45,2),AV45,0)) -> 0 | BS45: =+IF($K45="Ongoing",AW45,IF(RIGHT($K45,2)=RIGHT(BS$39,2),SUM($AV45:AW45),0)+IF(RIGHT(BS$39,2)>RIGHT($K45,2),AW45,0)) -> 0 | BT45: =+IF($K45="Ongoing",AX45,IF(RIGHT($K45,2)=RIGHT(BT$39,2),SUM($AV45:AX45),0)+IF(RIGHT(BT$39,2)>RIGHT($K45,2),AX45,0)) -> 2.814 | BU45: =+IF($K45="Ongoing",AY45,IF(RIGHT($K45,2)=RIGHT(BU$39,2),SUM($AV45:AY45),0)+IF(RIGHT(BU$39,2)>RIGHT($K45,2),AY45,0)) -> 0 | BV45: =+IF($K45="Ongoing",AZ45,IF(RIGHT($K45,2)=RIGHT(BV$39,2),SUM($AV45:AZ45),0)+IF(RIGHT(BV$39,2)>RIGHT($K45,2),AZ45,0)) -> 0 | BW45: =+IF($K45="Ongoing",BA45,IF(RIGHT($K45,2)=RIGHT(BW$39,2),SUM($AV45:BA45),0)+IF(RIGHT(BW$39,2)>RIGHT($K45,2),BA45,0)) -> 0 | BX45: =+IF($K45="Ongoing",BB45,IF(RIGHT($K45,2)=RIGHT(BX$39,2),SUM($AV45:BB45),0)+IF(RIGHT(BX$39,2)>RIGHT($K45,2),BB45,0)) -> 0 | BY45: =+IF($K45="Ongoing",BC45,IF(RIGHT($K45,2)=RIGHT(BY$39,2),SUM($AV45:BC45),0)+IF(RIGHT(BY$39,2)>RIGHT($K45,2),BC45,0)) -> 0 | BZ45: =+IF($K45="Ongoing",BD45,IF(RIGHT($K45,2)=RIGHT(BZ$39,2),SUM($AV45:BD45),0)+IF(RIGHT(BZ$39,2)>RIGHT($K45,2),BD45,0)) -> 0 | CA45: =+IF($K45="Ongoing",BE45,IF(RIGHT($K45,2)=RIGHT(CA$39,2),SUM($AV45:BE45),0)+IF(RIGHT(CA$39,2)>RIGHT($K45,2),BE45,0)) -> 0 | CC45: =+O45*KeyAssumptionsPriceControl_FO!X$15 -> 0.321222 | CD45: =+P45*KeyAssumptionsPriceControl_FO!Y$15 -> 2.093058 | CE45: =+Q45*KeyAssumptionsPriceControl_FO!Z$15 -> 0.5352995835 | CF45: =+R45*KeyAssumptionsPriceControl_FO!AA$15 -> 0 | CG45: =+S45*KeyAssumptionsPriceControl_FO!AB$15 -> 0 | CH45: =+T45*KeyAssumptionsPriceControl_FO!AC$15 -> 0 | CI45: =+U45*KeyAssumptionsPriceControl_FO!AD$15 -> 0 | CJ45: =+V45*KeyAssumptionsPriceControl_FO!AE$15 -> 0 | CK45: =+W45*KeyAssumptionsPriceControl_FO!AF$15 -> 0 | CL45: =+X45*KeyAssumptionsPriceControl_FO!AG$15 -> 0 | CN45: 0.0020076375 | CO45: 0.0170968875 | CP45: 0.0335241224 | CQ45: 0.03686974479 | CR45: 0.03686974479 | CS45: 0.03686974479 | CT45: 0.03686974479 | CU45: 0.03686974479 | CV45: 0.03686974479 | CW45: 0.03686974479
C46: Woodglen raw water storage – dam safety upgrades | E46: Water | F46: Improvements / Compliance | G46: Pipelines/network | H46: Top 10 Major Projects | J46: Straight line | K46: 2024-25 | L46: 80 | M46: 80 | O46: 0 | P46: 0 | Q46: 0 | R46: 0.118 | S46: 2 | T46: 2.052 | U46: 0 | V46: 0 | W46: 0 | X46: 0 | AV46: 0 | AW46: 0 | AX46: 0 | AY46: 0.118 | AZ46: 2 | BA46: 2.052 | BB46: 0 | BC46: 0 | BD46: 0 | BE46: 0 | BG46: 0 | BH46: 0 | BI46: 0 | BJ46: 0 | BK46: 0 | BL46: 0 | BM46: 0.0260625 | BN46: 0.052125 | BO46: 0.052125 | BP46: 0.052125 | BR46: =+IF($K46="Ongoing",AV46,IF(RIGHT($K46,2)=RIGHT(BR$39,2),SUM($AV46:AV46),0)+IF(RIGHT(BR$39,2)>RIGHT($K46,2),AV46,0)) -> 0 | BS46: =+IF($K46="Ongoing",AW46,IF(RIGHT($K46,2)=RIGHT(BS$39,2),SUM($AV46:AW46),0)+IF(RIGHT(BS$39,2)>RIGHT($K46,2),AW46,0)) -> 0 | BT46: =+IF($K46="Ongoing",AX46,IF(RIGHT($K46,2)=RIGHT(BT$39,2),SUM($AV46:AX46),0)+IF(RIGHT(BT$39,2)>RIGHT($K46,2),AX46,0)) -> 0 | BU46: =+IF($K46="Ongoing",AY46,IF(RIGHT($K46,2)=RIGHT(BU$39,2),SUM($AV46:AY46),0)+IF(RIGHT(BU$39,2)>RIGHT($K46,2),AY46,0)) -> 0 | BV46: =+IF($K46="Ongoing",AZ46,IF(RIGHT($K46,2)=RIGHT(BV$39,2),SUM($AV46:AZ46),0)+IF(RIGHT(BV$39,2)>RIGHT($K46,2),AZ46,0)) -> 0 | BW46: =+IF($K46="Ongoing",BA46,IF(RIGHT($K46,2)=RIGHT(BW$39,2),SUM($AV46:BA46),0)+IF(RIGHT(BW$39,2)>RIGHT($K46,2),BA46,0)) -> 0 | BX46: =+IF($K46="Ongoing",BB46,IF(RIGHT($K46,2)=RIGHT(BX$39,2),SUM($AV46:BB46),0)+IF(RIGHT(BX$39,2)>RIGHT($K46,2),BB46,0)) -> 4.17 | BY46: =+IF($K46="Ongoing",BC46,IF(RIGHT($K46,2)=RIGHT(BY$39,2),SUM($AV46:BC46),0)+IF(RIGHT(BY$39,2)>RIGHT($K46,2),BC46,0)) -> 0 | BZ46: =+IF($K46="Ongoing",BD46,IF(RIGHT($K46,2)=RIGHT(BZ$39,2),SUM($AV46:BD46),0)+IF(RIGHT(BZ$39,2)>RIGHT($K46,2),BD46,0)) -> 0 | CA46: =+IF($K46="Ongoing",BE46,IF(RIGHT($K46,2)=RIGHT(CA$39,2),SUM($AV46:BE46),0)+IF(RIGHT(CA$39,2)>RIGHT($K46,2),BE46,0)) -> 0 | CC46: =+O46*KeyAssumptionsPriceControl_FO!X$15 -> 0 | CD46: =+P46*KeyAssumptionsPriceControl_FO!Y$15 -> 0 | CE46: =+Q46*KeyAssumptionsPriceControl_FO!Z$15 -> 0 | CF46: =+R46*KeyAssumptionsPriceControl_FO!AA$15 -> 0.1292363078 | CG46: =+S46*KeyAssumptionsPriceControl_FO!AB$15 -> 2.240826151 | CH46: =+T46*KeyAssumptionsPriceControl_FO!AC$15 -> 2.351966647 | CI46: =+U46*KeyAssumptionsPriceControl_FO!AD$15 -> 0 | CJ46: =+V46*KeyAssumptionsPriceControl_FO!AE$15 -> 0 | CK46: =+W46*KeyAssumptionsPriceControl_FO!AF$15 -> 0 | CL46: =+X46*KeyAssumptionsPriceControl_FO!AG$15 -> 0 | CN46: 0 | CO46: 0 | CP46: 0 | CQ46: 0.000807726924 | CR46: 0.01562061729 | CS46: 0.04432557228 | CT46: 0.05902536382 | CU46: 0.05902536382 | CV46: 0.05902536382 | CW46: 0.05902536382
C47: Wy Yung Storage Augmentation | E47: Water | F47: Renewals | G47: Pipelines/network | H47: Top 10 Major Projects | J47: Straight line | K47: 2020-21 | L47: 50 | M47: 50 | O47: 1.5 | P47: 6 | Q47: 2.475 | R47: 0 | S47: 0 | T47: 0 | U47: 0 | V47: 0 | W47: 0 | X47: 0 | AV47: 1.5 | AW47: 6 | AX47: 2.475 | AY47: 0 | AZ47: 0 | BA47: 0 | BB47: 0 | BC47: 0 | BD47: 0 | BE47: 0 | BG47: 0 | BH47: 0 | BI47: 0.09975 | BJ47: 0.1995 | BK47: 0.1995 | BL47: 0.1995 | BM47: 0.1995 | BN47: 0.1995 | BO47: 0.1995 | BP47: 0.1995 | BR47: =+IF($K47="Ongoing",AV47,IF(RIGHT($K47,2)=RIGHT(BR$39,2),SUM($AV47:AV47),0)+IF(RIGHT(BR$39,2)>RIGHT($K47,2),AV47,0)) -> 0 | BS47: =+IF($K47="Ongoing",AW47,IF(RIGHT($K47,2)=RIGHT(BS$39,2),SUM($AV47:AW47),0)+IF(RIGHT(BS$39,2)>RIGHT($K47,2),AW47,0)) -> 0 | BT47: =+IF($K47="Ongoing",AX47,IF(RIGHT($K47,2)=RIGHT(BT$39,2),SUM($AV47:AX47),0)+IF(RIGHT(BT$39,2)>RIGHT($K47,2),AX47,0)) -> 9.975 | BU47: =+IF($K47="Ongoing",AY47,IF(RIGHT($K47,2)=RIGHT(BU$39,2),SUM($AV47:AY47),0)+IF(RIGHT(BU$39,2)>RIGHT($K47,2),AY47,0)) -> 0 | BV47: =+IF($K47="Ongoing",AZ47,IF(RIGHT($K47,2)=RIGHT(BV$39,2),SUM($AV47:AZ47),0)+IF(RIGHT(BV$39,2)>RIGHT($K47,2),AZ47,0)) -> 0 | BW47: =+IF($K47="Ongoing",BA47,IF(RIGHT($K47,2)=RIGHT(BW$39,2),SUM($AV47:BA47),0)+IF(RIGHT(BW$39,2)>RIGHT($K47,2),BA47,0)) -> 0 | BX47: =+IF($K47="Ongoing",BB47,IF(RIGHT($K47,2)=RIGHT(BX$39,2),SUM($AV47:BB47),0)+IF(RIGHT(BX$39,2)>RIGHT($K47,2),BB47,0)) -> 0 | BY47: =+IF($K47="Ongoing",BC47,IF(RIGHT($K47,2)=RIGHT(BY$39,2),SUM($AV47:BC47),0)+IF(RIGHT(BY$39,2)>RIGHT($K47,2),BC47,0)) -> 0 | BZ47: =+IF($K47="Ongoing",BD47,IF(RIGHT($K47,2)=RIGHT(BZ$39,2),SUM($AV47:BD47),0)+IF(RIGHT(BZ$39,2)>RIGHT($K47,2),BD47,0)) -> 0 | CA47: =+IF($K47="Ongoing",BE47,IF(RIGHT($K47,2)=RIGHT(CA$39,2),SUM($AV47:BE47),0)+IF(RIGHT(CA$39,2)>RIGHT($K47,2),BE47,0)) -> 0 | CC47: =+O47*KeyAssumptionsPriceControl_FO!X$15 -> 1.5345 | CD47: =+P47*KeyAssumptionsPriceControl_FO!Y$15 -> 6.279174 | CE47: =+Q47*KeyAssumptionsPriceControl_FO!Z$15 -> 2.649732938 | CF47: =+R47*KeyAssumptionsPriceControl_FO!AA$15 -> 0 | CG47: =+S47*KeyAssumptionsPriceControl_FO!AB$15 -> 0 | CH47: =+T47*KeyAssumptionsPriceControl_FO!AC$15 -> 0 | CI47: =+U47*KeyAssumptionsPriceControl_FO!AD$15 -> 0 | CJ47: =+V47*KeyAssumptionsPriceControl_FO!AE$15 -> 0 | CK47: =+W47*KeyAssumptionsPriceControl_FO!AF$15 -> 0 | CL47: =+X47*KeyAssumptionsPriceControl_FO!AG$15 -> 0 | CN47: 0.015345 | CO47: 0.09348174 | CP47: 0.1827708094 | CQ47: 0.2092681388 | CR47: 0.2092681388 | CS47: 0.2092681388 | CT47: 0.2092681388 | CU47: 0.2092681388 | CV47: 0.2092681388 | CW47: 0.2092681388
C48: Mallacoota Clear Water Storage (2ML tank) | E48: Water | F48: Improvements / Compliance | G48: Treatment | H48: Top 10 Major Projects | J48: Straight line | K48: 2021-22 | L48: 50 | M48: 50 | O48: 0 | P48: 0 | Q48: 0.435 | R48: 1 | S48: 0.5 | T48: 0 | U48: 0 | V48: 0 | W48: 0 | X48: 0 | AV48: 0 | AW48: 0 | AX48: 0.435 | AY48: 1 | AZ48: 0.5 | BA48: 0 | BB48: 0 | BC48: 0 | BD48: 0 | BE48: 0 | BG48: 0 | BH48: 0 | BI48: 0 | BJ48: 0.01435 | BK48: 0.0337 | BL48: 0.0387 | BM48: 0.0387 | BN48: 0.0387 | BO48: 0.0387 | BP48: 0.0387 | BR48: =+IF($K48="Ongoing",AV48,IF(RIGHT($K48,2)=RIGHT(BR$39,2),SUM($AV48:AV48),0)+IF(RIGHT(BR$39,2)>RIGHT($K48,2),AV48,0)) -> 0 | BS48: =+IF($K48="Ongoing",AW48,IF(RIGHT($K48,2)=RIGHT(BS$39,2),SUM($AV48:AW48),0)+IF(RIGHT(BS$39,2)>RIGHT($K48,2),AW48,0)) -> 0 | BT48: =+IF($K48="Ongoing",AX48,IF(RIGHT($K48,2)=RIGHT(BT$39,2),SUM($AV48:AX48),0)+IF(RIGHT(BT$39,2)>RIGHT($K48,2),AX48,0)) -> 0 | BU48: =+IF($K48="Ongoing",AY48,IF(RIGHT($K48,2)=RIGHT(BU$39,2),SUM($AV48:AY48),0)+IF(RIGHT(BU$39,2)>RIGHT($K48,2),AY48,0)) -> 1.435 | BV48: =+IF($K48="Ongoing",AZ48,IF(RIGHT($K48,2)=RIGHT(BV$39,2),SUM($AV48:AZ48),0)+IF(RIGHT(BV$39,2)>RIGHT($K48,2),AZ48,0)) -> 0.5 | BW48: =+IF($K48="Ongoing",BA48,IF(RIGHT($K48,2)=RIGHT(BW$39,2),SUM($AV48:BA48),0)+IF(RIGHT(BW$39,2)>RIGHT($K48,2),BA48,0)) -> 0 | BX48: =+IF($K48="Ongoing",BB48,IF(RIGHT($K48,2)=RIGHT(BX$39,2),SUM($AV48:BB48),0)+IF(RIGHT(BX$39,2)>RIGHT($K48,2),BB48,0)) -> 0 | BY48: =+IF($K48="Ongoing",BC48,IF(RIGHT($K48,2)=RIGHT(BY$39,2),SUM($AV48:BC48),0)+IF(RIGHT(BY$39,2)>RIGHT($K48,2),BC48,0)) -> 0 | BZ48: =+IF($K48="Ongoing",BD48,IF(RIGHT($K48,2)=RIGHT(BZ$39,2),SUM($AV48:BD48),0)+IF(RIGHT(BZ$39,2)>RIGHT($K48,2),BD48,0)) -> 0 | CA48: =+IF($K48="Ongoing",BE48,IF(RIGHT($K48,2)=RIGHT(CA$39,2),SUM($AV48:BE48),0)+IF(RIGHT(CA$39,2)>RIGHT($K48,2),BE48,0)) -> 0 | CC48: =+O48*KeyAssumptionsPriceControl_FO!X$15 -> 0 | CD48: =+P48*KeyAssumptionsPriceControl_FO!Y$15 -> 0 | CE48: =+Q48*KeyAssumptionsPriceControl_FO!Z$15 -> 0.4657106376 | CF48: =+R48*KeyAssumptionsPriceControl_FO!AA$15 -> 1.095222948 | CG48: =+S48*KeyAssumptionsPriceControl_FO!AB$15 -> 0.5602065378 | CH48: =+T48*KeyAssumptionsPriceControl_FO!AC$15 -> 0 | CI48: =+U48*KeyAssumptionsPriceControl_FO!AD$15 -> 0 | CJ48: =+V48*KeyAssumptionsPriceControl_FO!AE$15 -> 0 | CK48: =+W48*KeyAssumptionsPriceControl_FO!AF$15 -> 0 | CL48: =+X48*KeyAssumptionsPriceControl_FO!AG$15 -> 0 | CN48: 0 | CO48: 0 | CP48: 0.004657106376 | CQ48: 0.02026644223 | CR48: 0.03682073709 | CS48: 0.04242280247 | CT48: 0.04242280247 | CU48: 0.04242280247 | CV48: 0.04242280247 | CW48: 0.04242280247
C49: Lakes Entrance WWTP - Odour and Algae Management | E49: Sewerage | F49: Improvements / Compliance | G49: Treatment | H49: Top 10 Major Projects | J49: Straight line | K49: 2019-20 | L49: 20 | M49: 20 | O49: 0.409 | P49: 0.3 | Q49: 0 | R49: 0 | S49: 0 | T49: 0 | U49: 0 | V49: 0 | W49: 0 | X49: 0 | AV49: 0.409 | AW49: 0.3 | AX49: 0 | AY49: 0 | AZ49: 0 | BA49: 0 | BB49: 0 | BC49: 0 | BD49: 0 | BE49: 0 | BG49: 0 | BH49: 0.017725 | BI49: 0.03545 | BJ49: 0.03545 | BK49: 0.03545 | BL49: 0.03545 | BM49: 0.03545 | BN49: 0.03545 | BO49: 0.03545 | BP49: 0.03545 | BR49: =+IF($K49="Ongoing",AV49,IF(RIGHT($K49,2)=RIGHT(BR$39,2),SUM($AV49:AV49),0)+IF(RIGHT(BR$39,2)>RIGHT($K49,2),AV49,0)) -> 0 | BS49: =+IF($K49="Ongoing",AW49,IF(RIGHT($K49,2)=RIGHT(BS$39,2),SUM($AV49:AW49),0)+IF(RIGHT(BS$39,2)>RIGHT($K49,2),AW49,0)) -> 0.709 | BT49: =+IF($K49="Ongoing",AX49,IF(RIGHT($K49,2)=RIGHT(BT$39,2),SUM($AV49:AX49),0)+IF(RIGHT(BT$39,2)>RIGHT($K49,2),AX49,0)) -> 0 | BU49: =+IF($K49="Ongoing",AY49,IF(RIGHT($K49,2)=RIGHT(BU$39,2),SUM($AV49:AY49),0)+IF(RIGHT(BU$39,2)>RIGHT($K49,2),AY49,0)) -> 0 | BV49: =+IF($K49="Ongoing",AZ49,IF(RIGHT($K49,2)=RIGHT(BV$39,2),SUM($AV49:AZ49),0)+IF(RIGHT(BV$39,2)>RIGHT($K49,2),AZ49,0)) -> 0 | BW49: =+IF($K49="Ongoing",BA49,IF(RIGHT($K49,2)=RIGHT(BW$39,2),SUM($AV49:BA49),0)+IF(RIGHT(BW$39,2)>RIGHT($K49,2),BA49,0)) -> 0 | BX49: =+IF($K49="Ongoing",BB49,IF(RIGHT($K49,2)=RIGHT(BX$39,2),SUM($AV49:BB49),0)+IF(RIGHT(BX$39,2)>RIGHT($K49,2),BB49,0)) -> 0 | BY49: =+IF($K49="Ongoing",BC49,IF(RIGHT($K49,2)=RIGHT(BY$39,2),SUM($AV49:BC49),0)+IF(RIGHT(BY$39,2)>RIGHT($K49,2),BC49,0)) -> 0 | BZ49: =+IF($K49="Ongoing",BD49,IF(RIGHT($K49,2)=RIGHT(BZ$39,2),SUM($AV49:BD49),0)+IF(RIGHT(BZ$39,2)>RIGHT($K49,2),BD49,0)) -> 0 | CA49: =+IF($K49="Ongoing",BE49,IF(RIGHT($K49,2)=RIGHT(CA$39,2),SUM($AV49:BE49),0)+IF(RIGHT(CA$39,2)>RIGHT($K49,2),BE49,0)) -> 0 | CC49: =+O49*KeyAssumptionsPriceControl_FO!X$15 -> 0.418407 | CD49: =+P49*KeyAssumptionsPriceControl_FO!Y$15 -> 0.3139587 | CE49: =+Q49*KeyAssumptionsPriceControl_FO!Z$15 -> 0 | CF49: =+R49*KeyAssumptionsPriceControl_FO!AA$15 -> 0 | CG49: =+S49*KeyAssumptionsPriceControl_FO!AB$15 -> 0 | CH49: =+T49*KeyAssumptionsPriceControl_FO!AC$15 -> 0 | CI49: =+U49*KeyAssumptionsPriceControl_FO!AD$15 -> 0 | CJ49: =+V49*KeyAssumptionsPriceControl_FO!AE$15 -> 0 | CK49: =+W49*KeyAssumptionsPriceControl_FO!AF$15 -> 0 | CL49: =+X49*KeyAssumptionsPriceControl_FO!AG$15 -> 0 | CN49: 0.010460175 | CO49: 0.0287693175 | CP49: 0.036618285 | CQ49: 0.036618285 | CR49: 0.036618285 | CS49: 0.036618285 | CT49: 0.036618285 | CU49: 0.036618285 | CV49: 0.036618285 | CW49: 0.036618285
C50: Dinner Plain Reuse Site - Additional winter storage | E50: Recycled Water | F50: Improvements / Compliance | G50: Treatment | H50: Top 10 Major Projects | J50: Straight line | K50: 2020-21 | L50: 80 | M50: 80 | O50: 0 | P50: 0.793 | Q50: 1 | R50: 0 | S50: 0 | T50: 0 | U50: 0 | V50: 0 | W50: 0 | X50: 0 | AV50: 0 | AW50: 0.793 | AX50: 1 | AY50: 0 | AZ50: 0 | BA50: 0 | BB50: 0 | BC50: 0 | BD50: 0 | BE50: 0 | BG50: 0 | BH50: 0 | BI50: 0.01120625 | BJ50: 0.0224125 | BK50: 0.0224125 | BL50: 0.0224125 | BM50: 0.0224125 | BN50: 0.0224125 | BO50: 0.0224125 | BP50: 0.0224125 | BR50: =+IF($K50="Ongoing",AV50,IF(RIGHT($K50,2)=RIGHT(BR$39,2),SUM($AV50:AV50),0)+IF(RIGHT(BR$39,2)>RIGHT($K50,2),AV50,0)) -> 0 | BS50: =+IF($K50="Ongoing",AW50,IF(RIGHT($K50,2)=RIGHT(BS$39,2),SUM($AV50:AW50),0)+IF(RIGHT(BS$39,2)>RIGHT($K50,2),AW50,0)) -> 0 | BT50: =+IF($K50="Ongoing",AX50,IF(RIGHT($K50,2)=RIGHT(BT$39,2),SUM($AV50:AX50),0)+IF(RIGHT(BT$39,2)>RIGHT($K50,2),AX50,0)) -> 1.793 | BU50: =+IF($K50="Ongoing",AY50,IF(RIGHT($K50,2)=RIGHT(BU$39,2),SUM($AV50:AY50),0)+IF(RIGHT(BU$39,2)>RIGHT($K50,2),AY50,0)) -> 0 | BV50: =+IF($K50="Ongoing",AZ50,IF(RIGHT($K50,2)=RIGHT(BV$39,2),SUM($AV50:AZ50),0)+IF(RIGHT(BV$39,2)>RIGHT($K50,2),AZ50,0)) -> 0 | BW50: =+IF($K50="Ongoing",BA50,IF(RIGHT($K50,2)=RIGHT(BW$39,2),SUM($AV50:BA50),0)+IF(RIGHT(BW$39,2)>RIGHT($K50,2),BA50,0)) -> 0 | BX50: =+IF($K50="Ongoing",BB50,IF(RIGHT($K50,2)=RIGHT(BX$39,2),SUM($AV50:BB50),0)+IF(RIGHT(BX$39,2)>RIGHT($K50,2),BB50,0)) -> 0 | BY50: =+IF($K50="Ongoing",BC50,IF(RIGHT($K50,2)=RIGHT(BY$39,2),SUM($AV50:BC50),0)+IF(RIGHT(BY$39,2)>RIGHT($K50,2),BC50,0)) -> 0 | BZ50: =+IF($K50="Ongoing",BD50,IF(RIGHT($K50,2)=RIGHT(BZ$39,2),SUM($AV50:BD50),0)+IF(RIGHT(BZ$39,2)>RIGHT($K50,2),BD50,0)) -> 0 | CA50: =+IF($K50="Ongoing",BE50,IF(RIGHT($K50,2)=RIGHT(CA$39,2),SUM($AV50:BE50),0)+IF(RIGHT(CA$39,2)>RIGHT($K50,2),BE50,0)) -> 0 | CC50: =+O50*KeyAssumptionsPriceControl_FO!X$15 -> 0 | CD50: =+P50*KeyAssumptionsPriceControl_FO!Y$15 -> 0.829897497 | CE50: =+Q50*KeyAssumptionsPriceControl_FO!Z$15 -> 1.070599167 | CF50: =+R50*KeyAssumptionsPriceControl_FO!AA$15 -> 0 | CG50: =+S50*KeyAssumptionsPriceControl_FO!AB$15 -> 0 | CH50: =+T50*KeyAssumptionsPriceControl_FO!AC$15 -> 0 | CI50: =+U50*KeyAssumptionsPriceControl_FO!AD$15 -> 0 | CJ50: =+V50*KeyAssumptionsPriceControl_FO!AE$15 -> 0 | CK50: =+W50*KeyAssumptionsPriceControl_FO!AF$15 -> 0 | CL50: =+X50*KeyAssumptionsPriceControl_FO!AG$15 -> 0 | CN50: 0 | CO50: 0.005186859356 | CP50: 0.01706496351 | CQ50: 0.0237562083 | CR50: 0.0237562083 | CS50: 0.0237562083 | CT50: 0.0237562083 | CU50: 0.0237562083 | CV50: 0.0237562083 | CW50: 0.0237562083
C51: Paynesville WWTP /reuse upgrades - raise winter storage embankment / increase irrigation | E51: Recycled Water | F51: Growth | G51: Treatment | H51: Top 10 Major Projects | J51: Straight line | K51: 2022-23 | L51: 80 | M51: 80 | O51: 0 | P51: 0 | Q51: 0.546 | R51: 1 | S51: 2 | T51: 0 | U51: 0 | V51: 0 | W51: 0 | X51: 0 | AV51: 0 | AW51: 0 | AX51: 0.546 | AY51: 1 | AZ51: 2 | BA51: 0 | BB51: 0 | BC51: 0 | BD51: 0 | BE51: 0 | BG51: 0 | BH51: 0 | BI51: 0 | BJ51: 0 | BK51: 0.0221625 | BL51: 0.044325 | BM51: 0.044325 | BN51: 0.044325 | BO51: 0.044325 | BP51: 0.044325 | BR51: =+IF($K51="Ongoing",AV51,IF(RIGHT($K51,2)=RIGHT(BR$39,2),SUM($AV51:AV51),0)+IF(RIGHT(BR$39,2)>RIGHT($K51,2),AV51,0)) -> 0 | BS51: =+IF($K51="Ongoing",AW51,IF(RIGHT($K51,2)=RIGHT(BS$39,2),SUM($AV51:AW51),0)+IF(RIGHT(BS$39,2)>RIGHT($K51,2),AW51,0)) -> 0 | BT51: =+IF($K51="Ongoing",AX51,IF(RIGHT($K51,2)=RIGHT(BT$39,2),SUM($AV51:AX51),0)+IF(RIGHT(BT$39,2)>RIGHT($K51,2),AX51,0)) -> 0 | BU51: =+IF($K51="Ongoing",AY51,IF(RIGHT($K51,2)=RIGHT(BU$39,2),SUM($AV51:AY51),0)+IF(RIGHT(BU$39,2)>RIGHT($K51,2),AY51,0)) -> 0 | BV51: =+IF($K51="Ongoing",AZ51,IF(RIGHT($K51,2)=RIGHT(BV$39,2),SUM($AV51:AZ51),0)+IF(RIGHT(BV$39,2)>RIGHT($K51,2),AZ51,0)) -> 3.546 | BW51: =+IF($K51="Ongoing",BA51,IF(RIGHT($K51,2)=RIGHT(BW$39,2),SUM($AV51:BA51),0)+IF(RIGHT(BW$39,2)>RIGHT($K51,2),BA51,0)) -> 0 | BX51: =+IF($K51="Ongoing",BB51,IF(RIGHT($K51,2)=RIGHT(BX$39,2),SUM($AV51:BB51),0)+IF(RIGHT(BX$39,2)>RIGHT($K51,2),BB51,0)) -> 0 | BY51: =+IF($K51="Ongoing",BC51,IF(RIGHT($K51,2)=RIGHT(BY$39,2),SUM($AV51:BC51),0)+IF(RIGHT(BY$39,2)>RIGHT($K51,2),BC51,0)) -> 0 | BZ51: =+IF($K51="Ongoing",BD51,IF(RIGHT($K51,2)=RIGHT(BZ$39,2),SUM($AV51:BD51),0)+IF(RIGHT(BZ$39,2)>RIGHT($K51,2),BD51,0)) -> 0 | CA51: =+IF($K51="Ongoing",BE51,IF(RIGHT($K51,2)=RIGHT(CA$39,2),SUM($AV51:BE51),0)+IF(RIGHT(CA$39,2)>RIGHT($K51,2),BE51,0)) -> 0 | CC51: =+O51*KeyAssumptionsPriceControl_FO!X$15 -> 0 | CD51: =+P51*KeyAssumptionsPriceControl_FO!Y$15 -> 0 | CE51: =+Q51*KeyAssumptionsPriceControl_FO!Z$15 -> 0.5845471452 | CF51: =+R51*KeyAssumptionsPriceControl_FO!AA$15 -> 1.095222948 | CG51: =+S51*KeyAssumptionsPriceControl_FO!AB$15 -> 2.240826151 | CH51: =+T51*KeyAssumptionsPriceControl_FO!AC$15 -> 0 | CI51: =+U51*KeyAssumptionsPriceControl_FO!AD$15 -> 0 | CJ51: =+V51*KeyAssumptionsPriceControl_FO!AE$15 -> 0 | CK51: =+W51*KeyAssumptionsPriceControl_FO!AF$15 -> 0 | CL51: =+X51*KeyAssumptionsPriceControl_FO!AG$15 -> 0 | CN51: 0 | CO51: 0 | CP51: 0.003653419657 | CQ51: 0.01415198274 | CR51: 0.03500228961 | CS51: 0.04900745305 | CT51: 0.04900745305 | CU51: 0.04900745305 | CV51: 0.04900745305 | CW51: 0.04900745305
C53: Sunlakes Storage renewal (replace liner and floating cover or build tanks) | E53: Water | F53: Renewals | G53: Pipelines/network | H53: Capital Programs / Allocation | J53: Straight line | K53: 2024-25 | L53: 20 | M53: 20 | O53: 0 | P53: 0 | Q53: 0 | R53: 0 | S53: 0.5 | T53: 9 | U53: 0.5 | V53: 0 | W53: 0 | X53: 0 | AV53: 0 | AW53: 0 | AX53: 0 | AY53: 0 | AZ53: 0.5 | BA53: 9 | BB53: 0.5 | BC53: 0 | BD53: 0 | BE53: 0 | BG53: 0 | BH53: 0 | BI53: 0 | BJ53: 0 | BK53: 0 | BL53: 0 | BM53: 0.25 | BN53: 0.5 | BO53: 0.5 | BP53: 0.5 | BR53: =+IF($K53="Ongoing",AV53,IF(RIGHT($K53,2)=RIGHT(BR$39,2),SUM($AV53:AV53),0)+IF(RIGHT(BR$39,2)>RIGHT($K53,2),AV53,0)) -> 0 | BS53: =+IF($K53="Ongoing",AW53,IF(RIGHT($K53,2)=RIGHT(BS$39,2),SUM($AV53:AW53),0)+IF(RIGHT(BS$39,2)>RIGHT($K53,2),AW53,0)) -> 0 | BT53: =+IF($K53="Ongoing",AX53,IF(RIGHT($K53,2)=RIGHT(BT$39,2),SUM($AV53:AX53),0)+IF(RIGHT(BT$39,2)>RIGHT($K53,2),AX53,0)) -> 0 | BU53: =+IF($K53="Ongoing",AY53,IF(RIGHT($K53,2)=RIGHT(BU$39,2),SUM($AV53:AY53),0)+IF(RIGHT(BU$39,2)>RIGHT($K53,2),AY53,0)) -> 0 | BV53: =+IF($K53="Ongoing",AZ53,IF(RIGHT($K53,2)=RIGHT(BV$39,2),SUM($AV53:AZ53),0)+IF(RIGHT(BV$39,2)>RIGHT($K53,2),AZ53,0)) -> 0 | BW53: =+IF($K53="Ongoing",BA53,IF(RIGHT($K53,2)=RIGHT(BW$39,2),SUM($AV53:BA53),0)+IF(RIGHT(BW$39,2)>RIGHT($K53,2),BA53,0)) -> 0 | BX53: =+IF($K53="Ongoing",BB53,IF(RIGHT($K53,2)=RIGHT(BX$39,2),SUM($AV53:BB53),0)+IF(RIGHT(BX$39,2)>RIGHT($K53,2),BB53,0)) -> 10 | BY53: =+IF($K53="Ongoing",BC53,IF(RIGHT($K53,2)=RIGHT(BY$39,2),SUM($AV53:BC53),0)+IF(RIGHT(BY$39,2)>RIGHT($K53,2),BC53,0)) -> 0 | BZ53: =+IF($K53="Ongoing",BD53,IF(RIGHT($K53,2)=RIGHT(BZ$39,2),SUM($AV53:BD53),0)+IF(RIGHT(BZ$39,2)>RIGHT($K53,2),BD53,0)) -> 0 | CA53: =+IF($K53="Ongoing",BE53,IF(RIGHT($K53,2)=RIGHT(CA$39,2),SUM($AV53:BE53),0)+IF(RIGHT(CA$39,2)>RIGHT($K53,2),BE53,0)) -> 0 | CC53: =+O53*KeyAssumptionsPriceControl_FO!X$15 -> 0 | CD53: =+P53*KeyAssumptionsPriceControl_FO!Y$15 -> 0 | CE53: =+Q53*KeyAssumptionsPriceControl_FO!Z$15 -> 0 | CF53: =+R53*KeyAssumptionsPriceControl_FO!AA$15 -> 0 | CG53: =+S53*KeyAssumptionsPriceControl_FO!AB$15 -> 0.5602065378 | CH53: =+T53*KeyAssumptionsPriceControl_FO!AC$15 -> 10.31564319 | CI53: =+U53*KeyAssumptionsPriceControl_FO!AD$15 -> 0.5862723878 | CJ53: =+V53*KeyAssumptionsPriceControl_FO!AE$15 -> 0 | CK53: =+W53*KeyAssumptionsPriceControl_FO!AF$15 -> 0 | CL53: =+X53*KeyAssumptionsPriceControl_FO!AG$15 -> 0 | CN53: 0 | CO53: 0 | CP53: 0 | CQ53: 0 | CR53: 0.01400516345 | CS53: 0.2859014066 | CT53: 0.558449296 | CU53: 0.5731061057 | CV53: 0.5731061057 | CW53: 0.5731061057
C54: Mitchell system - future additional clear water storage / transfer capacity (Wy Yung 1 or alternative) | E54: Water | F54: Growth | G54: Pipelines/network | H54: Capital Programs / Allocation | J54: Straight line | K54: 2024-25 | L54: 50 | M54: 50 | O54: 0 | P54: 0 | Q54: 0 | R54: 0 | S54: 0.6 | T54: 3 | U54: 1.4 | V54: 0 | W54: 0 | X54: 0 | AV54: 0 | AW54: 0 | AX54: 0 | AY54: 0 | AZ54: 0.6 | BA54: 3 | BB54: 1.4 | BC54: 0 | BD54: 0 | BE54: 0 | BG54: 0 | BH54: 0 | BI54: 0 | BJ54: 0 | BK54: 0 | BL54: 0 | BM54: 0.05 | BN54: 0.1 | BO54: 0.1 | BP54: 0.1 | BR54: =+IF($K54="Ongoing",AV54,IF(RIGHT($K54,2)=RIGHT(BR$39,2),SUM($AV54:AV54),0)+IF(RIGHT(BR$39,2)>RIGHT($K54,2),AV54,0)) -> 0 | BS54: =+IF($K54="Ongoing",AW54,IF(RIGHT($K54,2)=RIGHT(BS$39,2),SUM($AV54:AW54),0)+IF(RIGHT(BS$39,2)>RIGHT($K54,2),AW54,0)) -> 0 | BT54: =+IF($K54="Ongoing",AX54,IF(RIGHT($K54,2)=RIGHT(BT$39,2),SUM($AV54:AX54),0)+IF(RIGHT(BT$39,2)>RIGHT($K54,2),AX54,0)) -> 0 | BU54: =+IF($K54="Ongoing",AY54,IF(RIGHT($K54,2)=RIGHT(BU$39,2),SUM($AV54:AY54),0)+IF(RIGHT(BU$39,2)>RIGHT($K54,2),AY54,0)) -> 0 | BV54: =+IF($K54="Ongoing",AZ54,IF(RIGHT($K54,2)=RIGHT(BV$39,2),SUM($AV54:AZ54),0)+IF(RIGHT(BV$39,2)>RIGHT($K54,2),AZ54,0)) -> 0 | BW54: =+IF($K54="Ongoing",BA54,IF(RIGHT($K54,2)=RIGHT(BW$39,2),SUM($AV54:BA54),0)+IF(RIGHT(BW$39,2)>RIGHT($K54,2),BA54,0)) -> 0 | BX54: =+IF($K54="Ongoing",BB54,IF(RIGHT($K54,2)=RIGHT(BX$39,2),SUM($AV54:BB54),0)+IF(RIGHT(BX$39,2)>RIGHT($K54,2),BB54,0)) -> 5 | BY54: =+IF($K54="Ongoing",BC54,IF(RIGHT($K54,2)=RIGHT(BY$39,2),SUM($AV54:BC54),0)+IF(RIGHT(BY$39,2)>RIGHT($K54,2),BC54,0)) -> 0 | BZ54: =+IF($K54="Ongoing",BD54,IF(RIGHT($K54,2)=RIGHT(BZ$39,2),SUM($AV54:BD54),0)+IF(RIGHT(BZ$39,2)>RIGHT($K54,2),BD54,0)) -> 0 | CA54: =+IF($K54="Ongoing",BE54,IF(RIGHT($K54,2)=RIGHT(CA$39,2),SUM($AV54:BE54),0)+IF(RIGHT(CA$39,2)>RIGHT($K54,2),BE54,0)) -> 0 | CC54: =+O54*KeyAssumptionsPriceControl_FO!X$15 -> 0 | CD54: =+P54*KeyAssumptionsPriceControl_FO!Y$15 -> 0 | CE54: =+Q54*KeyAssumptionsPriceControl_FO!Z$15 -> 0 | CF54: =+R54*KeyAssumptionsPriceControl_FO!AA$15 -> 0 | CG54: =+S54*KeyAssumptionsPriceControl_FO!AB$15 -> 0.6722478454 | CH54: =+T54*KeyAssumptionsPriceControl_FO!AC$15 -> 3.438547729 | CI54: =+U54*KeyAssumptionsPriceControl_FO!AD$15 -> 1.641562686 | CJ54: =+V54*KeyAssumptionsPriceControl_FO!AE$15 -> 0 | CK54: =+W54*KeyAssumptionsPriceControl_FO!AF$15 -> 0 | CL54: =+X54*KeyAssumptionsPriceControl_FO!AG$15 -> 0 | CN54: 0 | CO54: 0 | CP54: 0 | CQ54: 0 | CR54: 0.006722478454 | CS54: 0.0478304342 | CT54: 0.09863153835 | CU54: 0.1150471652 | CV54: 0.1150471652 | CW54: 0.1150471652
C55: Orbost CWS Tank WTP upgrade (6ML tank) | E55: Water | F55: Improvements / Compliance | G55: Treatment | H55: Capital Programs / Allocation | J55: Straight line | K55: 2024-25 | L55: 50 | M55: 50 | O55: 0 | P55: 0 | Q55: 0 | R55: 0 | S55: 0.5 | T55: 1.5 | U55: 0.728 | V55: 0 | W55: 0 | X55: 0 | AV55: 0 | AW55: 0 | AX55: 0 | AY55: 0 | AZ55: 0.5 | BA55: 1.5 | BB55: 0.728 | BC55: 0 | BD55: 0 | BE55: 0 | BG55: 0 | BH55: 0 | BI55: 0 | BJ55: 0 | BK55: 0 | BL55: 0 | BM55: 0.02728 | BN55: 0.05456 | BO55: 0.05456 | BP55: 0.05456 | BR55: =+IF($K55="Ongoing",AV55,IF(RIGHT($K55,2)=RIGHT(BR$39,2),SUM($AV55:AV55),0)+IF(RIGHT(BR$39,2)>RIGHT($K55,2),AV55,0)) -> 0 | BS55: =+IF($K55="Ongoing",AW55,IF(RIGHT($K55,2)=RIGHT(BS$39,2),SUM($AV55:AW55),0)+IF(RIGHT(BS$39,2)>RIGHT($K55,2),AW55,0)) -> 0 | BT55: =+IF($K55="Ongoing",AX55,IF(RIGHT($K55,2)=RIGHT(BT$39,2),SUM($AV55:AX55),0)+IF(RIGHT(BT$39,2)>RIGHT($K55,2),AX55,0)) -> 0 | BU55: =+IF($K55="Ongoing",AY55,IF(RIGHT($K55,2)=RIGHT(BU$39,2),SUM($AV55:AY55),0)+IF(RIGHT(BU$39,2)>RIGHT($K55,2),AY55,0)) -> 0 | BV55: =+IF($K55="Ongoing",AZ55,IF(RIGHT($K55,2)=RIGHT(BV$39,2),SUM($AV55:AZ55),0)+IF(RIGHT(BV$39,2)>RIGHT($K55,2),AZ55,0)) -> 0 | BW55: =+IF($K55="Ongoing",BA55,IF(RIGHT($K55,2)=RIGHT(BW$39,2),SUM($AV55:BA55),0)+IF(RIGHT(BW$39,2)>RIGHT($K55,2),BA55,0)) -> 0 | BX55: =+IF($K55="Ongoing",BB55,IF(RIGHT($K55,2)=RIGHT(BX$39,2),SUM($AV55:BB55),0)+IF(RIGHT(BX$39,2)>RIGHT($K55,2),BB55,0)) -> 2.728 | BY55: =+IF($K55="Ongoing",BC55,IF(RIGHT($K55,2)=RIGHT(BY$39,2),SUM($AV55:BC55),0)+IF(RIGHT(BY$39,2)>RIGHT($K55,2),BC55,0)) -> 0 | BZ55: =+IF($K55="Ongoing",BD55,IF(RIGHT($K55,2)=RIGHT(BZ$39,2),SUM($AV55:BD55),0)+IF(RIGHT(BZ$39,2)>RIGHT($K55,2),BD55,0)) -> 0 | CA55: =+IF($K55="Ongoing",BE55,IF(RIGHT($K55,2)=RIGHT(CA$39,2),SUM($AV55:BE55),0)+IF(RIGHT(CA$39,2)>RIGHT($K55,2),BE55,0)) -> 0 | CC55: =+O55*KeyAssumptionsPriceControl_FO!X$15 -> 0 | CD55: =+P55*KeyAssumptionsPriceControl_FO!Y$15 -> 0 | CE55: =+Q55*KeyAssumptionsPriceControl_FO!Z$15 -> 0 | CF55: =+R55*KeyAssumptionsPriceControl_FO!AA$15 -> 0 | CG55: =+S55*KeyAssumptionsPriceControl_FO!AB$15 -> 0.5602065378 | CH55: =+T55*KeyAssumptionsPriceControl_FO!AC$15 -> 1.719273865 | CI55: =+U55*KeyAssumptionsPriceControl_FO!AD$15 -> 0.8536125967 | CJ55: =+V55*KeyAssumptionsPriceControl_FO!AE$15 -> 0 | CK55: =+W55*KeyAssumptionsPriceControl_FO!AF$15 -> 0 | CL55: =+X55*KeyAssumptionsPriceControl_FO!AG$15 -> 0 | CN55: 0 | CO55: 0 | CP55: 0 | CQ55: 0 | CR55: 0.005602065378 | CS55: 0.0283968694 | CT55: 0.05412573401 | CU55: 0.06266185998 | CV55: 0.06266185998 | CW55: 0.06266185998
C56: Water Network Upgrades - Lakes Entrance | E56: Water | F56: Growth | G56: Pipelines/network | H56: Other Capital expenditure | J56: Straight line | K56: 2018-19 | L56: 80 | M56: 80 | O56: 0 | P56: 0 | Q56: 0 | R56: 0 | S56: 0 | T56: 0 | U56: 0 | V56: 0 | W56: 0 | X56: 0 | AV56: 0 | AW56: 0 | AX56: 0 | AY56: 0 | AZ56: 0 | BA56: 0 | BB56: 0 | BC56: 0 | BD56: 0 | BE56: 0 | BG56: 0 | BH56: 0 | BI56: 0 | BJ56: 0 | BK56: 0 | BL56: 0 | BM56: 0 | BN56: 0 | BO56: 0 | BP56: 0 | BR56: =+IF($K56="Ongoing",AV56,IF(RIGHT($K56,2)=RIGHT(BR$39,2),SUM($AV56:AV56),0)+IF(RIGHT(BR$39,2)>RIGHT($K56,2),AV56,0)) -> 0 | BS56: =+IF($K56="Ongoing",AW56,IF(RIGHT($K56,2)=RIGHT(BS$39,2),SUM($AV56:AW56),0)+IF(RIGHT(BS$39,2)>RIGHT($K56,2),AW56,0)) -> 0 | BT56: =+IF($K56="Ongoing",AX56,IF(RIGHT($K56,2)=RIGHT(BT$39,2),SUM($AV56:AX56),0)+IF(RIGHT(BT$39,2)>RIGHT($K56,2),AX56,0)) -> 0 | BU56: =+IF($K56="Ongoing",AY56,IF(RIGHT($K56,2)=RIGHT(BU$39,2),SUM($AV56:AY56),0)+IF(RIGHT(BU$39,2)>RIGHT($K56,2),AY56,0)) -> 0 | BV56: =+IF($K56="Ongoing",AZ56,IF(RIGHT($K56,2)=RIGHT(BV$39,2),SUM($AV56:AZ56),0)+IF(RIGHT(BV$39,2)>RIGHT($K56,2),AZ56,0)) -> 0 | BW56: =+IF($K56="Ongoing",BA56,IF(RIGHT($K56,2)=RIGHT(BW$39,2),SUM($AV56:BA56),0)+IF(RIGHT(BW$39,2)>RIGHT($K56,2),BA56,0)) -> 0 | BX56: =+IF($K56="Ongoing",BB56,IF(RIGHT($K56,2)=RIGHT(BX$39,2),SUM($AV56:BB56),0)+IF(RIGHT(BX$39,2)>RIGHT($K56,2),BB56,0)) -> 0 | BY56: =+IF($K56="Ongoing",BC56,IF(RIGHT($K56,2)=RIGHT(BY$39,2),SUM($AV56:BC56),0)+IF(RIGHT(BY$39,2)>RIGHT($K56,2),BC56,0)) -> 0 | BZ56: =+IF($K56="Ongoing",BD56,IF(RIGHT($K56,2)=RIGHT(BZ$39,2),SUM($AV56:BD56),0)+IF(RIGHT(BZ$39,2)>RIGHT($K56,2),BD56,0)) -> 0 | CA56: =+IF($K56="Ongoing",BE56,IF(RIGHT($K56,2)=RIGHT(CA$39,2),SUM($AV56:BE56),0)+IF(RIGHT(CA$39,2)>RIGHT($K56,2),BE56,0)) -> 0 | CC56: =+O56*KeyAssumptionsPriceControl_FO!X$15 -> 0 | CD56: =+P56*KeyAssumptionsPriceControl_FO!Y$15 -> 0 | CE56: =+Q56*KeyAssumptionsPriceControl_FO!Z$15 -> 0 | CF56: =+R56*KeyAssumptionsPriceControl_FO!AA$15 -> 0 | CG56: =+S56*KeyAssumptionsPriceControl_FO!AB$15 -> 0 | CH56: =+T56*KeyAssumptionsPriceControl_FO!AC$15 -> 0 | CI56: =+U56*KeyAssumptionsPriceControl_FO!AD$15 -> 0 | CJ56: =+V56*KeyAssumptionsPriceControl_FO!AE$15 -> 0 | CK56: =+W56*KeyAssumptionsPriceControl_FO!AF$15 -> 0 | CL56: =+X56*KeyAssumptionsPriceControl_FO!AG$15 -> 0 | CN56: 0 | CO56: 0 | CP56: 0 | CQ56: 0 | CR56: 0 | CS56: 0 | CT56: 0 | CU56: 0 | CV56: 0 | CW56: 0
C57: Metung WPS upgrade | E57: Water | F57: Growth | G57: Pipelines/network | H57: Other Capital expenditure | J57: Straight line | K57: 2018-19 | L57: 20 | M57: 20 | O57: 0 | P57: 0 | Q57: 0 | R57: 0 | S57: 0 | T57: 0 | U57: 0 | V57: 0 | W57: 0 | X57: 0 | AV57: 0 | AW57: 0 | AX57: 0 | AY57: 0 | AZ57: 0 | BA57: 0 | BB57: 0 | BC57: 0 | BD57: 0 | BE57: 0 | BG57: 0 | BH57: 0 | BI57: 0 | BJ57: 0 | BK57: 0 | BL57: 0 | BM57: 0 | BN57: 0 | BO57: 0 | BP57: 0 | BR57: =+IF($K57="Ongoing",AV57,IF(RIGHT($K57,2)=RIGHT(BR$39,2),SUM($AV57:AV57),0)+IF(RIGHT(BR$39,2)>RIGHT($K57,2),AV57,0)) -> 0 | BS57: =+IF($K57="Ongoing",AW57,IF(RIGHT($K57,2)=RIGHT(BS$39,2),SUM($AV57:AW57),0)+IF(RIGHT(BS$39,2)>RIGHT($K57,2),AW57,0)) -> 0 | BT57: =+IF($K57="Ongoing",AX57,IF(RIGHT($K57,2)=RIGHT(BT$39,2),SUM($AV57:AX57),0)+IF(RIGHT(BT$39,2)>RIGHT($K57,2),AX57,0)) -> 0 | BU57: =+IF($K57="Ongoing",AY57,IF(RIGHT($K57,2)=RIGHT(BU$39,2),SUM($AV57:AY57),0)+IF(RIGHT(BU$39,2)>RIGHT($K57,2),AY57,0)) -> 0 | BV57: =+IF($K57="Ongoing",AZ57,IF(RIGHT($K57,2)=RIGHT(BV$39,2),SUM($AV57:AZ57),0)+IF(RIGHT(BV$39,2)>RIGHT($K57,2),AZ57,0)) -> 0 | BW57: =+IF($K57="Ongoing",BA57,IF(RIGHT($K57,2)=RIGHT(BW$39,2),SUM($AV57:BA57),0)+IF(RIGHT(BW$39,2)>RIGHT($K57,2),BA57,0)) -> 0 | BX57: =+IF($K57="Ongoing",BB57,IF(RIGHT($K57,2)=RIGHT(BX$39,2),SUM($AV57:BB57),0)+IF(RIGHT(BX$39,2)>RIGHT($K57,2),BB57,0)) -> 0 | BY57: =+IF($K57="Ongoing",BC57,IF(RIGHT($K57,2)=RIGHT(BY$39,2),SUM($AV57:BC57),0)+IF(RIGHT(BY$39,2)>RIGHT($K57,2),BC57,0)) -> 0 | BZ57: =+IF($K57="Ongoing",BD57,IF(RIGHT($K57,2)=RIGHT(BZ$39,2),SUM($AV57:BD57),0)+IF(RIGHT(BZ$39,2)>RIGHT($K57,2),BD57,0)) -> 0 | CA57: =+IF($K57="Ongoing",BE57,IF(RIGHT($K57,2)=RIGHT(CA$39,2),SUM($AV57:BE57),0)+IF(RIGHT(CA$39,2)>RIGHT($K57,2),BE57,0)) -> 0 | CC57: =+O57*KeyAssumptionsPriceControl_FO!X$15 -> 0 | CD57: =+P57*KeyAssumptionsPriceControl_FO!Y$15 -> 0 | CE57: =+Q57*KeyAssumptionsPriceControl_FO!Z$15 -> 0 | CF57: =+R57*KeyAssumptionsPriceControl_FO!AA$15 -> 0 | CG57: =+S57*KeyAssumptionsPriceControl_FO!AB$15 -> 0 | CH57: =+T57*KeyAssumptionsPriceControl_FO!AC$15 -> 0 | CI57: =+U57*KeyAssumptionsPriceControl_FO!AD$15 -> 0 | CJ57: =+V57*KeyAssumptionsPriceControl_FO!AE$15 -> 0 | CK57: =+W57*KeyAssumptionsPriceControl_FO!AF$15 -> 0 | CL57: =+X57*KeyAssumptionsPriceControl_FO!AG$15 -> 0 | CN57: 0 | CO57: 0 | CP57: 0 | CQ57: 0 | CR57: 0 | CS57: 0 | CT57: 0 | CU57: 0 | CV57: 0 | CW57: 0
C58: WTP & WWTP site security improvements | E58: Water | F58: Improvements / Compliance | G58: Treatment | H58: Other Capital expenditure | J58: Straight line | K58: 2020-21 | L58: 10 | M58: 10 | O58: 0 | P58: 0 | Q58: 0 | R58: 0 | S58: 0 | T58: 0 | U58: 0 | V58: 0 | W58: 0 | X58: 0 | AV58: 0 | AW58: 0 | AX58: 0 | AY58: 0 | AZ58: 0 | BA58: 0 | BB58: 0 | BC58: 0 | BD58: 0 | BE58: 0 | BG58: 0 | BH58: 0 | BI58: 0 | BJ58: 0 | BK58: 0 | BL58: 0 | BM58: 0 | BN58: 0 | BO58: 0 | BP58: 0 | BR58: =+IF($K58="Ongoing",AV58,IF(RIGHT($K58,2)=RIGHT(BR$39,2),SUM($AV58:AV58),0)+IF(RIGHT(BR$39,2)>RIGHT($K58,2),AV58,0)) -> 0 | BS58: =+IF($K58="Ongoing",AW58,IF(RIGHT($K58,2)=RIGHT(BS$39,2),SUM($AV58:AW58),0)+IF(RIGHT(BS$39,2)>RIGHT($K58,2),AW58,0)) -> 0 | BT58: =+IF($K58="Ongoing",AX58,IF(RIGHT($K58,2)=RIGHT(BT$39,2),SUM($AV58:AX58),0)+IF(RIGHT(BT$39,2)>RIGHT($K58,2),AX58,0)) -> 0 | BU58: =+IF($K58="Ongoing",AY58,IF(RIGHT($K58,2)=RIGHT(BU$39,2),SUM($AV58:AY58),0)+IF(RIGHT(BU$39,2)>RIGHT($K58,2),AY58,0)) -> 0 | BV58: =+IF($K58="Ongoing",AZ58,IF(RIGHT($K58,2)=RIGHT(BV$39,2),SUM($AV58:AZ58),0)+IF(RIGHT(BV$39,2)>RIGHT($K58,2),AZ58,0)) -> 0 | BW58: =+IF($K58="Ongoing",BA58,IF(RIGHT($K58,2)=RIGHT(BW$39,2),SUM($AV58:BA58),0)+IF(RIGHT(BW$39,2)>RIGHT($K58,2),BA58,0)) -> 0 | BX58: =+IF($K58="Ongoing",BB58,IF(RIGHT($K58,2)=RIGHT(BX$39,2),SUM($AV58:BB58),0)+IF(RIGHT(BX$39,2)>RIGHT($K58,2),BB58,0)) -> 0 | BY58: =+IF($K58="Ongoing",BC58,IF(RIGHT($K58,2)=RIGHT(BY$39,2),SUM($AV58:BC58),0)+IF(RIGHT(BY$39,2)>RIGHT($K58,2),BC58,0)) -> 0 | BZ58: =+IF($K58="Ongoing",BD58,IF(RIGHT($K58,2)=RIGHT(BZ$39,2),SUM($AV58:BD58),0)+IF(RIGHT(BZ$39,2)>RIGHT($K58,2),BD58,0)) -> 0 | CA58: =+IF($K58="Ongoing",BE58,IF(RIGHT($K58,2)=RIGHT(CA$39,2),SUM($AV58:BE58),0)+IF(RIGHT(CA$39,2)>RIGHT($K58,2),BE58,0)) -> 0 | CC58: =+O58*KeyAssumptionsPriceControl_FO!X$15 -> 0 | CD58: =+P58*KeyAssumptionsPriceControl_FO!Y$15 -> 0 | CE58: =+Q58*KeyAssumptionsPriceControl_FO!Z$15 -> 0 | CF58: =+R58*KeyAssumptionsPriceControl_FO!AA$15 -> 0 | CG58: =+S58*KeyAssumptionsPriceControl_FO!AB$15 -> 0 | CH58: =+T58*KeyAssumptionsPriceControl_FO!AC$15 -> 0 | CI58: =+U58*KeyAssumptionsPriceControl_FO!AD$15 -> 0 | CJ58: =+V58*KeyAssumptionsPriceControl_FO!AE$15 -> 0 | CK58: =+W58*KeyAssumptionsPriceControl_FO!AF$15 -> 0 | CL58: =+X58*KeyAssumptionsPriceControl_FO!AG$15 -> 0 | CN58: 0 | CO58: 0 | CP58: 0 | CQ58: 0 | CR58: 0 | CS58: 0 | CT58: 0 | CU58: 0 | CV58: 0 | CW58: 0
C59: Buchan raw water storage (350kL tank) | E59: Water | F59: Improvements / Compliance | G59: Treatment | H59: Other Capital expenditure | J59: Straight line | K59: 2021-22 | L59: 50 | M59: 50 | O59: 0 | P59: 0 | Q59: 0.03 | R59: 0.4 | S59: 0 | T59: 0 | U59: 0 | V59: 0 | W59: 0 | X59: 0 | AV59: 0 | AW59: 0 | AX59: 0.03 | AY59: 0.4 | AZ59: 0 | BA59: 0 | BB59: 0 | BC59: 0 | BD59: 0 | BE59: 0 | BG59: 0 | BH59: 0 | BI59: 0 | BJ59: 0.0043 | BK59: 0.0086 | BL59: 0.0086 | BM59: 0.0086 | BN59: 0.0086 | BO59: 0.0086 | BP59: 0.0086 | BR59: =+IF($K59="Ongoing",AV59,IF(RIGHT($K59,2)=RIGHT(BR$39,2),SUM($AV59:AV59),0)+IF(RIGHT(BR$39,2)>RIGHT($K59,2),AV59,0)) -> 0 | BS59: =+IF($K59="Ongoing",AW59,IF(RIGHT($K59,2)=RIGHT(BS$39,2),SUM($AV59:AW59),0)+IF(RIGHT(BS$39,2)>RIGHT($K59,2),AW59,0)) -> 0 | BT59: =+IF($K59="Ongoing",AX59,IF(RIGHT($K59,2)=RIGHT(BT$39,2),SUM($AV59:AX59),0)+IF(RIGHT(BT$39,2)>RIGHT($K59,2),AX59,0)) -> 0 | BU59: =+IF($K59="Ongoing",AY59,IF(RIGHT($K59,2)=RIGHT(BU$39,2),SUM($AV59:AY59),0)+IF(RIGHT(BU$39,2)>RIGHT($K59,2),AY59,0)) -> 0.43 | BV59: =+IF($K59="Ongoing",AZ59,IF(RIGHT($K59,2)=RIGHT(BV$39,2),SUM($AV59:AZ59),0)+IF(RIGHT(BV$39,2)>RIGHT($K59,2),AZ59,0)) -> 0 | BW59: =+IF($K59="Ongoing",BA59,IF(RIGHT($K59,2)=RIGHT(BW$39,2),SUM($AV59:BA59),0)+IF(RIGHT(BW$39,2)>RIGHT($K59,2),BA59,0)) -> 0 | BX59: =+IF($K59="Ongoing",BB59,IF(RIGHT($K59,2)=RIGHT(BX$39,2),SUM($AV59:BB59),0)+IF(RIGHT(BX$39,2)>RIGHT($K59,2),BB59,0)) -> 0 | BY59: =+IF($K59="Ongoing",BC59,IF(RIGHT($K59,2)=RIGHT(BY$39,2),SUM($AV59:BC59),0)+IF(RIGHT(BY$39,2)>RIGHT($K59,2),BC59,0)) -> 0 | BZ59: =+IF($K59="Ongoing",BD59,IF(RIGHT($K59,2)=RIGHT(BZ$39,2),SUM($AV59:BD59),0)+IF(RIGHT(BZ$39,2)>RIGHT($K59,2),BD59,0)) -> 0 | CA59: =+IF($K59="Ongoing",BE59,IF(RIGHT($K59,2)=RIGHT(CA$39,2),SUM($AV59:BE59),0)+IF(RIGHT(CA$39,2)>RIGHT($K59,2),BE59,0)) -> 0 | CC59: =+O59*KeyAssumptionsPriceControl_FO!X$15 -> 0 | CD59: =+P59*KeyAssumptionsPriceControl_FO!Y$15 -> 0 | CE59: =+Q59*KeyAssumptionsPriceControl_FO!Z$15 -> 0.03211797501 | CF59: =+R59*KeyAssumptionsPriceControl_FO!AA$15 -> 0.4380891791 | CG59: =+S59*KeyAssumptionsPriceControl_FO!AB$15 -> 0 | CH59: =+T59*KeyAssumptionsPriceControl_FO!AC$15 -> 0 | CI59: =+U59*KeyAssumptionsPriceControl_FO!AD$15 -> 0 | CJ59: =+V59*KeyAssumptionsPriceControl_FO!AE$15 -> 0 | CK59: =+W59*KeyAssumptionsPriceControl_FO!AF$15 -> 0 | CL59: =+X59*KeyAssumptionsPriceControl_FO!AG$15 -> 0 | CN59: 0 | CO59: 0 | CP59: 0.0003211797501 | CQ59: 0.005023251292 | CR59: 0.009404143083 | CS59: 0.009404143083 | CT59: 0.009404143083 | CU59: 0.009404143083 | CV59: 0.009404143083 | CW59: 0.009404143083
C60: REALM model build | E60: Water | F60: Growth | G60: Corporate | H60: Capital Programs / Allocation | J60: Straight line | K60: Ongoing | L60: 5 | M60: 5 | O60: 0 | P60: 0 | Q60: 0.112 | R60: 0 | S60: 0 | T60: 0 | U60: 0 | V60: 0.112 | W60: 0 | X60: 0 | AV60: 0 | AW60: 0 | AX60: 0.112 | AY60: 0 | AZ60: 0 | BA60: 0 | BB60: 0 | BC60: 0.112 | BD60: 0 | BE60: 0 | BG60: 0 | BH60: 0 | BI60: 0.0112 | BJ60: 0.0224 | BK60: 0.0224 | BL60: 0.0224 | BM60: 0.0224 | BN60: 0.0224 | BO60: 0.0224 | BP60: 0.0224 | BR60: =+IF($K60="Ongoing",AV60,IF(RIGHT($K60,2)=RIGHT(BR$39,2),SUM($AV60:AV60),0)+IF(RIGHT(BR$39,2)>RIGHT($K60,2),AV60,0)) -> 0 | BS60: =+IF($K60="Ongoing",AW60,IF(RIGHT($K60,2)=RIGHT(BS$39,2),SUM($AV60:AW60),0)+IF(RIGHT(BS$39,2)>RIGHT($K60,2),AW60,0)) -> 0 | BT60: =+IF($K60="Ongoing",AX60,IF(RIGHT($K60,2)=RIGHT(BT$39,2),SUM($AV60:AX60),0)+IF(RIGHT(BT$39,2)>RIGHT($K60,2),AX60,0)) -> 0.112 | BU60: =+IF($K60="Ongoing",AY60,IF(RIGHT($K60,2)=RIGHT(BU$39,2),SUM($AV60:AY60),0)+IF(RIGHT(BU$39,2)>RIGHT($K60,2),AY60,0)) -> 0 | BV60: =+IF($K60="Ongoing",AZ60,IF(RIGHT($K60,2)=RIGHT(BV$39,2),SUM($AV60:AZ60),0)+IF(RIGHT(BV$39,2)>RIGHT($K60,2),AZ60,0)) -> 0 | BW60: =+IF($K60="Ongoing",BA60,IF(RIGHT($K60,2)=RIGHT(BW$39,2),SUM($AV60:BA60),0)+IF(RIGHT(BW$39,2)>RIGHT($K60,2),BA60,0)) -> 0 | BX60: =+IF($K60="Ongoing",BB60,IF(RIGHT($K60,2)=RIGHT(BX$39,2),SUM($AV60:BB60),0)+IF(RIGHT(BX$39,2)>RIGHT($K60,2),BB60,0)) -> 0 | BY60: =+IF($K60="Ongoing",BC60,IF(RIGHT($K60,2)=RIGHT(BY$39,2),SUM($AV60:BC60),0)+IF(RIGHT(BY$39,2)>RIGHT($K60,2),BC60,0)) -> 0.112 | BZ60: =+IF($K60="Ongoing",BD60,IF(RIGHT($K60,2)=RIGHT(BZ$39,2),SUM($AV60:BD60),0)+IF(RIGHT(BZ$39,2)>RIGHT($K60,2),BD60,0)) -> 0 | CA60: =+IF($K60="Ongoing",BE60,IF(RIGHT($K60,2)=RIGHT(CA$39,2),SUM($AV60:BE60),0)+IF(RIGHT(CA$39,2)>RIGHT($K60,2),BE60,0)) -> 0 | CC60: =+O60*KeyAssumptionsPriceControl_FO!X$15 -> 0 | CD60: =+P60*KeyAssumptionsPriceControl_FO!Y$15 -> 0 | CE60: =+Q60*KeyAssumptionsPriceControl_FO!Z$15 -> 0.1199071067 | CF60: =+R60*KeyAssumptionsPriceControl_FO!AA$15 -> 0 | CG60: =+S60*KeyAssumptionsPriceControl_FO!AB$15 -> 0 | CH60: =+T60*KeyAssumptionsPriceControl_FO!AC$15 -> 0 | CI60: =+U60*KeyAssumptionsPriceControl_FO!AD$15 -> 0 | CJ60: =+V60*KeyAssumptionsPriceControl_FO!AE$15 -> 0.1343454902 | CK60: =+W60*KeyAssumptionsPriceControl_FO!AF$15 -> 0 | CL60: =+X60*KeyAssumptionsPriceControl_FO!AG$15 -> 0 | CN60: 0 | CO60: 0 | CP60: 0.01199071067 | CQ60: 0.02398142134 | CR60: 0.02398142134 | CS60: 0.02398142134 | CT60: 0.02398142134 | CU60: 0.02542525969 | CV60: 0.02686909804 | CW60: 0.02686909804
C61: Water Networks: hydraulic model build | E61: Water | F61: Growth | G61: Corporate | H61: Capital Programs / Allocation | J61: Straight line | K61: Ongoing | L61: 5 | M61: 5 | O61: 0.04 | P61: 0.066 | Q61: 0.105 | R61: 0.125 | S61: 0 | T61: 0.04 | U61: 0.066 | V61: 0.105 | W61: 0.125 | X61: 0 | AV61: 0.04 | AW61: 0.066 | AX61: 0.105 | AY61: 0.125 | AZ61: 0 | BA61: 0.04 | BB61: 0.066 | BC61: 0.105 | BD61: 0.125 | BE61: 0 | BG61: 0.004 | BH61: 0.0146 | BI61: 0.0317 | BJ61: 0.0547 | BK61: 0.0672 | BL61: 0.0672 | BM61: 0.0672 | BN61: 0.0672 | BO61: 0.0672 | BP61: 0.0672 | BR61: =+IF($K61="Ongoing",AV61,IF(RIGHT($K61,2)=RIGHT(BR$39,2),SUM($AV61:AV61),0)+IF(RIGHT(BR$39,2)>RIGHT($K61,2),AV61,0)) -> 0.04 | BS61: =+IF($K61="Ongoing",AW61,IF(RIGHT($K61,2)=RIGHT(BS$39,2),SUM($AV61:AW61),0)+IF(RIGHT(BS$39,2)>RIGHT($K61,2),AW61,0)) -> 0.066 | BT61: =+IF($K61="Ongoing",AX61,IF(RIGHT($K61,2)=RIGHT(BT$39,2),SUM($AV61:AX61),0)+IF(RIGHT(BT$39,2)>RIGHT($K61,2),AX61,0)) -> 0.105 | BU61: =+IF($K61="Ongoing",AY61,IF(RIGHT($K61,2)=RIGHT(BU$39,2),SUM($AV61:AY61),0)+IF(RIGHT(BU$39,2)>RIGHT($K61,2),AY61,0)) -> 0.125 | BV61: =+IF($K61="Ongoing",AZ61,IF(RIGHT($K61,2)=RIGHT(BV$39,2),SUM($AV61:AZ61),0)+IF(RIGHT(BV$39,2)>RIGHT($K61,2),AZ61,0)) -> 0 | BW61: =+IF($K61="Ongoing",BA61,IF(RIGHT($K61,2)=RIGHT(BW$39,2),SUM($AV61:BA61),0)+IF(RIGHT(BW$39,2)>RIGHT($K61,2),BA61,0)) -> 0.04 | BX61: =+IF($K61="Ongoing",BB61,IF(RIGHT($K61,2)=RIGHT(BX$39,2),SUM($AV61:BB61),0)+IF(RIGHT(BX$39,2)>RIGHT($K61,2),BB61,0)) -> 0.066 | BY61: =+IF($K61="Ongoing",BC61,IF(RIGHT($K61,2)=RIGHT(BY$39,2),SUM($AV61:BC61),0)+IF(RIGHT(BY$39,2)>RIGHT($K61,2),BC61,0)) -> 0.105 | BZ61: =+IF($K61="Ongoing",BD61,IF(RIGHT($K61,2)=RIGHT(BZ$39,2),SUM($AV61:BD61),0)+IF(RIGHT(BZ$39,2)>RIGHT($K61,2),BD61,0)) -> 0.125 | CA61: =+IF($K61="Ongoing",BE61,IF(RIGHT($K61,2)=RIGHT(CA$39,2),SUM($AV61:BE61),0)+IF(RIGHT(CA$39,2)>RIGHT($K61,2),BE61,0)) -> 0 | CC61: =+O61*KeyAssumptionsPriceControl_FO!X$15 -> 0.04092 | CD61: =+P61*KeyAssumptionsPriceControl_FO!Y$15 -> 0.069070914 | CE61: =+Q61*KeyAssumptionsPriceControl_FO!Z$15 -> 0.1124129125 | CF61: =+R61*KeyAssumptionsPriceControl_FO!AA$15 -> 0.1369028685 | CG61: =+S61*KeyAssumptionsPriceControl_FO!AB$15 -> 0 | CH61: =+T61*KeyAssumptionsPriceControl_FO!AC$15 -> 0.04584730306 | CI61: =+U61*KeyAssumptionsPriceControl_FO!AD$15 -> 0.07738795519 | CJ61: =+V61*KeyAssumptionsPriceControl_FO!AE$15 -> 0.1259488971 | CK61: =+W61*KeyAssumptionsPriceControl_FO!AF$15 -> 0.1533877639 | CL61: =+X61*KeyAssumptionsPriceControl_FO!AG$15 -> 0 | CN61: 0.004092 | CO61: 0.0150910914 | CP61: 0.03323947405 | CQ61: 0.05817105216 | CR61: 0.071861339 | CS61: 0.07235406931 | CT61: 0.07367850373 | CU61: 0.07586380631 | CV61: 0.07886589431 | CW61: 0.08051438385
C62: SCADA upgrades | E62: Water | F62: Improvements / Compliance | G62: Corporate | H62: Capital Programs / Allocation | J62: Straight line | K62: Ongoing | L62: 10 | M62: 10 | O62: 0.0495 | P62: 0.0525 | Q62: 0.064 | R62: 0.086 | S62: 0.095 | T62: 0.1225 | U62: 0.1085 | V62: 0.1105 | W62: 0.1125 | X62: 0.1015 | AV62: 0.0495 | AW62: 0.0525 | AX62: 0.064 | AY62: 0.086 | AZ62: 0.095 | BA62: 0.1225 | BB62: 0.1085 | BC62: 0.1105 | BD62: 0.1125 | BE62: 0.1015 | BG62: 0.002475 | BH62: 0.007575 | BI62: 0.0134 | BJ62: 0.0209 | BK62: 0.02995 | BL62: 0.040825 | BM62: 0.052375 | BN62: 0.063325 | BO62: 0.074475 | BP62: 0.085175 | BR62: =+IF($K62="Ongoing",AV62,IF(RIGHT($K62,2)=RIGHT(BR$39,2),SUM($AV62:AV62),0)+IF(RIGHT(BR$39,2)>RIGHT($K62,2),AV62,0)) -> 0.0495 | BS62: =+IF($K62="Ongoing",AW62,IF(RIGHT($K62,2)=RIGHT(BS$39,2),SUM($AV62:AW62),0)+IF(RIGHT(BS$39,2)>RIGHT($K62,2),AW62,0)) -> 0.0525 | BT62: =+IF($K62="Ongoing",AX62,IF(RIGHT($K62,2)=RIGHT(BT$39,2),SUM($AV62:AX62),0)+IF(RIGHT(BT$39,2)>RIGHT($K62,2),AX62,0)) -> 0.064 | BU62: =+IF($K62="Ongoing",AY62,IF(RIGHT($K62,2)=RIGHT(BU$39,2),SUM($AV62:AY62),0)+IF(RIGHT(BU$39,2)>RIGHT($K62,2),AY62,0)) -> 0.086 | BV62: =+IF($K62="Ongoing",AZ62,IF(RIGHT($K62,2)=RIGHT(BV$39,2),SUM($AV62:AZ62),0)+IF(RIGHT(BV$39,2)>RIGHT($K62,2),AZ62,0)) -> 0.095 | BW62: =+IF($K62="Ongoing",BA62,IF(RIGHT($K62,2)=RIGHT(BW$39,2),SUM($AV62:BA62),0)+IF(RIGHT(BW$39,2)>RIGHT($K62,2),BA62,0)) -> 0.1225 | BX62: =+IF($K62="Ongoing",BB62,IF(RIGHT($K62,2)=RIGHT(BX$39,2),SUM($AV62:BB62),0)+IF(RIGHT(BX$39,2)>RIGHT($K62,2),BB62,0)) -> 0.1085 | BY62: =+IF($K62="Ongoing",BC62,IF(RIGHT($K62,2)=RIGHT(BY$39,2),SUM($AV62:BC62),0)+IF(RIGHT(BY$39,2)>RIGHT($K62,2),BC62,0)) -> 0.1105 | BZ62: =+IF($K62="Ongoing",BD62,IF(RIGHT($K62,2)=RIGHT(BZ$39,2),SUM($AV62:BD62),0)+IF(RIGHT(BZ$39,2)>RIGHT($K62,2),BD62,0)) -> 0.1125 | CA62: =+IF($K62="Ongoing",BE62,IF(RIGHT($K62,2)=RIGHT(CA$39,2),SUM($AV62:BE62),0)+IF(RIGHT(CA$39,2)>RIGHT($K62,2),BE62,0)) -> 0.1015 | CC62: =+O62*KeyAssumptionsPriceControl_FO!X$15 -> 0.0506385 | CD62: =+P62*KeyAssumptionsPriceControl_FO!Y$15 -> 0.0549427725 | CE62: =+Q62*KeyAssumptionsPriceControl_FO!Z$15 -> 0.06851834669 | CF62: =+R62*KeyAssumptionsPriceControl_FO!AA$15 -> 0.09418917351 | CG62: =+S62*KeyAssumptionsPriceControl_FO!AB$15 -> 0.1064392422 | CH62: =+T62*KeyAssumptionsPriceControl_FO!AC$15 -> 0.1404073656 | CI62: =+U62*KeyAssumptionsPriceControl_FO!AD$15 -> 0.1272211082 | CJ62: =+V62*KeyAssumptionsPriceControl_FO!AE$15 -> 0.1325462203 | CK62: =+W62*KeyAssumptionsPriceControl_FO!AF$15 -> 0.1380489875 | CL62: =+X62*KeyAssumptionsPriceControl_FO!AG$15 -> 0.1274155342 | CN62: 0.002531925 | CO62: 0.007810988625 | CP62: 0.01398404458 | CQ62: 0.02211942059 | CR62: 0.03215084138 | CS62: 0.04449317177 | CT62: 0.05787459546 | CU62: 0.07086296188 | CV62: 0.08439272227 | CW62: 0.09766594835
C63: Asset Renewals - River Offtake Weirs and Water Bores | E63: Water | F63: Renewals | G63: Pipelines/network | H63: Capital Programs / Allocation | J63: Straight line | K63: Ongoing | L63: 20 | M63: 20 | O63: 0.059 | P63: 0.038 | Q63: 0.126 | R63: 0.125 | S63: 0.101 | T63: 0.105 | U63: 0.111 | V63: 0.026 | W63: 0.026 | X63: 0.032 | AV63: 0.059 | AW63: 0.038 | AX63: 0.126 | AY63: 0.125 | AZ63: 0.101 | BA63: 0.105 | BB63: 0.111 | BC63: 0.026 | BD63: 0.026 | BE63: 0.032 | BG63: 0.001475 | BH63: 0.0039 | BI63: 0.008 | BJ63: 0.014275 | BK63: 0.019925 | BL63: 0.025075 | BM63: 0.030475 | BN63: 0.0339 | BO63: 0.0352 | BP63: 0.03665 | BR63: =+IF($K63="Ongoing",AV63,IF(RIGHT($K63,2)=RIGHT(BR$39,2),SUM($AV63:AV63),0)+IF(RIGHT(BR$39,2)>RIGHT($K63,2),AV63,0)) -> 0.059 | BS63: =+IF($K63="Ongoing",AW63,IF(RIGHT($K63,2)=RIGHT(BS$39,2),SUM($AV63:AW63),0)+IF(RIGHT(BS$39,2)>RIGHT($K63,2),AW63,0)) -> 0.038 | BT63: =+IF($K63="Ongoing",AX63,IF(RIGHT($K63,2)=RIGHT(BT$39,2),SUM($AV63:AX63),0)+IF(RIGHT(BT$39,2)>RIGHT($K63,2),AX63,0)) -> 0.126 | BU63: =+IF($K63="Ongoing",AY63,IF(RIGHT($K63,2)=RIGHT(BU$39,2),SUM($AV63:AY63),0)+IF(RIGHT(BU$39,2)>RIGHT($K63,2),AY63,0)) -> 0.125 | BV63: =+IF($K63="Ongoing",AZ63,IF(RIGHT($K63,2)=RIGHT(BV$39,2),SUM($AV63:AZ63),0)+IF(RIGHT(BV$39,2)>RIGHT($K63,2),AZ63,0)) -> 0.101 | BW63: =+IF($K63="Ongoing",BA63,IF(RIGHT($K63,2)=RIGHT(BW$39,2),SUM($AV63:BA63),0)+IF(RIGHT(BW$39,2)>RIGHT($K63,2),BA63,0)) -> 0.105 | BX63: =+IF($K63="Ongoing",BB63,IF(RIGHT($K63,2)=RIGHT(BX$39,2),SUM($AV63:BB63),0)+IF(RIGHT(BX$39,2)>RIGHT($K63,2),BB63,0)) -> 0.111 | BY63: =+IF($K63="Ongoing",BC63,IF(RIGHT($K63,2)=RIGHT(BY$39,2),SUM($AV63:BC63),0)+IF(RIGHT(BY$39,2)>RIGHT($K63,2),BC63,0)) -> 0.026 | BZ63: =+IF($K63="Ongoing",BD63,IF(RIGHT($K63,2)=RIGHT(BZ$39,2),SUM($AV63:BD63),0)+IF(RIGHT(BZ$39,2)>RIGHT($K63,2),BD63,0)) -> 0.026 | CA63: =+IF($K63="Ongoing",BE63,IF(RIGHT($K63,2)=RIGHT(CA$39,2),SUM($AV63:BE63),0)+IF(RIGHT(CA$39,2)>RIGHT($K63,2),BE63,0)) -> 0.032 | CC63: =+O63*KeyAssumptionsPriceControl_FO!X$15 -> 0.060357 | CD63: =+P63*KeyAssumptionsPriceControl_FO!Y$15 -> 0.039768102 | CE63: =+Q63*KeyAssumptionsPriceControl_FO!Z$15 -> 0.134895495 | CF63: =+R63*KeyAssumptionsPriceControl_FO!AA$15 -> 0.1369028685 | CG63: =+S63*KeyAssumptionsPriceControl_FO!AB$15 -> 0.1131617206 | CH63: =+T63*KeyAssumptionsPriceControl_FO!AC$15 -> 0.1203491705 | CI63: =+U63*KeyAssumptionsPriceControl_FO!AD$15 -> 0.1301524701 | CJ63: =+V63*KeyAssumptionsPriceControl_FO!AE$15 -> 0.03118734594 | CK63: =+W63*KeyAssumptionsPriceControl_FO!AF$15 -> 0.0319046549 | CL63: =+X63*KeyAssumptionsPriceControl_FO!AG$15 -> 0.04017041472 | CN63: 0.001508925 | CO63: 0.00401205255 | CP63: 0.008378642476 | CQ63: 0.01517360156 | CR63: 0.02142521629 | CS63: 0.02726298857 | CT63: 0.03352552959 | CU63: 0.03755902499 | CV63: 0.03913632501 | CW63: 0.04093820175
C64: Asset Renewals - Water Storages and Tanks | E64: Water | F64: Renewals | G64: Pipelines/network | H64: Capital Programs / Allocation | J64: Straight line | K64: Ongoing | L64: 20 | M64: 20 | O64: 0.173 | P64: 0.149 | Q64: 0.192 | R64: 0.234 | S64: 0.218 | T64: 0.336 | U64: 0.325 | V64: 0.402 | W64: 0.423 | X64: 0.623 | AV64: 0.173 | AW64: 0.149 | AX64: 0.192 | AY64: 0.234 | AZ64: 0.218 | BA64: 0.336 | BB64: 0.325 | BC64: 0.402 | BD64: 0.423 | BE64: 0.623 | BG64: 0.004325 | BH64: 0.012375 | BI64: 0.0209 | BJ64: 0.03155 | BK64: 0.04285 | BL64: 0.0567 | BM64: 0.073225 | BN64: 0.0914 | BO64: 0.112025 | BP64: 0.138175 | BR64: =+IF($K64="Ongoing",AV64,IF(RIGHT($K64,2)=RIGHT(BR$39,2),SUM($AV64:AV64),0)+IF(RIGHT(BR$39,2)>RIGHT($K64,2),AV64,0)) -> 0.173 | BS64: =+IF($K64="Ongoing",AW64,IF(RIGHT($K64,2)=RIGHT(BS$39,2),SUM($AV64:AW64),0)+IF(RIGHT(BS$39,2)>RIGHT($K64,2),AW64,0)) -> 0.149 | BT64: =+IF($K64="Ongoing",AX64,IF(RIGHT($K64,2)=RIGHT(BT$39,2),SUM($AV64:AX64),0)+IF(RIGHT(BT$39,2)>RIGHT($K64,2),AX64,0)) -> 0.192 | BU64: =+IF($K64="Ongoing",AY64,IF(RIGHT($K64,2)=RIGHT(BU$39,2),SUM($AV64:AY64),0)+IF(RIGHT(BU$39,2)>RIGHT($K64,2),AY64,0)) -> 0.234 | BV64: =+IF($K64="Ongoing",AZ64,IF(RIGHT($K64,2)=RIGHT(BV$39,2),SUM($AV64:AZ64),0)+IF(RIGHT(BV$39,2)>RIGHT($K64,2),AZ64,0)) -> 0.218 | BW64: =+IF($K64="Ongoing",BA64,IF(RIGHT($K64,2)=RIGHT(BW$39,2),SUM($AV64:BA64),0)+IF(RIGHT(BW$39,2)>RIGHT($K64,2),BA64,0)) -> 0.336 | BX64: =+IF($K64="Ongoing",BB64,IF(RIGHT($K64,2)=RIGHT(BX$39,2),SUM($AV64:BB64),0)+IF(RIGHT(BX$39,2)>RIGHT($K64,2),BB64,0)) -> 0.325 | BY64: =+IF($K64="Ongoing",BC64,IF(RIGHT($K64,2)=RIGHT(BY$39,2),SUM($AV64:BC64),0)+IF(RIGHT(BY$39,2)>RIGHT($K64,2),BC64,0)) -> 0.402 | BZ64: =+IF($K64="Ongoing",BD64,IF(RIGHT($K64,2)=RIGHT(BZ$39,2),SUM($AV64:BD64),0)+IF(RIGHT(BZ$39,2)>RIGHT($K64,2),BD64,0)) -> 0.423 | CA64: =+IF($K64="Ongoing",BE64,IF(RIGHT($K64,2)=RIGHT(CA$39,2),SUM($AV64:BE64),0)+IF(RIGHT(CA$39,2)>RIGHT($K64,2),BE64,0)) -> 0.623 | CC64: =+O64*KeyAssumptionsPriceControl_FO!X$15 -> 0.176979 | CD64: =+P64*KeyAssumptionsPriceControl_FO!Y$15 -> 0.155932821 | CE64: =+Q64*KeyAssumptionsPriceControl_FO!Z$15 -> 0.2055550401 | CF64: =+R64*KeyAssumptionsPriceControl_FO!AA$15 -> 0.2562821698 | CG64: =+S64*KeyAssumptionsPriceControl_FO!AB$15 -> 0.2442500505 | CH64: =+T64*KeyAssumptionsPriceControl_FO!AC$15 -> 0.3851173457 | CI64: =+U64*KeyAssumptionsPriceControl_FO!AD$15 -> 0.3810770521 | CJ64: =+V64*KeyAssumptionsPriceControl_FO!AE$15 -> 0.4822043488 | CK64: =+W64*KeyAssumptionsPriceControl_FO!AF$15 -> 0.5190641932 | CL64: =+X64*KeyAssumptionsPriceControl_FO!AG$15 -> 0.7820677616 | CN64: 0.004424475 | CO64: 0.01274727052 | CP64: 0.02178446705 | CQ64: 0.0333303973 | CR64: 0.04584370281 | CS64: 0.06157788771 | CT64: 0.08073274765 | CU64: 0.1023147827 | CV64: 0.1273464962 | CW64: 0.1598747951
C65: Asset Renewals - Water Pump Stations | E65: Water | F65: Renewals | G65: Pipelines/network | H65: Capital Programs / Allocation | J65: Straight line | K65: Ongoing | L65: 20 | M65: 20 | O65: 0.187 | P65: 0.199 | Q65: 0.208 | R65: 0.218 | S65: 0.182 | T65: 0.175 | U65: 0.191 | V65: 0.217 | W65: 0.222 | X65: 0.259 | AV65: 0.187 | AW65: 0.199 | AX65: 0.208 | AY65: 0.218 | AZ65: 0.182 | BA65: 0.175 | BB65: 0.191 | BC65: 0.217 | BD65: 0.222 | BE65: 0.259 | BG65: 0.004675 | BH65: 0.014325 | BI65: 0.0245 | BJ65: 0.03515 | BK65: 0.04515 | BL65: 0.054075 | BM65: 0.063225 | BN65: 0.073425 | BO65: 0.0844 | BP65: 0.096425 | BR65: =+IF($K65="Ongoing",AV65,IF(RIGHT($K65,2)=RIGHT(BR$39,2),SUM($AV65:AV65),0)+IF(RIGHT(BR$39,2)>RIGHT($K65,2),AV65,0)) -> 0.187 | BS65: =+IF($K65="Ongoing",AW65,IF(RIGHT($K65,2)=RIGHT(BS$39,2),SUM($AV65:AW65),0)+IF(RIGHT(BS$39,2)>RIGHT($K65,2),AW65,0)) -> 0.199 | BT65: =+IF($K65="Ongoing",AX65,IF(RIGHT($K65,2)=RIGHT(BT$39,2),SUM($AV65:AX65),0)+IF(RIGHT(BT$39,2)>RIGHT($K65,2),AX65,0)) -> 0.208 | BU65: =+IF($K65="Ongoing",AY65,IF(RIGHT($K65,2)=RIGHT(BU$39,2),SUM($AV65:AY65),0)+IF(RIGHT(BU$39,2)>RIGHT($K65,2),AY65,0)) -> 0.218 | BV65: =+IF($K65="Ongoing",AZ65,IF(RIGHT($K65,2)=RIGHT(BV$39,2),SUM($AV65:AZ65),0)+IF(RIGHT(BV$39,2)>RIGHT($K65,2),AZ65,0)) -> 0.182 | BW65: =+IF($K65="Ongoing",BA65,IF(RIGHT($K65,2)=RIGHT(BW$39,2),SUM($AV65:BA65),0)+IF(RIGHT(BW$39,2)>RIGHT($K65,2),BA65,0)) -> 0.175 | BX65: =+IF($K65="Ongoing",BB65,IF(RIGHT($K65,2)=RIGHT(BX$39,2),SUM($AV65:BB65),0)+IF(RIGHT(BX$39,2)>RIGHT($K65,2),BB65,0)) -> 0.191 | BY65: =+IF($K65="Ongoing",BC65,IF(RIGHT($K65,2)=RIGHT(BY$39,2),SUM($AV65:BC65),0)+IF(RIGHT(BY$39,2)>RIGHT($K65,2),BC65,0)) -> 0.217 | BZ65: =+IF($K65="Ongoing",BD65,IF(RIGHT($K65,2)=RIGHT(BZ$39,2),SUM($AV65:BD65),0)+IF(RIGHT(BZ$39,2)>RIGHT($K65,2),BD65,0)) -> 0.222 | CA65: =+IF($K65="Ongoing",BE65,IF(RIGHT($K65,2)=RIGHT(CA$39,2),SUM($AV65:BE65),0)+IF(RIGHT(CA$39,2)>RIGHT($K65,2),BE65,0)) -> 0.259 | CC65: =+O65*KeyAssumptionsPriceControl_FO!X$15 -> 0.191301 | CD65: =+P65*KeyAssumptionsPriceControl_FO!Y$15 -> 0.208259271 | CE65: =+Q65*KeyAssumptionsPriceControl_FO!Z$15 -> 0.2226846267 | CF65: =+R65*KeyAssumptionsPriceControl_FO!AA$15 -> 0.2387586026 | CG65: =+S65*KeyAssumptionsPriceControl_FO!AB$15 -> 0.2039151798 | CH65: =+T65*KeyAssumptionsPriceControl_FO!AC$15 -> 0.2005819509 | CI65: =+U65*KeyAssumptionsPriceControl_FO!AD$15 -> 0.2239560521 | CJ65: =+V65*KeyAssumptionsPriceControl_FO!AE$15 -> 0.2602943873 | CK65: =+W65*KeyAssumptionsPriceControl_FO!AF$15 -> 0.2724166688 | CL65: =+X65*KeyAssumptionsPriceControl_FO!AG$15 -> 0.3251292942 | CN65: 0.004782525 | CO65: 0.01477153177 | CP65: 0.02554512922 | CQ65: 0.03708120995 | CR65: 0.04814805451 | CS65: 0.05826048278 | CT65: 0.06887393285 | CU65: 0.08098019384 | CV65: 0.09429797024 | CW65: 0.1092366193
C66: Asset Renewals - Water Mains | E66: Water | F66: Renewals | G66: Pipelines/network | H66: Capital Programs / Allocation | J66: Straight line | K66: Ongoing | L66: 80 | M66: 80 | O66: 0.188 | P66: 0.523 | Q66: 0.5 | R66: 0.863 | S66: 1.572 | T66: 1.725 | U66: 1.608 | V66: 1.6 | W66: 1.328 | X66: 1.827 | AV66: 0.188 | AW66: 0.523 | AX66: 0.5 | AY66: 0.863 | AZ66: 1.572 | BA66: 1.725 | BB66: 1.608 | BC66: 1.6 | BD66: 1.328 | BE66: 1.827 | BG66: 0.001175 | BH66: 0.00561875 | BI66: 0.0120125 | BJ66: 0.02053125 | BK66: 0.03575 | BL66: 0.05635625 | BM66: 0.0771875 | BN66: 0.0972375 | BO66: 0.1155375 | BP66: 0.13525625 | BR66: =+IF($K66="Ongoing",AV66,IF(RIGHT($K66,2)=RIGHT(BR$39,2),SUM($AV66:AV66),0)+IF(RIGHT(BR$39,2)>RIGHT($K66,2),AV66,0)) -> 0.188 | BS66: =+IF($K66="Ongoing",AW66,IF(RIGHT($K66,2)=RIGHT(BS$39,2),SUM($AV66:AW66),0)+IF(RIGHT(BS$39,2)>RIGHT($K66,2),AW66,0)) -> 0.523 | BT66: =+IF($K66="Ongoing",AX66,IF(RIGHT($K66,2)=RIGHT(BT$39,2),SUM($AV66:AX66),0)+IF(RIGHT(BT$39,2)>RIGHT($K66,2),AX66,0)) -> 0.5 | BU66: =+IF($K66="Ongoing",AY66,IF(RIGHT($K66,2)=RIGHT(BU$39,2),SUM($AV66:AY66),0)+IF(RIGHT(BU$39,2)>RIGHT($K66,2),AY66,0)) -> 0.863 | BV66: =+IF($K66="Ongoing",AZ66,IF(RIGHT($K66,2)=RIGHT(BV$39,2),SUM($AV66:AZ66),0)+IF(RIGHT(BV$39,2)>RIGHT($K66,2),AZ66,0)) -> 1.572 | BW66: =+IF($K66="Ongoing",BA66,IF(RIGHT($K66,2)=RIGHT(BW$39,2),SUM($AV66:BA66),0)+IF(RIGHT(BW$39,2)>RIGHT($K66,2),BA66,0)) -> 1.725 | BX66: =+IF($K66="Ongoing",BB66,IF(RIGHT($K66,2)=RIGHT(BX$39,2),SUM($AV66:BB66),0)+IF(RIGHT(BX$39,2)>RIGHT($K66,2),BB66,0)) -> 1.608 | BY66: =+IF($K66="Ongoing",BC66,IF(RIGHT($K66,2)=RIGHT(BY$39,2),SUM($AV66:BC66),0)+IF(RIGHT(BY$39,2)>RIGHT($K66,2),BC66,0)) -> 1.6 | BZ66: =+IF($K66="Ongoing",BD66,IF(RIGHT($K66,2)=RIGHT(BZ$39,2),SUM($AV66:BD66),0)+IF(RIGHT(BZ$39,2)>RIGHT($K66,2),BD66,0)) -> 1.328 | CA66: =+IF($K66="Ongoing",BE66,IF(RIGHT($K66,2)=RIGHT(CA$39,2),SUM($AV66:BE66),0)+IF(RIGHT(CA$39,2)>RIGHT($K66,2),BE66,0)) -> 1.827 | CC66: =+O66*KeyAssumptionsPriceControl_FO!X$15 -> 0.192324 | CD66: =+P66*KeyAssumptionsPriceControl_FO!Y$15 -> 0.547334667 | CE66: =+Q66*KeyAssumptionsPriceControl_FO!Z$15 -> 0.5352995835 | CF66: =+R66*KeyAssumptionsPriceControl_FO!AA$15 -> 0.945177404 | CG66: =+S66*KeyAssumptionsPriceControl_FO!AB$15 -> 1.761289355 | CH66: =+T66*KeyAssumptionsPriceControl_FO!AC$15 -> 1.977164944 | CI66: =+U66*KeyAssumptionsPriceControl_FO!AD$15 -> 1.885451999 | CJ66: =+V66*KeyAssumptionsPriceControl_FO!AE$15 -> 1.919221289 | CK66: =+W66*KeyAssumptionsPriceControl_FO!AF$15 -> 1.629591604 | CL66: =+X66*KeyAssumptionsPriceControl_FO!AG$15 -> 2.293479616 | CN66: 0.001202025 | CO66: 0.005824891669 | CP66: 0.01259135573 | CQ66: 0.02184433691 | CR66: 0.03875975415 | CS66: 0.06212509352 | CT66: 0.08626644942 | CU66: 0.1100456575 | CV66: 0.132225738 | CW66: 0.1567449332
C67: Asset Renewals - Water Treatment and Disinfection Plants | E67: Water | F67: Renewals | G67: Treatment | H67: Capital Programs / Allocation | J67: Straight line | K67: Ongoing | L67: 20 | M67: 20 | O67: 0.211 | P67: 0.199 | Q67: 0.147 | R67: 0.233 | S67: 0.239 | T67: 0.194 | U67: 0.306 | V67: 0.395 | W67: 0.391 | X67: 0.411 | AV67: 0.211 | AW67: 0.199 | AX67: 0.147 | AY67: 0.233 | AZ67: 0.239 | BA67: 0.194 | BB67: 0.306 | BC67: 0.395 | BD67: 0.391 | BE67: 0.411 | BG67: 0.005275 | BH67: 0.015525 | BI67: 0.024175 | BJ67: 0.033675 | BK67: 0.045475 | BL67: 0.0563 | BM67: 0.0688 | BN67: 0.086325 | BO67: 0.105975 | BP67: 0.126025 | BR67: =+IF($K67="Ongoing",AV67,IF(RIGHT($K67,2)=RIGHT(BR$39,2),SUM($AV67:AV67),0)+IF(RIGHT(BR$39,2)>RIGHT($K67,2),AV67,0)) -> 0.211 | BS67: =+IF($K67="Ongoing",AW67,IF(RIGHT($K67,2)=RIGHT(BS$39,2),SUM($AV67:AW67),0)+IF(RIGHT(BS$39,2)>RIGHT($K67,2),AW67,0)) -> 0.199 | BT67: =+IF($K67="Ongoing",AX67,IF(RIGHT($K67,2)=RIGHT(BT$39,2),SUM($AV67:AX67),0)+IF(RIGHT(BT$39,2)>RIGHT($K67,2),AX67,0)) -> 0.147 | BU67: =+IF($K67="Ongoing",AY67,IF(RIGHT($K67,2)=RIGHT(BU$39,2),SUM($AV67:AY67),0)+IF(RIGHT(BU$39,2)>RIGHT($K67,2),AY67,0)) -> 0.233 | BV67: =+IF($K67="Ongoing",AZ67,IF(RIGHT($K67,2)=RIGHT(BV$39,2),SUM($AV67:AZ67),0)+IF(RIGHT(BV$39,2)>RIGHT($K67,2),AZ67,0)) -> 0.239 | BW67: =+IF($K67="Ongoing",BA67,IF(RIGHT($K67,2)=RIGHT(BW$39,2),SUM($AV67:BA67),0)+IF(RIGHT(BW$39,2)>RIGHT($K67,2),BA67,0)) -> 0.194 | BX67: =+IF($K67="Ongoing",BB67,IF(RIGHT($K67,2)=RIGHT(BX$39,2),SUM($AV67:BB67),0)+IF(RIGHT(BX$39,2)>RIGHT($K67,2),BB67,0)) -> 0.306 | BY67: =+IF($K67="Ongoing",BC67,IF(RIGHT($K67,2)=RIGHT(BY$39,2),SUM($AV67:BC67),0)+IF(RIGHT(BY$39,2)>RIGHT($K67,2),BC67,0)) -> 0.395 | BZ67: =+IF($K67="Ongoing",BD67,IF(RIGHT($K67,2)=RIGHT(BZ$39,2),SUM($AV67:BD67),0)+IF(RIGHT(BZ$39,2)>RIGHT($K67,2),BD67,0)) -> 0.391 | CA67: =+IF($K67="Ongoing",BE67,IF(RIGHT($K67,2)=RIGHT(CA$39,2),SUM($AV67:BE67),0)+IF(RIGHT(CA$39,2)>RIGHT($K67,2),BE67,0)) -> 0.411 | CC67: =+O67*KeyAssumptionsPriceControl_FO!X$15 -> 0.215853 | CD67: =+P67*KeyAssumptionsPriceControl_FO!Y$15 -> 0.208259271 | CE67: =+Q67*KeyAssumptionsPriceControl_FO!Z$15 -> 0.1573780775 | CF67: =+R67*KeyAssumptionsPriceControl_FO!AA$15 -> 0.2551869468 | CG67: =+S67*KeyAssumptionsPriceControl_FO!AB$15 -> 0.2677787251 | CH67: =+T67*KeyAssumptionsPriceControl_FO!AC$15 -> 0.2223594198 | CI67: =+U67*KeyAssumptionsPriceControl_FO!AD$15 -> 0.3587987013 | CJ67: =+V67*KeyAssumptionsPriceControl_FO!AE$15 -> 0.4738077557 | CK67: =+W67*KeyAssumptionsPriceControl_FO!AF$15 -> 0.4797969256 | CL67: =+X67*KeyAssumptionsPriceControl_FO!AG$15 -> 0.5159387641 | CN67: 0.005396325 | CO67: 0.01599913177 | CP67: 0.02514006549 | CQ67: 0.0354541911 | CR67: 0.0485283329 | CS67: 0.06078178652 | CT67: 0.07531073955 | CU67: 0.09612590097 | CV67: 0.119966018 | CW67: 0.1448594102
C68: BWWTP constructed wetland embankment reinstatement | E68: Recycled Water | F68: Renewals | G68: Treatment | H68: Capital Programs / Allocation | J68: Straight line | K68: 2023-24 | L68: 80 | M68: 80 | O68: 0 | P68: 0 | Q68: 0 | R68: 0 | S68: 0 | T68: 0 | U68: 0 | V68: 0 | W68: 0 | X68: 0 | AV68: 0 | AW68: 0 | AX68: 0 | AY68: 0 | AZ68: 0 | BA68: 0 | BB68: 0 | BC68: 0 | BD68: 0 | BE68: 0 | BG68: 0 | BH68: 0 | BI68: 0 | BJ68: 0 | BK68: 0 | BL68: 0 | BM68: 0 | BN68: 0 | BO68: 0 | BP68: 0 | BR68: =+IF($K68="Ongoing",AV68,IF(RIGHT($K68,2)=RIGHT(BR$39,2),SUM($AV68:AV68),0)+IF(RIGHT(BR$39,2)>RIGHT($K68,2),AV68,0)) -> 0 | BS68: =+IF($K68="Ongoing",AW68,IF(RIGHT($K68,2)=RIGHT(BS$39,2),SUM($AV68:AW68),0)+IF(RIGHT(BS$39,2)>RIGHT($K68,2),AW68,0)) -> 0 | BT68: =+IF($K68="Ongoing",AX68,IF(RIGHT($K68,2)=RIGHT(BT$39,2),SUM($AV68:AX68),0)+IF(RIGHT(BT$39,2)>RIGHT($K68,2),AX68,0)) -> 0 | BU68: =+IF($K68="Ongoing",AY68,IF(RIGHT($K68,2)=RIGHT(BU$39,2),SUM($AV68:AY68),0)+IF(RIGHT(BU$39,2)>RIGHT($K68,2),AY68,0)) -> 0 | BV68: =+IF($K68="Ongoing",AZ68,IF(RIGHT($K68,2)=RIGHT(BV$39,2),SUM($AV68:AZ68),0)+IF(RIGHT(BV$39,2)>RIGHT($K68,2),AZ68,0)) -> 0 | BW68: =+IF($K68="Ongoing",BA68,IF(RIGHT($K68,2)=RIGHT(BW$39,2),SUM($AV68:BA68),0)+IF(RIGHT(BW$39,2)>RIGHT($K68,2),BA68,0)) -> 0 | BX68: =+IF($K68="Ongoing",BB68,IF(RIGHT($K68,2)=RIGHT(BX$39,2),SUM($AV68:BB68),0)+IF(RIGHT(BX$39,2)>RIGHT($K68,2),BB68,0)) -> 0 | BY68: =+IF($K68="Ongoing",BC68,IF(RIGHT($K68,2)=RIGHT(BY$39,2),SUM($AV68:BC68),0)+IF(RIGHT(BY$39,2)>RIGHT($K68,2),BC68,0)) -> 0 | BZ68: =+IF($K68="Ongoing",BD68,IF(RIGHT($K68,2)=RIGHT(BZ$39,2),SUM($AV68:BD68),0)+IF(RIGHT(BZ$39,2)>RIGHT($K68,2),BD68,0)) -> 0 | CA68: =+IF($K68="Ongoing",BE68,IF(RIGHT($K68,2)=RIGHT(CA$39,2),SUM($AV68:BE68),0)+IF(RIGHT(CA$39,2)>RIGHT($K68,2),BE68,0)) -> 0 | CC68: =+O68*KeyAssumptionsPriceControl_FO!X$15 -> 0 | CD68: =+P68*KeyAssumptionsPriceControl_FO!Y$15 -> 0 | CE68: =+Q68*KeyAssumptionsPriceControl_FO!Z$15 -> 0 | CF68: =+R68*KeyAssumptionsPriceControl_FO!AA$15 -> 0 | CG68: =+S68*KeyAssumptionsPriceControl_FO!AB$15 -> 0 | CH68: =+T68*KeyAssumptionsPriceControl_FO!AC$15 -> 0 | CI68: =+U68*KeyAssumptionsPriceControl_FO!AD$15 -> 0 | CJ68: =+V68*KeyAssumptionsPriceControl_FO!AE$15 -> 0 | CK68: =+W68*KeyAssumptionsPriceControl_FO!AF$15 -> 0 | CL68: =+X68*KeyAssumptionsPriceControl_FO!AG$15 -> 0 | CN68: 0 | CO68: 0 | CP68: 0 | CQ68: 0 | CR68: 0 | CS68: 0 | CT68: 0 | CU68: 0 | CV68: 0 | CW68: 0
C69: Metung Farm Re-use Disposal: Augmentation | E69: Recycled Water | F69: Growth | G69: Treatment | H69: Other Capital expenditure | J69: Straight line | K69: 2021-22 | L69: 20 | M69: 20 | O69: 0 | P69: 0.256 | Q69: 0 | R69: 0.153 | S69: 0 | T69: 0 | U69: 0 | V69: 0.35 | W69: 0 | X69: 0 | AV69: 0 | AW69: 0.256 | AX69: 0 | AY69: 0.153 | AZ69: 0 | BA69: 0 | BB69: 0 | BC69: 0.35 | BD69: 0 | BE69: 0 | BG69: 0 | BH69: 0 | BI69: 0 | BJ69: 0.010225 | BK69: 0.02045 | BL69: 0.02045 | BM69: 0.02045 | BN69: 0.0292 | BO69: 0.03795 | BP69: 0.03795 | BR69: =+IF($K69="Ongoing",AV69,IF(RIGHT($K69,2)=RIGHT(BR$39,2),SUM($AV69:AV69),0)+IF(RIGHT(BR$39,2)>RIGHT($K69,2),AV69,0)) -> 0 | BS69: =+IF($K69="Ongoing",AW69,IF(RIGHT($K69,2)=RIGHT(BS$39,2),SUM($AV69:AW69),0)+IF(RIGHT(BS$39,2)>RIGHT($K69,2),AW69,0)) -> 0 | BT69: =+IF($K69="Ongoing",AX69,IF(RIGHT($K69,2)=RIGHT(BT$39,2),SUM($AV69:AX69),0)+IF(RIGHT(BT$39,2)>RIGHT($K69,2),AX69,0)) -> 0 | BU69: =+IF($K69="Ongoing",AY69,IF(RIGHT($K69,2)=RIGHT(BU$39,2),SUM($AV69:AY69),0)+IF(RIGHT(BU$39,2)>RIGHT($K69,2),AY69,0)) -> 0.409 | BV69: =+IF($K69="Ongoing",AZ69,IF(RIGHT($K69,2)=RIGHT(BV$39,2),SUM($AV69:AZ69),0)+IF(RIGHT(BV$39,2)>RIGHT($K69,2),AZ69,0)) -> 0 | BW69: =+IF($K69="Ongoing",BA69,IF(RIGHT($K69,2)=RIGHT(BW$39,2),SUM($AV69:BA69),0)+IF(RIGHT(BW$39,2)>RIGHT($K69,2),BA69,0)) -> 0 | BX69: =+IF($K69="Ongoing",BB69,IF(RIGHT($K69,2)=RIGHT(BX$39,2),SUM($AV69:BB69),0)+IF(RIGHT(BX$39,2)>RIGHT($K69,2),BB69,0)) -> 0 | BY69: =+IF($K69="Ongoing",BC69,IF(RIGHT($K69,2)=RIGHT(BY$39,2),SUM($AV69:BC69),0)+IF(RIGHT(BY$39,2)>RIGHT($K69,2),BC69,0)) -> 0.35 | BZ69: =+IF($K69="Ongoing",BD69,IF(RIGHT($K69,2)=RIGHT(BZ$39,2),SUM($AV69:BD69),0)+IF(RIGHT(BZ$39,2)>RIGHT($K69,2),BD69,0)) -> 0 | CA69: =+IF($K69="Ongoing",BE69,IF(RIGHT($K69,2)=RIGHT(CA$39,2),SUM($AV69:BE69),0)+IF(RIGHT(CA$39,2)>RIGHT($K69,2),BE69,0)) -> 0 | CC69: =+O69*KeyAssumptionsPriceControl_FO!X$15 -> 0 | CD69: =+P69*KeyAssumptionsPriceControl_FO!Y$15 -> 0.267911424 | CE69: =+Q69*KeyAssumptionsPriceControl_FO!Z$15 -> 0 | CF69: =+R69*KeyAssumptionsPriceControl_FO!AA$15 -> 0.167569111 | CG69: =+S69*KeyAssumptionsPriceControl_FO!AB$15 -> 0 | CH69: =+T69*KeyAssumptionsPriceControl_FO!AC$15 -> 0 | CI69: =+U69*KeyAssumptionsPriceControl_FO!AD$15 -> 0 | CJ69: =+V69*KeyAssumptionsPriceControl_FO!AE$15 -> 0.4198296569 | CK69: =+W69*KeyAssumptionsPriceControl_FO!AF$15 -> 0 | CL69: =+X69*KeyAssumptionsPriceControl_FO!AG$15 -> 0 | CN69: 0 | CO69: 0.0066977856 | CP69: 0.0133955712 | CQ69: 0.01758479898 | CR69: 0.02177402675 | CS69: 0.02177402675 | CT69: 0.02177402675 | CU69: 0.03226976817 | CV69: 0.0427655096 | CW69: 0.0427655096
C70: Lakes Entrance sewerage network upgrades | E70: Sewerage | F70: Growth | G70: Pipelines/network | H70: Other Capital expenditure | J70: Straight line | K70: 2019-20 | L70: 80 | M70: 80 | O70: 0 | P70: 0.362 | Q70: 0 | R70: 0 | S70: 0 | T70: 0 | U70: 0 | V70: 0 | W70: 0 | X70: 0 | AV70: 0 | AW70: 0.362 | AX70: 0 | AY70: 0 | AZ70: 0 | BA70: 0 | BB70: 0 | BC70: 0 | BD70: 0 | BE70: 0 | BG70: 0 | BH70: 0.0022625 | BI70: 0.004525 | BJ70: 0.004525 | BK70: 0.004525 | BL70: 0.004525 | BM70: 0.004525 | BN70: 0.004525 | BO70: 0.004525 | BP70: 0.004525 | BR70: =+IF($K70="Ongoing",AV70,IF(RIGHT($K70,2)=RIGHT(BR$39,2),SUM($AV70:AV70),0)+IF(RIGHT(BR$39,2)>RIGHT($K70,2),AV70,0)) -> 0 | BS70: =+IF($K70="Ongoing",AW70,IF(RIGHT($K70,2)=RIGHT(BS$39,2),SUM($AV70:AW70),0)+IF(RIGHT(BS$39,2)>RIGHT($K70,2),AW70,0)) -> 0.362 | BT70: =+IF($K70="Ongoing",AX70,IF(RIGHT($K70,2)=RIGHT(BT$39,2),SUM($AV70:AX70),0)+IF(RIGHT(BT$39,2)>RIGHT($K70,2),AX70,0)) -> 0 | BU70: =+IF($K70="Ongoing",AY70,IF(RIGHT($K70,2)=RIGHT(BU$39,2),SUM($AV70:AY70),0)+IF(RIGHT(BU$39,2)>RIGHT($K70,2),AY70,0)) -> 0 | BV70: =+IF($K70="Ongoing",AZ70,IF(RIGHT($K70,2)=RIGHT(BV$39,2),SUM($AV70:AZ70),0)+IF(RIGHT(BV$39,2)>RIGHT($K70,2),AZ70,0)) -> 0 | BW70: =+IF($K70="Ongoing",BA70,IF(RIGHT($K70,2)=RIGHT(BW$39,2),SUM($AV70:BA70),0)+IF(RIGHT(BW$39,2)>RIGHT($K70,2),BA70,0)) -> 0 | BX70: =+IF($K70="Ongoing",BB70,IF(RIGHT($K70,2)=RIGHT(BX$39,2),SUM($AV70:BB70),0)+IF(RIGHT(BX$39,2)>RIGHT($K70,2),BB70,0)) -> 0 | BY70: =+IF($K70="Ongoing",BC70,IF(RIGHT($K70,2)=RIGHT(BY$39,2),SUM($AV70:BC70),0)+IF(RIGHT(BY$39,2)>RIGHT($K70,2),BC70,0)) -> 0 | BZ70: =+IF($K70="Ongoing",BD70,IF(RIGHT($K70,2)=RIGHT(BZ$39,2),SUM($AV70:BD70),0)+IF(RIGHT(BZ$39,2)>RIGHT($K70,2),BD70,0)) -> 0 | CA70: =+IF($K70="Ongoing",BE70,IF(RIGHT($K70,2)=RIGHT(CA$39,2),SUM($AV70:BE70),0)+IF(RIGHT(CA$39,2)>RIGHT($K70,2),BE70,0)) -> 0 | CC70: =+O70*KeyAssumptionsPriceControl_FO!X$15 -> 0 | CD70: =+P70*KeyAssumptionsPriceControl_FO!Y$15 -> 0.378843498 | CE70: =+Q70*KeyAssumptionsPriceControl_FO!Z$15 -> 0 | CF70: =+R70*KeyAssumptionsPriceControl_FO!AA$15 -> 0 | CG70: =+S70*KeyAssumptionsPriceControl_FO!AB$15 -> 0 | CH70: =+T70*KeyAssumptionsPriceControl_FO!AC$15 -> 0 | CI70: =+U70*KeyAssumptionsPriceControl_FO!AD$15 -> 0 | CJ70: =+V70*KeyAssumptionsPriceControl_FO!AE$15 -> 0 | CK70: =+W70*KeyAssumptionsPriceControl_FO!AF$15 -> 0 | CL70: =+X70*KeyAssumptionsPriceControl_FO!AG$15 -> 0 | CN70: 0 | CO70: 0.002367771862 | CP70: 0.004735543725 | CQ70: 0.004735543725 | CR70: 0.004735543725 | CS70: 0.004735543725 | CT70: 0.004735543725 | CU70: 0.004735543725 | CV70: 0.004735543725 | CW70: 0.004735543725
C71: Lucknow/ East Bairnsdale Devt - Sewer infrastructure - 80 m 150mm diameter gravity sewer to service 1\TP341585 | E71: Sewerage | F71: Growth | G71: Pipelines/network | H71: Other Capital expenditure | J71: Straight line | K71: 2022-23 | L71: 80 | M71: 80 | O71: 0 | P71: 0 | Q71: 0 | R71: 0 | S71: 0.061 | T71: 0 | U71: 0 | V71: 0 | W71: 0 | X71: 0 | AV71: 0 | AW71: 0 | AX71: 0 | AY71: 0 | AZ71: 0.061 | BA71: 0 | BB71: 0 | BC71: 0 | BD71: 0 | BE71: 0 | BG71: 0 | BH71: 0 | BI71: 0 | BJ71: 0 | BK71: 0.00038125 | BL71: 0.0007625 | BM71: 0.0007625 | BN71: 0.0007625 | BO71: 0.0007625 | BP71: 0.0007625 | BR71: =+IF($K71="Ongoing",AV71,IF(RIGHT($K71,2)=RIGHT(BR$39,2),SUM($AV71:AV71),0)+IF(RIGHT(BR$39,2)>RIGHT($K71,2),AV71,0)) -> 0 | BS71: =+IF($K71="Ongoing",AW71,IF(RIGHT($K71,2)=RIGHT(BS$39,2),SUM($AV71:AW71),0)+IF(RIGHT(BS$39,2)>RIGHT($K71,2),AW71,0)) -> 0 | BT71: =+IF($K71="Ongoing",AX71,IF(RIGHT($K71,2)=RIGHT(BT$39,2),SUM($AV71:AX71),0)+IF(RIGHT(BT$39,2)>RIGHT($K71,2),AX71,0)) -> 0 | BU71: =+IF($K71="Ongoing",AY71,IF(RIGHT($K71,2)=RIGHT(BU$39,2),SUM($AV71:AY71),0)+IF(RIGHT(BU$39,2)>RIGHT($K71,2),AY71,0)) -> 0 | BV71: =+IF($K71="Ongoing",AZ71,IF(RIGHT($K71,2)=RIGHT(BV$39,2),SUM($AV71:AZ71),0)+IF(RIGHT(BV$39,2)>RIGHT($K71,2),AZ71,0)) -> 0.061 | BW71: =+IF($K71="Ongoing",BA71,IF(RIGHT($K71,2)=RIGHT(BW$39,2),SUM($AV71:BA71),0)+IF(RIGHT(BW$39,2)>RIGHT($K71,2),BA71,0)) -> 0 | BX71: =+IF($K71="Ongoing",BB71,IF(RIGHT($K71,2)=RIGHT(BX$39,2),SUM($AV71:BB71),0)+IF(RIGHT(BX$39,2)>RIGHT($K71,2),BB71,0)) -> 0 | BY71: =+IF($K71="Ongoing",BC71,IF(RIGHT($K71,2)=RIGHT(BY$39,2),SUM($AV71:BC71),0)+IF(RIGHT(BY$39,2)>RIGHT($K71,2),BC71,0)) -> 0 | BZ71: =+IF($K71="Ongoing",BD71,IF(RIGHT($K71,2)=RIGHT(BZ$39,2),SUM($AV71:BD71),0)+IF(RIGHT(BZ$39,2)>RIGHT($K71,2),BD71,0)) -> 0 | CA71: =+IF($K71="Ongoing",BE71,IF(RIGHT($K71,2)=RIGHT(CA$39,2),SUM($AV71:BE71),0)+IF(RIGHT(CA$39,2)>RIGHT($K71,2),BE71,0)) -> 0 | CC71: =+O71*KeyAssumptionsPriceControl_FO!X$15 -> 0 | CD71: =+P71*KeyAssumptionsPriceControl_FO!Y$15 -> 0 | CE71: =+Q71*KeyAssumptionsPriceControl_FO!Z$15 -> 0 | CF71: =+R71*KeyAssumptionsPriceControl_FO!AA$15 -> 0 | CG71: =+S71*KeyAssumptionsPriceControl_FO!AB$15 -> 0.06834519761 | CH71: =+T71*KeyAssumptionsPriceControl_FO!AC$15 -> 0 | CI71: =+U71*KeyAssumptionsPriceControl_FO!AD$15 -> 0 | CJ71: =+V71*KeyAssumptionsPriceControl_FO!AE$15 -> 0 | CK71: =+W71*KeyAssumptionsPriceControl_FO!AF$15 -> 0 | CL71: =+X71*KeyAssumptionsPriceControl_FO!AG$15 -> 0 | CN71: 0 | CO71: 0 | CP71: 0 | CQ71: 0 | CR71: 0.0004271574851 | CS71: 0.0008543149702 | CT71: 0.0008543149702 | CU71: 0.0008543149702 | CV71: 0.0008543149702 | CW71: 0.0008543149702
C72: Clifton Waters Sewer Network - 30m x 225mm dia gravity sewer duplication | E72: Sewerage | F72: Growth | G72: Pipelines/network | H72: Other Capital expenditure | J72: Straight line | K72: 2018-19 | L72: 80 | M72: 80 | O72: 0.066 | P72: 0 | Q72: 0 | R72: 0 | S72: 0 | T72: 0 | U72: 0 | V72: 0 | W72: 0 | X72: 0 | AV72: 0.066 | AW72: 0 | AX72: 0 | AY72: 0 | AZ72: 0 | BA72: 0 | BB72: 0 | BC72: 0 | BD72: 0 | BE72: 0 | BG72: 0.0004125 | BH72: 0.000825 | BI72: 0.000825 | BJ72: 0.000825 | BK72: 0.000825 | BL72: 0.000825 | BM72: 0.000825 | BN72: 0.000825 | BO72: 0.000825 | BP72: 0.000825 | BR72: =+IF($K72="Ongoing",AV72,IF(RIGHT($K72,2)=RIGHT(BR$39,2),SUM($AV72:AV72),0)+IF(RIGHT(BR$39,2)>RIGHT($K72,2),AV72,0)) -> 0.066 | BS72: =+IF($K72="Ongoing",AW72,IF(RIGHT($K72,2)=RIGHT(BS$39,2),SUM($AV72:AW72),0)+IF(RIGHT(BS$39,2)>RIGHT($K72,2),AW72,0)) -> 0 | BT72: =+IF($K72="Ongoing",AX72,IF(RIGHT($K72,2)=RIGHT(BT$39,2),SUM($AV72:AX72),0)+IF(RIGHT(BT$39,2)>RIGHT($K72,2),AX72,0)) -> 0 | BU72: =+IF($K72="Ongoing",AY72,IF(RIGHT($K72,2)=RIGHT(BU$39,2),SUM($AV72:AY72),0)+IF(RIGHT(BU$39,2)>RIGHT($K72,2),AY72,0)) -> 0 | BV72: =+IF($K72="Ongoing",AZ72,IF(RIGHT($K72,2)=RIGHT(BV$39,2),SUM($AV72:AZ72),0)+IF(RIGHT(BV$39,2)>RIGHT($K72,2),AZ72,0)) -> 0 | BW72: =+IF($K72="Ongoing",BA72,IF(RIGHT($K72,2)=RIGHT(BW$39,2),SUM($AV72:BA72),0)+IF(RIGHT(BW$39,2)>RIGHT($K72,2),BA72,0)) -> 0 | BX72: =+IF($K72="Ongoing",BB72,IF(RIGHT($K72,2)=RIGHT(BX$39,2),SUM($AV72:BB72),0)+IF(RIGHT(BX$39,2)>RIGHT($K72,2),BB72,0)) -> 0 | BY72: =+IF($K72="Ongoing",BC72,IF(RIGHT($K72,2)=RIGHT(BY$39,2),SUM($AV72:BC72),0)+IF(RIGHT(BY$39,2)>RIGHT($K72,2),BC72,0)) -> 0 | BZ72: =+IF($K72="Ongoing",BD72,IF(RIGHT($K72,2)=RIGHT(BZ$39,2),SUM($AV72:BD72),0)+IF(RIGHT(BZ$39,2)>RIGHT($K72,2),BD72,0)) -> 0 | CA72: =+IF($K72="Ongoing",BE72,IF(RIGHT($K72,2)=RIGHT(CA$39,2),SUM($AV72:BE72),0)+IF(RIGHT(CA$39,2)>RIGHT($K72,2),BE72,0)) -> 0 | CC72: =+O72*KeyAssumptionsPriceControl_FO!X$15 -> 0.067518 | CD72: =+P72*KeyAssumptionsPriceControl_FO!Y$15 -> 0 | CE72: =+Q72*KeyAssumptionsPriceControl_FO!Z$15 -> 0 | CF72: =+R72*KeyAssumptionsPriceControl_FO!AA$15 -> 0 | CG72: =+S72*KeyAssumptionsPriceControl_FO!AB$15 -> 0 | CH72: =+T72*KeyAssumptionsPriceControl_FO!AC$15 -> 0 | CI72: =+U72*KeyAssumptionsPriceControl_FO!AD$15 -> 0 | CJ72: =+V72*KeyAssumptionsPriceControl_FO!AE$15 -> 0 | CK72: =+W72*KeyAssumptionsPriceControl_FO!AF$15 -> 0 | CL72: =+X72*KeyAssumptionsPriceControl_FO!AG$15 -> 0 | CN72: 0.0004219875 | CO72: 0.000843975 | CP72: 0.000843975 | CQ72: 0.000843975 | CR72: 0.000843975 | CS72: 0.000843975 | CT72: 0.000843975 | CU72: 0.000843975 | CV72: 0.000843975 | CW72: 0.000843975
C73: Bairnsdale WWTP electrical upgrades | E73: Sewerage | F73: Renewals | G73: Treatment | H73: Other Capital expenditure | J73: Straight line | K73: 2019-20 | L73: 20 | M73: 20 | O73: 0.409 | P73: 0.229 | Q73: 0 | R73: 0 | S73: 0 | T73: 0 | U73: 0 | V73: 0 | W73: 0 | X73: 0 | AV73: 0.409 | AW73: 0.229 | AX73: 0 | AY73: 0 | AZ73: 0 | BA73: 0 | BB73: 0 | BC73: 0 | BD73: 0 | BE73: 0 | BG73: 0 | BH73: 0.01595 | BI73: 0.0319 | BJ73: 0.0319 | BK73: 0.0319 | BL73: 0.0319 | BM73: 0.0319 | BN73: 0.0319 | BO73: 0.0319 | BP73: 0.0319 | BR73: =+IF($K73="Ongoing",AV73,IF(RIGHT($K73,2)=RIGHT(BR$39,2),SUM($AV73:AV73),0)+IF(RIGHT(BR$39,2)>RIGHT($K73,2),AV73,0)) -> 0 | BS73: =+IF($K73="Ongoing",AW73,IF(RIGHT($K73,2)=RIGHT(BS$39,2),SUM($AV73:AW73),0)+IF(RIGHT(BS$39,2)>RIGHT($K73,2),AW73,0)) -> 0.638 | BT73: =+IF($K73="Ongoing",AX73,IF(RIGHT($K73,2)=RIGHT(BT$39,2),SUM($AV73:AX73),0)+IF(RIGHT(BT$39,2)>RIGHT($K73,2),AX73,0)) -> 0 | BU73: =+IF($K73="Ongoing",AY73,IF(RIGHT($K73,2)=RIGHT(BU$39,2),SUM($AV73:AY73),0)+IF(RIGHT(BU$39,2)>RIGHT($K73,2),AY73,0)) -> 0 | BV73: =+IF($K73="Ongoing",AZ73,IF(RIGHT($K73,2)=RIGHT(BV$39,2),SUM($AV73:AZ73),0)+IF(RIGHT(BV$39,2)>RIGHT($K73,2),AZ73,0)) -> 0 | BW73: =+IF($K73="Ongoing",BA73,IF(RIGHT($K73,2)=RIGHT(BW$39,2),SUM($AV73:BA73),0)+IF(RIGHT(BW$39,2)>RIGHT($K73,2),BA73,0)) -> 0 | BX73: =+IF($K73="Ongoing",BB73,IF(RIGHT($K73,2)=RIGHT(BX$39,2),SUM($AV73:BB73),0)+IF(RIGHT(BX$39,2)>RIGHT($K73,2),BB73,0)) -> 0 | BY73: =+IF($K73="Ongoing",BC73,IF(RIGHT($K73,2)=RIGHT(BY$39,2),SUM($AV73:BC73),0)+IF(RIGHT(BY$39,2)>RIGHT($K73,2),BC73,0)) -> 0 | BZ73: =+IF($K73="Ongoing",BD73,IF(RIGHT($K73,2)=RIGHT(BZ$39,2),SUM($AV73:BD73),0)+IF(RIGHT(BZ$39,2)>RIGHT($K73,2),BD73,0)) -> 0 | CA73: =+IF($K73="Ongoing",BE73,IF(RIGHT($K73,2)=RIGHT(CA$39,2),SUM($AV73:BE73),0)+IF(RIGHT(CA$39,2)>RIGHT($K73,2),BE73,0)) -> 0 | CC73: =+O73*KeyAssumptionsPriceControl_FO!X$15 -> 0.418407 | CD73: =+P73*KeyAssumptionsPriceControl_FO!Y$15 -> 0.239655141 | CE73: =+Q73*KeyAssumptionsPriceControl_FO!Z$15 -> 0 | CF73: =+R73*KeyAssumptionsPriceControl_FO!AA$15 -> 0 | CG73: =+S73*KeyAssumptionsPriceControl_FO!AB$15 -> 0 | CH73: =+T73*KeyAssumptionsPriceControl_FO!AC$15 -> 0 | CI73: =+U73*KeyAssumptionsPriceControl_FO!AD$15 -> 0 | CJ73: =+V73*KeyAssumptionsPriceControl_FO!AE$15 -> 0 | CK73: =+W73*KeyAssumptionsPriceControl_FO!AF$15 -> 0 | CL73: =+X73*KeyAssumptionsPriceControl_FO!AG$15 -> 0 | CN73: 0.010460175 | CO73: 0.02691172852 | CP73: 0.03290310705 | CQ73: 0.03290310705 | CR73: 0.03290310705 | CS73: 0.03290310705 | CT73: 0.03290310705 | CU73: 0.03290310705 | CV73: 0.03290310705 | CW73: 0.03290310705
C74: BWWTP biosolids storage bund | E74: Sewerage | F74: Improvements / Compliance | G74: Treatment | H74: Other Capital expenditure | J74: Straight line | K74: 2021-22 | L74: 80 | M74: 80 | O74: 0 | P74: 0 | Q74: 0 | R74: 0.672 | S74: 0 | T74: 0 | U74: 0 | V74: 0 | W74: 0 | X74: 0 | AV74: 0 | AW74: 0 | AX74: 0 | AY74: 0.672 | AZ74: 0 | BA74: 0 | BB74: 0 | BC74: 0 | BD74: 0 | BE74: 0 | BG74: 0 | BH74: 0 | BI74: 0 | BJ74: 0.0042 | BK74: 0.0084 | BL74: 0.0084 | BM74: 0.0084 | BN74: 0.0084 | BO74: 0.0084 | BP74: 0.0084 | BR74: =+IF($K74="Ongoing",AV74,IF(RIGHT($K74,2)=RIGHT(BR$39,2),SUM($AV74:AV74),0)+IF(RIGHT(BR$39,2)>RIGHT($K74,2),AV74,0)) -> 0 | BS74: =+IF($K74="Ongoing",AW74,IF(RIGHT($K74,2)=RIGHT(BS$39,2),SUM($AV74:AW74),0)+IF(RIGHT(BS$39,2)>RIGHT($K74,2),AW74,0)) -> 0 | BT74: =+IF($K74="Ongoing",AX74,IF(RIGHT($K74,2)=RIGHT(BT$39,2),SUM($AV74:AX74),0)+IF(RIGHT(BT$39,2)>RIGHT($K74,2),AX74,0)) -> 0 | BU74: =+IF($K74="Ongoing",AY74,IF(RIGHT($K74,2)=RIGHT(BU$39,2),SUM($AV74:AY74),0)+IF(RIGHT(BU$39,2)>RIGHT($K74,2),AY74,0)) -> 0.672 | BV74: =+IF($K74="Ongoing",AZ74,IF(RIGHT($K74,2)=RIGHT(BV$39,2),SUM($AV74:AZ74),0)+IF(RIGHT(BV$39,2)>RIGHT($K74,2),AZ74,0)) -> 0 | BW74: =+IF($K74="Ongoing",BA74,IF(RIGHT($K74,2)=RIGHT(BW$39,2),SUM($AV74:BA74),0)+IF(RIGHT(BW$39,2)>RIGHT($K74,2),BA74,0)) -> 0 | BX74: =+IF($K74="Ongoing",BB74,IF(RIGHT($K74,2)=RIGHT(BX$39,2),SUM($AV74:BB74),0)+IF(RIGHT(BX$39,2)>RIGHT($K74,2),BB74,0)) -> 0 | BY74: =+IF($K74="Ongoing",BC74,IF(RIGHT($K74,2)=RIGHT(BY$39,2),SUM($AV74:BC74),0)+IF(RIGHT(BY$39,2)>RIGHT($K74,2),BC74,0)) -> 0 | BZ74: =+IF($K74="Ongoing",BD74,IF(RIGHT($K74,2)=RIGHT(BZ$39,2),SUM($AV74:BD74),0)+IF(RIGHT(BZ$39,2)>RIGHT($K74,2),BD74,0)) -> 0 | CA74: =+IF($K74="Ongoing",BE74,IF(RIGHT($K74,2)=RIGHT(CA$39,2),SUM($AV74:BE74),0)+IF(RIGHT(CA$39,2)>RIGHT($K74,2),BE74,0)) -> 0 | CC74: =+O74*KeyAssumptionsPriceControl_FO!X$15 -> 0 | CD74: =+P74*KeyAssumptionsPriceControl_FO!Y$15 -> 0 | CE74: =+Q74*KeyAssumptionsPriceControl_FO!Z$15 -> 0 | CF74: =+R74*KeyAssumptionsPriceControl_FO!AA$15 -> 0.7359898209 | CG74: =+S74*KeyAssumptionsPriceControl_FO!AB$15 -> 0 | CH74: =+T74*KeyAssumptionsPriceControl_FO!AC$15 -> 0 | CI74: =+U74*KeyAssumptionsPriceControl_FO!AD$15 -> 0 | CJ74: =+V74*KeyAssumptionsPriceControl_FO!AE$15 -> 0 | CK74: =+W74*KeyAssumptionsPriceControl_FO!AF$15 -> 0 | CL74: =+X74*KeyAssumptionsPriceControl_FO!AG$15 -> 0 | CN74: 0 | CO74: 0 | CP74: 0 | CQ74: 0.004599936381 | CR74: 0.009199872762 | CS74: 0.009199872762 | CT74: 0.009199872762 | CU74: 0.009199872762 | CV74: 0.009199872762 | CW74: 0.009199872762
C75: Dinner Plain Wastewater Treatment Plant Improvement works | E75: Sewerage | F75: Renewals | G75: Treatment | H75: Other Capital expenditure | J75: Straight line | K75: 2022-23 | L75: 10 | M75: 10 | O75: 0 | P75: 0 | Q75: 0 | R75: 0 | S75: 0.204 | T75: 0 | U75: 0 | V75: 0 | W75: 0 | X75: 0 | AV75: 0 | AW75: 0 | AX75: 0 | AY75: 0 | AZ75: 0.204 | BA75: 0 | BB75: 0 | BC75: 0 | BD75: 0 | BE75: 0 | BG75: 0 | BH75: 0 | BI75: 0 | BJ75: 0 | BK75: 0.0102 | BL75: 0.0204 | BM75: 0.0204 | BN75: 0.0204 | BO75: 0.0204 | BP75: 0.0204 | BR75: =+IF($K75="Ongoing",AV75,IF(RIGHT($K75,2)=RIGHT(BR$39,2),SUM($AV75:AV75),0)+IF(RIGHT(BR$39,2)>RIGHT($K75,2),AV75,0)) -> 0 | BS75: =+IF($K75="Ongoing",AW75,IF(RIGHT($K75,2)=RIGHT(BS$39,2),SUM($AV75:AW75),0)+IF(RIGHT(BS$39,2)>RIGHT($K75,2),AW75,0)) -> 0 | BT75: =+IF($K75="Ongoing",AX75,IF(RIGHT($K75,2)=RIGHT(BT$39,2),SUM($AV75:AX75),0)+IF(RIGHT(BT$39,2)>RIGHT($K75,2),AX75,0)) -> 0 | BU75: =+IF($K75="Ongoing",AY75,IF(RIGHT($K75,2)=RIGHT(BU$39,2),SUM($AV75:AY75),0)+IF(RIGHT(BU$39,2)>RIGHT($K75,2),AY75,0)) -> 0 | BV75: =+IF($K75="Ongoing",AZ75,IF(RIGHT($K75,2)=RIGHT(BV$39,2),SUM($AV75:AZ75),0)+IF(RIGHT(BV$39,2)>RIGHT($K75,2),AZ75,0)) -> 0.204 | BW75: =+IF($K75="Ongoing",BA75,IF(RIGHT($K75,2)=RIGHT(BW$39,2),SUM($AV75:BA75),0)+IF(RIGHT(BW$39,2)>RIGHT($K75,2),BA75,0)) -> 0 | BX75: =+IF($K75="Ongoing",BB75,IF(RIGHT($K75,2)=RIGHT(BX$39,2),SUM($AV75:BB75),0)+IF(RIGHT(BX$39,2)>RIGHT($K75,2),BB75,0)) -> 0 | BY75: =+IF($K75="Ongoing",BC75,IF(RIGHT($K75,2)=RIGHT(BY$39,2),SUM($AV75:BC75),0)+IF(RIGHT(BY$39,2)>RIGHT($K75,2),BC75,0)) -> 0 | BZ75: =+IF($K75="Ongoing",BD75,IF(RIGHT($K75,2)=RIGHT(BZ$39,2),SUM($AV75:BD75),0)+IF(RIGHT(BZ$39,2)>RIGHT($K75,2),BD75,0)) -> 0 | CA75: =+IF($K75="Ongoing",BE75,IF(RIGHT($K75,2)=RIGHT(CA$39,2),SUM($AV75:BE75),0)+IF(RIGHT(CA$39,2)>RIGHT($K75,2),BE75,0)) -> 0 | CC75: =+O75*KeyAssumptionsPriceControl_FO!X$15 -> 0 | CD75: =+P75*KeyAssumptionsPriceControl_FO!Y$15 -> 0 | CE75: =+Q75*KeyAssumptionsPriceControl_FO!Z$15 -> 0 | CF75: =+R75*KeyAssumptionsPriceControl_FO!AA$15 -> 0 | CG75: =+S75*KeyAssumptionsPriceControl_FO!AB$15 -> 0.2285642674 | CH75: =+T75*KeyAssumptionsPriceControl_FO!AC$15 -> 0 | CI75: =+U75*KeyAssumptionsPriceControl_FO!AD$15 -> 0 | CJ75: =+V75*KeyAssumptionsPriceControl_FO!AE$15 -> 0 | CK75: =+W75*KeyAssumptionsPriceControl_FO!AF$15 -> 0 | CL75: =+X75*KeyAssumptionsPriceControl_FO!AG$15 -> 0 | CN75: 0 | CO75: 0 | CP75: 0 | CQ75: 0 | CR75: 0.01142821337 | CS75: 0.02285642674 | CT75: 0.02285642674 | CU75: 0.02285642674 | CV75: 0.02285642674 | CW75: 0.02285642674
C76: Swan Reach to Sunlakes MSPL Renewal (approx 2km 1964 AC section) - high risk | E76: Water | F76: Renewals | G76: Pipelines/network | H76: Capital Programs / Allocation | J76: Straight line | K76: 2024-25 | L76: 80 | M76: 80 | O76: 0 | P76: 0 | Q76: 0 | R76: 0 | S76: 0.5 | T76: 1 | U76: 0.6 | V76: 0 | W76: 0 | X76: 0 | AV76: 0 | AW76: 0 | AX76: 0 | AY76: 0 | AZ76: 0.5 | BA76: 1 | BB76: 0.6 | BC76: 0 | BD76: 0 | BE76: 0 | BG76: 0 | BH76: 0 | BI76: 0 | BJ76: 0 | BK76: 0 | BL76: 0 | BM76: 0.013125 | BN76: 0.02625 | BO76: 0.02625 | BP76: 0.02625 | BR76: =+IF($K76="Ongoing",AV76,IF(RIGHT($K76,2)=RIGHT(BR$39,2),SUM($AV76:AV76),0)+IF(RIGHT(BR$39,2)>RIGHT($K76,2),AV76,0)) -> 0 | BS76: =+IF($K76="Ongoing",AW76,IF(RIGHT($K76,2)=RIGHT(BS$39,2),SUM($AV76:AW76),0)+IF(RIGHT(BS$39,2)>RIGHT($K76,2),AW76,0)) -> 0 | BT76: =+IF($K76="Ongoing",AX76,IF(RIGHT($K76,2)=RIGHT(BT$39,2),SUM($AV76:AX76),0)+IF(RIGHT(BT$39,2)>RIGHT($K76,2),AX76,0)) -> 0 | BU76: =+IF($K76="Ongoing",AY76,IF(RIGHT($K76,2)=RIGHT(BU$39,2),SUM($AV76:AY76),0)+IF(RIGHT(BU$39,2)>RIGHT($K76,2),AY76,0)) -> 0 | BV76: =+IF($K76="Ongoing",AZ76,IF(RIGHT($K76,2)=RIGHT(BV$39,2),SUM($AV76:AZ76),0)+IF(RIGHT(BV$39,2)>RIGHT($K76,2),AZ76,0)) -> 0 | BW76: =+IF($K76="Ongoing",BA76,IF(RIGHT($K76,2)=RIGHT(BW$39,2),SUM($AV76:BA76),0)+IF(RIGHT(BW$39,2)>RIGHT($K76,2),BA76,0)) -> 0 | BX76: =+IF($K76="Ongoing",BB76,IF(RIGHT($K76,2)=RIGHT(BX$39,2),SUM($AV76:BB76),0)+IF(RIGHT(BX$39,2)>RIGHT($K76,2),BB76,0)) -> 2.1 | BY76: =+IF($K76="Ongoing",BC76,IF(RIGHT($K76,2)=RIGHT(BY$39,2),SUM($AV76:BC76),0)+IF(RIGHT(BY$39,2)>RIGHT($K76,2),BC76,0)) -> 0 | BZ76: =+IF($K76="Ongoing",BD76,IF(RIGHT($K76,2)=RIGHT(BZ$39,2),SUM($AV76:BD76),0)+IF(RIGHT(BZ$39,2)>RIGHT($K76,2),BD76,0)) -> 0 | CA76: =+IF($K76="Ongoing",BE76,IF(RIGHT($K76,2)=RIGHT(CA$39,2),SUM($AV76:BE76),0)+IF(RIGHT(CA$39,2)>RIGHT($K76,2),BE76,0)) -> 0 | CC76: =+O76*KeyAssumptionsPriceControl_FO!X$15 -> 0 | CD76: =+P76*KeyAssumptionsPriceControl_FO!Y$15 -> 0 | CE76: =+Q76*KeyAssumptionsPriceControl_FO!Z$15 -> 0 | CF76: =+R76*KeyAssumptionsPriceControl_FO!AA$15 -> 0 | CG76: =+S76*KeyAssumptionsPriceControl_FO!AB$15 -> 0.5602065378 | CH76: =+T76*KeyAssumptionsPriceControl_FO!AC$15 -> 1.146182576 | CI76: =+U76*KeyAssumptionsPriceControl_FO!AD$15 -> 0.7035268654 | CJ76: =+V76*KeyAssumptionsPriceControl_FO!AE$15 -> 0 | CK76: =+W76*KeyAssumptionsPriceControl_FO!AF$15 -> 0 | CL76: =+X76*KeyAssumptionsPriceControl_FO!AG$15 -> 0 | CN76: 0 | CO76: 0 | CP76: 0 | CQ76: 0 | CR76: 0.003501290861 | CS76: 0.01416622283 | CT76: 0.02572690684 | CU76: 0.03012394974 | CV76: 0.03012394974 | CW76: 0.03012394974
C77: Odour Management WWTPs - additional aeration at Paynesville | E77: Sewerage | F77: Improvements / Compliance | G77: Treatment | H77: Other Capital expenditure | J77: Straight line | K77: 2020-21 | L77: 10 | M77: 20 | O77: 0 | P77: 0 | Q77: 0 | R77: 0 | S77: 0 | T77: 0 | U77: 0 | V77: 0 | W77: 0 | X77: 0 | AV77: 0 | AW77: 0 | AX77: 0 | AY77: 0 | AZ77: 0 | BA77: 0 | BB77: 0 | BC77: 0 | BD77: 0 | BE77: 0 | BG77: 0 | BH77: 0 | BI77: 0 | BJ77: 0 | BK77: 0 | BL77: 0 | BM77: 0 | BN77: 0 | BO77: 0 | BP77: 0 | BR77: =+IF($K77="Ongoing",AV77,IF(RIGHT($K77,2)=RIGHT(BR$39,2),SUM($AV77:AV77),0)+IF(RIGHT(BR$39,2)>RIGHT($K77,2),AV77,0)) -> 0 | BS77: =+IF($K77="Ongoing",AW77,IF(RIGHT($K77,2)=RIGHT(BS$39,2),SUM($AV77:AW77),0)+IF(RIGHT(BS$39,2)>RIGHT($K77,2),AW77,0)) -> 0 | BT77: =+IF($K77="Ongoing",AX77,IF(RIGHT($K77,2)=RIGHT(BT$39,2),SUM($AV77:AX77),0)+IF(RIGHT(BT$39,2)>RIGHT($K77,2),AX77,0)) -> 0 | BU77: =+IF($K77="Ongoing",AY77,IF(RIGHT($K77,2)=RIGHT(BU$39,2),SUM($AV77:AY77),0)+IF(RIGHT(BU$39,2)>RIGHT($K77,2),AY77,0)) -> 0 | BV77: =+IF($K77="Ongoing",AZ77,IF(RIGHT($K77,2)=RIGHT(BV$39,2),SUM($AV77:AZ77),0)+IF(RIGHT(BV$39,2)>RIGHT($K77,2),AZ77,0)) -> 0 | BW77: =+IF($K77="Ongoing",BA77,IF(RIGHT($K77,2)=RIGHT(BW$39,2),SUM($AV77:BA77),0)+IF(RIGHT(BW$39,2)>RIGHT($K77,2),BA77,0)) -> 0 | BX77: =+IF($K77="Ongoing",BB77,IF(RIGHT($K77,2)=RIGHT(BX$39,2),SUM($AV77:BB77),0)+IF(RIGHT(BX$39,2)>RIGHT($K77,2),BB77,0)) -> 0 | BY77: =+IF($K77="Ongoing",BC77,IF(RIGHT($K77,2)=RIGHT(BY$39,2),SUM($AV77:BC77),0)+IF(RIGHT(BY$39,2)>RIGHT($K77,2),BC77,0)) -> 0 | BZ77: =+IF($K77="Ongoing",BD77,IF(RIGHT($K77,2)=RIGHT(BZ$39,2),SUM($AV77:BD77),0)+IF(RIGHT(BZ$39,2)>RIGHT($K77,2),BD77,0)) -> 0 | CA77: =+IF($K77="Ongoing",BE77,IF(RIGHT($K77,2)=RIGHT(CA$39,2),SUM($AV77:BE77),0)+IF(RIGHT(CA$39,2)>RIGHT($K77,2),BE77,0)) -> 0 | CC77: =+O77*KeyAssumptionsPriceControl_FO!X$15 -> 0 | CD77: =+P77*KeyAssumptionsPriceControl_FO!Y$15 -> 0 | CE77: =+Q77*KeyAssumptionsPriceControl_FO!Z$15 -> 0 | CF77: =+R77*KeyAssumptionsPriceControl_FO!AA$15 -> 0 | CG77: =+S77*KeyAssumptionsPriceControl_FO!AB$15 -> 0 | CH77: =+T77*KeyAssumptionsPriceControl_FO!AC$15 -> 0 | CI77: =+U77*KeyAssumptionsPriceControl_FO!AD$15 -> 0 | CJ77: =+V77*KeyAssumptionsPriceControl_FO!AE$15 -> 0 | CK77: =+W77*KeyAssumptionsPriceControl_FO!AF$15 -> 0 | CL77: =+X77*KeyAssumptionsPriceControl_FO!AG$15 -> 0 | CN77: 0 | CO77: 0 | CP77: 0 | CQ77: 0 | CR77: 0 | CS77: 0 | CT77: 0 | CU77: 0 | CV77: 0 | CW77: 0
C78: Paynesville STP and reuse power supply upgrade | E78: Sewerage | F78: Improvements / Compliance | G78: Treatment | H78: Other Capital expenditure | J78: Straight line | K78: 2020-21 | L78: 20 | M78: 20 | O78: 0 | P78: 0 | Q78: 0 | R78: 0 | S78: 0 | T78: 0 | U78: 0 | V78: 0 | W78: 0 | X78: 0 | AV78: 0 | AW78: 0 | AX78: 0 | AY78: 0 | AZ78: 0 | BA78: 0 | BB78: 0 | BC78: 0 | BD78: 0 | BE78: 0 | BG78: 0 | BH78: 0 | BI78: 0 | BJ78: 0 | BK78: 0 | BL78: 0 | BM78: 0 | BN78: 0 | BO78: 0 | BP78: 0 | BR78: =+IF($K78="Ongoing",AV78,IF(RIGHT($K78,2)=RIGHT(BR$39,2),SUM($AV78:AV78),0)+IF(RIGHT(BR$39,2)>RIGHT($K78,2),AV78,0)) -> 0 | BS78: =+IF($K78="Ongoing",AW78,IF(RIGHT($K78,2)=RIGHT(BS$39,2),SUM($AV78:AW78),0)+IF(RIGHT(BS$39,2)>RIGHT($K78,2),AW78,0)) -> 0 | BT78: =+IF($K78="Ongoing",AX78,IF(RIGHT($K78,2)=RIGHT(BT$39,2),SUM($AV78:AX78),0)+IF(RIGHT(BT$39,2)>RIGHT($K78,2),AX78,0)) -> 0 | BU78: =+IF($K78="Ongoing",AY78,IF(RIGHT($K78,2)=RIGHT(BU$39,2),SUM($AV78:AY78),0)+IF(RIGHT(BU$39,2)>RIGHT($K78,2),AY78,0)) -> 0 | BV78: =+IF($K78="Ongoing",AZ78,IF(RIGHT($K78,2)=RIGHT(BV$39,2),SUM($AV78:AZ78),0)+IF(RIGHT(BV$39,2)>RIGHT($K78,2),AZ78,0)) -> 0 | BW78: =+IF($K78="Ongoing",BA78,IF(RIGHT($K78,2)=RIGHT(BW$39,2),SUM($AV78:BA78),0)+IF(RIGHT(BW$39,2)>RIGHT($K78,2),BA78,0)) -> 0 | BX78: =+IF($K78="Ongoing",BB78,IF(RIGHT($K78,2)=RIGHT(BX$39,2),SUM($AV78:BB78),0)+IF(RIGHT(BX$39,2)>RIGHT($K78,2),BB78,0)) -> 0 | BY78: =+IF($K78="Ongoing",BC78,IF(RIGHT($K78,2)=RIGHT(BY$39,2),SUM($AV78:BC78),0)+IF(RIGHT(BY$39,2)>RIGHT($K78,2),BC78,0)) -> 0 | BZ78: =+IF($K78="Ongoing",BD78,IF(RIGHT($K78,2)=RIGHT(BZ$39,2),SUM($AV78:BD78),0)+IF(RIGHT(BZ$39,2)>RIGHT($K78,2),BD78,0)) -> 0 | CA78: =+IF($K78="Ongoing",BE78,IF(RIGHT($K78,2)=RIGHT(CA$39,2),SUM($AV78:BE78),0)+IF(RIGHT(CA$39,2)>RIGHT($K78,2),BE78,0)) -> 0 | CC78: =+O78*KeyAssumptionsPriceControl_FO!X$15 -> 0 | CD78: =+P78*KeyAssumptionsPriceControl_FO!Y$15 -> 0 | CE78: =+Q78*KeyAssumptionsPriceControl_FO!Z$15 -> 0 | CF78: =+R78*KeyAssumptionsPriceControl_FO!AA$15 -> 0 | CG78: =+S78*KeyAssumptionsPriceControl_FO!AB$15 -> 0 | CH78: =+T78*KeyAssumptionsPriceControl_FO!AC$15 -> 0 | CI78: =+U78*KeyAssumptionsPriceControl_FO!AD$15 -> 0 | CJ78: =+V78*KeyAssumptionsPriceControl_FO!AE$15 -> 0 | CK78: =+W78*KeyAssumptionsPriceControl_FO!AF$15 -> 0 | CL78: =+X78*KeyAssumptionsPriceControl_FO!AG$15 -> 0 | CN78: 0 | CO78: 0 | CP78: 0 | CQ78: 0 | CR78: 0 | CS78: 0 | CT78: 0 | CU78: 0 | CV78: 0 | CW78: 0
C79: Stock Access to WWTP Lagoons | E79: Sewerage | F79: Improvements / Compliance | G79: Treatment | H79: Other Capital expenditure | J79: Straight line | K79: 2020-21 | L79: 10 | M79: 10 | O79: 0 | P79: 0 | Q79: 0 | R79: 0 | S79: 0 | T79: 0 | U79: 0 | V79: 0 | W79: 0 | X79: 0 | AV79: 0 | AW79: 0 | AX79: 0 | AY79: 0 | AZ79: 0 | BA79: 0 | BB79: 0 | BC79: 0 | BD79: 0 | BE79: 0 | BG79: 0 | BH79: 0 | BI79: 0 | BJ79: 0 | BK79: 0 | BL79: 0 | BM79: 0 | BN79: 0 | BO79: 0 | BP79: 0 | BR79: =+IF($K79="Ongoing",AV79,IF(RIGHT($K79,2)=RIGHT(BR$39,2),SUM($AV79:AV79),0)+IF(RIGHT(BR$39,2)>RIGHT($K79,2),AV79,0)) -> 0 | BS79: =+IF($K79="Ongoing",AW79,IF(RIGHT($K79,2)=RIGHT(BS$39,2),SUM($AV79:AW79),0)+IF(RIGHT(BS$39,2)>RIGHT($K79,2),AW79,0)) -> 0 | BT79: =+IF($K79="Ongoing",AX79,IF(RIGHT($K79,2)=RIGHT(BT$39,2),SUM($AV79:AX79),0)+IF(RIGHT(BT$39,2)>RIGHT($K79,2),AX79,0)) -> 0 | BU79: =+IF($K79="Ongoing",AY79,IF(RIGHT($K79,2)=RIGHT(BU$39,2),SUM($AV79:AY79),0)+IF(RIGHT(BU$39,2)>RIGHT($K79,2),AY79,0)) -> 0 | BV79: =+IF($K79="Ongoing",AZ79,IF(RIGHT($K79,2)=RIGHT(BV$39,2),SUM($AV79:AZ79),0)+IF(RIGHT(BV$39,2)>RIGHT($K79,2),AZ79,0)) -> 0 | BW79: =+IF($K79="Ongoing",BA79,IF(RIGHT($K79,2)=RIGHT(BW$39,2),SUM($AV79:BA79),0)+IF(RIGHT(BW$39,2)>RIGHT($K79,2),BA79,0)) -> 0 | BX79: =+IF($K79="Ongoing",BB79,IF(RIGHT($K79,2)=RIGHT(BX$39,2),SUM($AV79:BB79),0)+IF(RIGHT(BX$39,2)>RIGHT($K79,2),BB79,0)) -> 0 | BY79: =+IF($K79="Ongoing",BC79,IF(RIGHT($K79,2)=RIGHT(BY$39,2),SUM($AV79:BC79),0)+IF(RIGHT(BY$39,2)>RIGHT($K79,2),BC79,0)) -> 0 | BZ79: =+IF($K79="Ongoing",BD79,IF(RIGHT($K79,2)=RIGHT(BZ$39,2),SUM($AV79:BD79),0)+IF(RIGHT(BZ$39,2)>RIGHT($K79,2),BD79,0)) -> 0 | CA79: =+IF($K79="Ongoing",BE79,IF(RIGHT($K79,2)=RIGHT(CA$39,2),SUM($AV79:BE79),0)+IF(RIGHT(CA$39,2)>RIGHT($K79,2),BE79,0)) -> 0 | CC79: =+O79*KeyAssumptionsPriceControl_FO!X$15 -> 0 | CD79: =+P79*KeyAssumptionsPriceControl_FO!Y$15 -> 0 | CE79: =+Q79*KeyAssumptionsPriceControl_FO!Z$15 -> 0 | CF79: =+R79*KeyAssumptionsPriceControl_FO!AA$15 -> 0 | CG79: =+S79*KeyAssumptionsPriceControl_FO!AB$15 -> 0 | CH79: =+T79*KeyAssumptionsPriceControl_FO!AC$15 -> 0 | CI79: =+U79*KeyAssumptionsPriceControl_FO!AD$15 -> 0 | CJ79: =+V79*KeyAssumptionsPriceControl_FO!AE$15 -> 0 | CK79: =+W79*KeyAssumptionsPriceControl_FO!AF$15 -> 0 | CL79: =+X79*KeyAssumptionsPriceControl_FO!AG$15 -> 0 | CN79: 0 | CO79: 0 | CP79: 0 | CQ79: 0 | CR79: 0 | CS79: 0 | CT79: 0 | CU79: 0 | CV79: 0 | CW79: 0
C80: WWTP Primary Screening | E80: Sewerage | F80: Improvements / Compliance | G80: Treatment | H80: Other Capital expenditure | J80: Straight line | K80: 2020-21 | L80: 10 | M80: 20 | O80: 0 | P80: 0 | Q80: 0.327 | R80: 0 | S80: 0 | T80: 0 | U80: 0 | V80: 0 | W80: 0 | X80: 0 | AV80: 0 | AW80: 0 | AX80: 0.327 | AY80: 0 | AZ80: 0 | BA80: 0 | BB80: 0 | BC80: 0 | BD80: 0 | BE80: 0 | BG80: 0 | BH80: 0 | BI80: 0.01635 | BJ80: 0.0327 | BK80: 0.0327 | BL80: 0.0327 | BM80: 0.0327 | BN80: 0.0327 | BO80: 0.0327 | BP80: 0.0327 | BR80: =+IF($K80="Ongoing",AV80,IF(RIGHT($K80,2)=RIGHT(BR$39,2),SUM($AV80:AV80),0)+IF(RIGHT(BR$39,2)>RIGHT($K80,2),AV80,0)) -> 0 | BS80: =+IF($K80="Ongoing",AW80,IF(RIGHT($K80,2)=RIGHT(BS$39,2),SUM($AV80:AW80),0)+IF(RIGHT(BS$39,2)>RIGHT($K80,2),AW80,0)) -> 0 | BT80: =+IF($K80="Ongoing",AX80,IF(RIGHT($K80,2)=RIGHT(BT$39,2),SUM($AV80:AX80),0)+IF(RIGHT(BT$39,2)>RIGHT($K80,2),AX80,0)) -> 0.327 | BU80: =+IF($K80="Ongoing",AY80,IF(RIGHT($K80,2)=RIGHT(BU$39,2),SUM($AV80:AY80),0)+IF(RIGHT(BU$39,2)>RIGHT($K80,2),AY80,0)) -> 0 | BV80: =+IF($K80="Ongoing",AZ80,IF(RIGHT($K80,2)=RIGHT(BV$39,2),SUM($AV80:AZ80),0)+IF(RIGHT(BV$39,2)>RIGHT($K80,2),AZ80,0)) -> 0 | BW80: =+IF($K80="Ongoing",BA80,IF(RIGHT($K80,2)=RIGHT(BW$39,2),SUM($AV80:BA80),0)+IF(RIGHT(BW$39,2)>RIGHT($K80,2),BA80,0)) -> 0 | BX80: =+IF($K80="Ongoing",BB80,IF(RIGHT($K80,2)=RIGHT(BX$39,2),SUM($AV80:BB80),0)+IF(RIGHT(BX$39,2)>RIGHT($K80,2),BB80,0)) -> 0 | BY80: =+IF($K80="Ongoing",BC80,IF(RIGHT($K80,2)=RIGHT(BY$39,2),SUM($AV80:BC80),0)+IF(RIGHT(BY$39,2)>RIGHT($K80,2),BC80,0)) -> 0 | BZ80: =+IF($K80="Ongoing",BD80,IF(RIGHT($K80,2)=RIGHT(BZ$39,2),SUM($AV80:BD80),0)+IF(RIGHT(BZ$39,2)>RIGHT($K80,2),BD80,0)) -> 0 | CA80: =+IF($K80="Ongoing",BE80,IF(RIGHT($K80,2)=RIGHT(CA$39,2),SUM($AV80:BE80),0)+IF(RIGHT(CA$39,2)>RIGHT($K80,2),BE80,0)) -> 0 | CC80: =+O80*KeyAssumptionsPriceControl_FO!X$15 -> 0 | CD80: =+P80*KeyAssumptionsPriceControl_FO!Y$15 -> 0 | CE80: =+Q80*KeyAssumptionsPriceControl_FO!Z$15 -> 0.3500859276 | CF80: =+R80*KeyAssumptionsPriceControl_FO!AA$15 -> 0 | CG80: =+S80*KeyAssumptionsPriceControl_FO!AB$15 -> 0 | CH80: =+T80*KeyAssumptionsPriceControl_FO!AC$15 -> 0 | CI80: =+U80*KeyAssumptionsPriceControl_FO!AD$15 -> 0 | CJ80: =+V80*KeyAssumptionsPriceControl_FO!AE$15 -> 0 | CK80: =+W80*KeyAssumptionsPriceControl_FO!AF$15 -> 0 | CL80: =+X80*KeyAssumptionsPriceControl_FO!AG$15 -> 0 | CN80: 0 | CO80: 0 | CP80: 0.00875214819 | CQ80: 0.01750429638 | CR80: 0.01750429638 | CS80: 0.01750429638 | CT80: 0.01750429638 | CU80: 0.01750429638 | CV80: 0.01750429638 | CW80: 0.01750429638
C81: Asset Renewals - Reuse Facilities incl Winter Storages | E81: Recycled Water | F81: Renewals | G81: Treatment | H81: Capital Programs / Allocation | J81: Straight line | K81: Ongoing | L81: 20 | M81: 80 | O81: 0.821 | P81: 0.807 | Q81: 0.842 | R81: 0.802 | S81: 0.264 | T81: 0.467 | U81: 0.583 | V81: 0.69 | W81: 0.8 | X81: 0.811 | AV81: 0.821 | AW81: 0.807 | AX81: 0.842 | AY81: 0.802 | AZ81: 0.264 | BA81: 0.467 | BB81: 0.583 | BC81: 0.69 | BD81: 0.8 | BE81: 0.811 | BG81: 0.020525 | BH81: 0.061225 | BI81: 0.10245 | BJ81: 0.14355 | BK81: 0.1702 | BL81: 0.188475 | BM81: 0.214725 | BN81: 0.24655 | BO81: 0.2838 | BP81: 0.324075 | BR81: =+IF($K81="Ongoing",AV81,IF(RIGHT($K81,2)=RIGHT(BR$39,2),SUM($AV81:AV81),0)+IF(RIGHT(BR$39,2)>RIGHT($K81,2),AV81,0)) -> 0.821 | BS81: =+IF($K81="Ongoing",AW81,IF(RIGHT($K81,2)=RIGHT(BS$39,2),SUM($AV81:AW81),0)+IF(RIGHT(BS$39,2)>RIGHT($K81,2),AW81,0)) -> 0.807 | BT81: =+IF($K81="Ongoing",AX81,IF(RIGHT($K81,2)=RIGHT(BT$39,2),SUM($AV81:AX81),0)+IF(RIGHT(BT$39,2)>RIGHT($K81,2),AX81,0)) -> 0.842 | BU81: =+IF($K81="Ongoing",AY81,IF(RIGHT($K81,2)=RIGHT(BU$39,2),SUM($AV81:AY81),0)+IF(RIGHT(BU$39,2)>RIGHT($K81,2),AY81,0)) -> 0.802 | BV81: =+IF($K81="Ongoing",AZ81,IF(RIGHT($K81,2)=RIGHT(BV$39,2),SUM($AV81:AZ81),0)+IF(RIGHT(BV$39,2)>RIGHT($K81,2),AZ81,0)) -> 0.264 | BW81: =+IF($K81="Ongoing",BA81,IF(RIGHT($K81,2)=RIGHT(BW$39,2),SUM($AV81:BA81),0)+IF(RIGHT(BW$39,2)>RIGHT($K81,2),BA81,0)) -> 0.467 | BX81: =+IF($K81="Ongoing",BB81,IF(RIGHT($K81,2)=RIGHT(BX$39,2),SUM($AV81:BB81),0)+IF(RIGHT(BX$39,2)>RIGHT($K81,2),BB81,0)) -> 0.583 | BY81: =+IF($K81="Ongoing",BC81,IF(RIGHT($K81,2)=RIGHT(BY$39,2),SUM($AV81:BC81),0)+IF(RIGHT(BY$39,2)>RIGHT($K81,2),BC81,0)) -> 0.69 | BZ81: =+IF($K81="Ongoing",BD81,IF(RIGHT($K81,2)=RIGHT(BZ$39,2),SUM($AV81:BD81),0)+IF(RIGHT(BZ$39,2)>RIGHT($K81,2),BD81,0)) -> 0.8 | CA81: =+IF($K81="Ongoing",BE81,IF(RIGHT($K81,2)=RIGHT(CA$39,2),SUM($AV81:BE81),0)+IF(RIGHT(CA$39,2)>RIGHT($K81,2),BE81,0)) -> 0.811 | CC81: =+O81*KeyAssumptionsPriceControl_FO!X$15 -> 0.839883 | CD81: =+P81*KeyAssumptionsPriceControl_FO!Y$15 -> 0.844548903 | CE81: =+Q81*KeyAssumptionsPriceControl_FO!Z$15 -> 0.9014444986 | CF81: =+R81*KeyAssumptionsPriceControl_FO!AA$15 -> 0.8783688042 | CG81: =+S81*KeyAssumptionsPriceControl_FO!AB$15 -> 0.295789052 | CH81: =+T81*KeyAssumptionsPriceControl_FO!AC$15 -> 0.5352672632 | CI81: =+U81*KeyAssumptionsPriceControl_FO!AD$15 -> 0.6835936042 | CJ81: =+V81*KeyAssumptionsPriceControl_FO!AE$15 -> 0.8276641808 | CK81: =+W81*KeyAssumptionsPriceControl_FO!AF$15 -> 0.9816816892 | CL81: =+X81*KeyAssumptionsPriceControl_FO!AG$15 -> 1.018068948 | CN81: 0.00524926875 | CO81: 0.01577696814 | CP81: 0.0266894269 | CQ81: 0.03781326005 | CR81: 0.04515174665 | CS81: 0.05034584862 | CT81: 0.05796372904 | CU81: 0.06740909019 | CV81: 0.07871750188 | CW81: 0.09121594336
C82: Sewer networks - Hydraulic Model Build | E82: Sewerage | F82: Growth | G82: Corporate | H82: Capital Programs / Allocation | J82: Straight line | K82: Ongoing | L82: 5 | M82: 5 | O82: 0.158 | P82: 0.076 | Q82: 0.022 | R82: 0.064 | S82: 0 | T82: 0.08 | U82: 0.08 | V82: 0.08 | W82: 0.08 | X82: 0 | AV82: 0.158 | AW82: =+P82-AA82-AL82 -> 0.076 | AX82: 0.022 | AY82: 0.064 | AZ82: 0 | BA82: 0.08 | BB82: 0.08 | BC82: 0.08 | BD82: 0.08 | BE82: 0 | BG82: 0.0158 | BH82: 0.0392 | BI82: 0.049 | BJ82: 0.0576 | BK82: 0.064 | BL82: 0.0562 | BM82: 0.0488 | BN82: 0.055 | BO82: 0.0624 | BP82: 0.064 | BR82: =+IF($K82="Ongoing",AV82,IF(RIGHT($K82,2)=RIGHT(BR$39,2),SUM($AV82:AV82),0)+IF(RIGHT(BR$39,2)>RIGHT($K82,2),AV82,0)) -> 0.158 | BS82: =+IF($K82="Ongoing",AW82,IF(RIGHT($K82,2)=RIGHT(BS$39,2),SUM($AV82:AW82),0)+IF(RIGHT(BS$39,2)>RIGHT($K82,2),AW82,0)) -> 0.076 | BT82: =+IF($K82="Ongoing",AX82,IF(RIGHT($K82,2)=RIGHT(BT$39,2),SUM($AV82:AX82),0)+IF(RIGHT(BT$39,2)>RIGHT($K82,2),AX82,0)) -> 0.022 | BU82: =+IF($K82="Ongoing",AY82,IF(RIGHT($K82,2)=RIGHT(BU$39,2),SUM($AV82:AY82),0)+IF(RIGHT(BU$39,2)>RIGHT($K82,2),AY82,0)) -> 0.064 | BV82: =+IF($K82="Ongoing",AZ82,IF(RIGHT($K82,2)=RIGHT(BV$39,2),SUM($AV82:AZ82),0)+IF(RIGHT(BV$39,2)>RIGHT($K82,2),AZ82,0)) -> 0 | BW82: =+IF($K82="Ongoing",BA82,IF(RIGHT($K82,2)=RIGHT(BW$39,2),SUM($AV82:BA82),0)+IF(RIGHT(BW$39,2)>RIGHT($K82,2),BA82,0)) -> 0.08 | BX82: =+IF($K82="Ongoing",BB82,IF(RIGHT($K82,2)=RIGHT(BX$39,2),SUM($AV82:BB82),0)+IF(RIGHT(BX$39,2)>RIGHT($K82,2),BB82,0)) -> 0.08 | BY82: =+IF($K82="Ongoing",BC82,IF(RIGHT($K82,2)=RIGHT(BY$39,2),SUM($AV82:BC82),0)+IF(RIGHT(BY$39,2)>RIGHT($K82,2),BC82,0)) -> 0.08 | BZ82: =+IF($K82="Ongoing",BD82,IF(RIGHT($K82,2)=RIGHT(BZ$39,2),SUM($AV82:BD82),0)+IF(RIGHT(BZ$39,2)>RIGHT($K82,2),BD82,0)) -> 0.08 | CA82: =+IF($K82="Ongoing",BE82,IF(RIGHT($K82,2)=RIGHT(CA$39,2),SUM($AV82:BE82),0)+IF(RIGHT(CA$39,2)>RIGHT($K82,2),BE82,0)) -> 0 | CC82: =+O82*KeyAssumptionsPriceControl_FO!X$15 -> 0.161634 | CD82: =+P82*KeyAssumptionsPriceControl_FO!Y$15 -> 0.079536204 | CE82: =+Q82*KeyAssumptionsPriceControl_FO!Z$15 -> 0.02355318167 | CF82: =+R82*KeyAssumptionsPriceControl_FO!AA$15 -> 0.07009426866 | CG82: =+S82*KeyAssumptionsPriceControl_FO!AB$15 -> 0 | CH82: =+T82*KeyAssumptionsPriceControl_FO!AC$15 -> 0.09169460611 | CI82: =+U82*KeyAssumptionsPriceControl_FO!AD$15 -> 0.09380358205 | CJ82: =+V82*KeyAssumptionsPriceControl_FO!AE$15 -> 0.09596106444 | CK82: =+W82*KeyAssumptionsPriceControl_FO!AF$15 -> 0.09816816892 | CL82: =+X82*KeyAssumptionsPriceControl_FO!AG$15 -> 0 | CN82: 0.0161634 | CO82: 0.0402804204 | CP82: 0.05058935897 | CQ82: 0.059954104 | CR82: 0.06696353087 | CS82: 0.05996959148 | CT82: 0.05440238989 | CU82: 0.06306991598 | CV82: 0.07311809428 | CW82: 0.0759254843
C83: Asset Renewals - Pressure Sewer Pumps | E83: Sewerage | F83: Renewals | G83: Pipelines/network | H83: Capital Programs / Allocation | J83: Straight line | K83: Ongoing | L83: 8 | M83: 8 | O83: 0.02 | P83: 0.02 | Q83: 0.02 | R83: 0.02 | S83: 0.02 | T83: 0.085 | U83: 0.127 | V83: 0.168 | W83: 0.158 | X83: 0.339 | AV83: =+O83-Z83-AK83 -> 0.02 | AW83: 0.02 | AX83: 0.02 | AY83: 0.02 | AZ83: 0.02 | BA83: 0.085 | BB83: 0.127 | BC83: 0.168 | BD83: 0.158 | BE83: 0.339 | BG83: 0.00125 | BH83: 0.00375 | BI83: 0.00625 | BJ83: 0.00875 | BK83: 0.01125 | BL83: 0.0178125 | BM83: 0.0310625 | BN83: 0.0495 | BO83: 0.068625 | BP83: 0.0971875 | BR83: =+IF($K83="Ongoing",AV83,IF(RIGHT($K83,2)=RIGHT(BR$39,2),SUM($AV83:AV83),0)+IF(RIGHT(BR$39,2)>RIGHT($K83,2),AV83,0)) -> 0.02 | BS83: =+IF($K83="Ongoing",AW83,IF(RIGHT($K83,2)=RIGHT(BS$39,2),SUM($AV83:AW83),0)+IF(RIGHT(BS$39,2)>RIGHT($K83,2),AW83,0)) -> 0.02 | BT83: =+IF($K83="Ongoing",AX83,IF(RIGHT($K83,2)=RIGHT(BT$39,2),SUM($AV83:AX83),0)+IF(RIGHT(BT$39,2)>RIGHT($K83,2),AX83,0)) -> 0.02 | BU83: =+IF($K83="Ongoing",AY83,IF(RIGHT($K83,2)=RIGHT(BU$39,2),SUM($AV83:AY83),0)+IF(RIGHT(BU$39,2)>RIGHT($K83,2),AY83,0)) -> 0.02 | BV83: =+IF($K83="Ongoing",AZ83,IF(RIGHT($K83,2)=RIGHT(BV$39,2),SUM($AV83:AZ83),0)+IF(RIGHT(BV$39,2)>RIGHT($K83,2),AZ83,0)) -> 0.02 | BW83: =+IF($K83="Ongoing",BA83,IF(RIGHT($K83,2)=RIGHT(BW$39,2),SUM($AV83:BA83),0)+IF(RIGHT(BW$39,2)>RIGHT($K83,2),BA83,0)) -> 0.085 | BX83: =+IF($K83="Ongoing",BB83,IF(RIGHT($K83,2)=RIGHT(BX$39,2),SUM($AV83:BB83),0)+IF(RIGHT(BX$39,2)>RIGHT($K83,2),BB83,0)) -> 0.127 | BY83: =+IF($K83="Ongoing",BC83,IF(RIGHT($K83,2)=RIGHT(BY$39,2),SUM($AV83:BC83),0)+IF(RIGHT(BY$39,2)>RIGHT($K83,2),BC83,0)) -> 0.168 | BZ83: =+IF($K83="Ongoing",BD83,IF(RIGHT($K83,2)=RIGHT(BZ$39,2),SUM($AV83:BD83),0)+IF(RIGHT(BZ$39,2)>RIGHT($K83,2),BD83,0)) -> 0.158 | CA83: =+IF($K83="Ongoing",BE83,IF(RIGHT($K83,2)=RIGHT(CA$39,2),SUM($AV83:BE83),0)+IF(RIGHT(CA$39,2)>RIGHT($K83,2),BE83,0)) -> 0.339 | CC83: =+O83*KeyAssumptionsPriceControl_FO!X$15 -> 0.02046 | CD83: =+P83*KeyAssumptionsPriceControl_FO!Y$15 -> 0.02093058 | CE83: =+Q83*KeyAssumptionsPriceControl_FO!Z$15 -> 0.02141198334 | CF83: =+R83*KeyAssumptionsPriceControl_FO!AA$15 -> 0.02190445896 | CG83: =+S83*KeyAssumptionsPriceControl_FO!AB$15 -> 0.02240826151 | CH83: =+T83*KeyAssumptionsPriceControl_FO!AC$15 -> 0.09742551899 | CI83: =+U83*KeyAssumptionsPriceControl_FO!AD$15 -> 0.1489131865 | CJ83: =+V83*KeyAssumptionsPriceControl_FO!AE$15 -> 0.2015182353 | CK83: =+W83*KeyAssumptionsPriceControl_FO!AF$15 -> 0.1938821336 | CL83: =+X83*KeyAssumptionsPriceControl_FO!AG$15 -> 0.425555331 | CN83: 0.00127875 | CO83: 0.00386566125 | CP83: 0.006512071459 | CQ83: 0.009219349102 | CR83: 0.01198889413 | CS83: 0.01947850541 | CT83: 0.03487467451 | CU83: 0.05677663837 | CV83: 0.08021041143 | CW83: 0.1163383417
C84: Asset Renewals - Sewage Pump Stations | E84: Sewerage | F84: Renewals | G84: Pipelines/network | H84: Capital Programs / Allocation | J84: Straight line | K84: Ongoing | L84: 10 | M84: 20 | O84: 0.443 | P84: 0.45 | Q84: 0.495 | R84: 0.458 | S84: 0.469 | T84: 0.479 | U84: 0.465 | V84: 0.521 | W84: 0.554 | X84: 0.488 | AV84: 0.443 | AW84: 0.45 | AX84: 0.495 | AY84: 0.458 | AZ84: 0.469 | BA84: 0.479 | BB84: 0.465 | BC84: 0.521 | BD84: 0.554 | BE84: 0.488 | BG84: 0.02215 | BH84: 0.0668 | BI84: 0.11405 | BJ84: 0.1617 | BK84: 0.20805 | BL84: 0.25545 | BM84: 0.30265 | BN84: 0.35195 | BO84: =IF($L84=0,0, IF($L84<=0.5,BZ84, IF(AND($J84="straight line",$L84<1.51),(BY84-((BY84/$L84)*0.5))+BZ84/$L84*0.5, IF($J84="straight line", IF((LEFT(BO$39,4)*1)-INT($L84)<LEFT($BG$39,4)*1,0,((OFFSET(BZ84,0,-INT($L84+0.5),1,1))/$L84)*(IF($L84-INT($L84)>0.5,$L84-0.5-INT($L84),IF($L84-INT($L84)<=0.5,$L84-0.5-INT($L84)+1,0)))) +BZ84/$L84*0.5 +SUM(OFFSET(BZ84,0,MAX(-INT($L84+(0.5-(10^-12))),-BO$40)+1,1,MIN(INT($L84+(0.5-(10^-12))),BO$40)-1))*1/$L84, IF($J84="Declining Balance",-$BG$38,0))))) -> 0.4057 | BP84: 0.4578 | BR84: =+IF($K84="Ongoing",AV84,IF(RIGHT($K84,2)=RIGHT(BR$39,2),SUM($AV84:AV84),0)+IF(RIGHT(BR$39,2)>RIGHT($K84,2),AV84,0)) -> 0.443 | BS84: =+IF($K84="Ongoing",AW84,IF(RIGHT($K84,2)=RIGHT(BS$39,2),SUM($AV84:AW84),0)+IF(RIGHT(BS$39,2)>RIGHT($K84,2),AW84,0)) -> 0.45 | BT84: =+IF($K84="Ongoing",AX84,IF(RIGHT($K84,2)=RIGHT(BT$39,2),SUM($AV84:AX84),0)+IF(RIGHT(BT$39,2)>RIGHT($K84,2),AX84,0)) -> 0.495 | BU84: =+IF($K84="Ongoing",AY84,IF(RIGHT($K84,2)=RIGHT(BU$39,2),SUM($AV84:AY84),0)+IF(RIGHT(BU$39,2)>RIGHT($K84,2),AY84,0)) -> 0.458 | BV84: =+IF($K84="Ongoing",AZ84,IF(RIGHT($K84,2)=RIGHT(BV$39,2),SUM($AV84:AZ84),0)+IF(RIGHT(BV$39,2)>RIGHT($K84,2),AZ84,0)) -> 0.469 | BW84: =+IF($K84="Ongoing",BA84,IF(RIGHT($K84,2)=RIGHT(BW$39,2),SUM($AV84:BA84),0)+IF(RIGHT(BW$39,2)>RIGHT($K84,2),BA84,0)) -> 0.479 | BX84: =+IF($K84="Ongoing",BB84,IF(RIGHT($K84,2)=RIGHT(BX$39,2),SUM($AV84:BB84),0)+IF(RIGHT(BX$39,2)>RIGHT($K84,2),BB84,0)) -> 0.465 | BY84: =+IF($K84="Ongoing",BC84,IF(RIGHT($K84,2)=RIGHT(BY$39,2),SUM($AV84:BC84),0)+IF(RIGHT(BY$39,2)>RIGHT($K84,2),BC84,0)) -> 0.521 | BZ84: =+IF($K84="Ongoing",BD84,IF(RIGHT($K84,2)=RIGHT(BZ$39,2),SUM($AV84:BD84),0)+IF(RIGHT(BZ$39,2)>RIGHT($K84,2),BD84,0)) -> 0.554 | CA84: =+IF($K84="Ongoing",BE84,IF(RIGHT($K84,2)=RIGHT(CA$39,2),SUM($AV84:BE84),0)+IF(RIGHT(CA$39,2)>RIGHT($K84,2),BE84,0)) -> 0.488 | CC84: =+O84*KeyAssumptionsPriceControl_FO!X$15 -> 0.453189 | CD84: =+P84*KeyAssumptionsPriceControl_FO!Y$15 -> 0.47093805 | CE84: =+Q84*KeyAssumptionsPriceControl_FO!Z$15 -> 0.5299465877 | CF84: =+R84*KeyAssumptionsPriceControl_FO!AA$15 -> 0.5016121101 | CG84: =+S84*KeyAssumptionsPriceControl_FO!AB$15 -> 0.5254737325 | CH84: =+T84*KeyAssumptionsPriceControl_FO!AC$15 -> 0.5490214541 | CI84: =+U84*KeyAssumptionsPriceControl_FO!AD$15 -> 0.5452333207 | CJ84: =+V84*KeyAssumptionsPriceControl_FO!AE$15 -> 0.6249464322 | CK84: =+W84*KeyAssumptionsPriceControl_FO!AF$15 -> 0.6798145698 | CL84: =+X84*KeyAssumptionsPriceControl_FO!AG$15 -> 0.6125988245 | CN84: 0.011329725 | CO84: 0.03443290125 | CP84: 0.05945501719 | CQ84: 0.08524398464 | CR84: 0.1109211307 | CS84: 0.1377835104 | CT84: 0.1651398797 | CU84: 0.1943943736 | CV84: =IF($M84=0,0, IF($M84<=0.5,CK84, IF(AND($J84="straight line",$M84<1.51),(CJ84-((CJ84/$M84)*0.5))+CK84/$M84*0.5, IF($J84="straight line", IF((LEFT(CV$39,4)*1)-INT($M84)<LEFT($CN$39,4)*1,0,((OFFSET(CK84,0,-INT($M84+0.5),1,1))/$M84)*(IF($M84-INT($M84)>0.5,$M84-0.5-INT($M84),IF($M84-INT($M84)<=0.5,$M84-0.5-INT($M84)+1,0)))) +CK84/$M84*0.5 +SUM(OFFSET(CK84,0,MAX(-INT($M84+(0.5-(10^-12))),-CV$40)+1,1,MIN(INT($M84+(0.5-(10^-12))),CV$40)-1))*1/$M84, IF($J84="Declining Balance",-$CN$38,0))))) -> 0.2270133986 | CW84: 0.2593237335
C85: Asset Renewals - Sewers | E85: Sewerage | F85: Renewals | G85: Pipelines/network | H85: Capital Programs / Allocation | J85: Straight line | K85: Ongoing | L85: 80 | M85: 80 | O85: 0.091 | P85: 0.857 | Q85: 0.962 | R85: 0.962 | S85: 0.893 | T85: 1.162 | U85: 0.373 | V85: 0.275 | W85: 0.275 | X85: 0.275 | AV85: 0.091 | AW85: 0.857 | AX85: 0.962 | AY85: 0.962 | AZ85: 0.893 | BA85: 1.162 | BB85: 0.373 | BC85: 0.275 | BD85: 0.275 | BE85: 0.275 | BG85: 0.00056875 | BH85: =IF($L85=0,0, IF($L85<=0.5,BS85, IF(AND($J85="straight line",$L85<1.51),(BR85-((BR85/$L85)*0.5))+BS85/$L85*0.5, IF($J85="straight line", IF((LEFT(BH$39,4)*1)-INT($L85)<LEFT($BG$39,4)*1,0,((OFFSET(BS85,0,-INT($L85+0.5),1,1))/$L85)*(IF($L85-INT($L85)>0.5,$L85-0.5-INT($L85),IF($L85-INT($L85)<=0.5,$L85-0.5-INT($L85)+1,0)))) +BS85/$L85*0.5 +SUM(OFFSET(BS85,0,MAX(-INT($L85+(0.5-(10^-12))),-BH$40)+1,1,MIN(INT($L85+(0.5-(10^-12))),BH$40)-1))*1/$L85, IF($J85="Declining Balance",-$BG$38,0))))) -> 0.00649375 | BI85: 0.0178625 | BJ85: 0.0298875 | BK85: 0.04148125 | BL85: 0.054325 | BM85: 0.06391875 | BN85: 0.06796875 | BO85: 0.07140625 | BP85: 0.07484375 | BR85: =+IF($K85="Ongoing",AV85,IF(RIGHT($K85,2)=RIGHT(BR$39,2),SUM($AV85:AV85),0)+IF(RIGHT(BR$39,2)>RIGHT($K85,2),AV85,0)) -> 0.091 | BS85: =+IF($K85="Ongoing",AW85,IF(RIGHT($K85,2)=RIGHT(BS$39,2),SUM($AV85:AW85),0)+IF(RIGHT(BS$39,2)>RIGHT($K85,2),AW85,0)) -> 0.857 | BT85: =+IF($K85="Ongoing",AX85,IF(RIGHT($K85,2)=RIGHT(BT$39,2),SUM($AV85:AX85),0)+IF(RIGHT(BT$39,2)>RIGHT($K85,2),AX85,0)) -> 0.962 | BU85: =+IF($K85="Ongoing",AY85,IF(RIGHT($K85,2)=RIGHT(BU$39,2),SUM($AV85:AY85),0)+IF(RIGHT(BU$39,2)>RIGHT($K85,2),AY85,0)) -> 0.962 | BV85: =+IF($K85="Ongoing",AZ85,IF(RIGHT($K85,2)=RIGHT(BV$39,2),SUM($AV85:AZ85),0)+IF(RIGHT(BV$39,2)>RIGHT($K85,2),AZ85,0)) -> 0.893 | BW85: =+IF($K85="Ongoing",BA85,IF(RIGHT($K85,2)=RIGHT(BW$39,2),SUM($AV85:BA85),0)+IF(RIGHT(BW$39,2)>RIGHT($K85,2),BA85,0)) -> 1.162 | BX85: =+IF($K85="Ongoing",BB85,IF(RIGHT($K85,2)=RIGHT(BX$39,2),SUM($AV85:BB85),0)+IF(RIGHT(BX$39,2)>RIGHT($K85,2),BB85,0)) -> 0.373 | BY85: =+IF($K85="Ongoing",BC85,IF(RIGHT($K85,2)=RIGHT(BY$39,2),SUM($AV85:BC85),0)+IF(RIGHT(BY$39,2)>RIGHT($K85,2),BC85,0)) -> 0.275 | BZ85: =+IF($K85="Ongoing",BD85,IF(RIGHT($K85,2)=RIGHT(BZ$39,2),SUM($AV85:BD85),0)+IF(RIGHT(BZ$39,2)>RIGHT($K85,2),BD85,0)) -> 0.275 | CA85: =+IF($K85="Ongoing",BE85,IF(RIGHT($K85,2)=RIGHT(CA$39,2),SUM($AV85:BE85),0)+IF(RIGHT(CA$39,2)>RIGHT($K85,2),BE85,0)) -> 0.275 | CC85: =+O85*KeyAssumptionsPriceControl_FO!X$15 -> 0.093093 | CD85: =+P85*KeyAssumptionsPriceControl_FO!Y$15 -> 0.896875353 | CE85: =+Q85*KeyAssumptionsPriceControl_FO!Z$15 -> 1.029916399 | CF85: =+R85*KeyAssumptionsPriceControl_FO!AA$15 -> 1.053604476 | CG85: =+S85*KeyAssumptionsPriceControl_FO!AB$15 -> 1.000528877 | CH85: =+T85*KeyAssumptionsPriceControl_FO!AC$15 -> 1.331864154 | CI85: =+U85*KeyAssumptionsPriceControl_FO!AD$15 -> 0.4373592013 | CJ85: =+V85*KeyAssumptionsPriceControl_FO!AE$15 -> 0.329866159 | CK85: =+W85*KeyAssumptionsPriceControl_FO!AF$15 -> 0.3374530807 | CL85: =+X85*KeyAssumptionsPriceControl_FO!AG$15 -> 0.3452145015 | CN85: 0.00058183125 | CO85: =IF($M85=0,0, IF($M85<=0.5,CD85, IF(AND($J85="straight line",$M85<1.51),(CC85-((CC85/$M85)*0.5))+CD85/$M85*0.5, IF($J85="straight line", IF((LEFT(CO$39,4)*1)-INT($M85)<LEFT($CN$39,4)*1,0,((OFFSET(CD85,0,-INT($M85+0.5),1,1))/$M85)*(IF($M85-INT($M85)>0.5,$M85-0.5-INT($M85),IF($M85-INT($M85)<=0.5,$M85-0.5-INT($M85)+1,0)))) +CD85/$M85*0.5 +SUM(OFFSET(CD85,0,MAX(-INT($M85+(0.5-(10^-12))),-CO$40)+1,1,MIN(INT($M85+(0.5-(10^-12))),CO$40)-1))*1/$M85, IF($J85="Declining Balance",-$CN$38,0))))) -> 0.006769133456 | CP85: 0.0188115819 | CQ85: 0.03183358737 | CR85: 0.04467192082 | CS85: 0.05924937726 | CT85: 0.07030702323 | CU85: 0.07510218173 | CV85: 0.07927292698 | CW85: 0.08353959937
C86: Infiltration Management - BAU | E86: Sewerage | F86: Renewals | G86: Pipelines/network | H86: Capital Programs / Allocation | J86: Straight line | K86: Ongoing | L86: 20 | M86: 20 | O86: 0 | P86: 0 | Q86: 0 | R86: 0 | S86: 0 | T86: 0 | U86: 0 | V86: 0 | W86: 0 | X86: 0 | AV86: 0 | AW86: 0 | AX86: 0 | AY86: 0 | AZ86: 0 | BA86: 0 | BB86: 0 | BC86: 0 | BD86: 0 | BE86: 0 | BG86: 0 | BH86: 0 | BI86: 0 | BJ86: 0 | BK86: 0 | BL86: 0 | BM86: 0 | BN86: 0 | BO86: 0 | BP86: 0 | BR86: =+IF($K86="Ongoing",AV86,IF(RIGHT($K86,2)=RIGHT(BR$39,2),SUM($AV86:AV86),0)+IF(RIGHT(BR$39,2)>RIGHT($K86,2),AV86,0)) -> 0 | BS86: =+IF($K86="Ongoing",AW86,IF(RIGHT($K86,2)=RIGHT(BS$39,2),SUM($AV86:AW86),0)+IF(RIGHT(BS$39,2)>RIGHT($K86,2),AW86,0)) -> 0 | BT86: =+IF($K86="Ongoing",AX86,IF(RIGHT($K86,2)=RIGHT(BT$39,2),SUM($AV86:AX86),0)+IF(RIGHT(BT$39,2)>RIGHT($K86,2),AX86,0)) -> 0 | BU86: =+IF($K86="Ongoing",AY86,IF(RIGHT($K86,2)=RIGHT(BU$39,2),SUM($AV86:AY86),0)+IF(RIGHT(BU$39,2)>RIGHT($K86,2),AY86,0)) -> 0 | BV86: =+IF($K86="Ongoing",AZ86,IF(RIGHT($K86,2)=RIGHT(BV$39,2),SUM($AV86:AZ86),0)+IF(RIGHT(BV$39,2)>RIGHT($K86,2),AZ86,0)) -> 0 | BW86: =+IF($K86="Ongoing",BA86,IF(RIGHT($K86,2)=RIGHT(BW$39,2),SUM($AV86:BA86),0)+IF(RIGHT(BW$39,2)>RIGHT($K86,2),BA86,0)) -> 0 | BX86: =+IF($K86="Ongoing",BB86,IF(RIGHT($K86,2)=RIGHT(BX$39,2),SUM($AV86:BB86),0)+IF(RIGHT(BX$39,2)>RIGHT($K86,2),BB86,0)) -> 0 | BY86: =+IF($K86="Ongoing",BC86,IF(RIGHT($K86,2)=RIGHT(BY$39,2),SUM($AV86:BC86),0)+IF(RIGHT(BY$39,2)>RIGHT($K86,2),BC86,0)) -> 0 | BZ86: =+IF($K86="Ongoing",BD86,IF(RIGHT($K86,2)=RIGHT(BZ$39,2),SUM($AV86:BD86),0)+IF(RIGHT(BZ$39,2)>RIGHT($K86,2),BD86,0)) -> 0 | CA86: =+IF($K86="Ongoing",BE86,IF(RIGHT($K86,2)=RIGHT(CA$39,2),SUM($AV86:BE86),0)+IF(RIGHT(CA$39,2)>RIGHT($K86,2),BE86,0)) -> 0 | CC86: =+O86*KeyAssumptionsPriceControl_FO!X$15 -> 0 | CD86: =+P86*KeyAssumptionsPriceControl_FO!Y$15 -> 0 | CE86: =+Q86*KeyAssumptionsPriceControl_FO!Z$15 -> 0 | CF86: =+R86*KeyAssumptionsPriceControl_FO!AA$15 -> 0 | CG86: =+S86*KeyAssumptionsPriceControl_FO!AB$15 -> 0 | CH86: =+T86*KeyAssumptionsPriceControl_FO!AC$15 -> 0 | CI86: =+U86*KeyAssumptionsPriceControl_FO!AD$15 -> 0 | CJ86: =+V86*KeyAssumptionsPriceControl_FO!AE$15 -> 0 | CK86: =+W86*KeyAssumptionsPriceControl_FO!AF$15 -> 0 | CL86: =+X86*KeyAssumptionsPriceControl_FO!AG$15 -> 0 | CN86: 0 | CO86: 0 | CP86: 0 | CQ86: 0 | CR86: 0 | CS86: 0 | CT86: 0 | CU86: 0 | CV86: 0 | CW86: 0
C87: Paynesville Sewer System: Infiltration and Salt Management | E87: Sewerage | F87: Improvements / Compliance | G87: Pipelines/network | H87: Capital Programs / Allocation | J87: Straight line | K87: Ongoing | L87: 20 | M87: 20 | O87: 0.104 | P87: 0.233 | Q87: 0.233 | R87: 0.233 | S87: 0.233 | T87: 0 | U87: 0 | V87: 0 | W87: 0 | X87: 0 | AV87: 0.104 | AW87: 0.233 | AX87: 0.233 | AY87: 0.233 | AZ87: 0.233 | BA87: 0 | BB87: 0 | BC87: 0 | BD87: 0 | BE87: 0 | BG87: 0.0026 | BH87: 0.011025 | BI87: 0.022675 | BJ87: 0.034325 | BK87: 0.045975 | BL87: 0.0518 | BM87: 0.0518 | BN87: 0.0518 | BO87: 0.0518 | BP87: 0.0518 | BR87: =+IF($K87="Ongoing",AV87,IF(RIGHT($K87,2)=RIGHT(BR$39,2),SUM($AV87:AV87),0)+IF(RIGHT(BR$39,2)>RIGHT($K87,2),AV87,0)) -> 0.104 | BS87: =+IF($K87="Ongoing",AW87,IF(RIGHT($K87,2)=RIGHT(BS$39,2),SUM($AV87:AW87),0)+IF(RIGHT(BS$39,2)>RIGHT($K87,2),AW87,0)) -> 0.233 | BT87: =+IF($K87="Ongoing",AX87,IF(RIGHT($K87,2)=RIGHT(BT$39,2),SUM($AV87:AX87),0)+IF(RIGHT(BT$39,2)>RIGHT($K87,2),AX87,0)) -> 0.233 | BU87: =+IF($K87="Ongoing",AY87,IF(RIGHT($K87,2)=RIGHT(BU$39,2),SUM($AV87:AY87),0)+IF(RIGHT(BU$39,2)>RIGHT($K87,2),AY87,0)) -> 0.233 | BV87: =+IF($K87="Ongoing",AZ87,IF(RIGHT($K87,2)=RIGHT(BV$39,2),SUM($AV87:AZ87),0)+IF(RIGHT(BV$39,2)>RIGHT($K87,2),AZ87,0)) -> 0.233 | BW87: =+IF($K87="Ongoing",BA87,IF(RIGHT($K87,2)=RIGHT(BW$39,2),SUM($AV87:BA87),0)+IF(RIGHT(BW$39,2)>RIGHT($K87,2),BA87,0)) -> 0 | BX87: =+IF($K87="Ongoing",BB87,IF(RIGHT($K87,2)=RIGHT(BX$39,2),SUM($AV87:BB87),0)+IF(RIGHT(BX$39,2)>RIGHT($K87,2),BB87,0)) -> 0 | BY87: =+IF($K87="Ongoing",BC87,IF(RIGHT($K87,2)=RIGHT(BY$39,2),SUM($AV87:BC87),0)+IF(RIGHT(BY$39,2)>RIGHT($K87,2),BC87,0)) -> 0 | BZ87: =+IF($K87="Ongoing",BD87,IF(RIGHT($K87,2)=RIGHT(BZ$39,2),SUM($AV87:BD87),0)+IF(RIGHT(BZ$39,2)>RIGHT($K87,2),BD87,0)) -> 0 | CA87: =+IF($K87="Ongoing",BE87,IF(RIGHT($K87,2)=RIGHT(CA$39,2),SUM($AV87:BE87),0)+IF(RIGHT(CA$39,2)>RIGHT($K87,2),BE87,0)) -> 0 | CC87: =+O87*KeyAssumptionsPriceControl_FO!X$15 -> 0.106392 | CD87: =+P87*KeyAssumptionsPriceControl_FO!Y$15 -> 0.243841257 | CE87: =+Q87*KeyAssumptionsPriceControl_FO!Z$15 -> 0.2494496059 | CF87: =+R87*KeyAssumptionsPriceControl_FO!AA$15 -> 0.2551869468 | CG87: =+S87*KeyAssumptionsPriceControl_FO!AB$15 -> 0.2610562466 | CH87: =+T87*KeyAssumptionsPriceControl_FO!AC$15 -> 0 | CI87: =+U87*KeyAssumptionsPriceControl_FO!AD$15 -> 0 | CJ87: =+V87*KeyAssumptionsPriceControl_FO!AE$15 -> 0 | CK87: =+W87*KeyAssumptionsPriceControl_FO!AF$15 -> 0 | CL87: =+X87*KeyAssumptionsPriceControl_FO!AG$15 -> 0 | CN87: 0.0026598 | CO87: 0.01141563142 | CP87: 0.023747903 | CQ87: 0.03636381682 | CR87: 0.04926989665 | CS87: 0.05579630282 | CT87: 0.05579630282 | CU87: 0.05579630282 | CV87: 0.05579630282 | CW87: 0.05579630282
C88: Asset Renewals - Sewage Treatment Plants | E88: Sewerage | F88: Renewals | G88: Treatment | H88: Capital Programs / Allocation | J88: Straight line | K88: Ongoing | L88: 10 | M88: 20 | O88: 0.323 | P88: 0.49 | Q88: 0.361 | R88: 0.347 | S88: 0.323 | T88: 0.447 | U88: 0.319 | V88: 0.291 | W88: 0.31 | X88: 0.361 | AV88: 0.323 | AW88: 0.49 | AX88: 0.361 | AY88: 0.347 | AZ88: 0.323 | BA88: 0.447 | BB88: 0.319 | BC88: 0.291 | BD88: 0.31 | BE88: 0.361 | BG88: 0.01615 | BH88: 0.0568 | BI88: 0.09935 | BJ88: 0.13475 | BK88: 0.16825 | BL88: 0.20675 | BM88: 0.24505 | BN88: 0.27555 | BO88: 0.3056 | BP88: 0.33915 | BR88: =+IF($K88="Ongoing",AV88,IF(RIGHT($K88,2)=RIGHT(BR$39,2),SUM($AV88:AV88),0)+IF(RIGHT(BR$39,2)>RIGHT($K88,2),AV88,0)) -> 0.323 | BS88: =+IF($K88="Ongoing",AW88,IF(RIGHT($K88,2)=RIGHT(BS$39,2),SUM($AV88:AW88),0)+IF(RIGHT(BS$39,2)>RIGHT($K88,2),AW88,0)) -> 0.49 | BT88: =+IF($K88="Ongoing",AX88,IF(RIGHT($K88,2)=RIGHT(BT$39,2),SUM($AV88:AX88),0)+IF(RIGHT(BT$39,2)>RIGHT($K88,2),AX88,0)) -> 0.361 | BU88: =+IF($K88="Ongoing",AY88,IF(RIGHT($K88,2)=RIGHT(BU$39,2),SUM($AV88:AY88),0)+IF(RIGHT(BU$39,2)>RIGHT($K88,2),AY88,0)) -> 0.347 | BV88: =+IF($K88="Ongoing",AZ88,IF(RIGHT($K88,2)=RIGHT(BV$39,2),SUM($AV88:AZ88),0)+IF(RIGHT(BV$39,2)>RIGHT($K88,2),AZ88,0)) -> 0.323 | BW88: =+IF($K88="Ongoing",BA88,IF(RIGHT($K88,2)=RIGHT(BW$39,2),SUM($AV88:BA88),0)+IF(RIGHT(BW$39,2)>RIGHT($K88,2),BA88,0)) -> 0.447 | BX88: =+IF($K88="Ongoing",BB88,IF(RIGHT($K88,2)=RIGHT(BX$39,2),SUM($AV88:BB88),0)+IF(RIGHT(BX$39,2)>RIGHT($K88,2),BB88,0)) -> 0.319 | BY88: =+IF($K88="Ongoing",BC88,IF(RIGHT($K88,2)=RIGHT(BY$39,2),SUM($AV88:BC88),0)+IF(RIGHT(BY$39,2)>RIGHT($K88,2),BC88,0)) -> 0.291 | BZ88: =+IF($K88="Ongoing",BD88,IF(RIGHT($K88,2)=RIGHT(BZ$39,2),SUM($AV88:BD88),0)+IF(RIGHT(BZ$39,2)>RIGHT($K88,2),BD88,0)) -> 0.31 | CA88: =+IF($K88="Ongoing",BE88,IF(RIGHT($K88,2)=RIGHT(CA$39,2),SUM($AV88:BE88),0)+IF(RIGHT(CA$39,2)>RIGHT($K88,2),BE88,0)) -> 0.361 | CC88: =+O88*KeyAssumptionsPriceControl_FO!X$15 -> 0.330429 | CD88: =+P88*KeyAssumptionsPriceControl_FO!Y$15 -> 0.51279921 | CE88: =+Q88*KeyAssumptionsPriceControl_FO!Z$15 -> 0.3864862993 | CF88: =+R88*KeyAssumptionsPriceControl_FO!AA$15 -> 0.3800423629 | CG88: =+S88*KeyAssumptionsPriceControl_FO!AB$15 -> 0.3618934234 | CH88: =+T88*KeyAssumptionsPriceControl_FO!AC$15 -> 0.5123436116 | CI88: =+U88*KeyAssumptionsPriceControl_FO!AD$15 -> 0.3740417834 | CJ88: =+V88*KeyAssumptionsPriceControl_FO!AE$15 -> 0.3490583719 | CK88: =+W88*KeyAssumptionsPriceControl_FO!AF$15 -> 0.3804016546 | CL88: =+X88*KeyAssumptionsPriceControl_FO!AG$15 -> 0.4531724911 | CN88: 0.008260725 | CO88: 0.02934143025 | CP88: 0.05182356798 | CQ88: 0.07098678454 | CR88: 0.0895351792 | CS88: 0.1113911051 | CT88: 0.1335507399 | CU88: 0.1516282438 | CV88: 0.1698647445 | CW88: 0.1907040981
C89: Bairnsdale WWTP upgrades - nutrient reduction | E89: Sewerage | F89: Improvements / Compliance | G89: Treatment | H89: Capital Programs / Allocation | J89: Straight line | K89: 2026-27 | L89: 50 | M89: 50 | O89: 0 | P89: 0 | Q89: 0 | R89: 0 | S89: 0 | T89: 0 | U89: 0 | V89: 0 | W89: 0 | X89: 0 | AV89: 0 | AW89: 0 | AX89: 0 | AY89: 0 | AZ89: 0 | BA89: 0 | BB89: 0 | BC89: 0 | BD89: 0 | BE89: 0 | BG89: 0 | BH89: 0 | BI89: 0 | BJ89: 0 | BK89: 0 | BL89: 0 | BM89: 0 | BN89: 0 | BO89: 0 | BP89: 0 | BR89: =+IF($K89="Ongoing",AV89,IF(RIGHT($K89,2)=RIGHT(BR$39,2),SUM($AV89:AV89),0)+IF(RIGHT(BR$39,2)>RIGHT($K89,2),AV89,0)) -> 0 | BS89: =+IF($K89="Ongoing",AW89,IF(RIGHT($K89,2)=RIGHT(BS$39,2),SUM($AV89:AW89),0)+IF(RIGHT(BS$39,2)>RIGHT($K89,2),AW89,0)) -> 0 | BT89: =+IF($K89="Ongoing",AX89,IF(RIGHT($K89,2)=RIGHT(BT$39,2),SUM($AV89:AX89),0)+IF(RIGHT(BT$39,2)>RIGHT($K89,2),AX89,0)) -> 0 | BU89: =+IF($K89="Ongoing",AY89,IF(RIGHT($K89,2)=RIGHT(BU$39,2),SUM($AV89:AY89),0)+IF(RIGHT(BU$39,2)>RIGHT($K89,2),AY89,0)) -> 0 | BV89: =+IF($K89="Ongoing",AZ89,IF(RIGHT($K89,2)=RIGHT(BV$39,2),SUM($AV89:AZ89),0)+IF(RIGHT(BV$39,2)>RIGHT($K89,2),AZ89,0)) -> 0 | BW89: =+IF($K89="Ongoing",BA89,IF(RIGHT($K89,2)=RIGHT(BW$39,2),SUM($AV89:BA89),0)+IF(RIGHT(BW$39,2)>RIGHT($K89,2),BA89,0)) -> 0 | BX89: =+IF($K89="Ongoing",BB89,IF(RIGHT($K89,2)=RIGHT(BX$39,2),SUM($AV89:BB89),0)+IF(RIGHT(BX$39,2)>RIGHT($K89,2),BB89,0)) -> 0 | BY89: =+IF($K89="Ongoing",BC89,IF(RIGHT($K89,2)=RIGHT(BY$39,2),SUM($AV89:BC89),0)+IF(RIGHT(BY$39,2)>RIGHT($K89,2),BC89,0)) -> 0 | BZ89: =+IF($K89="Ongoing",BD89,IF(RIGHT($K89,2)=RIGHT(BZ$39,2),SUM($AV89:BD89),0)+IF(RIGHT(BZ$39,2)>RIGHT($K89,2),BD89,0)) -> 0 | CA89: =+IF($K89="Ongoing",BE89,IF(RIGHT($K89,2)=RIGHT(CA$39,2),SUM($AV89:BE89),0)+IF(RIGHT(CA$39,2)>RIGHT($K89,2),BE89,0)) -> 0 | CC89: =+O89*KeyAssumptionsPriceControl_FO!X$15 -> 0 | CD89: =+P89*KeyAssumptionsPriceControl_FO!Y$15 -> 0 | CE89: =+Q89*KeyAssumptionsPriceControl_FO!Z$15 -> 0 | CF89: =+R89*KeyAssumptionsPriceControl_FO!AA$15 -> 0 | CG89: =+S89*KeyAssumptionsPriceControl_FO!AB$15 -> 0 | CH89: =+T89*KeyAssumptionsPriceControl_FO!AC$15 -> 0 | CI89: =+U89*KeyAssumptionsPriceControl_FO!AD$15 -> 0 | CJ89: =+V89*KeyAssumptionsPriceControl_FO!AE$15 -> 0 | CK89: =+W89*KeyAssumptionsPriceControl_FO!AF$15 -> 0 | CL89: =+X89*KeyAssumptionsPriceControl_FO!AG$15 -> 0 | CN89: 0 | CO89: 0 | CP89: 0 | CQ89: 0 | CR89: 0 | CS89: 0 | CT89: 0 | CU89: 0 | CV89: 0 | CW89: 0
C90: BWWTP constructed wetland embankment reinstatement | E90: Sewerage | F90: Renewals | G90: Treatment | H90: Capital Programs / Allocation | J90: Straight line | K90: 2024-25 | L90: 50 | M90: 50 | O90: 0 | P90: 0 | Q90: 0 | R90: 0 | S90: 0 | T90: 0.204 | U90: 0 | V90: 0 | W90: 0 | X90: 0 | AV90: 0 | AW90: 0 | AX90: 0 | AY90: 0 | AZ90: 0 | BA90: 0.204 | BB90: 0 | BC90: 0 | BD90: 0 | BE90: 0 | BG90: 0 | BH90: 0 | BI90: 0 | BJ90: 0 | BK90: 0 | BL90: 0 | BM90: 0.00204 | BN90: 0.00408 | BO90: 0.00408 | BP90: 0.00408 | BR90: =+IF($K90="Ongoing",AV90,IF(RIGHT($K90,2)=RIGHT(BR$39,2),SUM($AV90:AV90),0)+IF(RIGHT(BR$39,2)>RIGHT($K90,2),AV90,0)) -> 0 | BS90: =+IF($K90="Ongoing",AW90,IF(RIGHT($K90,2)=RIGHT(BS$39,2),SUM($AV90:AW90),0)+IF(RIGHT(BS$39,2)>RIGHT($K90,2),AW90,0)) -> 0 | BT90: =+IF($K90="Ongoing",AX90,IF(RIGHT($K90,2)=RIGHT(BT$39,2),SUM($AV90:AX90),0)+IF(RIGHT(BT$39,2)>RIGHT($K90,2),AX90,0)) -> 0 | BU90: =+IF($K90="Ongoing",AY90,IF(RIGHT($K90,2)=RIGHT(BU$39,2),SUM($AV90:AY90),0)+IF(RIGHT(BU$39,2)>RIGHT($K90,2),AY90,0)) -> 0 | BV90: =+IF($K90="Ongoing",AZ90,IF(RIGHT($K90,2)=RIGHT(BV$39,2),SUM($AV90:AZ90),0)+IF(RIGHT(BV$39,2)>RIGHT($K90,2),AZ90,0)) -> 0 | BW90: =+IF($K90="Ongoing",BA90,IF(RIGHT($K90,2)=RIGHT(BW$39,2),SUM($AV90:BA90),0)+IF(RIGHT(BW$39,2)>RIGHT($K90,2),BA90,0)) -> 0 | BX90: =+IF($K90="Ongoing",BB90,IF(RIGHT($K90,2)=RIGHT(BX$39,2),SUM($AV90:BB90),0)+IF(RIGHT(BX$39,2)>RIGHT($K90,2),BB90,0)) -> 0.204 | BY90: =+IF($K90="Ongoing",BC90,IF(RIGHT($K90,2)=RIGHT(BY$39,2),SUM($AV90:BC90),0)+IF(RIGHT(BY$39,2)>RIGHT($K90,2),BC90,0)) -> 0 | BZ90: =+IF($K90="Ongoing",BD90,IF(RIGHT($K90,2)=RIGHT(BZ$39,2),SUM($AV90:BD90),0)+IF(RIGHT(BZ$39,2)>RIGHT($K90,2),BD90,0)) -> 0 | CA90: =+IF($K90="Ongoing",BE90,IF(RIGHT($K90,2)=RIGHT(CA$39,2),SUM($AV90:BE90),0)+IF(RIGHT(CA$39,2)>RIGHT($K90,2),BE90,0)) -> 0 | CC90: =+O90*KeyAssumptionsPriceControl_FO!X$15 -> 0 | CD90: =+P90*KeyAssumptionsPriceControl_FO!Y$15 -> 0 | CE90: =+Q90*KeyAssumptionsPriceControl_FO!Z$15 -> 0 | CF90: =+R90*KeyAssumptionsPriceControl_FO!AA$15 -> 0 | CG90: =+S90*KeyAssumptionsPriceControl_FO!AB$15 -> 0 | CH90: =+T90*KeyAssumptionsPriceControl_FO!AC$15 -> 0.2338212456 | CI90: =+U90*KeyAssumptionsPriceControl_FO!AD$15 -> 0 | CJ90: =+V90*KeyAssumptionsPriceControl_FO!AE$15 -> 0 | CK90: =+W90*KeyAssumptionsPriceControl_FO!AF$15 -> 0 | CL90: =+X90*KeyAssumptionsPriceControl_FO!AG$15 -> 0 | CN90: 0 | CO90: 0 | CP90: 0 | CQ90: 0 | CR90: 0 | CS90: 0.002338212456 | CT90: 0.004676424912 | CU90: 0.004676424912 | CV90: 0.004676424912 | CW90: 0.004676424912
C91: Paynesville sewer network - new rising main from Sunset Drive SPS to Grandview Road SPS | E91: Sewerage | F91: Growth | G91: Pipelines/network | H91: Capital Programs / Allocation | J91: Straight line | K91: 2027-28 | L91: 80 | M91: 80 | O91: 0 | P91: 0 | Q91: 0 | R91: 0 | S91: 0 | T91: 0 | U91: 0 | V91: 0 | W91: 0 | X91: 1.179 | AV91: 0 | AW91: 0 | AX91: 0 | AY91: 0 | AZ91: 0 | BA91: 0 | BB91: 0 | BC91: 0 | BD91: 0 | BE91: 1.179 | BG91: 0 | BH91: 0 | BI91: 0 | BJ91: 0 | BK91: 0 | BL91: 0 | BM91: 0 | BN91: 0 | BO91: 0 | BP91: 0.00736875 | BR91: =+IF($K91="Ongoing",AV91,IF(RIGHT($K91,2)=RIGHT(BR$39,2),SUM($AV91:AV91),0)+IF(RIGHT(BR$39,2)>RIGHT($K91,2),AV91,0)) -> 0 | BS91: =+IF($K91="Ongoing",AW91,IF(RIGHT($K91,2)=RIGHT(BS$39,2),SUM($AV91:AW91),0)+IF(RIGHT(BS$39,2)>RIGHT($K91,2),AW91,0)) -> 0 | BT91: =+IF($K91="Ongoing",AX91,IF(RIGHT($K91,2)=RIGHT(BT$39,2),SUM($AV91:AX91),0)+IF(RIGHT(BT$39,2)>RIGHT($K91,2),AX91,0)) -> 0 | BU91: =+IF($K91="Ongoing",AY91,IF(RIGHT($K91,2)=RIGHT(BU$39,2),SUM($AV91:AY91),0)+IF(RIGHT(BU$39,2)>RIGHT($K91,2),AY91,0)) -> 0 | BV91: =+IF($K91="Ongoing",AZ91,IF(RIGHT($K91,2)=RIGHT(BV$39,2),SUM($AV91:AZ91),0)+IF(RIGHT(BV$39,2)>RIGHT($K91,2),AZ91,0)) -> 0 | BW91: =+IF($K91="Ongoing",BA91,IF(RIGHT($K91,2)=RIGHT(BW$39,2),SUM($AV91:BA91),0)+IF(RIGHT(BW$39,2)>RIGHT($K91,2),BA91,0)) -> 0 | BX91: =+IF($K91="Ongoing",BB91,IF(RIGHT($K91,2)=RIGHT(BX$39,2),SUM($AV91:BB91),0)+IF(RIGHT(BX$39,2)>RIGHT($K91,2),BB91,0)) -> 0 | BY91: =+IF($K91="Ongoing",BC91,IF(RIGHT($K91,2)=RIGHT(BY$39,2),SUM($AV91:BC91),0)+IF(RIGHT(BY$39,2)>RIGHT($K91,2),BC91,0)) -> 0 | BZ91: =+IF($K91="Ongoing",BD91,IF(RIGHT($K91,2)=RIGHT(BZ$39,2),SUM($AV91:BD91),0)+IF(RIGHT(BZ$39,2)>RIGHT($K91,2),BD91,0)) -> 0 | CA91: =+IF($K91="Ongoing",BE91,IF(RIGHT($K91,2)=RIGHT(CA$39,2),SUM($AV91:BE91),0)+IF(RIGHT(CA$39,2)>RIGHT($K91,2),BE91,0)) -> 1.179 | CC91: =+O91*KeyAssumptionsPriceControl_FO!X$15 -> 0 | CD91: =+P91*KeyAssumptionsPriceControl_FO!Y$15 -> 0 | CE91: =+Q91*KeyAssumptionsPriceControl_FO!Z$15 -> 0 | CF91: =+R91*KeyAssumptionsPriceControl_FO!AA$15 -> 0 | CG91: =+S91*KeyAssumptionsPriceControl_FO!AB$15 -> 0 | CH91: =+T91*KeyAssumptionsPriceControl_FO!AC$15 -> 0 | CI91: =+U91*KeyAssumptionsPriceControl_FO!AD$15 -> 0 | CJ91: =+V91*KeyAssumptionsPriceControl_FO!AE$15 -> 0 | CK91: =+W91*KeyAssumptionsPriceControl_FO!AF$15 -> 0 | CL91: =+X91*KeyAssumptionsPriceControl_FO!AG$15 -> 1.480028717 | CN91: 0 | CO91: 0 | CP91: 0 | CQ91: 0 | CR91: 0 | CS91: 0 | CT91: 0 | CU91: 0 | CV91: 0 | CW91: 0.009250179484
C92: Newmerella treelot renewals (future Mcoota in 3 stages) | E92: Recycled Water | F92: Renewals | G92: Treatment | H92: Other Capital expenditure | J92: Straight line | K92: 2026-27 | L92: 25 | M92: 25 | O92: 0 | P92: 0 | Q92: 0 | R92: 0 | S92: 0 | T92: 0 | U92: 0 | V92: 0 | W92: 0 | X92: 0 | AV92: 0 | AW92: 0 | AX92: 0 | AY92: 0 | AZ92: 0 | BA92: 0 | BB92: 0 | BC92: 0 | BD92: 0 | BE92: 0 | BG92: 0 | BH92: 0 | BI92: 0 | BJ92: 0 | BK92: 0 | BL92: 0 | BM92: 0 | BN92: 0 | BO92: 0 | BP92: 0 | BR92: =+IF($K92="Ongoing",AV92,IF(RIGHT($K92,2)=RIGHT(BR$39,2),SUM($AV92:AV92),0)+IF(RIGHT(BR$39,2)>RIGHT($K92,2),AV92,0)) -> 0 | BS92: =+IF($K92="Ongoing",AW92,IF(RIGHT($K92,2)=RIGHT(BS$39,2),SUM($AV92:AW92),0)+IF(RIGHT(BS$39,2)>RIGHT($K92,2),AW92,0)) -> 0 | BT92: =+IF($K92="Ongoing",AX92,IF(RIGHT($K92,2)=RIGHT(BT$39,2),SUM($AV92:AX92),0)+IF(RIGHT(BT$39,2)>RIGHT($K92,2),AX92,0)) -> 0 | BU92: =+IF($K92="Ongoing",AY92,IF(RIGHT($K92,2)=RIGHT(BU$39,2),SUM($AV92:AY92),0)+IF(RIGHT(BU$39,2)>RIGHT($K92,2),AY92,0)) -> 0 | BV92: =+IF($K92="Ongoing",AZ92,IF(RIGHT($K92,2)=RIGHT(BV$39,2),SUM($AV92:AZ92),0)+IF(RIGHT(BV$39,2)>RIGHT($K92,2),AZ92,0)) -> 0 | BW92: =+IF($K92="Ongoing",BA92,IF(RIGHT($K92,2)=RIGHT(BW$39,2),SUM($AV92:BA92),0)+IF(RIGHT(BW$39,2)>RIGHT($K92,2),BA92,0)) -> 0 | BX92: =+IF($K92="Ongoing",BB92,IF(RIGHT($K92,2)=RIGHT(BX$39,2),SUM($AV92:BB92),0)+IF(RIGHT(BX$39,2)>RIGHT($K92,2),BB92,0)) -> 0 | BY92: =+IF($K92="Ongoing",BC92,IF(RIGHT($K92,2)=RIGHT(BY$39,2),SUM($AV92:BC92),0)+IF(RIGHT(BY$39,2)>RIGHT($K92,2),BC92,0)) -> 0 | BZ92: =+IF($K92="Ongoing",BD92,IF(RIGHT($K92,2)=RIGHT(BZ$39,2),SUM($AV92:BD92),0)+IF(RIGHT(BZ$39,2)>RIGHT($K92,2),BD92,0)) -> 0 | CA92: =+IF($K92="Ongoing",BE92,IF(RIGHT($K92,2)=RIGHT(CA$39,2),SUM($AV92:BE92),0)+IF(RIGHT(CA$39,2)>RIGHT($K92,2),BE92,0)) -> 0 | CC92: =+O92*KeyAssumptionsPriceControl_FO!X$15 -> 0 | CD92: =+P92*KeyAssumptionsPriceControl_FO!Y$15 -> 0 | CE92: =+Q92*KeyAssumptionsPriceControl_FO!Z$15 -> 0 | CF92: =+R92*KeyAssumptionsPriceControl_FO!AA$15 -> 0 | CG92: =+S92*KeyAssumptionsPriceControl_FO!AB$15 -> 0 | CH92: =+T92*KeyAssumptionsPriceControl_FO!AC$15 -> 0 | CI92: =+U92*KeyAssumptionsPriceControl_FO!AD$15 -> 0 | CJ92: =+V92*KeyAssumptionsPriceControl_FO!AE$15 -> 0 | CK92: =+W92*KeyAssumptionsPriceControl_FO!AF$15 -> 0 | CL92: =+X92*KeyAssumptionsPriceControl_FO!AG$15 -> 0 | CN92: 0 | CO92: 0 | CP92: 0 | CQ92: 0 | CR92: 0 | CS92: 0 | CT92: 0 | CU92: 0 | CV92: 0 | CW92: 0
C93: Sewage Pump Station Upgrades - Bairnsdale | E93: Sewerage | F93: Renewals | G93: Pipelines/network | H93: Capital Programs / Allocation | J93: Straight line | K93: 2023-24 | L93: 25 | M93: 25 | O93: 0 | P93: 0 | Q93: 0 | R93: 0 | S93: 0 | T93: 0.286 | U93: 0 | V93: 0 | W93: 0 | X93: 0.229 | AV93: 0 | AW93: 0 | AX93: 0 | AY93: 0 | AZ93: 0 | BA93: 0.286 | BB93: 0 | BC93: 0 | BD93: 0 | BE93: 0.229 | BG93: 0 | BH93: 0 | BI93: 0 | BJ93: 0 | BK93: 0 | BL93: 0.00572 | BM93: 0.01144 | BN93: 0.01144 | BO93: 0.01144 | BP93: 0.01602 | BR93: =+IF($K93="Ongoing",AV93,IF(RIGHT($K93,2)=RIGHT(BR$39,2),SUM($AV93:AV93),0)+IF(RIGHT(BR$39,2)>RIGHT($K93,2),AV93,0)) -> 0 | BS93: =+IF($K93="Ongoing",AW93,IF(RIGHT($K93,2)=RIGHT(BS$39,2),SUM($AV93:AW93),0)+IF(RIGHT(BS$39,2)>RIGHT($K93,2),AW93,0)) -> 0 | BT93: =+IF($K93="Ongoing",AX93,IF(RIGHT($K93,2)=RIGHT(BT$39,2),SUM($AV93:AX93),0)+IF(RIGHT(BT$39,2)>RIGHT($K93,2),AX93,0)) -> 0 | BU93: =+IF($K93="Ongoing",AY93,IF(RIGHT($K93,2)=RIGHT(BU$39,2),SUM($AV93:AY93),0)+IF(RIGHT(BU$39,2)>RIGHT($K93,2),AY93,0)) -> 0 | BV93: =+IF($K93="Ongoing",AZ93,IF(RIGHT($K93,2)=RIGHT(BV$39,2),SUM($AV93:AZ93),0)+IF(RIGHT(BV$39,2)>RIGHT($K93,2),AZ93,0)) -> 0 | BW93: =+IF($K93="Ongoing",BA93,IF(RIGHT($K93,2)=RIGHT(BW$39,2),SUM($AV93:BA93),0)+IF(RIGHT(BW$39,2)>RIGHT($K93,2),BA93,0)) -> 0.286 | BX93: =+IF($K93="Ongoing",BB93,IF(RIGHT($K93,2)=RIGHT(BX$39,2),SUM($AV93:BB93),0)+IF(RIGHT(BX$39,2)>RIGHT($K93,2),BB93,0)) -> 0 | BY93: =+IF($K93="Ongoing",BC93,IF(RIGHT($K93,2)=RIGHT(BY$39,2),SUM($AV93:BC93),0)+IF(RIGHT(BY$39,2)>RIGHT($K93,2),BC93,0)) -> 0 | BZ93: =+IF($K93="Ongoing",BD93,IF(RIGHT($K93,2)=RIGHT(BZ$39,2),SUM($AV93:BD93),0)+IF(RIGHT(BZ$39,2)>RIGHT($K93,2),BD93,0)) -> 0 | CA93: =+IF($K93="Ongoing",BE93,IF(RIGHT($K93,2)=RIGHT(CA$39,2),SUM($AV93:BE93),0)+IF(RIGHT(CA$39,2)>RIGHT($K93,2),BE93,0)) -> 0.229 | CC93: =+O93*KeyAssumptionsPriceControl_FO!X$15 -> 0 | CD93: =+P93*KeyAssumptionsPriceControl_FO!Y$15 -> 0 | CE93: =+Q93*KeyAssumptionsPriceControl_FO!Z$15 -> 0 | CF93: =+R93*KeyAssumptionsPriceControl_FO!AA$15 -> 0 | CG93: =+S93*KeyAssumptionsPriceControl_FO!AB$15 -> 0 | CH93: =+T93*KeyAssumptionsPriceControl_FO!AC$15 -> 0.3278082168 | CI93: =+U93*KeyAssumptionsPriceControl_FO!AD$15 -> 0 | CJ93: =+V93*KeyAssumptionsPriceControl_FO!AE$15 -> 0 | CK93: =+W93*KeyAssumptionsPriceControl_FO!AF$15 -> 0 | CL93: =+X93*KeyAssumptionsPriceControl_FO!AG$15 -> 0.2874695304 | CN93: 0 | CO93: 0 | CP93: 0 | CQ93: 0 | CR93: 0 | CS93: 0.006556164337 | CT93: 0.01311232867 | CU93: 0.01311232867 | CV93: 0.01311232867 | CW93: 0.01886171928
C94: Bairnsdale sewerage network augmentation | E94: Sewerage | F94: Growth | G94: Pipelines/network | H94: Other Capital expenditure | J94: Straight line | K94: 2023-24 | L94: 80 | M94: 80 | O94: 0 | P94: 0 | Q94: 0 | R94: 0 | S94: 0 | T94: 0.225 | U94: 0 | V94: 0 | W94: 0 | X94: 0.129 | AV94: 0 | AW94: 0 | AX94: 0 | AY94: 0 | AZ94: 0 | BA94: 0.225 | BB94: 0 | BC94: 0 | BD94: 0 | BE94: 0.129 | BG94: 0 | BH94: 0 | BI94: 0 | BJ94: 0 | BK94: 0 | BL94: 0.00140625 | BM94: 0.0028125 | BN94: 0.0028125 | BO94: 0.0028125 | BP94: 0.00361875 | BR94: =+IF($K94="Ongoing",AV94,IF(RIGHT($K94,2)=RIGHT(BR$39,2),SUM($AV94:AV94),0)+IF(RIGHT(BR$39,2)>RIGHT($K94,2),AV94,0)) -> 0 | BS94: =+IF($K94="Ongoing",AW94,IF(RIGHT($K94,2)=RIGHT(BS$39,2),SUM($AV94:AW94),0)+IF(RIGHT(BS$39,2)>RIGHT($K94,2),AW94,0)) -> 0 | BT94: =+IF($K94="Ongoing",AX94,IF(RIGHT($K94,2)=RIGHT(BT$39,2),SUM($AV94:AX94),0)+IF(RIGHT(BT$39,2)>RIGHT($K94,2),AX94,0)) -> 0 | BU94: =+IF($K94="Ongoing",AY94,IF(RIGHT($K94,2)=RIGHT(BU$39,2),SUM($AV94:AY94),0)+IF(RIGHT(BU$39,2)>RIGHT($K94,2),AY94,0)) -> 0 | BV94: =+IF($K94="Ongoing",AZ94,IF(RIGHT($K94,2)=RIGHT(BV$39,2),SUM($AV94:AZ94),0)+IF(RIGHT(BV$39,2)>RIGHT($K94,2),AZ94,0)) -> 0 | BW94: =+IF($K94="Ongoing",BA94,IF(RIGHT($K94,2)=RIGHT(BW$39,2),SUM($AV94:BA94),0)+IF(RIGHT(BW$39,2)>RIGHT($K94,2),BA94,0)) -> 0.225 | BX94: =+IF($K94="Ongoing",BB94,IF(RIGHT($K94,2)=RIGHT(BX$39,2),SUM($AV94:BB94),0)+IF(RIGHT(BX$39,2)>RIGHT($K94,2),BB94,0)) -> 0 | BY94: =+IF($K94="Ongoing",BC94,IF(RIGHT($K94,2)=RIGHT(BY$39,2),SUM($AV94:BC94),0)+IF(RIGHT(BY$39,2)>RIGHT($K94,2),BC94,0)) -> 0 | BZ94: =+IF($K94="Ongoing",BD94,IF(RIGHT($K94,2)=RIGHT(BZ$39,2),SUM($AV94:BD94),0)+IF(RIGHT(BZ$39,2)>RIGHT($K94,2),BD94,0)) -> 0 | CA94: =+IF($K94="Ongoing",BE94,IF(RIGHT($K94,2)=RIGHT(CA$39,2),SUM($AV94:BE94),0)+IF(RIGHT(CA$39,2)>RIGHT($K94,2),BE94,0)) -> 0.129 | CC94: =+O94*KeyAssumptionsPriceControl_FO!X$15 -> 0 | CD94: =+P94*KeyAssumptionsPriceControl_FO!Y$15 -> 0 | CE94: =+Q94*KeyAssumptionsPriceControl_FO!Z$15 -> 0 | CF94: =+R94*KeyAssumptionsPriceControl_FO!AA$15 -> 0 | CG94: =+S94*KeyAssumptionsPriceControl_FO!AB$15 -> 0 | CH94: =+T94*KeyAssumptionsPriceControl_FO!AC$15 -> 0.2578910797 | CI94: =+U94*KeyAssumptionsPriceControl_FO!AD$15 -> 0 | CJ94: =+V94*KeyAssumptionsPriceControl_FO!AE$15 -> 0 | CK94: =+W94*KeyAssumptionsPriceControl_FO!AF$15 -> 0 | CL94: =+X94*KeyAssumptionsPriceControl_FO!AG$15 -> 0.1619369843 | CN94: 0 | CO94: 0 | CP94: 0 | CQ94: 0 | CR94: 0 | CS94: 0.001611819248 | CT94: 0.003223638496 | CU94: 0.003223638496 | CV94: 0.003223638496 | CW94: 0.004235744648
C95: Howitt Ave SPS new 245 m x OD 140 (ID 114mm) PE rising main and limit SPS capacity to 25 L/s @ 25m | E95: Sewerage | F95: Growth | G95: Pipelines/network | H95: Other Capital expenditure | J95: Straight line | K95: 2023-24 | L95: 80 | M95: 80 | O95: 0 | P95: 0 | Q95: 0 | R95: 0 | S95: 0 | T95: 0.171 | U95: 0 | V95: 0 | W95: 0 | X95: 0 | AV95: 0 | AW95: 0 | AX95: 0 | AY95: 0 | AZ95: 0 | BA95: 0.171 | BB95: 0 | BC95: 0 | BD95: 0 | BE95: 0 | BG95: 0 | BH95: 0 | BI95: 0 | BJ95: 0 | BK95: 0 | BL95: 0.00106875 | BM95: 0.0021375 | BN95: 0.0021375 | BO95: 0.0021375 | BP95: 0.0021375 | BR95: =+IF($K95="Ongoing",AV95,IF(RIGHT($K95,2)=RIGHT(BR$39,2),SUM($AV95:AV95),0)+IF(RIGHT(BR$39,2)>RIGHT($K95,2),AV95,0)) -> 0 | BS95: =+IF($K95="Ongoing",AW95,IF(RIGHT($K95,2)=RIGHT(BS$39,2),SUM($AV95:AW95),0)+IF(RIGHT(BS$39,2)>RIGHT($K95,2),AW95,0)) -> 0 | BT95: =+IF($K95="Ongoing",AX95,IF(RIGHT($K95,2)=RIGHT(BT$39,2),SUM($AV95:AX95),0)+IF(RIGHT(BT$39,2)>RIGHT($K95,2),AX95,0)) -> 0 | BU95: =+IF($K95="Ongoing",AY95,IF(RIGHT($K95,2)=RIGHT(BU$39,2),SUM($AV95:AY95),0)+IF(RIGHT(BU$39,2)>RIGHT($K95,2),AY95,0)) -> 0 | BV95: =+IF($K95="Ongoing",AZ95,IF(RIGHT($K95,2)=RIGHT(BV$39,2),SUM($AV95:AZ95),0)+IF(RIGHT(BV$39,2)>RIGHT($K95,2),AZ95,0)) -> 0 | BW95: =+IF($K95="Ongoing",BA95,IF(RIGHT($K95,2)=RIGHT(BW$39,2),SUM($AV95:BA95),0)+IF(RIGHT(BW$39,2)>RIGHT($K95,2),BA95,0)) -> 0.171 | BX95: =+IF($K95="Ongoing",BB95,IF(RIGHT($K95,2)=RIGHT(BX$39,2),SUM($AV95:BB95),0)+IF(RIGHT(BX$39,2)>RIGHT($K95,2),BB95,0)) -> 0 | BY95: =+IF($K95="Ongoing",BC95,IF(RIGHT($K95,2)=RIGHT(BY$39,2),SUM($AV95:BC95),0)+IF(RIGHT(BY$39,2)>RIGHT($K95,2),BC95,0)) -> 0 | BZ95: =+IF($K95="Ongoing",BD95,IF(RIGHT($K95,2)=RIGHT(BZ$39,2),SUM($AV95:BD95),0)+IF(RIGHT(BZ$39,2)>RIGHT($K95,2),BD95,0)) -> 0 | CA95: =+IF($K95="Ongoing",BE95,IF(RIGHT($K95,2)=RIGHT(CA$39,2),SUM($AV95:BE95),0)+IF(RIGHT(CA$39,2)>RIGHT($K95,2),BE95,0)) -> 0 | CC95: =+O95*KeyAssumptionsPriceControl_FO!X$15 -> 0 | CD95: =+P95*KeyAssumptionsPriceControl_FO!Y$15 -> 0 | CE95: =+Q95*KeyAssumptionsPriceControl_FO!Z$15 -> 0 | CF95: =+R95*KeyAssumptionsPriceControl_FO!AA$15 -> 0 | CG95: =+S95*KeyAssumptionsPriceControl_FO!AB$15 -> 0 | CH95: =+T95*KeyAssumptionsPriceControl_FO!AC$15 -> 0.1959972206 | CI95: =+U95*KeyAssumptionsPriceControl_FO!AD$15 -> 0 | CJ95: =+V95*KeyAssumptionsPriceControl_FO!AE$15 -> 0 | CK95: =+W95*KeyAssumptionsPriceControl_FO!AF$15 -> 0 | CL95: =+X95*KeyAssumptionsPriceControl_FO!AG$15 -> 0 | CN95: 0 | CO95: 0 | CP95: 0 | CQ95: 0 | CR95: 0 | CS95: 0.001224982629 | CT95: 0.002449965257 | CU95: 0.002449965257 | CV95: 0.002449965257 | CW95: 0.002449965257
C96: 11 Mile Creek Tank upgrade (additional 1.4ML) | E96: Water | F96: Growth | G96: Pipelines/network | H96: Other Capital expenditure | J96: Straight line | K96: 2027-28 | L96: 50 | M96: 50 | O96: 0 | P96: 0 | Q96: 0 | R96: 0 | S96: 0 | T96: 0 | U96: 0 | V96: 0 | W96: 0 | X96: 0 | AV96: 0 | AW96: 0 | AX96: 0 | AY96: 0 | AZ96: 0 | BA96: 0 | BB96: 0 | BC96: 0 | BD96: 0 | BE96: 0 | BG96: 0 | BH96: 0 | BI96: 0 | BJ96: 0 | BK96: 0 | BL96: 0 | BM96: 0 | BN96: 0 | BO96: 0 | BP96: 0 | BR96: =+IF($K96="Ongoing",AV96,IF(RIGHT($K96,2)=RIGHT(BR$39,2),SUM($AV96:AV96),0)+IF(RIGHT(BR$39,2)>RIGHT($K96,2),AV96,0)) -> 0 | BS96: =+IF($K96="Ongoing",AW96,IF(RIGHT($K96,2)=RIGHT(BS$39,2),SUM($AV96:AW96),0)+IF(RIGHT(BS$39,2)>RIGHT($K96,2),AW96,0)) -> 0 | BT96: =+IF($K96="Ongoing",AX96,IF(RIGHT($K96,2)=RIGHT(BT$39,2),SUM($AV96:AX96),0)+IF(RIGHT(BT$39,2)>RIGHT($K96,2),AX96,0)) -> 0 | BU96: =+IF($K96="Ongoing",AY96,IF(RIGHT($K96,2)=RIGHT(BU$39,2),SUM($AV96:AY96),0)+IF(RIGHT(BU$39,2)>RIGHT($K96,2),AY96,0)) -> 0 | BV96: =+IF($K96="Ongoing",AZ96,IF(RIGHT($K96,2)=RIGHT(BV$39,2),SUM($AV96:AZ96),0)+IF(RIGHT(BV$39,2)>RIGHT($K96,2),AZ96,0)) -> 0 | BW96: =+IF($K96="Ongoing",BA96,IF(RIGHT($K96,2)=RIGHT(BW$39,2),SUM($AV96:BA96),0)+IF(RIGHT(BW$39,2)>RIGHT($K96,2),BA96,0)) -> 0 | BX96: =+IF($K96="Ongoing",BB96,IF(RIGHT($K96,2)=RIGHT(BX$39,2),SUM($AV96:BB96),0)+IF(RIGHT(BX$39,2)>RIGHT($K96,2),BB96,0)) -> 0 | BY96: =+IF($K96="Ongoing",BC96,IF(RIGHT($K96,2)=RIGHT(BY$39,2),SUM($AV96:BC96),0)+IF(RIGHT(BY$39,2)>RIGHT($K96,2),BC96,0)) -> 0 | BZ96: =+IF($K96="Ongoing",BD96,IF(RIGHT($K96,2)=RIGHT(BZ$39,2),SUM($AV96:BD96),0)+IF(RIGHT(BZ$39,2)>RIGHT($K96,2),BD96,0)) -> 0 | CA96: =+IF($K96="Ongoing",BE96,IF(RIGHT($K96,2)=RIGHT(CA$39,2),SUM($AV96:BE96),0)+IF(RIGHT(CA$39,2)>RIGHT($K96,2),BE96,0)) -> 0 | CC96: =+O96*KeyAssumptionsPriceControl_FO!X$15 -> 0 | CD96: =+P96*KeyAssumptionsPriceControl_FO!Y$15 -> 0 | CE96: =+Q96*KeyAssumptionsPriceControl_FO!Z$15 -> 0 | CF96: =+R96*KeyAssumptionsPriceControl_FO!AA$15 -> 0 | CG96: =+S96*KeyAssumptionsPriceControl_FO!AB$15 -> 0 | CH96: =+T96*KeyAssumptionsPriceControl_FO!AC$15 -> 0 | CI96: =+U96*KeyAssumptionsPriceControl_FO!AD$15 -> 0 | CJ96: =+V96*KeyAssumptionsPriceControl_FO!AE$15 -> 0 | CK96: =+W96*KeyAssumptionsPriceControl_FO!AF$15 -> 0 | CL96: =+X96*KeyAssumptionsPriceControl_FO!AG$15 -> 0 | CN96: 0 | CO96: 0 | CP96: 0 | CQ96: 0 | CR96: 0 | CS96: 0 | CT96: 0 | CU96: 0 | CV96: 0 | CW96: 0
C97: Mitchell System: Additional Raw Water Storage | E97: Water | F97: Growth | G97: Headworks | H97: Capital Programs / Allocation | J97: Straight line | K97: 2027-28 | L97: 100 | M97: 100 | O97: 0 | P97: 0 | Q97: 0 | R97: 0 | S97: 0 | T97: 0 | U97: 0 | V97: 0 | W97: 0 | X97: 0.5 | AV97: 0 | AW97: 0 | AX97: 0 | AY97: 0 | AZ97: 0 | BA97: 0 | BB97: 0 | BC97: 0 | BD97: 0 | BE97: 0.5 | BG97: 0 | BH97: 0 | BI97: 0 | BJ97: 0 | BK97: 0 | BL97: 0 | BM97: 0 | BN97: 0 | BO97: 0 | BP97: 0.0025 | BR97: =+IF($K97="Ongoing",AV97,IF(RIGHT($K97,2)=RIGHT(BR$39,2),SUM($AV97:AV97),0)+IF(RIGHT(BR$39,2)>RIGHT($K97,2),AV97,0)) -> 0 | BS97: =+IF($K97="Ongoing",AW97,IF(RIGHT($K97,2)=RIGHT(BS$39,2),SUM($AV97:AW97),0)+IF(RIGHT(BS$39,2)>RIGHT($K97,2),AW97,0)) -> 0 | BT97: =+IF($K97="Ongoing",AX97,IF(RIGHT($K97,2)=RIGHT(BT$39,2),SUM($AV97:AX97),0)+IF(RIGHT(BT$39,2)>RIGHT($K97,2),AX97,0)) -> 0 | BU97: =+IF($K97="Ongoing",AY97,IF(RIGHT($K97,2)=RIGHT(BU$39,2),SUM($AV97:AY97),0)+IF(RIGHT(BU$39,2)>RIGHT($K97,2),AY97,0)) -> 0 | BV97: =+IF($K97="Ongoing",AZ97,IF(RIGHT($K97,2)=RIGHT(BV$39,2),SUM($AV97:AZ97),0)+IF(RIGHT(BV$39,2)>RIGHT($K97,2),AZ97,0)) -> 0 | BW97: =+IF($K97="Ongoing",BA97,IF(RIGHT($K97,2)=RIGHT(BW$39,2),SUM($AV97:BA97),0)+IF(RIGHT(BW$39,2)>RIGHT($K97,2),BA97,0)) -> 0 | BX97: =+IF($K97="Ongoing",BB97,IF(RIGHT($K97,2)=RIGHT(BX$39,2),SUM($AV97:BB97),0)+IF(RIGHT(BX$39,2)>RIGHT($K97,2),BB97,0)) -> 0 | BY97: =+IF($K97="Ongoing",BC97,IF(RIGHT($K97,2)=RIGHT(BY$39,2),SUM($AV97:BC97),0)+IF(RIGHT(BY$39,2)>RIGHT($K97,2),BC97,0)) -> 0 | BZ97: =+IF($K97="Ongoing",BD97,IF(RIGHT($K97,2)=RIGHT(BZ$39,2),SUM($AV97:BD97),0)+IF(RIGHT(BZ$39,2)>RIGHT($K97,2),BD97,0)) -> 0 | CA97: =+IF($K97="Ongoing",BE97,IF(RIGHT($K97,2)=RIGHT(CA$39,2),SUM($AV97:BE97),0)+IF(RIGHT(CA$39,2)>RIGHT($K97,2),BE97,0)) -> 0.5 | CC97: =+O97*KeyAssumptionsPriceControl_FO!X$15 -> 0 | CD97: =+P97*KeyAssumptionsPriceControl_FO!Y$15 -> 0 | CE97: =+Q97*KeyAssumptionsPriceControl_FO!Z$15 -> 0 | CF97: =+R97*KeyAssumptionsPriceControl_FO!AA$15 -> 0 | CG97: =+S97*KeyAssumptionsPriceControl_FO!AB$15 -> 0 | CH97: =+T97*KeyAssumptionsPriceControl_FO!AC$15 -> 0 | CI97: =+U97*KeyAssumptionsPriceControl_FO!AD$15 -> 0 | CJ97: =+V97*KeyAssumptionsPriceControl_FO!AE$15 -> 0 | CK97: =+W97*KeyAssumptionsPriceControl_FO!AF$15 -> 0 | CL97: =+X97*KeyAssumptionsPriceControl_FO!AG$15 -> 0.62766273 | CN97: 0 | CO97: 0 | CP97: 0 | CQ97: 0 | CR97: 0 | CS97: 0 | CT97: 0 | CU97: 0 | CV97: 0 | CW97: 0.00313831365
C98: Cann River and Buchan WTPs - install UV | E98: Water | F98: Improvements / Compliance | G98: Treatment | H98: Other Capital expenditure | J98: Straight line | K98: 2023-24 | L98: 20 | M98: 20 | O98: 0 | P98: 0 | Q98: 0 | R98: 0 | S98: 0 | T98: 0.24 | U98: 0 | V98: 0 | W98: 0 | X98: 0 | AV98: 0 | AW98: 0 | AX98: 0 | AY98: 0 | AZ98: 0 | BA98: 0.24 | BB98: 0 | BC98: 0 | BD98: 0 | BE98: 0 | BG98: 0 | BH98: 0 | BI98: 0 | BJ98: 0 | BK98: 0 | BL98: 0.006 | BM98: 0.012 | BN98: 0.012 | BO98: 0.012 | BP98: 0.012 | BR98: =+IF($K98="Ongoing",AV98,IF(RIGHT($K98,2)=RIGHT(BR$39,2),SUM($AV98:AV98),0)+IF(RIGHT(BR$39,2)>RIGHT($K98,2),AV98,0)) -> 0 | BS98: =+IF($K98="Ongoing",AW98,IF(RIGHT($K98,2)=RIGHT(BS$39,2),SUM($AV98:AW98),0)+IF(RIGHT(BS$39,2)>RIGHT($K98,2),AW98,0)) -> 0 | BT98: =+IF($K98="Ongoing",AX98,IF(RIGHT($K98,2)=RIGHT(BT$39,2),SUM($AV98:AX98),0)+IF(RIGHT(BT$39,2)>RIGHT($K98,2),AX98,0)) -> 0 | BU98: =+IF($K98="Ongoing",AY98,IF(RIGHT($K98,2)=RIGHT(BU$39,2),SUM($AV98:AY98),0)+IF(RIGHT(BU$39,2)>RIGHT($K98,2),AY98,0)) -> 0 | BV98: =+IF($K98="Ongoing",AZ98,IF(RIGHT($K98,2)=RIGHT(BV$39,2),SUM($AV98:AZ98),0)+IF(RIGHT(BV$39,2)>RIGHT($K98,2),AZ98,0)) -> 0 | BW98: =+IF($K98="Ongoing",BA98,IF(RIGHT($K98,2)=RIGHT(BW$39,2),SUM($AV98:BA98),0)+IF(RIGHT(BW$39,2)>RIGHT($K98,2),BA98,0)) -> 0.24 | BX98: =+IF($K98="Ongoing",BB98,IF(RIGHT($K98,2)=RIGHT(BX$39,2),SUM($AV98:BB98),0)+IF(RIGHT(BX$39,2)>RIGHT($K98,2),BB98,0)) -> 0 | BY98: =+IF($K98="Ongoing",BC98,IF(RIGHT($K98,2)=RIGHT(BY$39,2),SUM($AV98:BC98),0)+IF(RIGHT(BY$39,2)>RIGHT($K98,2),BC98,0)) -> 0 | BZ98: =+IF($K98="Ongoing",BD98,IF(RIGHT($K98,2)=RIGHT(BZ$39,2),SUM($AV98:BD98),0)+IF(RIGHT(BZ$39,2)>RIGHT($K98,2),BD98,0)) -> 0 | CA98: =+IF($K98="Ongoing",BE98,IF(RIGHT($K98,2)=RIGHT(CA$39,2),SUM($AV98:BE98),0)+IF(RIGHT(CA$39,2)>RIGHT($K98,2),BE98,0)) -> 0 | CC98: =+O98*KeyAssumptionsPriceControl_FO!X$15 -> 0 | CD98: =+P98*KeyAssumptionsPriceControl_FO!Y$15 -> 0 | CE98: =+Q98*KeyAssumptionsPriceControl_FO!Z$15 -> 0 | CF98: =+R98*KeyAssumptionsPriceControl_FO!AA$15 -> 0 | CG98: =+S98*KeyAssumptionsPriceControl_FO!AB$15 -> 0 | CH98: =+T98*KeyAssumptionsPriceControl_FO!AC$15 -> 0.2750838183 | CI98: =+U98*KeyAssumptionsPriceControl_FO!AD$15 -> 0 | CJ98: =+V98*KeyAssumptionsPriceControl_FO!AE$15 -> 0 | CK98: =+W98*KeyAssumptionsPriceControl_FO!AF$15 -> 0 | CL98: =+X98*KeyAssumptionsPriceControl_FO!AG$15 -> 0 | CN98: 0 | CO98: 0 | CP98: 0 | CQ98: 0 | CR98: 0 | CS98: 0.006877095458 | CT98: 0.01375419092 | CU98: 0.01375419092 | CV98: 0.01375419092 | CW98: 0.01375419092
C99: Woodglen to Wy Yung MSPL replace concrete section (8.7km) | E99: Water | F99: Renewals | G99: Pipelines/network | H99: Capital Programs / Allocation | J99: Straight line | K99: 2027-28 | L99: 80 | M99: 80 | O99: 0 | P99: 0 | Q99: 0 | R99: 0 | S99: 0 | T99: 0 | U99: 0 | V99: 0 | W99: 0.751 | X99: 6 | AV99: 0 | AW99: 0 | AX99: 0 | AY99: 0 | AZ99: 0 | BA99: 0 | BB99: 0 | BC99: 0 | BD99: 0.751 | BE99: 6 | BG99: 0 | BH99: 0 | BI99: 0 | BJ99: 0 | BK99: 0 | BL99: 0 | BM99: 0 | BN99: 0 | BO99: 0 | BP99: 0.04219375 | BR99: =+IF($K99="Ongoing",AV99,IF(RIGHT($K99,2)=RIGHT(BR$39,2),SUM($AV99:AV99),0)+IF(RIGHT(BR$39,2)>RIGHT($K99,2),AV99,0)) -> 0 | BS99: =+IF($K99="Ongoing",AW99,IF(RIGHT($K99,2)=RIGHT(BS$39,2),SUM($AV99:AW99),0)+IF(RIGHT(BS$39,2)>RIGHT($K99,2),AW99,0)) -> 0 | BT99: =+IF($K99="Ongoing",AX99,IF(RIGHT($K99,2)=RIGHT(BT$39,2),SUM($AV99:AX99),0)+IF(RIGHT(BT$39,2)>RIGHT($K99,2),AX99,0)) -> 0 | BU99: =+IF($K99="Ongoing",AY99,IF(RIGHT($K99,2)=RIGHT(BU$39,2),SUM($AV99:AY99),0)+IF(RIGHT(BU$39,2)>RIGHT($K99,2),AY99,0)) -> 0 | BV99: =+IF($K99="Ongoing",AZ99,IF(RIGHT($K99,2)=RIGHT(BV$39,2),SUM($AV99:AZ99),0)+IF(RIGHT(BV$39,2)>RIGHT($K99,2),AZ99,0)) -> 0 | BW99: =+IF($K99="Ongoing",BA99,IF(RIGHT($K99,2)=RIGHT(BW$39,2),SUM($AV99:BA99),0)+IF(RIGHT(BW$39,2)>RIGHT($K99,2),BA99,0)) -> 0 | BX99: =+IF($K99="Ongoing",BB99,IF(RIGHT($K99,2)=RIGHT(BX$39,2),SUM($AV99:BB99),0)+IF(RIGHT(BX$39,2)>RIGHT($K99,2),BB99,0)) -> 0 | BY99: =+IF($K99="Ongoing",BC99,IF(RIGHT($K99,2)=RIGHT(BY$39,2),SUM($AV99:BC99),0)+IF(RIGHT(BY$39,2)>RIGHT($K99,2),BC99,0)) -> 0 | BZ99: =+IF($K99="Ongoing",BD99,IF(RIGHT($K99,2)=RIGHT(BZ$39,2),SUM($AV99:BD99),0)+IF(RIGHT(BZ$39,2)>RIGHT($K99,2),BD99,0)) -> 0 | CA99: =+IF($K99="Ongoing",BE99,IF(RIGHT($K99,2)=RIGHT(CA$39,2),SUM($AV99:BE99),0)+IF(RIGHT(CA$39,2)>RIGHT($K99,2),BE99,0)) -> 6.751 | CC99: =+O99*KeyAssumptionsPriceControl_FO!X$15 -> 0 | CD99: =+P99*KeyAssumptionsPriceControl_FO!Y$15 -> 0 | CE99: =+Q99*KeyAssumptionsPriceControl_FO!Z$15 -> 0 | CF99: =+R99*KeyAssumptionsPriceControl_FO!AA$15 -> 0 | CG99: =+S99*KeyAssumptionsPriceControl_FO!AB$15 -> 0 | CH99: =+T99*KeyAssumptionsPriceControl_FO!AC$15 -> 0 | CI99: =+U99*KeyAssumptionsPriceControl_FO!AD$15 -> 0 | CJ99: =+V99*KeyAssumptionsPriceControl_FO!AE$15 -> 0 | CK99: =+W99*KeyAssumptionsPriceControl_FO!AF$15 -> 0.9215536857 | CL99: =+X99*KeyAssumptionsPriceControl_FO!AG$15 -> 7.53195276 | CN99: 0 | CO99: 0 | CP99: 0 | CQ99: 0 | CR99: 0 | CS99: 0 | CT99: 0 | CU99: 0 | CV99: 0.005759710536 | CW99: 0.05859412582
C100: Duplication of North Arm MSPL Crossing in Lakes Entrance | E100: Water | F100: Growth | G100: Pipelines/network | H100: Capital Programs / Allocation | J100: Straight line | K100: 2023-24 | L100: 80 | M100: 80 | O100: 0 | P100: 0 | Q100: 0 | R100: 0 | S100: 0 | T100: 2 | U100: 0 | V100: 0 | W100: 0 | X100: 0 | AV100: 0 | AW100: 0 | AX100: 0 | AY100: 0 | AZ100: 0 | BA100: 2 | BB100: 0 | BC100: 0 | BD100: 0 | BE100: 0 | BG100: 0 | BH100: 0 | BI100: 0 | BJ100: 0 | BK100: 0 | BL100: 0.0125 | BM100: 0.025 | BN100: 0.025 | BO100: 0.025 | BP100: 0.025 | BR100: =+IF($K100="Ongoing",AV100,IF(RIGHT($K100,2)=RIGHT(BR$39,2),SUM($AV100:AV100),0)+IF(RIGHT(BR$39,2)>RIGHT($K100,2),AV100,0)) -> 0 | BS100: =+IF($K100="Ongoing",AW100,IF(RIGHT($K100,2)=RIGHT(BS$39,2),SUM($AV100:AW100),0)+IF(RIGHT(BS$39,2)>RIGHT($K100,2),AW100,0)) -> 0 | BT100: =+IF($K100="Ongoing",AX100,IF(RIGHT($K100,2)=RIGHT(BT$39,2),SUM($AV100:AX100),0)+IF(RIGHT(BT$39,2)>RIGHT($K100,2),AX100,0)) -> 0 | BU100: =+IF($K100="Ongoing",AY100,IF(RIGHT($K100,2)=RIGHT(BU$39,2),SUM($AV100:AY100),0)+IF(RIGHT(BU$39,2)>RIGHT($K100,2),AY100,0)) -> 0 | BV100: =+IF($K100="Ongoing",AZ100,IF(RIGHT($K100,2)=RIGHT(BV$39,2),SUM($AV100:AZ100),0)+IF(RIGHT(BV$39,2)>RIGHT($K100,2),AZ100,0)) -> 0 | BW100: =+IF($K100="Ongoing",BA100,IF(RIGHT($K100,2)=RIGHT(BW$39,2),SUM($AV100:BA100),0)+IF(RIGHT(BW$39,2)>RIGHT($K100,2),BA100,0)) -> 2 | BX100: =+IF($K100="Ongoing",BB100,IF(RIGHT($K100,2)=RIGHT(BX$39,2),SUM($AV100:BB100),0)+IF(RIGHT(BX$39,2)>RIGHT($K100,2),BB100,0)) -> 0 | BY100: =+IF($K100="Ongoing",BC100,IF(RIGHT($K100,2)=RIGHT(BY$39,2),SUM($AV100:BC100),0)+IF(RIGHT(BY$39,2)>RIGHT($K100,2),BC100,0)) -> 0 | BZ100: =+IF($K100="Ongoing",BD100,IF(RIGHT($K100,2)=RIGHT(BZ$39,2),SUM($AV100:BD100),0)+IF(RIGHT(BZ$39,2)>RIGHT($K100,2),BD100,0)) -> 0 | CA100: =+IF($K100="Ongoing",BE100,IF(RIGHT($K100,2)=RIGHT(CA$39,2),SUM($AV100:BE100),0)+IF(RIGHT(CA$39,2)>RIGHT($K100,2),BE100,0)) -> 0 | CC100: =+O100*KeyAssumptionsPriceControl_FO!X$15 -> 0 | CD100: =+P100*KeyAssumptionsPriceControl_FO!Y$15 -> 0 | CE100: =+Q100*KeyAssumptionsPriceControl_FO!Z$15 -> 0 | CF100: =+R100*KeyAssumptionsPriceControl_FO!AA$15 -> 0 | CG100: =+S100*KeyAssumptionsPriceControl_FO!AB$15 -> 0 | CH100: =+T100*KeyAssumptionsPriceControl_FO!AC$15 -> 2.292365153 | CI100: =+U100*KeyAssumptionsPriceControl_FO!AD$15 -> 0 | CJ100: =+V100*KeyAssumptionsPriceControl_FO!AE$15 -> 0 | CK100: =+W100*KeyAssumptionsPriceControl_FO!AF$15 -> 0 | CL100: =+X100*KeyAssumptionsPriceControl_FO!AG$15 -> 0 | CN100: 0 | CO100: 0 | CP100: 0 | CQ100: 0 | CR100: 0 | CS100: 0.0143272822 | CT100: 0.02865456441 | CU100: 0.02865456441 | CV100: 0.02865456441 | CW100: 0.02865456441
C101: Water Network Upgrades - Lakes Entrance | E101: Water | F101: Renewals | G101: Pipelines/network | H101: Other Capital expenditure | J101: Straight line | K101: 2027-28 | L101: 80 | M101: 80 | O101: 0 | P101: 0 | Q101: 0 | R101: 0 | S101: 0 | T101: 0 | U101: 0 | V101: 0 | W101: 0 | X101: 0.15 | AV101: 0 | AW101: 0 | AX101: 0 | AY101: 0 | AZ101: 0 | BA101: 0 | BB101: 0 | BC101: 0 | BD101: 0 | BE101: 0.15 | BG101: 0 | BH101: 0 | BI101: 0 | BJ101: 0 | BK101: 0 | BL101: 0 | BM101: 0 | BN101: 0 | BO101: 0 | BP101: 0.0009375 | BR101: =+IF($K101="Ongoing",AV101,IF(RIGHT($K101,2)=RIGHT(BR$39,2),SUM($AV101:AV101),0)+IF(RIGHT(BR$39,2)>RIGHT($K101,2),AV101,0)) -> 0 | BS101: =+IF($K101="Ongoing",AW101,IF(RIGHT($K101,2)=RIGHT(BS$39,2),SUM($AV101:AW101),0)+IF(RIGHT(BS$39,2)>RIGHT($K101,2),AW101,0)) -> 0 | BT101: =+IF($K101="Ongoing",AX101,IF(RIGHT($K101,2)=RIGHT(BT$39,2),SUM($AV101:AX101),0)+IF(RIGHT(BT$39,2)>RIGHT($K101,2),AX101,0)) -> 0 | BU101: =+IF($K101="Ongoing",AY101,IF(RIGHT($K101,2)=RIGHT(BU$39,2),SUM($AV101:AY101),0)+IF(RIGHT(BU$39,2)>RIGHT($K101,2),AY101,0)) -> 0 | BV101: =+IF($K101="Ongoing",AZ101,IF(RIGHT($K101,2)=RIGHT(BV$39,2),SUM($AV101:AZ101),0)+IF(RIGHT(BV$39,2)>RIGHT($K101,2),AZ101,0)) -> 0 | BW101: =+IF($K101="Ongoing",BA101,IF(RIGHT($K101,2)=RIGHT(BW$39,2),SUM($AV101:BA101),0)+IF(RIGHT(BW$39,2)>RIGHT($K101,2),BA101,0)) -> 0 | BX101: =+IF($K101="Ongoing",BB101,IF(RIGHT($K101,2)=RIGHT(BX$39,2),SUM($AV101:BB101),0)+IF(RIGHT(BX$39,2)>RIGHT($K101,2),BB101,0)) -> 0 | BY101: =+IF($K101="Ongoing",BC101,IF(RIGHT($K101,2)=RIGHT(BY$39,2),SUM($AV101:BC101),0)+IF(RIGHT(BY$39,2)>RIGHT($K101,2),BC101,0)) -> 0 | BZ101: =+IF($K101="Ongoing",BD101,IF(RIGHT($K101,2)=RIGHT(BZ$39,2),SUM($AV101:BD101),0)+IF(RIGHT(BZ$39,2)>RIGHT($K101,2),BD101,0)) -> 0 | CA101: =+IF($K101="Ongoing",BE101,IF(RIGHT($K101,2)=RIGHT(CA$39,2),SUM($AV101:BE101),0)+IF(RIGHT(CA$39,2)>RIGHT($K101,2),BE101,0)) -> 0.15 | CC101: =+O101*KeyAssumptionsPriceControl_FO!X$15 -> 0 | CD101: =+P101*KeyAssumptionsPriceControl_FO!Y$15 -> 0 | CE101: =+Q101*KeyAssumptionsPriceControl_FO!Z$15 -> 0 | CF101: =+R101*KeyAssumptionsPriceControl_FO!AA$15 -> 0 | CG101: =+S101*KeyAssumptionsPriceControl_FO!AB$15 -> 0 | CH101: =+T101*KeyAssumptionsPriceControl_FO!AC$15 -> 0 | CI101: =+U101*KeyAssumptionsPriceControl_FO!AD$15 -> 0 | CJ101: =+V101*KeyAssumptionsPriceControl_FO!AE$15 -> 0 | CK101: =+W101*KeyAssumptionsPriceControl_FO!AF$15 -> 0 | CL101: =+X101*KeyAssumptionsPriceControl_FO!AG$15 -> 0.188298819 | CN101: 0 | CO101: 0 | CP101: 0 | CQ101: 0 | CR101: 0 | CS101: 0 | CT101: 0 | CU101: 0 | CV101: 0 | CW101: 0.001176867619
C102: Merrangbaur Clear Water Basin Water Quality Improvements | E102: Water | F102: Improvements / Compliance | G102: Pipelines/network | H102: Other Capital expenditure | J102: Straight line | K102: 2026-27 | L102: 40 | M102: 40 | O102: 0 | P102: 0 | Q102: 0 | R102: 0 | S102: 0 | T102: 0 | U102: 0.7 | V102: 0 | W102: 0 | X102: 0 | AV102: 0 | AW102: 0 | AX102: 0 | AY102: 0 | AZ102: 0 | BA102: 0 | BB102: 0.7 | BC102: 0 | BD102: 0 | BE102: 0 | BG102: 0 | BH102: 0 | BI102: 0 | BJ102: 0 | BK102: 0 | BL102: 0 | BM102: 0 | BN102: 0 | BO102: 0.00875 | BP102: 0.0175 | BR102: =+IF($K102="Ongoing",AV102,IF(RIGHT($K102,2)=RIGHT(BR$39,2),SUM($AV102:AV102),0)+IF(RIGHT(BR$39,2)>RIGHT($K102,2),AV102,0)) -> 0 | BS102: =+IF($K102="Ongoing",AW102,IF(RIGHT($K102,2)=RIGHT(BS$39,2),SUM($AV102:AW102),0)+IF(RIGHT(BS$39,2)>RIGHT($K102,2),AW102,0)) -> 0 | BT102: =+IF($K102="Ongoing",AX102,IF(RIGHT($K102,2)=RIGHT(BT$39,2),SUM($AV102:AX102),0)+IF(RIGHT(BT$39,2)>RIGHT($K102,2),AX102,0)) -> 0 | BU102: =+IF($K102="Ongoing",AY102,IF(RIGHT($K102,2)=RIGHT(BU$39,2),SUM($AV102:AY102),0)+IF(RIGHT(BU$39,2)>RIGHT($K102,2),AY102,0)) -> 0 | BV102: =+IF($K102="Ongoing",AZ102,IF(RIGHT($K102,2)=RIGHT(BV$39,2),SUM($AV102:AZ102),0)+IF(RIGHT(BV$39,2)>RIGHT($K102,2),AZ102,0)) -> 0 | BW102: =+IF($K102="Ongoing",BA102,IF(RIGHT($K102,2)=RIGHT(BW$39,2),SUM($AV102:BA102),0)+IF(RIGHT(BW$39,2)>RIGHT($K102,2),BA102,0)) -> 0 | BX102: =+IF($K102="Ongoing",BB102,IF(RIGHT($K102,2)=RIGHT(BX$39,2),SUM($AV102:BB102),0)+IF(RIGHT(BX$39,2)>RIGHT($K102,2),BB102,0)) -> 0 | BY102: =+IF($K102="Ongoing",BC102,IF(RIGHT($K102,2)=RIGHT(BY$39,2),SUM($AV102:BC102),0)+IF(RIGHT(BY$39,2)>RIGHT($K102,2),BC102,0)) -> 0 | BZ102: =+IF($K102="Ongoing",BD102,IF(RIGHT($K102,2)=RIGHT(BZ$39,2),SUM($AV102:BD102),0)+IF(RIGHT(BZ$39,2)>RIGHT($K102,2),BD102,0)) -> 0.7 | CA102: =+IF($K102="Ongoing",BE102,IF(RIGHT($K102,2)=RIGHT(CA$39,2),SUM($AV102:BE102),0)+IF(RIGHT(CA$39,2)>RIGHT($K102,2),BE102,0)) -> 0 | CC102: =+O102*KeyAssumptionsPriceControl_FO!X$15 -> 0 | CD102: =+P102*KeyAssumptionsPriceControl_FO!Y$15 -> 0 | CE102: =+Q102*KeyAssumptionsPriceControl_FO!Z$15 -> 0 | CF102: =+R102*KeyAssumptionsPriceControl_FO!AA$15 -> 0 | CG102: =+S102*KeyAssumptionsPriceControl_FO!AB$15 -> 0 | CH102: =+T102*KeyAssumptionsPriceControl_FO!AC$15 -> 0 | CI102: =+U102*KeyAssumptionsPriceControl_FO!AD$15 -> 0.8207813429 | CJ102: =+V102*KeyAssumptionsPriceControl_FO!AE$15 -> 0 | CK102: =+W102*KeyAssumptionsPriceControl_FO!AF$15 -> 0 | CL102: =+X102*KeyAssumptionsPriceControl_FO!AG$15 -> 0 | CN102: 0 | CO102: 0 | CP102: 0 | CQ102: 0 | CR102: 0 | CS102: 0 | CT102: 0.01025976679 | CU102: 0.02051953357 | CV102: 0.02051953357 | CW102: 0.02051953357
C103: Bairnsdale to Eagle Point MSPL Renewal - Stage 2 (3.5km AC 1963) | E103: Water | F103: Growth | G103: Pipelines/network | H103: Other Capital expenditure | J103: Straight line | K103: 2024-25 | L103: 80 | M103: 80 | O103: 0 | P103: 0 | Q103: 0 | R103: 0 | S103: 0 | T103: 0.22 | U103: 1 | V103: 0.6 | W103: 0 | X103: 0 | AV103: 0 | AW103: 0 | AX103: 0 | AY103: 0 | AZ103: 0 | BA103: 0.22 | BB103: 1 | BC103: 0.6 | BD103: 0 | BE103: 0 | BG103: 0 | BH103: 0 | BI103: 0 | BJ103: 0 | BK103: 0 | BL103: 0 | BM103: 0.007625 | BN103: 0.019 | BO103: 0.02275 | BP103: 0.02275 | BR103: =+IF($K103="Ongoing",AV103,IF(RIGHT($K103,2)=RIGHT(BR$39,2),SUM($AV103:AV103),0)+IF(RIGHT(BR$39,2)>RIGHT($K103,2),AV103,0)) -> 0 | BS103: =+IF($K103="Ongoing",AW103,IF(RIGHT($K103,2)=RIGHT(BS$39,2),SUM($AV103:AW103),0)+IF(RIGHT(BS$39,2)>RIGHT($K103,2),AW103,0)) -> 0 | BT103: =+IF($K103="Ongoing",AX103,IF(RIGHT($K103,2)=RIGHT(BT$39,2),SUM($AV103:AX103),0)+IF(RIGHT(BT$39,2)>RIGHT($K103,2),AX103,0)) -> 0 | BU103: =+IF($K103="Ongoing",AY103,IF(RIGHT($K103,2)=RIGHT(BU$39,2),SUM($AV103:AY103),0)+IF(RIGHT(BU$39,2)>RIGHT($K103,2),AY103,0)) -> 0 | BV103: =+IF($K103="Ongoing",AZ103,IF(RIGHT($K103,2)=RIGHT(BV$39,2),SUM($AV103:AZ103),0)+IF(RIGHT(BV$39,2)>RIGHT($K103,2),AZ103,0)) -> 0 | BW103: =+IF($K103="Ongoing",BA103,IF(RIGHT($K103,2)=RIGHT(BW$39,2),SUM($AV103:BA103),0)+IF(RIGHT(BW$39,2)>RIGHT($K103,2),BA103,0)) -> 0 | BX103: =+IF($K103="Ongoing",BB103,IF(RIGHT($K103,2)=RIGHT(BX$39,2),SUM($AV103:BB103),0)+IF(RIGHT(BX$39,2)>RIGHT($K103,2),BB103,0)) -> 1.22 | BY103: =+IF($K103="Ongoing",BC103,IF(RIGHT($K103,2)=RIGHT(BY$39,2),SUM($AV103:BC103),0)+IF(RIGHT(BY$39,2)>RIGHT($K103,2),BC103,0)) -> 0.6 | BZ103: =+IF($K103="Ongoing",BD103,IF(RIGHT($K103,2)=RIGHT(BZ$39,2),SUM($AV103:BD103),0)+IF(RIGHT(BZ$39,2)>RIGHT($K103,2),BD103,0)) -> 0 | CA103: =+IF($K103="Ongoing",BE103,IF(RIGHT($K103,2)=RIGHT(CA$39,2),SUM($AV103:BE103),0)+IF(RIGHT(CA$39,2)>RIGHT($K103,2),BE103,0)) -> 0 | CC103: =+O103*KeyAssumptionsPriceControl_FO!X$15 -> 0 | CD103: =+P103*KeyAssumptionsPriceControl_FO!Y$15 -> 0 | CE103: =+Q103*KeyAssumptionsPriceControl_FO!Z$15 -> 0 | CF103: =+R103*KeyAssumptionsPriceControl_FO!AA$15 -> 0 | CG103: =+S103*KeyAssumptionsPriceControl_FO!AB$15 -> 0 | CH103: =+T103*KeyAssumptionsPriceControl_FO!AC$15 -> 0.2521601668 | CI103: =+U103*KeyAssumptionsPriceControl_FO!AD$15 -> 1.172544776 | CJ103: =+V103*KeyAssumptionsPriceControl_FO!AE$15 -> 0.7197079833 | CK103: =+W103*KeyAssumptionsPriceControl_FO!AF$15 -> 0 | CL103: =+X103*KeyAssumptionsPriceControl_FO!AG$15 -> 0 | CN103: 0 | CO103: 0 | CP103: 0 | CQ103: 0 | CR103: 0 | CS103: 0.001576001043 | CT103: 0.01048040693 | CU103: 0.02230698668 | CV103: 0.02680516157 | CW103: 0.02680516157
C104: Swan Reach to Sunlakes MSPL renewal (approx 5.8km 1964 AC section) - lower risk | E104: Water | F104: Renewals | G104: Pipelines/network | H104: Other Capital expenditure | J104: Straight line | K104: 2027-28 | L104: 80 | M104: 80 | O104: 0 | P104: 0 | Q104: 0 | R104: 0 | S104: 0 | T104: 0 | U104: 0 | V104: 0 | W104: 1 | X104: 0.5 | AV104: 0 | AW104: 0 | AX104: 0 | AY104: 0 | AZ104: 0 | BA104: 0 | BB104: 0 | BC104: 0 | BD104: 1 | BE104: 0.5 | BG104: 0 | BH104: 0 | BI104: 0 | BJ104: 0 | BK104: 0 | BL104: 0 | BM104: 0 | BN104: 0 | BO104: 0 | BP104: 0.009375 | BR104: =+IF($K104="Ongoing",AV104,IF(RIGHT($K104,2)=RIGHT(BR$39,2),SUM($AV104:AV104),0)+IF(RIGHT(BR$39,2)>RIGHT($K104,2),AV104,0)) -> 0 | BS104: =+IF($K104="Ongoing",AW104,IF(RIGHT($K104,2)=RIGHT(BS$39,2),SUM($AV104:AW104),0)+IF(RIGHT(BS$39,2)>RIGHT($K104,2),AW104,0)) -> 0 | BT104: =+IF($K104="Ongoing",AX104,IF(RIGHT($K104,2)=RIGHT(BT$39,2),SUM($AV104:AX104),0)+IF(RIGHT(BT$39,2)>RIGHT($K104,2),AX104,0)) -> 0 | BU104: =+IF($K104="Ongoing",AY104,IF(RIGHT($K104,2)=RIGHT(BU$39,2),SUM($AV104:AY104),0)+IF(RIGHT(BU$39,2)>RIGHT($K104,2),AY104,0)) -> 0 | BV104: =+IF($K104="Ongoing",AZ104,IF(RIGHT($K104,2)=RIGHT(BV$39,2),SUM($AV104:AZ104),0)+IF(RIGHT(BV$39,2)>RIGHT($K104,2),AZ104,0)) -> 0 | BW104: =+IF($K104="Ongoing",BA104,IF(RIGHT($K104,2)=RIGHT(BW$39,2),SUM($AV104:BA104),0)+IF(RIGHT(BW$39,2)>RIGHT($K104,2),BA104,0)) -> 0 | BX104: =+IF($K104="Ongoing",BB104,IF(RIGHT($K104,2)=RIGHT(BX$39,2),SUM($AV104:BB104),0)+IF(RIGHT(BX$39,2)>RIGHT($K104,2),BB104,0)) -> 0 | BY104: =+IF($K104="Ongoing",BC104,IF(RIGHT($K104,2)=RIGHT(BY$39,2),SUM($AV104:BC104),0)+IF(RIGHT(BY$39,2)>RIGHT($K104,2),BC104,0)) -> 0 | BZ104: =+IF($K104="Ongoing",BD104,IF(RIGHT($K104,2)=RIGHT(BZ$39,2),SUM($AV104:BD104),0)+IF(RIGHT(BZ$39,2)>RIGHT($K104,2),BD104,0)) -> 0 | CA104: =+IF($K104="Ongoing",BE104,IF(RIGHT($K104,2)=RIGHT(CA$39,2),SUM($AV104:BE104),0)+IF(RIGHT(CA$39,2)>RIGHT($K104,2),BE104,0)) -> 1.5 | CC104: =+O104*KeyAssumptionsPriceControl_FO!X$15 -> 0 | CD104: =+P104*KeyAssumptionsPriceControl_FO!Y$15 -> 0 | CE104: =+Q104*KeyAssumptionsPriceControl_FO!Z$15 -> 0 | CF104: =+R104*KeyAssumptionsPriceControl_FO!AA$15 -> 0 | CG104: =+S104*KeyAssumptionsPriceControl_FO!AB$15 -> 0 | CH104: =+T104*KeyAssumptionsPriceControl_FO!AC$15 -> 0 | CI104: =+U104*KeyAssumptionsPriceControl_FO!AD$15 -> 0 | CJ104: =+V104*KeyAssumptionsPriceControl_FO!AE$15 -> 0 | CK104: =+W104*KeyAssumptionsPriceControl_FO!AF$15 -> 1.227102112 | CL104: =+X104*KeyAssumptionsPriceControl_FO!AG$15 -> 0.62766273 | CN104: 0 | CO104: 0 | CP104: 0 | CQ104: 0 | CR104: 0 | CS104: 0 | CT104: 0 | CU104: 0 | CV104: 0.007669388197 | CW104: 0.01926166846
C105: Woodglen WTP up-grade from 20ML/day to 30 ML/day | E105: Water | F105: Improvements / Compliance | G105: Treatment | H105: Other Capital expenditure | J105: Straight line | K105: 2027-28 | L105: 25 | M105: 25 | O105: 0 | P105: 0 | Q105: 0 | R105: 0 | S105: 0 | T105: 0 | U105: 0 | V105: 0 | W105: 0 | X105: 0.5 | AV105: 0 | AW105: 0 | AX105: 0 | AY105: 0 | AZ105: 0 | BA105: 0 | BB105: 0 | BC105: 0 | BD105: 0 | BE105: 0.5 | BG105: 0 | BH105: 0 | BI105: 0 | BJ105: 0 | BK105: 0 | BL105: 0 | BM105: 0 | BN105: 0 | BO105: 0 | BP105: 0.01 | BR105: =+IF($K105="Ongoing",AV105,IF(RIGHT($K105,2)=RIGHT(BR$39,2),SUM($AV105:AV105),0)+IF(RIGHT(BR$39,2)>RIGHT($K105,2),AV105,0)) -> 0 | BS105: =+IF($K105="Ongoing",AW105,IF(RIGHT($K105,2)=RIGHT(BS$39,2),SUM($AV105:AW105),0)+IF(RIGHT(BS$39,2)>RIGHT($K105,2),AW105,0)) -> 0 | BT105: =+IF($K105="Ongoing",AX105,IF(RIGHT($K105,2)=RIGHT(BT$39,2),SUM($AV105:AX105),0)+IF(RIGHT(BT$39,2)>RIGHT($K105,2),AX105,0)) -> 0 | BU105: =+IF($K105="Ongoing",AY105,IF(RIGHT($K105,2)=RIGHT(BU$39,2),SUM($AV105:AY105),0)+IF(RIGHT(BU$39,2)>RIGHT($K105,2),AY105,0)) -> 0 | BV105: =+IF($K105="Ongoing",AZ105,IF(RIGHT($K105,2)=RIGHT(BV$39,2),SUM($AV105:AZ105),0)+IF(RIGHT(BV$39,2)>RIGHT($K105,2),AZ105,0)) -> 0 | BW105: =+IF($K105="Ongoing",BA105,IF(RIGHT($K105,2)=RIGHT(BW$39,2),SUM($AV105:BA105),0)+IF(RIGHT(BW$39,2)>RIGHT($K105,2),BA105,0)) -> 0 | BX105: =+IF($K105="Ongoing",BB105,IF(RIGHT($K105,2)=RIGHT(BX$39,2),SUM($AV105:BB105),0)+IF(RIGHT(BX$39,2)>RIGHT($K105,2),BB105,0)) -> 0 | BY105: =+IF($K105="Ongoing",BC105,IF(RIGHT($K105,2)=RIGHT(BY$39,2),SUM($AV105:BC105),0)+IF(RIGHT(BY$39,2)>RIGHT($K105,2),BC105,0)) -> 0 | BZ105: =+IF($K105="Ongoing",BD105,IF(RIGHT($K105,2)=RIGHT(BZ$39,2),SUM($AV105:BD105),0)+IF(RIGHT(BZ$39,2)>RIGHT($K105,2),BD105,0)) -> 0 | CA105: =+IF($K105="Ongoing",BE105,IF(RIGHT($K105,2)=RIGHT(CA$39,2),SUM($AV105:BE105),0)+IF(RIGHT(CA$39,2)>RIGHT($K105,2),BE105,0)) -> 0.5 | CC105: =+O105*KeyAssumptionsPriceControl_FO!X$15 -> 0 | CD105: =+P105*KeyAssumptionsPriceControl_FO!Y$15 -> 0 | CE105: =+Q105*KeyAssumptionsPriceControl_FO!Z$15 -> 0 | CF105: =+R105*KeyAssumptionsPriceControl_FO!AA$15 -> 0 | CG105: =+S105*KeyAssumptionsPriceControl_FO!AB$15 -> 0 | CH105: =+T105*KeyAssumptionsPriceControl_FO!AC$15 -> 0 | CI105: =+U105*KeyAssumptionsPriceControl_FO!AD$15 -> 0 | CJ105: =+V105*KeyAssumptionsPriceControl_FO!AE$15 -> 0 | CK105: =+W105*KeyAssumptionsPriceControl_FO!AF$15 -> 0 | CL105: =+X105*KeyAssumptionsPriceControl_FO!AG$15 -> 0.62766273 | CN105: 0 | CO105: 0 | CP105: 0 | CQ105: 0 | CR105: 0 | CS105: 0 | CT105: 0 | CU105: 0 | CV105: 0 | CW105: 0.0125532546
C106: Liveability - implement recycled water scheme or other (EGW contribution) | E106: Recycled Water | F106: Improvements / Compliance | G106: Corporate | H106: Other Capital expenditure | J106: Straight line | K106: 2023-24 | L106: 50 | M106: 50 | O106: 0 | P106: 0 | Q106: 0 | R106: 0 | S106: 0 | T106: 0.2 | U106: 0 | V106: 0 | W106: 0 | X106: 0 | AV106: 0 | AW106: 0 | AX106: 0 | AY106: 0 | AZ106: 0 | BA106: 0.2 | BB106: 0 | BC106: 0 | BD106: 0 | BE106: 0 | BG106: 0 | BH106: 0 | BI106: 0 | BJ106: 0 | BK106: 0 | BL106: 0.002 | BM106: 0.004 | BN106: 0.004 | BO106: 0.004 | BP106: 0.004 | BR106: =+IF($K106="Ongoing",AV106,IF(RIGHT($K106,2)=RIGHT(BR$39,2),SUM($AV106:AV106),0)+IF(RIGHT(BR$39,2)>RIGHT($K106,2),AV106,0)) -> 0 | BS106: =+IF($K106="Ongoing",AW106,IF(RIGHT($K106,2)=RIGHT(BS$39,2),SUM($AV106:AW106),0)+IF(RIGHT(BS$39,2)>RIGHT($K106,2),AW106,0)) -> 0 | BT106: =+IF($K106="Ongoing",AX106,IF(RIGHT($K106,2)=RIGHT(BT$39,2),SUM($AV106:AX106),0)+IF(RIGHT(BT$39,2)>RIGHT($K106,2),AX106,0)) -> 0 | BU106: =+IF($K106="Ongoing",AY106,IF(RIGHT($K106,2)=RIGHT(BU$39,2),SUM($AV106:AY106),0)+IF(RIGHT(BU$39,2)>RIGHT($K106,2),AY106,0)) -> 0 | BV106: =+IF($K106="Ongoing",AZ106,IF(RIGHT($K106,2)=RIGHT(BV$39,2),SUM($AV106:AZ106),0)+IF(RIGHT(BV$39,2)>RIGHT($K106,2),AZ106,0)) -> 0 | BW106: =+IF($K106="Ongoing",BA106,IF(RIGHT($K106,2)=RIGHT(BW$39,2),SUM($AV106:BA106),0)+IF(RIGHT(BW$39,2)>RIGHT($K106,2),BA106,0)) -> 0.2 | BX106: =+IF($K106="Ongoing",BB106,IF(RIGHT($K106,2)=RIGHT(BX$39,2),SUM($AV106:BB106),0)+IF(RIGHT(BX$39,2)>RIGHT($K106,2),BB106,0)) -> 0 | BY106: =+IF($K106="Ongoing",BC106,IF(RIGHT($K106,2)=RIGHT(BY$39,2),SUM($AV106:BC106),0)+IF(RIGHT(BY$39,2)>RIGHT($K106,2),BC106,0)) -> 0 | BZ106: =+IF($K106="Ongoing",BD106,IF(RIGHT($K106,2)=RIGHT(BZ$39,2),SUM($AV106:BD106),0)+IF(RIGHT(BZ$39,2)>RIGHT($K106,2),BD106,0)) -> 0 | CA106: =+IF($K106="Ongoing",BE106,IF(RIGHT($K106,2)=RIGHT(CA$39,2),SUM($AV106:BE106),0)+IF(RIGHT(CA$39,2)>RIGHT($K106,2),BE106,0)) -> 0 | CC106: =+O106*KeyAssumptionsPriceControl_FO!X$15 -> 0 | CD106: =+P106*KeyAssumptionsPriceControl_FO!Y$15 -> 0 | CE106: =+Q106*KeyAssumptionsPriceControl_FO!Z$15 -> 0 | CF106: =+R106*KeyAssumptionsPriceControl_FO!AA$15 -> 0 | CG106: =+S106*KeyAssumptionsPriceControl_FO!AB$15 -> 0 | CH106: =+T106*KeyAssumptionsPriceControl_FO!AC$15 -> 0.2292365153 | CI106: =+U106*KeyAssumptionsPriceControl_FO!AD$15 -> 0 | CJ106: =+V106*KeyAssumptionsPriceControl_FO!AE$15 -> 0 | CK106: =+W106*KeyAssumptionsPriceControl_FO!AF$15 -> 0 | CL106: =+X106*KeyAssumptionsPriceControl_FO!AG$15 -> 0 | CN106: 0 | CO106: 0 | CP106: 0 | CQ106: 0 | CR106: 0 | CS106: 0.002292365153 | CT106: 0.004584730306 | CU106: 0.004584730306 | CV106: 0.004584730306 | CW106: 0.004584730306
C107: Water Quality System | E107: Water | F107: Renewals | G107: Corporate | H107: Other Capital expenditure | J107: Straight line | K107: 2018-19 | L107: 10 | M107: 10 | O107: 0.05 | P107: 0 | Q107: 0 | R107: 0 | S107: 0 | T107: 0 | U107: 0 | V107: 0 | W107: 0 | X107: 0 | AV107: 0.05 | AW107: 0 | AX107: 0 | AY107: 0 | AZ107: 0 | BA107: 0 | BB107: 0 | BC107: 0 | BD107: 0 | BE107: 0 | BG107: =IF($L107=0,0, IF($L107<=0.5,BR107, IF($J107="straight line", IF((LEFT(BG$39,4)*1)-INT($L107)<LEFT($BG$39,4)*1,0,((OFFSET(BR107,0,-INT($L107+0.5),1,1))/$L107)*(IF($L107-INT($L107)>0.5,$L107-0.5-INT($L107),IF($L107-INT($L107)<=0.5,$L107-0.5-INT($L107)+1,0)))) +BR107/$L107*0.5, IF($J107="Declining Balance",-$BG$38,0)))) -> 0.0025 | BH107: 0.005 | BI107: 0.005 | BJ107: 0.005 | BK107: 0.005 | BL107: 0.005 | BM107: 0.005 | BN107: 0.005 | BO107: 0.005 | BP107: 0.005 | BR107: =+IF($K107="Ongoing",AV107,IF(RIGHT($K107,2)=RIGHT(BR$39,2),SUM($AV107:AV107),0)+IF(RIGHT(BR$39,2)>RIGHT($K107,2),AV107,0)) -> 0.05 | BS107: =+IF($K107="Ongoing",AW107,IF(RIGHT($K107,2)=RIGHT(BS$39,2),SUM($AV107:AW107),0)+IF(RIGHT(BS$39,2)>RIGHT($K107,2),AW107,0)) -> 0 | BT107: =+IF($K107="Ongoing",AX107,IF(RIGHT($K107,2)=RIGHT(BT$39,2),SUM($AV107:AX107),0)+IF(RIGHT(BT$39,2)>RIGHT($K107,2),AX107,0)) -> 0 | BU107: =+IF($K107="Ongoing",AY107,IF(RIGHT($K107,2)=RIGHT(BU$39,2),SUM($AV107:AY107),0)+IF(RIGHT(BU$39,2)>RIGHT($K107,2),AY107,0)) -> 0 | BV107: =+IF($K107="Ongoing",AZ107,IF(RIGHT($K107,2)=RIGHT(BV$39,2),SUM($AV107:AZ107),0)+IF(RIGHT(BV$39,2)>RIGHT($K107,2),AZ107,0)) -> 0 | BW107: =+IF($K107="Ongoing",BA107,IF(RIGHT($K107,2)=RIGHT(BW$39,2),SUM($AV107:BA107),0)+IF(RIGHT(BW$39,2)>RIGHT($K107,2),BA107,0)) -> 0 | BX107: =+IF($K107="Ongoing",BB107,IF(RIGHT($K107,2)=RIGHT(BX$39,2),SUM($AV107:BB107),0)+IF(RIGHT(BX$39,2)>RIGHT($K107,2),BB107,0)) -> 0 | BY107: =+IF($K107="Ongoing",BC107,IF(RIGHT($K107,2)=RIGHT(BY$39,2),SUM($AV107:BC107),0)+IF(RIGHT(BY$39,2)>RIGHT($K107,2),BC107,0)) -> 0 | BZ107: =+IF($K107="Ongoing",BD107,IF(RIGHT($K107,2)=RIGHT(BZ$39,2),SUM($AV107:BD107),0)+IF(RIGHT(BZ$39,2)>RIGHT($K107,2),BD107,0)) -> 0 | CA107: =+IF($K107="Ongoing",BE107,IF(RIGHT($K107,2)=RIGHT(CA$39,2),SUM($AV107:BE107),0)+IF(RIGHT(CA$39,2)>RIGHT($K107,2),BE107,0)) -> 0 | CC107: =+O107*KeyAssumptionsPriceControl_FO!X$15 -> 0.05115 | CD107: =+P107*KeyAssumptionsPriceControl_FO!Y$15 -> 0 | CE107: =+Q107*KeyAssumptionsPriceControl_FO!Z$15 -> 0 | CF107: =+R107*KeyAssumptionsPriceControl_FO!AA$15 -> 0 | CG107: =+S107*KeyAssumptionsPriceControl_FO!AB$15 -> 0 | CH107: =+T107*KeyAssumptionsPriceControl_FO!AC$15 -> 0 | CI107: =+U107*KeyAssumptionsPriceControl_FO!AD$15 -> 0 | CJ107: =+V107*KeyAssumptionsPriceControl_FO!AE$15 -> 0 | CK107: =+W107*KeyAssumptionsPriceControl_FO!AF$15 -> 0 | CL107: =+X107*KeyAssumptionsPriceControl_FO!AG$15 -> 0 | CN107: =IF($M107=0,0, IF($M107<=0.5,CC107, IF($J107="straight line", IF((LEFT(CN$39,4)*1)-INT($M107)<LEFT($CN$39,4)*1,0,((OFFSET(CC107,0,-INT($M107+0.5),1,1))/$M107)*(IF($M107-INT($M107)>0.5,$M107-0.5-INT($M107),IF($M107-INT($M107)<=0.5,$M107-0.5-INT($M107)+1,0)))) +CC107/$M107*0.5, IF($J107="Declining Balance",-$CN$38,0)))) -> 0.0025575 | CO107: 0.005115 | CP107: 0.005115 | CQ107: 0.005115 | CR107: 0.005115 | CS107: 0.005115 | CT107: 0.005115 | CU107: 0.005115 | CV107: 0.005115 | CW107: 0.005115
C108: IT Hardware and Software Improvements (capex BAU) | E108: Water | F108: Renewals | G108: Corporate | H108: Capital Programs / Allocation | J108: Straight line | K108: Ongoing | L108: 3 | M108: 3 | O108: 0.225 | P108: 0.225 | Q108: 0.225 | R108: 0.225 | S108: 0.225 | T108: 0.25 | U108: 0.25 | V108: 0.25 | W108: 0.25 | X108: 0.25 | AV108: 0.225 | AW108: 0.225 | AX108: 0.225 | AY108: 0.225 | AZ108: 0.225 | BA108: 0.25 | BB108: 0.25 | BC108: 0.25 | BD108: 0.25 | BE108: 0.25 | BG108: 0.0375 | BH108: 0.1125 | BI108: 0.1875 | BJ108: 0.225 | BK108: 0.225 | BL108: 0.2291666667 | BM108: 0.2375 | BN108: 0.2458333333 | BO108: 0.25 | BP108: 0.25 | BR108: =+IF($K108="Ongoing",AV108,IF(RIGHT($K108,2)=RIGHT(BR$39,2),SUM($AV108:AV108),0)+IF(RIGHT(BR$39,2)>RIGHT($K108,2),AV108,0)) -> 0.225 | BS108: =+IF($K108="Ongoing",AW108,IF(RIGHT($K108,2)=RIGHT(BS$39,2),SUM($AV108:AW108),0)+IF(RIGHT(BS$39,2)>RIGHT($K108,2),AW108,0)) -> 0.225 | BT108: =+IF($K108="Ongoing",AX108,IF(RIGHT($K108,2)=RIGHT(BT$39,2),SUM($AV108:AX108),0)+IF(RIGHT(BT$39,2)>RIGHT($K108,2),AX108,0)) -> 0.225 | BU108: =+IF($K108="Ongoing",AY108,IF(RIGHT($K108,2)=RIGHT(BU$39,2),SUM($AV108:AY108),0)+IF(RIGHT(BU$39,2)>RIGHT($K108,2),AY108,0)) -> 0.225 | BV108: =+IF($K108="Ongoing",AZ108,IF(RIGHT($K108,2)=RIGHT(BV$39,2),SUM($AV108:AZ108),0)+IF(RIGHT(BV$39,2)>RIGHT($K108,2),AZ108,0)) -> 0.225 | BW108: =+IF($K108="Ongoing",BA108,IF(RIGHT($K108,2)=RIGHT(BW$39,2),SUM($AV108:BA108),0)+IF(RIGHT(BW$39,2)>RIGHT($K108,2),BA108,0)) -> 0.25 | BX108: =+IF($K108="Ongoing",BB108,IF(RIGHT($K108,2)=RIGHT(BX$39,2),SUM($AV108:BB108),0)+IF(RIGHT(BX$39,2)>RIGHT($K108,2),BB108,0)) -> 0.25 | BY108: =+IF($K108="Ongoing",BC108,IF(RIGHT($K108,2)=RIGHT(BY$39,2),SUM($AV108:BC108),0)+IF(RIGHT(BY$39,2)>RIGHT($K108,2),BC108,0)) -> 0.25 | BZ108: =+IF($K108="Ongoing",BD108,IF(RIGHT($K108,2)=RIGHT(BZ$39,2),SUM($AV108:BD108),0)+IF(RIGHT(BZ$39,2)>RIGHT($K108,2),BD108,0)) -> 0.25 | CA108: =+IF($K108="Ongoing",BE108,IF(RIGHT($K108,2)=RIGHT(CA$39,2),SUM($AV108:BE108),0)+IF(RIGHT(CA$39,2)>RIGHT($K108,2),BE108,0)) -> 0.25 | CC108: =+O108*KeyAssumptionsPriceControl_FO!X$15 -> 0.230175 | CD108: =+P108*KeyAssumptionsPriceControl_FO!Y$15 -> 0.235469025 | CE108: =+Q108*KeyAssumptionsPriceControl_FO!Z$15 -> 0.2408848126 | CF108: =+R108*KeyAssumptionsPriceControl_FO!AA$15 -> 0.2464251633 | CG108: =+S108*KeyAssumptionsPriceControl_FO!AB$15 -> 0.252092942 | CH108: =+T108*KeyAssumptionsPriceControl_FO!AC$15 -> 0.2865456441 | CI108: =+U108*KeyAssumptionsPriceControl_FO!AD$15 -> 0.2931361939 | CJ108: =+V108*KeyAssumptionsPriceControl_FO!AE$15 -> 0.2998783264 | CK108: =+W108*KeyAssumptionsPriceControl_FO!AF$15 -> 0.3067755279 | CL108: =+X108*KeyAssumptionsPriceControl_FO!AG$15 -> 0.313831365 | CN108: 0.0383625 | CO108: 0.1159698375 | CP108: 0.1953621438 | CQ108: 0.2382179731 | CR108: 0.2436969864 | CS108: 0.2540777779 | CT108: 0.2694730882 | CU108: 0.2852224907 | CV108: 0.2965583688 | CW108: 0.3033792112
C109: IOT Digital Meters | E109: Water | F109: Improvements / Compliance | G109: Corporate | H109: Capital Programs / Allocation | J109: Straight line | K109: Ongoing | L109: 10 | M109: 10 | O109: 0 | P109: 0 | Q109: 0 | R109: 0 | S109: 0 | T109: 0 | U109: 0 | V109: 0 | W109: 0 | X109: 0 | AV109: 0 | AW109: 0 | AX109: 0 | AY109: 0 | AZ109: 0 | BA109: 0 | BB109: 0 | BC109: 0 | BD109: 0 | BE109: 0 | BG109: 0 | BH109: 0 | BI109: 0 | BJ109: 0 | BK109: 0 | BL109: 0 | BM109: 0 | BN109: 0 | BO109: 0 | BP109: 0 | BR109: =+IF($K109="Ongoing",AV109,IF(RIGHT($K109,2)=RIGHT(BR$39,2),SUM($AV109:AV109),0)+IF(RIGHT(BR$39,2)>RIGHT($K109,2),AV109,0)) -> 0 | BS109: =+IF($K109="Ongoing",AW109,IF(RIGHT($K109,2)=RIGHT(BS$39,2),SUM($AV109:AW109),0)+IF(RIGHT(BS$39,2)>RIGHT($K109,2),AW109,0)) -> 0 | BT109: =+IF($K109="Ongoing",AX109,IF(RIGHT($K109,2)=RIGHT(BT$39,2),SUM($AV109:AX109),0)+IF(RIGHT(BT$39,2)>RIGHT($K109,2),AX109,0)) -> 0 | BU109: =+IF($K109="Ongoing",AY109,IF(RIGHT($K109,2)=RIGHT(BU$39,2),SUM($AV109:AY109),0)+IF(RIGHT(BU$39,2)>RIGHT($K109,2),AY109,0)) -> 0 | BV109: =+IF($K109="Ongoing",AZ109,IF(RIGHT($K109,2)=RIGHT(BV$39,2),SUM($AV109:AZ109),0)+IF(RIGHT(BV$39,2)>RIGHT($K109,2),AZ109,0)) -> 0 | BW109: =+IF($K109="Ongoing",BA109,IF(RIGHT($K109,2)=RIGHT(BW$39,2),SUM($AV109:BA109),0)+IF(RIGHT(BW$39,2)>RIGHT($K109,2),BA109,0)) -> 0 | BX109: =+IF($K109="Ongoing",BB109,IF(RIGHT($K109,2)=RIGHT(BX$39,2),SUM($AV109:BB109),0)+IF(RIGHT(BX$39,2)>RIGHT($K109,2),BB109,0)) -> 0 | BY109: =+IF($K109="Ongoing",BC109,IF(RIGHT($K109,2)=RIGHT(BY$39,2),SUM($AV109:BC109),0)+IF(RIGHT(BY$39,2)>RIGHT($K109,2),BC109,0)) -> 0 | BZ109: =+IF($K109="Ongoing",BD109,IF(RIGHT($K109,2)=RIGHT(BZ$39,2),SUM($AV109:BD109),0)+IF(RIGHT(BZ$39,2)>RIGHT($K109,2),BD109,0)) -> 0 | CA109: =+IF($K109="Ongoing",BE109,IF(RIGHT($K109,2)=RIGHT(CA$39,2),SUM($AV109:BE109),0)+IF(RIGHT(CA$39,2)>RIGHT($K109,2),BE109,0)) -> 0 | CC109: =+O109*KeyAssumptionsPriceControl_FO!X$15 -> 0 | CD109: =+P109*KeyAssumptionsPriceControl_FO!Y$15 -> 0 | CE109: =+Q109*KeyAssumptionsPriceControl_FO!Z$15 -> 0 | CF109: =+R109*KeyAssumptionsPriceControl_FO!AA$15 -> 0 | CG109: =+S109*KeyAssumptionsPriceControl_FO!AB$15 -> 0 | CH109: =+T109*KeyAssumptionsPriceControl_FO!AC$15 -> 0 | CI109: =+U109*KeyAssumptionsPriceControl_FO!AD$15 -> 0 | CJ109: =+V109*KeyAssumptionsPriceControl_FO!AE$15 -> 0 | CK109: =+W109*KeyAssumptionsPriceControl_FO!AF$15 -> 0 | CL109: =+X109*KeyAssumptionsPriceControl_FO!AG$15 -> 0 | CN109: 0 | CO109: 0 | CP109: 0 | CQ109: 0 | CR109: 0 | CS109: 0 | CT109: 0 | CU109: 0 | CV109: 0 | CW109: 0
C110: Finance IT | E110: Water | F110: Renewals | G110: Corporate | H110: Capital Programs / Allocation | J110: Straight line | K110: Ongoing | L110: 10 | M110: 10 | O110: 0.015 | P110: 0.015 | Q110: 0.015 | R110: 0.015 | S110: 0.015 | T110: 0.015 | U110: 0.015 | V110: 0.015 | W110: 0.015 | X110: 0.015 | AV110: 0.015 | AW110: 0.015 | AX110: 0.015 | AY110: 0.015 | AZ110: =+S110-AD110-AO110 -> 0.015 | BA110: 0.015 | BB110: 0.015 | BC110: 0.015 | BD110: 0.015 | BE110: 0.015 | BG110: 0.00075 | BH110: 0.00225 | BI110: 0.00375 | BJ110: 0.00525 | BK110: 0.00675 | BL110: 0.00825 | BM110: 0.00975 | BN110: 0.01125 | BO110: 0.01275 | BP110: 0.01425 | BR110: =+IF($K110="Ongoing",AV110,IF(RIGHT($K110,2)=RIGHT(BR$39,2),SUM($AV110:AV110),0)+IF(RIGHT(BR$39,2)>RIGHT($K110,2),AV110,0)) -> 0.015 | BS110: =+IF($K110="Ongoing",AW110,IF(RIGHT($K110,2)=RIGHT(BS$39,2),SUM($AV110:AW110),0)+IF(RIGHT(BS$39,2)>RIGHT($K110,2),AW110,0)) -> 0.015 | BT110: =+IF($K110="Ongoing",AX110,IF(RIGHT($K110,2)=RIGHT(BT$39,2),SUM($AV110:AX110),0)+IF(RIGHT(BT$39,2)>RIGHT($K110,2),AX110,0)) -> 0.015 | BU110: =+IF($K110="Ongoing",AY110,IF(RIGHT($K110,2)=RIGHT(BU$39,2),SUM($AV110:AY110),0)+IF(RIGHT(BU$39,2)>RIGHT($K110,2),AY110,0)) -> 0.015 | BV110: =+IF($K110="Ongoing",AZ110,IF(RIGHT($K110,2)=RIGHT(BV$39,2),SUM($AV110:AZ110),0)+IF(RIGHT(BV$39,2)>RIGHT($K110,2),AZ110,0)) -> 0.015 | BW110: =+IF($K110="Ongoing",BA110,IF(RIGHT($K110,2)=RIGHT(BW$39,2),SUM($AV110:BA110),0)+IF(RIGHT(BW$39,2)>RIGHT($K110,2),BA110,0)) -> 0.015 | BX110: =+IF($K110="Ongoing",BB110,IF(RIGHT($K110,2)=RIGHT(BX$39,2),SUM($AV110:BB110),0)+IF(RIGHT(BX$39,2)>RIGHT($K110,2),BB110,0)) -> 0.015 | BY110: =+IF($K110="Ongoing",BC110,IF(RIGHT($K110,2)=RIGHT(BY$39,2),SUM($AV110:BC110),0)+IF(RIGHT(BY$39,2)>RIGHT($K110,2),BC110,0)) -> 0.015 | BZ110: =+IF($K110="Ongoing",BD110,IF(RIGHT($K110,2)=RIGHT(BZ$39,2),SUM($AV110:BD110),0)+IF(RIGHT(BZ$39,2)>RIGHT($K110,2),BD110,0)) -> 0.015 | CA110: =+IF($K110="Ongoing",BE110,IF(RIGHT($K110,2)=RIGHT(CA$39,2),SUM($AV110:BE110),0)+IF(RIGHT(CA$39,2)>RIGHT($K110,2),BE110,0)) -> 0.015 | CC110: =+O110*KeyAssumptionsPriceControl_FO!X$15 -> 0.015345 | CD110: =+P110*KeyAssumptionsPriceControl_FO!Y$15 -> 0.015697935 | CE110: =+Q110*KeyAssumptionsPriceControl_FO!Z$15 -> 0.0160589875 | CF110: =+R110*KeyAssumptionsPriceControl_FO!AA$15 -> 0.01642834422 | CG110: =+S110*KeyAssumptionsPriceControl_FO!AB$15 -> 0.01680619613 | CH110: =+T110*KeyAssumptionsPriceControl_FO!AC$15 -> 0.01719273865 | CI110: =+U110*KeyAssumptionsPriceControl_FO!AD$15 -> 0.01758817163 | CJ110: =+V110*KeyAssumptionsPriceControl_FO!AE$15 -> 0.01799269958 | CK110: =+W110*KeyAssumptionsPriceControl_FO!AF$15 -> 0.01840653167 | CL110: =+X110*KeyAssumptionsPriceControl_FO!AG$15 -> 0.0188298819 | CN110: 0.00076725 | CO110: 0.00231939675 | CP110: 0.003907242875 | CQ110: 0.005531609461 | CR110: 0.007193336479 | CS110: 0.008893283218 | CT110: 0.01063232873 | CU110: 0.01241137229 | CV110: 0.01423133386 | CW110: 0.01609315453
C111: Energy efficiency upgrades | E111: Water | F111: Improvements / Compliance | G111: Corporate | H111: Capital Programs / Allocation | J111: Straight line | K111: Ongoing | L111: 10 | M111: 10 | O111: 0.1325 | P111: 0.0875 | Q111: 0.065 | R111: 0.21 | S111: 0.14 | T111: 0.26 | U111: 0.155 | V111: 0.15 | W111: 0.15 | X111: 0.15 | AV111: 0.1325 | AW111: 0.0875 | AX111: 0.065 | AY111: 0.21 | AZ111: 0.14 | BA111: 0.26 | BB111: 0.155 | BC111: 0.15 | BD111: 0.15 | BE111: 0.15 | BG111: 0.006625 | BH111: 0.017625 | BI111: 0.02525 | BJ111: 0.039 | BK111: 0.0565 | BL111: 0.0765 | BM111: 0.09725 | BN111: 0.1125 | BO111: 0.1275 | BP111: 0.1425 | BR111: =+IF($K111="Ongoing",AV111,IF(RIGHT($K111,2)=RIGHT(BR$39,2),SUM($AV111:AV111),0)+IF(RIGHT(BR$39,2)>RIGHT($K111,2),AV111,0)) -> 0.1325 | BS111: =+IF($K111="Ongoing",AW111,IF(RIGHT($K111,2)=RIGHT(BS$39,2),SUM($AV111:AW111),0)+IF(RIGHT(BS$39,2)>RIGHT($K111,2),AW111,0)) -> 0.0875 | BT111: =+IF($K111="Ongoing",AX111,IF(RIGHT($K111,2)=RIGHT(BT$39,2),SUM($AV111:AX111),0)+IF(RIGHT(BT$39,2)>RIGHT($K111,2),AX111,0)) -> 0.065 | BU111: =+IF($K111="Ongoing",AY111,IF(RIGHT($K111,2)=RIGHT(BU$39,2),SUM($AV111:AY111),0)+IF(RIGHT(BU$39,2)>RIGHT($K111,2),AY111,0)) -> 0.21 | BV111: =+IF($K111="Ongoing",AZ111,IF(RIGHT($K111,2)=RIGHT(BV$39,2),SUM($AV111:AZ111),0)+IF(RIGHT(BV$39,2)>RIGHT($K111,2),AZ111,0)) -> 0.14 | BW111: =+IF($K111="Ongoing",BA111,IF(RIGHT($K111,2)=RIGHT(BW$39,2),SUM($AV111:BA111),0)+IF(RIGHT(BW$39,2)>RIGHT($K111,2),BA111,0)) -> 0.26 | BX111: =+IF($K111="Ongoing",BB111,IF(RIGHT($K111,2)=RIGHT(BX$39,2),SUM($AV111:BB111),0)+IF(RIGHT(BX$39,2)>RIGHT($K111,2),BB111,0)) -> 0.155 | BY111: =+IF($K111="Ongoing",BC111,IF(RIGHT($K111,2)=RIGHT(BY$39,2),SUM($AV111:BC111),0)+IF(RIGHT(BY$39,2)>RIGHT($K111,2),BC111,0)) -> 0.15 | BZ111: =+IF($K111="Ongoing",BD111,IF(RIGHT($K111,2)=RIGHT(BZ$39,2),SUM($AV111:BD111),0)+IF(RIGHT(BZ$39,2)>RIGHT($K111,2),BD111,0)) -> 0.15 | CA111: =+IF($K111="Ongoing",BE111,IF(RIGHT($K111,2)=RIGHT(CA$39,2),SUM($AV111:BE111),0)+IF(RIGHT(CA$39,2)>RIGHT($K111,2),BE111,0)) -> 0.15 | CC111: =+O111*KeyAssumptionsPriceControl_FO!X$15 -> 0.1355475 | CD111: =+P111*KeyAssumptionsPriceControl_FO!Y$15 -> 0.0915712875 | CE111: =+Q111*KeyAssumptionsPriceControl_FO!Z$15 -> 0.06958894585 | CF111: =+R111*KeyAssumptionsPriceControl_FO!AA$15 -> 0.229996819 | CG111: =+S111*KeyAssumptionsPriceControl_FO!AB$15 -> 0.1568578306 | CH111: =+T111*KeyAssumptionsPriceControl_FO!AC$15 -> 0.2980074699 | CI111: =+U111*KeyAssumptionsPriceControl_FO!AD$15 -> 0.1817444402 | CJ111: =+V111*KeyAssumptionsPriceControl_FO!AE$15 -> 0.1799269958 | CK111: =+W111*KeyAssumptionsPriceControl_FO!AF$15 -> 0.1840653167 | CL111: =+X111*KeyAssumptionsPriceControl_FO!AG$15 -> 0.188298819 | CN111: 0.006777375 | CO111: 0.01813331437 | CP111: 0.02619132604 | CQ111: 0.04117061429 | CR111: 0.06051334677 | CS111: 0.08325661179 | CT111: 0.1072442073 | CU111: 0.1253277791 | CV111: 0.1435273947 | CW111: 0.1621456015
C112: Water fountains | E112: Water | F112: Improvements / Compliance | G112: Corporate | H112: Capital Programs / Allocation | J112: Straight line | K112: Ongoing | L112: 10 | M112: 10 | O112: 0.012 | P112: 0.012 | Q112: 0.012 | R112: 0.012 | S112: 0.012 | T112: 0.012 | U112: 0.012 | V112: 0.012 | W112: 0.012 | X112: 0.012 | AV112: 0.012 | AW112: 0.012 | AX112: 0.012 | AY112: 0.012 | AZ112: 0.012 | BA112: 0.012 | BB112: 0.012 | BC112: 0.012 | BD112: 0.012 | BE112: 0.012 | BG112: 0.0006 | BH112: 0.0018 | BI112: 0.003 | BJ112: 0.0042 | BK112: 0.0054 | BL112: 0.0066 | BM112: 0.0078 | BN112: 0.009 | BO112: 0.0102 | BP112: 0.0114 | BR112: =+IF($K112="Ongoing",AV112,IF(RIGHT($K112,2)=RIGHT(BR$39,2),SUM($AV112:AV112),0)+IF(RIGHT(BR$39,2)>RIGHT($K112,2),AV112,0)) -> 0.012 | BS112: =+IF($K112="Ongoing",AW112,IF(RIGHT($K112,2)=RIGHT(BS$39,2),SUM($AV112:AW112),0)+IF(RIGHT(BS$39,2)>RIGHT($K112,2),AW112,0)) -> 0.012 | BT112: =+IF($K112="Ongoing",AX112,IF(RIGHT($K112,2)=RIGHT(BT$39,2),SUM($AV112:AX112),0)+IF(RIGHT(BT$39,2)>RIGHT($K112,2),AX112,0)) -> 0.012 | BU112: =+IF($K112="Ongoing",AY112,IF(RIGHT($K112,2)=RIGHT(BU$39,2),SUM($AV112:AY112),0)+IF(RIGHT(BU$39,2)>RIGHT($K112,2),AY112,0)) -> 0.012 | BV112: =+IF($K112="Ongoing",AZ112,IF(RIGHT($K112,2)=RIGHT(BV$39,2),SUM($AV112:AZ112),0)+IF(RIGHT(BV$39,2)>RIGHT($K112,2),AZ112,0)) -> 0.012 | BW112: =+IF($K112="Ongoing",BA112,IF(RIGHT($K112,2)=RIGHT(BW$39,2),SUM($AV112:BA112),0)+IF(RIGHT(BW$39,2)>RIGHT($K112,2),BA112,0)) -> 0.012 | BX112: =+IF($K112="Ongoing",BB112,IF(RIGHT($K112,2)=RIGHT(BX$39,2),SUM($AV112:BB112),0)+IF(RIGHT(BX$39,2)>RIGHT($K112,2),BB112,0)) -> 0.012 | BY112: =+IF($K112="Ongoing",BC112,IF(RIGHT($K112,2)=RIGHT(BY$39,2),SUM($AV112:BC112),0)+IF(RIGHT(BY$39,2)>RIGHT($K112,2),BC112,0)) -> 0.012 | BZ112: =+IF($K112="Ongoing",BD112,IF(RIGHT($K112,2)=RIGHT(BZ$39,2),SUM($AV112:BD112),0)+IF(RIGHT(BZ$39,2)>RIGHT($K112,2),BD112,0)) -> 0.012 | CA112: =+IF($K112="Ongoing",BE112,IF(RIGHT($K112,2)=RIGHT(CA$39,2),SUM($AV112:BE112),0)+IF(RIGHT(CA$39,2)>RIGHT($K112,2),BE112,0)) -> 0.012 | CC112: =+O112*KeyAssumptionsPriceControl_FO!X$15 -> 0.012276 | CD112: =+P112*KeyAssumptionsPriceControl_FO!Y$15 -> 0.012558348 | CE112: =+Q112*KeyAssumptionsPriceControl_FO!Z$15 -> 0.01284719 | CF112: =+R112*KeyAssumptionsPriceControl_FO!AA$15 -> 0.01314267537 | CG112: =+S112*KeyAssumptionsPriceControl_FO!AB$15 -> 0.01344495691 | CH112: =+T112*KeyAssumptionsPriceControl_FO!AC$15 -> 0.01375419092 | CI112: =+U112*KeyAssumptionsPriceControl_FO!AD$15 -> 0.01407053731 | CJ112: =+V112*KeyAssumptionsPriceControl_FO!AE$15 -> 0.01439415967 | CK112: =+W112*KeyAssumptionsPriceControl_FO!AF$15 -> 0.01472522534 | CL112: =+X112*KeyAssumptionsPriceControl_FO!AG$15 -> 0.01506390552 | CN112: 0.0006138 | CO112: 0.0018555174 | CP112: 0.0031257943 | CQ112: 0.004425287569 | CR112: 0.005754669183 | CS112: 0.007114626574 | CT112: 0.008505862986 | CU112: 0.009929097834 | CV112: 0.01138506708 | CW112: 0.01287452363
C113: Motor Vehicles | E113: Water | F113: Renewals | G113: Corporate | H113: Capital Programs / Allocation | J113: Straight line | K113: Ongoing | L113: 6 | M113: 6 | O113: 0.2695 | P113: 0.1165 | Q113: 0.096 | R113: 0.2205 | S113: 0.1705 | T113: 0.2695 | U113: 0.1165 | V113: 0.096 | W113: 0.2205 | X113: 0.1705 | AV113: 0.2695 | AW113: 0.1165 | AX113: 0.096 | AY113: 0.2205 | AZ113: 0.1705 | BA113: 0.2695 | BB113: 0.1165 | BC113: 0.096 | BD113: 0.2205 | BE113: 0.1705 | BG113: 0.02245833333 | BH113: 0.054625 | BI113: 0.07233333333 | BJ113: 0.09870833333 | BK113: 0.1312916667 | BL113: 0.1679583333 | BM113: 0.1776666667 | BN113: 0.1632083333 | BO113: 0.171875 | BP113: 0.1780833333 | BR113: =+IF($K113="Ongoing",AV113,IF(RIGHT($K113,2)=RIGHT(BR$39,2),SUM($AV113:AV113),0)+IF(RIGHT(BR$39,2)>RIGHT($K113,2),AV113,0)) -> 0.2695 | BS113: =+IF($K113="Ongoing",AW113,IF(RIGHT($K113,2)=RIGHT(BS$39,2),SUM($AV113:AW113),0)+IF(RIGHT(BS$39,2)>RIGHT($K113,2),AW113,0)) -> 0.1165 | BT113: =+IF($K113="Ongoing",AX113,IF(RIGHT($K113,2)=RIGHT(BT$39,2),SUM($AV113:AX113),0)+IF(RIGHT(BT$39,2)>RIGHT($K113,2),AX113,0)) -> 0.096 | BU113: =+IF($K113="Ongoing",AY113,IF(RIGHT($K113,2)=RIGHT(BU$39,2),SUM($AV113:AY113),0)+IF(RIGHT(BU$39,2)>RIGHT($K113,2),AY113,0)) -> 0.2205 | BV113: =+IF($K113="Ongoing",AZ113,IF(RIGHT($K113,2)=RIGHT(BV$39,2),SUM($AV113:AZ113),0)+IF(RIGHT(BV$39,2)>RIGHT($K113,2),AZ113,0)) -> 0.1705 | BW113: =+IF($K113="Ongoing",BA113,IF(RIGHT($K113,2)=RIGHT(BW$39,2),SUM($AV113:BA113),0)+IF(RIGHT(BW$39,2)>RIGHT($K113,2),BA113,0)) -> 0.2695 | BX113: =+IF($K113="Ongoing",BB113,IF(RIGHT($K113,2)=RIGHT(BX$39,2),SUM($AV113:BB113),0)+IF(RIGHT(BX$39,2)>RIGHT($K113,2),BB113,0)) -> 0.1165 | BY113: =+IF($K113="Ongoing",BC113,IF(RIGHT($K113,2)=RIGHT(BY$39,2),SUM($AV113:BC113),0)+IF(RIGHT(BY$39,2)>RIGHT($K113,2),BC113,0)) -> 0.096 | BZ113: =+IF($K113="Ongoing",BD113,IF(RIGHT($K113,2)=RIGHT(BZ$39,2),SUM($AV113:BD113),0)+IF(RIGHT(BZ$39,2)>RIGHT($K113,2),BD113,0)) -> 0.2205 | CA113: =+IF($K113="Ongoing",BE113,IF(RIGHT($K113,2)=RIGHT(CA$39,2),SUM($AV113:BE113),0)+IF(RIGHT(CA$39,2)>RIGHT($K113,2),BE113,0)) -> 0.1705 | CC113: =+O113*KeyAssumptionsPriceControl_FO!X$15 -> 0.2756985 | CD113: =+P113*KeyAssumptionsPriceControl_FO!Y$15 -> 0.1219206285 | CE113: =+Q113*KeyAssumptionsPriceControl_FO!Z$15 -> 0.10277752 | CF113: =+R113*KeyAssumptionsPriceControl_FO!AA$15 -> 0.24149666 | CG113: =+S113*KeyAssumptionsPriceControl_FO!AB$15 -> 0.1910304294 | CH113: =+T113*KeyAssumptionsPriceControl_FO!AC$15 -> 0.3088962043 | CI113: =+U113*KeyAssumptionsPriceControl_FO!AD$15 -> 0.1366014664 | CJ113: =+V113*KeyAssumptionsPriceControl_FO!AE$15 -> 0.1151532773 | CK113: =+W113*KeyAssumptionsPriceControl_FO!AF$15 -> 0.2705760156 | CL113: =+X113*KeyAssumptionsPriceControl_FO!AG$15 -> 0.2140329909 | CN113: 0.022974875 | CO113: 0.05610980238 | CP113: 0.07483464809 | CQ113: 0.1035241631 | CR113: 0.1395680872 | CS113: 0.18122864 | CT113: 0.1953785709 | CU113: 0.1832232055 | CV113: 0.1966424675 | CW113: 0.2083370364
C114: Office Equipment | E114: Water | F114: Renewals | G114: Corporate | H114: Capital Programs / Allocation | J114: Straight line | K114: Ongoing | L114: 5 | M114: 5 | O114: 0.005 | P114: 0.005 | Q114: 0.005 | R114: 0.005 | S114: 0.005 | T114: 0.0125 | U114: 0.0125 | V114: 0.0125 | W114: 0.0125 | X114: 0.0125 | AV114: 0.005 | AW114: 0.005 | AX114: 0.005 | AY114: 0.005 | AZ114: 0.005 | BA114: 0.0125 | BB114: 0.0125 | BC114: 0.0125 | BD114: 0.0125 | BE114: 0.0125 | BG114: 0.0005 | BH114: 0.0015 | BI114: 0.0025 | BJ114: 0.0035 | BK114: 0.0045 | BL114: 0.00575 | BM114: 0.00725 | BN114: 0.00875 | BO114: 0.01025 | BP114: 0.01175 | BR114: =+IF($K114="Ongoing",AV114,IF(RIGHT($K114,2)=RIGHT(BR$39,2),SUM($AV114:AV114),0)+IF(RIGHT(BR$39,2)>RIGHT($K114,2),AV114,0)) -> 0.005 | BS114: =+IF($K114="Ongoing",AW114,IF(RIGHT($K114,2)=RIGHT(BS$39,2),SUM($AV114:AW114),0)+IF(RIGHT(BS$39,2)>RIGHT($K114,2),AW114,0)) -> 0.005 | BT114: =+IF($K114="Ongoing",AX114,IF(RIGHT($K114,2)=RIGHT(BT$39,2),SUM($AV114:AX114),0)+IF(RIGHT(BT$39,2)>RIGHT($K114,2),AX114,0)) -> 0.005 | BU114: =+IF($K114="Ongoing",AY114,IF(RIGHT($K114,2)=RIGHT(BU$39,2),SUM($AV114:AY114),0)+IF(RIGHT(BU$39,2)>RIGHT($K114,2),AY114,0)) -> 0.005 | BV114: =+IF($K114="Ongoing",AZ114,IF(RIGHT($K114,2)=RIGHT(BV$39,2),SUM($AV114:AZ114),0)+IF(RIGHT(BV$39,2)>RIGHT($K114,2),AZ114,0)) -> 0.005 | BW114: =+IF($K114="Ongoing",BA114,IF(RIGHT($K114,2)=RIGHT(BW$39,2),SUM($AV114:BA114),0)+IF(RIGHT(BW$39,2)>RIGHT($K114,2),BA114,0)) -> 0.0125 | BX114: =+IF($K114="Ongoing",BB114,IF(RIGHT($K114,2)=RIGHT(BX$39,2),SUM($AV114:BB114),0)+IF(RIGHT(BX$39,2)>RIGHT($K114,2),BB114,0)) -> 0.0125 | BY114: =+IF($K114="Ongoing",BC114,IF(RIGHT($K114,2)=RIGHT(BY$39,2),SUM($AV114:BC114),0)+IF(RIGHT(BY$39,2)>RIGHT($K114,2),BC114,0)) -> 0.0125 | BZ114: =+IF($K114="Ongoing",BD114,IF(RIGHT($K114,2)=RIGHT(BZ$39,2),SUM($AV114:BD114),0)+IF(RIGHT(BZ$39,2)>RIGHT($K114,2),BD114,0)) -> 0.0125 | CA114: =+IF($K114="Ongoing",BE114,IF(RIGHT($K114,2)=RIGHT(CA$39,2),SUM($AV114:BE114),0)+IF(RIGHT(CA$39,2)>RIGHT($K114,2),BE114,0)) -> 0.0125 | CC114: =+O114*KeyAssumptionsPriceControl_FO!X$15 -> 0.005115 | CD114: =+P114*KeyAssumptionsPriceControl_FO!Y$15 -> 0.005232645 | CE114: =+Q114*KeyAssumptionsPriceControl_FO!Z$15 -> 0.005352995835 | CF114: =+R114*KeyAssumptionsPriceControl_FO!AA$15 -> 0.005476114739 | CG114: =+S114*KeyAssumptionsPriceControl_FO!AB$15 -> 0.005602065378 | CH114: =+T114*KeyAssumptionsPriceControl_FO!AC$15 -> 0.0143272822 | CI114: =+U114*KeyAssumptionsPriceControl_FO!AD$15 -> 0.0146568097 | CJ114: =+V114*KeyAssumptionsPriceControl_FO!AE$15 -> 0.01499391632 | CK114: =+W114*KeyAssumptionsPriceControl_FO!AF$15 -> 0.01533877639 | CL114: =+X114*KeyAssumptionsPriceControl_FO!AG$15 -> 0.01569156825 | CN114: 0.0005115 | CO114: 0.0015462645 | CP114: 0.002604828583 | CQ114: 0.003687739641 | CR114: 0.004795557653 | CS114: 0.006276992411 | CT114: 0.008140637101 | CU114: 0.01004714562 | CV114: 0.01199750383 | CW114: 0.01399272029
C115: Plant & Equipment | E115: Water | F115: Renewals | G115: Corporate | H115: Capital Programs / Allocation | J115: Straight line | K115: Ongoing | L115: 5 | M115: 5 | O115: 0.08 | P115: 0.08 | Q115: 0.08 | R115: 0.08 | S115: 0.08 | T115: 0.08 | U115: 0.08 | V115: 0.08 | W115: 0.08 | X115: 0.08 | AV115: 0.08 | AW115: 0.08 | AX115: 0.08 | AY115: 0.08 | AZ115: 0.08 | BA115: 0.08 | BB115: 0.08 | BC115: 0.08 | BD115: 0.08 | BE115: 0.08 | BG115: 0.008 | BH115: 0.024 | BI115: 0.04 | BJ115: 0.056 | BK115: 0.072 | BL115: 0.08 | BM115: 0.08 | BN115: 0.08 | BO115: 0.08 | BP115: 0.08 | BR115: =+IF($K115="Ongoing",AV115,IF(RIGHT($K115,2)=RIGHT(BR$39,2),SUM($AV115:AV115),0)+IF(RIGHT(BR$39,2)>RIGHT($K115,2),AV115,0)) -> 0.08 | BS115: =+IF($K115="Ongoing",AW115,IF(RIGHT($K115,2)=RIGHT(BS$39,2),SUM($AV115:AW115),0)+IF(RIGHT(BS$39,2)>RIGHT($K115,2),AW115,0)) -> 0.08 | BT115: =+IF($K115="Ongoing",AX115,IF(RIGHT($K115,2)=RIGHT(BT$39,2),SUM($AV115:AX115),0)+IF(RIGHT(BT$39,2)>RIGHT($K115,2),AX115,0)) -> 0.08 | BU115: =+IF($K115="Ongoing",AY115,IF(RIGHT($K115,2)=RIGHT(BU$39,2),SUM($AV115:AY115),0)+IF(RIGHT(BU$39,2)>RIGHT($K115,2),AY115,0)) -> 0.08 | BV115: =+IF($K115="Ongoing",AZ115,IF(RIGHT($K115,2)=RIGHT(BV$39,2),SUM($AV115:AZ115),0)+IF(RIGHT(BV$39,2)>RIGHT($K115,2),AZ115,0)) -> 0.08 | BW115: =+IF($K115="Ongoing",BA115,IF(RIGHT($K115,2)=RIGHT(BW$39,2),SUM($AV115:BA115),0)+IF(RIGHT(BW$39,2)>RIGHT($K115,2),BA115,0)) -> 0.08 | BX115: =+IF($K115="Ongoing",BB115,IF(RIGHT($K115,2)=RIGHT(BX$39,2),SUM($AV115:BB115),0)+IF(RIGHT(BX$39,2)>RIGHT($K115,2),BB115,0)) -> 0.08 | BY115: =+IF($K115="Ongoing",BC115,IF(RIGHT($K115,2)=RIGHT(BY$39,2),SUM($AV115:BC115),0)+IF(RIGHT(BY$39,2)>RIGHT($K115,2),BC115,0)) -> 0.08 | BZ115: =+IF($K115="Ongoing",BD115,IF(RIGHT($K115,2)=RIGHT(BZ$39,2),SUM($AV115:BD115),0)+IF(RIGHT(BZ$39,2)>RIGHT($K115,2),BD115,0)) -> 0.08 | CA115: =+IF($K115="Ongoing",BE115,IF(RIGHT($K115,2)=RIGHT(CA$39,2),SUM($AV115:BE115),0)+IF(RIGHT(CA$39,2)>RIGHT($K115,2),BE115,0)) -> 0.08 | CC115: =+O115*KeyAssumptionsPriceControl_FO!X$15 -> 0.08184 | CD115: =+P115*KeyAssumptionsPriceControl_FO!Y$15 -> 0.08372232 | CE115: =+Q115*KeyAssumptionsPriceControl_FO!Z$15 -> 0.08564793336 | CF115: =+R115*KeyAssumptionsPriceControl_FO!AA$15 -> 0.08761783583 | CG115: =+S115*KeyAssumptionsPriceControl_FO!AB$15 -> 0.08963304605 | CH115: =+T115*KeyAssumptionsPriceControl_FO!AC$15 -> 0.09169460611 | CI115: =+U115*KeyAssumptionsPriceControl_FO!AD$15 -> 0.09380358205 | CJ115: =+V115*KeyAssumptionsPriceControl_FO!AE$15 -> 0.09596106444 | CK115: =+W115*KeyAssumptionsPriceControl_FO!AF$15 -> 0.09816816892 | CL115: =+X115*KeyAssumptionsPriceControl_FO!AG$15 -> 0.1004260368 | CN115: 0.008184 | CO115: 0.024740232 | CP115: 0.04167725734 | CQ115: 0.05900383425 | CR115: 0.07672892244 | CS115: 0.08667768766 | CT115: 0.08867127447 | CU115: 0.09071071379 | CV115: 0.0927970602 | CW115: 0.09493139259
C116: Asset Management System replacement | E116: Water | F116: Renewals | G116: Corporate | H116: Other Capital expenditure | J116: Straight line | K116: 2022-23 | L116: 10 | M116: 10 | O116: 0 | P116: 0 | Q116: 0 | R116: 0 | S116: 0 | T116: 0.25 | U116: 0 | V116: 0 | W116: 0 | X116: 0 | AV116: 0 | AW116: 0 | AX116: 0 | AY116: 0 | AZ116: 0 | BA116: 0.25 | BB116: 0 | BC116: 0 | BD116: 0 | BE116: 0 | BG116: 0 | BH116: 0 | BI116: 0 | BJ116: 0 | BK116: 0 | BL116: 0.0125 | BM116: 0.025 | BN116: 0.025 | BO116: 0.025 | BP116: 0.025 | BR116: =+IF($K116="Ongoing",AV116,IF(RIGHT($K116,2)=RIGHT(BR$39,2),SUM($AV116:AV116),0)+IF(RIGHT(BR$39,2)>RIGHT($K116,2),AV116,0)) -> 0 | BS116: =+IF($K116="Ongoing",AW116,IF(RIGHT($K116,2)=RIGHT(BS$39,2),SUM($AV116:AW116),0)+IF(RIGHT(BS$39,2)>RIGHT($K116,2),AW116,0)) -> 0 | BT116: =+IF($K116="Ongoing",AX116,IF(RIGHT($K116,2)=RIGHT(BT$39,2),SUM($AV116:AX116),0)+IF(RIGHT(BT$39,2)>RIGHT($K116,2),AX116,0)) -> 0 | BU116: =+IF($K116="Ongoing",AY116,IF(RIGHT($K116,2)=RIGHT(BU$39,2),SUM($AV116:AY116),0)+IF(RIGHT(BU$39,2)>RIGHT($K116,2),AY116,0)) -> 0 | BV116: =+IF($K116="Ongoing",AZ116,IF(RIGHT($K116,2)=RIGHT(BV$39,2),SUM($AV116:AZ116),0)+IF(RIGHT(BV$39,2)>RIGHT($K116,2),AZ116,0)) -> 0 | BW116: =+IF($K116="Ongoing",BA116,IF(RIGHT($K116,2)=RIGHT(BW$39,2),SUM($AV116:BA116),0)+IF(RIGHT(BW$39,2)>RIGHT($K116,2),BA116,0)) -> 0.25 | BX116: =+IF($K116="Ongoing",BB116,IF(RIGHT($K116,2)=RIGHT(BX$39,2),SUM($AV116:BB116),0)+IF(RIGHT(BX$39,2)>RIGHT($K116,2),BB116,0)) -> 0 | BY116: =+IF($K116="Ongoing",BC116,IF(RIGHT($K116,2)=RIGHT(BY$39,2),SUM($AV116:BC116),0)+IF(RIGHT(BY$39,2)>RIGHT($K116,2),BC116,0)) -> 0 | BZ116: =+IF($K116="Ongoing",BD116,IF(RIGHT($K116,2)=RIGHT(BZ$39,2),SUM($AV116:BD116),0)+IF(RIGHT(BZ$39,2)>RIGHT($K116,2),BD116,0)) -> 0 | CA116: =+IF($K116="Ongoing",BE116,IF(RIGHT($K116,2)=RIGHT(CA$39,2),SUM($AV116:BE116),0)+IF(RIGHT(CA$39,2)>RIGHT($K116,2),BE116,0)) -> 0 | CC116: =+O116*KeyAssumptionsPriceControl_FO!X$15 -> 0 | CD116: =+P116*KeyAssumptionsPriceControl_FO!Y$15 -> 0 | CE116: =+Q116*KeyAssumptionsPriceControl_FO!Z$15 -> 0 | CF116: =+R116*KeyAssumptionsPriceControl_FO!AA$15 -> 0 | CG116: =+S116*KeyAssumptionsPriceControl_FO!AB$15 -> 0 | CH116: =+T116*KeyAssumptionsPriceControl_FO!AC$15 -> 0.2865456441 | CI116: =+U116*KeyAssumptionsPriceControl_FO!AD$15 -> 0 | CJ116: =+V116*KeyAssumptionsPriceControl_FO!AE$15 -> 0 | CK116: =+W116*KeyAssumptionsPriceControl_FO!AF$15 -> 0 | CL116: =+X116*KeyAssumptionsPriceControl_FO!AG$15 -> 0 | CN116: 0 | CO116: 0 | CP116: 0 | CQ116: 0 | CR116: 0 | CS116: 0.0143272822 | CT116: 0.02865456441 | CU116: 0.02865456441 | CV116: 0.02865456441 | CW116: 0.02865456441
C117: Customer billing and CRM system replacement | E117: Water | F117: Renewals | G117: Corporate | H117: Other Capital expenditure | J117: Straight line | K117: 2020-21 | L117: 10 | M117: 10 | O117: 0 | P117: 0 | Q117: 0 | R117: 0 | S117: 0.25 | T117: 0 | U117: 0 | V117: 0 | W117: 0 | X117: 0 | AV117: 0 | AW117: 0 | AX117: 0 | AY117: 0 | AZ117: 0.25 | BA117: 0 | BB117: 0 | BC117: 0 | BD117: 0 | BE117: 0 | BG117: 0 | BH117: 0 | BI117: 0 | BJ117: 0 | BK117: 0.0125 | BL117: 0.025 | BM117: 0.025 | BN117: 0.025 | BO117: 0.025 | BP117: 0.025 | BR117: =+IF($K117="Ongoing",AV117,IF(RIGHT($K117,2)=RIGHT(BR$39,2),SUM($AV117:AV117),0)+IF(RIGHT(BR$39,2)>RIGHT($K117,2),AV117,0)) -> 0 | BS117: =+IF($K117="Ongoing",AW117,IF(RIGHT($K117,2)=RIGHT(BS$39,2),SUM($AV117:AW117),0)+IF(RIGHT(BS$39,2)>RIGHT($K117,2),AW117,0)) -> 0 | BT117: =+IF($K117="Ongoing",AX117,IF(RIGHT($K117,2)=RIGHT(BT$39,2),SUM($AV117:AX117),0)+IF(RIGHT(BT$39,2)>RIGHT($K117,2),AX117,0)) -> 0 | BU117: =+IF($K117="Ongoing",AY117,IF(RIGHT($K117,2)=RIGHT(BU$39,2),SUM($AV117:AY117),0)+IF(RIGHT(BU$39,2)>RIGHT($K117,2),AY117,0)) -> 0 | BV117: =+IF($K117="Ongoing",AZ117,IF(RIGHT($K117,2)=RIGHT(BV$39,2),SUM($AV117:AZ117),0)+IF(RIGHT(BV$39,2)>RIGHT($K117,2),AZ117,0)) -> 0.25 | BW117: =+IF($K117="Ongoing",BA117,IF(RIGHT($K117,2)=RIGHT(BW$39,2),SUM($AV117:BA117),0)+IF(RIGHT(BW$39,2)>RIGHT($K117,2),BA117,0)) -> 0 | BX117: =+IF($K117="Ongoing",BB117,IF(RIGHT($K117,2)=RIGHT(BX$39,2),SUM($AV117:BB117),0)+IF(RIGHT(BX$39,2)>RIGHT($K117,2),BB117,0)) -> 0 | BY117: =+IF($K117="Ongoing",BC117,IF(RIGHT($K117,2)=RIGHT(BY$39,2),SUM($AV117:BC117),0)+IF(RIGHT(BY$39,2)>RIGHT($K117,2),BC117,0)) -> 0 | BZ117: =+IF($K117="Ongoing",BD117,IF(RIGHT($K117,2)=RIGHT(BZ$39,2),SUM($AV117:BD117),0)+IF(RIGHT(BZ$39,2)>RIGHT($K117,2),BD117,0)) -> 0 | CA117: =+IF($K117="Ongoing",BE117,IF(RIGHT($K117,2)=RIGHT(CA$39,2),SUM($AV117:BE117),0)+IF(RIGHT(CA$39,2)>RIGHT($K117,2),BE117,0)) -> 0 | CC117: =+O117*KeyAssumptionsPriceControl_FO!X$15 -> 0 | CD117: =+P117*KeyAssumptionsPriceControl_FO!Y$15 -> 0 | CE117: =+Q117*KeyAssumptionsPriceControl_FO!Z$15 -> 0 | CF117: =+R117*KeyAssumptionsPriceControl_FO!AA$15 -> 0 | CG117: =+S117*KeyAssumptionsPriceControl_FO!AB$15 -> 0.2801032689 | CH117: =+T117*KeyAssumptionsPriceControl_FO!AC$15 -> 0 | CI117: =+U117*KeyAssumptionsPriceControl_FO!AD$15 -> 0 | CJ117: =+V117*KeyAssumptionsPriceControl_FO!AE$15 -> 0 | CK117: =+W117*KeyAssumptionsPriceControl_FO!AF$15 -> 0 | CL117: =+X117*KeyAssumptionsPriceControl_FO!AG$15 -> 0 | CN117: 0 | CO117: 0 | CP117: 0 | CQ117: 0 | CR117: 0.01400516345 | CS117: 0.02801032689 | CT117: 0.02801032689 | CU117: 0.02801032689 | CV117: 0.02801032689 | CW117: 0.02801032689
C118: Office / Depot upgrades | E118: Water | F118: Renewals | G118: Corporate | H118: Other Capital expenditure | J118: Straight line | K118: 2018-19 | L118: 50 | M118: 50 | O118: 0.125 | P118: 0 | Q118: 0 | R118: 0 | S118: 0 | T118: 0 | U118: 0 | V118: 0 | W118: 0 | X118: 0 | AV118: 0.125 | AW118: 0 | AX118: 0 | AY118: 0 | AZ118: 0 | BA118: 0 | BB118: 0 | BC118: 0 | BD118: 0 | BE118: 0 | BG118: 0.00125 | BH118: 0.0025 | BI118: 0.0025 | BJ118: 0.0025 | BK118: 0.0025 | BL118: 0.0025 | BM118: 0.0025 | BN118: 0.0025 | BO118: 0.0025 | BP118: 0.0025 | BR118: =+IF($K118="Ongoing",AV118,IF(RIGHT($K118,2)=RIGHT(BR$39,2),SUM($AV118:AV118),0)+IF(RIGHT(BR$39,2)>RIGHT($K118,2),AV118,0)) -> 0.125 | BS118: =+IF($K118="Ongoing",AW118,IF(RIGHT($K118,2)=RIGHT(BS$39,2),SUM($AV118:AW118),0)+IF(RIGHT(BS$39,2)>RIGHT($K118,2),AW118,0)) -> 0 | BT118: =+IF($K118="Ongoing",AX118,IF(RIGHT($K118,2)=RIGHT(BT$39,2),SUM($AV118:AX118),0)+IF(RIGHT(BT$39,2)>RIGHT($K118,2),AX118,0)) -> 0 | BU118: =+IF($K118="Ongoing",AY118,IF(RIGHT($K118,2)=RIGHT(BU$39,2),SUM($AV118:AY118),0)+IF(RIGHT(BU$39,2)>RIGHT($K118,2),AY118,0)) -> 0 | BV118: =+IF($K118="Ongoing",AZ118,IF(RIGHT($K118,2)=RIGHT(BV$39,2),SUM($AV118:AZ118),0)+IF(RIGHT(BV$39,2)>RIGHT($K118,2),AZ118,0)) -> 0 | BW118: =+IF($K118="Ongoing",BA118,IF(RIGHT($K118,2)=RIGHT(BW$39,2),SUM($AV118:BA118),0)+IF(RIGHT(BW$39,2)>RIGHT($K118,2),BA118,0)) -> 0 | BX118: =+IF($K118="Ongoing",BB118,IF(RIGHT($K118,2)=RIGHT(BX$39,2),SUM($AV118:BB118),0)+IF(RIGHT(BX$39,2)>RIGHT($K118,2),BB118,0)) -> 0 | BY118: =+IF($K118="Ongoing",BC118,IF(RIGHT($K118,2)=RIGHT(BY$39,2),SUM($AV118:BC118),0)+IF(RIGHT(BY$39,2)>RIGHT($K118,2),BC118,0)) -> 0 | BZ118: =+IF($K118="Ongoing",BD118,IF(RIGHT($K118,2)=RIGHT(BZ$39,2),SUM($AV118:BD118),0)+IF(RIGHT(BZ$39,2)>RIGHT($K118,2),BD118,0)) -> 0 | CA118: =+IF($K118="Ongoing",BE118,IF(RIGHT($K118,2)=RIGHT(CA$39,2),SUM($AV118:BE118),0)+IF(RIGHT(CA$39,2)>RIGHT($K118,2),BE118,0)) -> 0 | CC118: =+O118*KeyAssumptionsPriceControl_FO!X$15 -> 0.127875 | CD118: =+P118*KeyAssumptionsPriceControl_FO!Y$15 -> 0 | CE118: =+Q118*KeyAssumptionsPriceControl_FO!Z$15 -> 0 | CF118: =+R118*KeyAssumptionsPriceControl_FO!AA$15 -> 0 | CG118: =+S118*KeyAssumptionsPriceControl_FO!AB$15 -> 0 | CH118: =+T118*KeyAssumptionsPriceControl_FO!AC$15 -> 0 | CI118: =+U118*KeyAssumptionsPriceControl_FO!AD$15 -> 0 | CJ118: =+V118*KeyAssumptionsPriceControl_FO!AE$15 -> 0 | CK118: =+W118*KeyAssumptionsPriceControl_FO!AF$15 -> 0 | CL118: =+X118*KeyAssumptionsPriceControl_FO!AG$15 -> 0 | CN118: 0.00127875 | CO118: 0.0025575 | CP118: 0.0025575 | CQ118: 0.0025575 | CR118: 0.0025575 | CS118: 0.0025575 | CT118: 0.0025575 | CU118: 0.0025575 | CV118: 0.0025575 | CW118: 0.0025575
C119: IT Hardware and Software Improvements (capex BAU) | E119: Sewerage | F119: Renewals | G119: Corporate | H119: Capital Programs / Allocation | J119: Straight line | K119: Ongoing | L119: 3 | M119: 3 | O119: 0.225 | P119: 0.225 | Q119: 0.225 | R119: 0.225 | S119: 0.225 | T119: 0.25 | U119: 0.25 | V119: 0.25 | W119: 0.25 | X119: 0.25 | AV119: 0.225 | AW119: 0.225 | AX119: 0.225 | AY119: 0.225 | AZ119: 0.225 | BA119: 0.25 | BB119: 0.25 | BC119: 0.25 | BD119: 0.25 | BE119: 0.25 | BG119: 0.0375 | BH119: 0.1125 | BI119: 0.1875 | BJ119: 0.225 | BK119: 0.225 | BL119: 0.2291666667 | BM119: 0.2375 | BN119: 0.2458333333 | BO119: 0.25 | BP119: 0.25 | BR119: =+IF($K119="Ongoing",AV119,IF(RIGHT($K119,2)=RIGHT(BR$39,2),SUM($AV119:AV119),0)+IF(RIGHT(BR$39,2)>RIGHT($K119,2),AV119,0)) -> 0.225 | BS119: =+IF($K119="Ongoing",AW119,IF(RIGHT($K119,2)=RIGHT(BS$39,2),SUM($AV119:AW119),0)+IF(RIGHT(BS$39,2)>RIGHT($K119,2),AW119,0)) -> 0.225 | BT119: =+IF($K119="Ongoing",AX119,IF(RIGHT($K119,2)=RIGHT(BT$39,2),SUM($AV119:AX119),0)+IF(RIGHT(BT$39,2)>RIGHT($K119,2),AX119,0)) -> 0.225 | BU119: =+IF($K119="Ongoing",AY119,IF(RIGHT($K119,2)=RIGHT(BU$39,2),SUM($AV119:AY119),0)+IF(RIGHT(BU$39,2)>RIGHT($K119,2),AY119,0)) -> 0.225 | BV119: =+IF($K119="Ongoing",AZ119,IF(RIGHT($K119,2)=RIGHT(BV$39,2),SUM($AV119:AZ119),0)+IF(RIGHT(BV$39,2)>RIGHT($K119,2),AZ119,0)) -> 0.225 | BW119: =+IF($K119="Ongoing",BA119,IF(RIGHT($K119,2)=RIGHT(BW$39,2),SUM($AV119:BA119),0)+IF(RIGHT(BW$39,2)>RIGHT($K119,2),BA119,0)) -> 0.25 | BX119: =+IF($K119="Ongoing",BB119,IF(RIGHT($K119,2)=RIGHT(BX$39,2),SUM($AV119:BB119),0)+IF(RIGHT(BX$39,2)>RIGHT($K119,2),BB119,0)) -> 0.25 | BY119: =+IF($K119="Ongoing",BC119,IF(RIGHT($K119,2)=RIGHT(BY$39,2),SUM($AV119:BC119),0)+IF(RIGHT(BY$39,2)>RIGHT($K119,2),BC119,0)) -> 0.25 | BZ119: =+IF($K119="Ongoing",BD119,IF(RIGHT($K119,2)=RIGHT(BZ$39,2),SUM($AV119:BD119),0)+IF(RIGHT(BZ$39,2)>RIGHT($K119,2),BD119,0)) -> 0.25 | CA119: =+IF($K119="Ongoing",BE119,IF(RIGHT($K119,2)=RIGHT(CA$39,2),SUM($AV119:BE119),0)+IF(RIGHT(CA$39,2)>RIGHT($K119,2),BE119,0)) -> 0.25 | CC119: =+O119*KeyAssumptionsPriceControl_FO!X$15 -> 0.230175 | CD119: =+P119*KeyAssumptionsPriceControl_FO!Y$15 -> 0.235469025 | CE119: =+Q119*KeyAssumptionsPriceControl_FO!Z$15 -> 0.2408848126 | CF119: =+R119*KeyAssumptionsPriceControl_FO!AA$15 -> 0.2464251633 | CG119: =+S119*KeyAssumptionsPriceControl_FO!AB$15 -> 0.252092942 | CH119: =+T119*KeyAssumptionsPriceControl_FO!AC$15 -> 0.2865456441 | CI119: =+U119*KeyAssumptionsPriceControl_FO!AD$15 -> 0.2931361939 | CJ119: =+V119*KeyAssumptionsPriceControl_FO!AE$15 -> 0.2998783264 | CK119: =+W119*KeyAssumptionsPriceControl_FO!AF$15 -> 0.3067755279 | CL119: =+X119*KeyAssumptionsPriceControl_FO!AG$15 -> 0.313831365 | CN119: 0.0383625 | CO119: 0.1159698375 | CP119: 0.1953621438 | CQ119: 0.2382179731 | CR119: 0.2436969864 | CS119: 0.2540777779 | CT119: 0.2694730882 | CU119: 0.2852224907 | CV119: 0.2965583688 | CW119: 0.3033792112
C120: IOT Digital Meters | E120: Sewerage | F120: Improvements / Compliance | G120: Corporate | H120: Capital Programs / Allocation | J120: Straight line | K120: Ongoing | L120: 10 | M120: 10 | O120: 0 | P120: 0 | Q120: 0 | R120: 0 | S120: 0 | T120: 0 | U120: 0 | V120: 0 | W120: 0 | X120: 0 | AV120: 0 | AW120: 0 | AX120: 0 | AY120: 0 | AZ120: 0 | BA120: 0 | BB120: 0 | BC120: 0 | BD120: 0 | BE120: 0 | BG120: 0 | BH120: 0 | BI120: 0 | BJ120: 0 | BK120: 0 | BL120: 0 | BM120: 0 | BN120: 0 | BO120: 0 | BP120: 0 | BR120: =+IF($K120="Ongoing",AV120,IF(RIGHT($K120,2)=RIGHT(BR$39,2),SUM($AV120:AV120),0)+IF(RIGHT(BR$39,2)>RIGHT($K120,2),AV120,0)) -> 0 | BS120: =+IF($K120="Ongoing",AW120,IF(RIGHT($K120,2)=RIGHT(BS$39,2),SUM($AV120:AW120),0)+IF(RIGHT(BS$39,2)>RIGHT($K120,2),AW120,0)) -> 0 | BT120: =+IF($K120="Ongoing",AX120,IF(RIGHT($K120,2)=RIGHT(BT$39,2),SUM($AV120:AX120),0)+IF(RIGHT(BT$39,2)>RIGHT($K120,2),AX120,0)) -> 0 | BU120: =+IF($K120="Ongoing",AY120,IF(RIGHT($K120,2)=RIGHT(BU$39,2),SUM($AV120:AY120),0)+IF(RIGHT(BU$39,2)>RIGHT($K120,2),AY120,0)) -> 0 | BV120: =+IF($K120="Ongoing",AZ120,IF(RIGHT($K120,2)=RIGHT(BV$39,2),SUM($AV120:AZ120),0)+IF(RIGHT(BV$39,2)>RIGHT($K120,2),AZ120,0)) -> 0 | BW120: =+IF($K120="Ongoing",BA120,IF(RIGHT($K120,2)=RIGHT(BW$39,2),SUM($AV120:BA120),0)+IF(RIGHT(BW$39,2)>RIGHT($K120,2),BA120,0)) -> 0 | BX120: =+IF($K120="Ongoing",BB120,IF(RIGHT($K120,2)=RIGHT(BX$39,2),SUM($AV120:BB120),0)+IF(RIGHT(BX$39,2)>RIGHT($K120,2),BB120,0)) -> 0 | BY120: =+IF($K120="Ongoing",BC120,IF(RIGHT($K120,2)=RIGHT(BY$39,2),SUM($AV120:BC120),0)+IF(RIGHT(BY$39,2)>RIGHT($K120,2),BC120,0)) -> 0 | BZ120: =+IF($K120="Ongoing",BD120,IF(RIGHT($K120,2)=RIGHT(BZ$39,2),SUM($AV120:BD120),0)+IF(RIGHT(BZ$39,2)>RIGHT($K120,2),BD120,0)) -> 0 | CA120: =+IF($K120="Ongoing",BE120,IF(RIGHT($K120,2)=RIGHT(CA$39,2),SUM($AV120:BE120),0)+IF(RIGHT(CA$39,2)>RIGHT($K120,2),BE120,0)) -> 0 | CC120: =+O120*KeyAssumptionsPriceControl_FO!X$15 -> 0 | CD120: =+P120*KeyAssumptionsPriceControl_FO!Y$15 -> 0 | CE120: =+Q120*KeyAssumptionsPriceControl_FO!Z$15 -> 0 | CF120: =+R120*KeyAssumptionsPriceControl_FO!AA$15 -> 0 | CG120: =+S120*KeyAssumptionsPriceControl_FO!AB$15 -> 0 | CH120: =+T120*KeyAssumptionsPriceControl_FO!AC$15 -> 0 | CI120: =+U120*KeyAssumptionsPriceControl_FO!AD$15 -> 0 | CJ120: =+V120*KeyAssumptionsPriceControl_FO!AE$15 -> 0 | CK120: =+W120*KeyAssumptionsPriceControl_FO!AF$15 -> 0 | CL120: =+X120*KeyAssumptionsPriceControl_FO!AG$15 -> 0 | CN120: 0 | CO120: 0 | CP120: 0 | CQ120: 0 | CR120: 0 | CS120: 0 | CT120: 0 | CU120: 0 | CV120: 0 | CW120: 0
C121: Finance IT | E121: Sewerage | F121: Renewals | G121: Corporate | H121: Capital Programs / Allocation | J121: Straight line | K121: Ongoing | L121: 10 | M121: 10 | O121: 0.015 | P121: 0.015 | Q121: 0.015 | R121: 0.015 | S121: 0.015 | T121: 0.015 | U121: 0.015 | V121: 0.015 | W121: 0.015 | X121: 0.015 | AV121: 0.015 | AW121: 0.015 | AX121: 0.015 | AY121: 0.015 | AZ121: 0.015 | BA121: 0.015 | BB121: 0.015 | BC121: 0.015 | BD121: 0.015 | BE121: 0.015 | BG121: 0.00075 | BH121: 0.00225 | BI121: 0.00375 | BJ121: 0.00525 | BK121: =IF($L121=0,0, IF($L121<=0.5,BV121, IF(AND($J121="straight line",$L121<1.51),(BU121-((BU121/$L121)*0.5))+BV121/$L121*0.5, IF($J121="straight line", IF((LEFT(BK$39,4)*1)-INT($L121)<LEFT($BG$39,4)*1,0,((OFFSET(BV121,0,-INT($L121+0.5),1,1))/$L121)*(IF($L121-INT($L121)>0.5,$L121-0.5-INT($L121),IF($L121-INT($L121)<=0.5,$L121-0.5-INT($L121)+1,0)))) +BV121/$L121*0.5 +SUM(OFFSET(BV121,0,MAX(-INT($L121+(0.5-(10^-12))),-BK$40)+1,1,MIN(INT($L121+(0.5-(10^-12))),BK$40)-1))*1/$L121, IF($J121="Declining Balance",-$BG$38,0))))) -> 0.00675 | BL121: 0.00825 | BM121: 0.00975 | BN121: 0.01125 | BO121: 0.01275 | BP121: 0.01425 | BR121: =+IF($K121="Ongoing",AV121,IF(RIGHT($K121,2)=RIGHT(BR$39,2),SUM($AV121:AV121),0)+IF(RIGHT(BR$39,2)>RIGHT($K121,2),AV121,0)) -> 0.015 | BS121: =+IF($K121="Ongoing",AW121,IF(RIGHT($K121,2)=RIGHT(BS$39,2),SUM($AV121:AW121),0)+IF(RIGHT(BS$39,2)>RIGHT($K121,2),AW121,0)) -> 0.015 | BT121: =+IF($K121="Ongoing",AX121,IF(RIGHT($K121,2)=RIGHT(BT$39,2),SUM($AV121:AX121),0)+IF(RIGHT(BT$39,2)>RIGHT($K121,2),AX121,0)) -> 0.015 | BU121: =+IF($K121="Ongoing",AY121,IF(RIGHT($K121,2)=RIGHT(BU$39,2),SUM($AV121:AY121),0)+IF(RIGHT(BU$39,2)>RIGHT($K121,2),AY121,0)) -> 0.015 | BV121: =+IF($K121="Ongoing",AZ121,IF(RIGHT($K121,2)=RIGHT(BV$39,2),SUM($AV121:AZ121),0)+IF(RIGHT(BV$39,2)>RIGHT($K121,2),AZ121,0)) -> 0.015 | BW121: =+IF($K121="Ongoing",BA121,IF(RIGHT($K121,2)=RIGHT(BW$39,2),SUM($AV121:BA121),0)+IF(RIGHT(BW$39,2)>RIGHT($K121,2),BA121,0)) -> 0.015 | BX121: =+IF($K121="Ongoing",BB121,IF(RIGHT($K121,2)=RIGHT(BX$39,2),SUM($AV121:BB121),0)+IF(RIGHT(BX$39,2)>RIGHT($K121,2),BB121,0)) -> 0.015 | BY121: =+IF($K121="Ongoing",BC121,IF(RIGHT($K121,2)=RIGHT(BY$39,2),SUM($AV121:BC121),0)+IF(RIGHT(BY$39,2)>RIGHT($K121,2),BC121,0)) -> 0.015 | BZ121: =+IF($K121="Ongoing",BD121,IF(RIGHT($K121,2)=RIGHT(BZ$39,2),SUM($AV121:BD121),0)+IF(RIGHT(BZ$39,2)>RIGHT($K121,2),BD121,0)) -> 0.015 | CA121: =+IF($K121="Ongoing",BE121,IF(RIGHT($K121,2)=RIGHT(CA$39,2),SUM($AV121:BE121),0)+IF(RIGHT(CA$39,2)>RIGHT($K121,2),BE121,0)) -> 0.015 | CC121: =+O121*KeyAssumptionsPriceControl_FO!X$15 -> 0.015345 | CD121: =+P121*KeyAssumptionsPriceControl_FO!Y$15 -> 0.015697935 | CE121: =+Q121*KeyAssumptionsPriceControl_FO!Z$15 -> 0.0160589875 | CF121: =+R121*KeyAssumptionsPriceControl_FO!AA$15 -> 0.01642834422 | CG121: =+S121*KeyAssumptionsPriceControl_FO!AB$15 -> 0.01680619613 | CH121: =+T121*KeyAssumptionsPriceControl_FO!AC$15 -> 0.01719273865 | CI121: =+U121*KeyAssumptionsPriceControl_FO!AD$15 -> 0.01758817163 | CJ121: =+V121*KeyAssumptionsPriceControl_FO!AE$15 -> 0.01799269958 | CK121: =+W121*KeyAssumptionsPriceControl_FO!AF$15 -> 0.01840653167 | CL121: =+X121*KeyAssumptionsPriceControl_FO!AG$15 -> 0.0188298819 | CN121: 0.00076725 | CO121: 0.00231939675 | CP121: 0.003907242875 | CQ121: 0.005531609461 | CR121: =IF($M121=0,0, IF($M121<=0.5,CG121, IF(AND($J121="straight line",$M121<1.51),(CF121-((CF121/$M121)*0.5))+CG121/$M121*0.5, IF($J121="straight line", IF((LEFT(CR$39,4)*1)-INT($M121)<LEFT($CN$39,4)*1,0,((OFFSET(CG121,0,-INT($M121+0.5),1,1))/$M121)*(IF($M121-INT($M121)>0.5,$M121-0.5-INT($M121),IF($M121-INT($M121)<=0.5,$M121-0.5-INT($M121)+1,0)))) +CG121/$M121*0.5 +SUM(OFFSET(CG121,0,MAX(-INT($M121+(0.5-(10^-12))),-CR$40)+1,1,MIN(INT($M121+(0.5-(10^-12))),CR$40)-1))*1/$M121, IF($J121="Declining Balance",-$CN$38,0))))) -> 0.007193336479 | CS121: 0.008893283218 | CT121: 0.01063232873 | CU121: 0.01241137229 | CV121: 0.01423133386 | CW121: 0.01609315453
